Workbook

Sheet 登録
A1: 対抗戦名称 | E1: 第 | F1: 31 | G1: 回 | I1: 京阪神和奈滋 | M1: 対抗戦 | AE1: 選手ID | AF1: チーム | AG1: 選手名 | AH1: 持点 | AN1: G-No | AO1: =Q5 -> 6 | AP1: クラブ | BC1: 対戦順クラブID | BI1: 対抗戦順クラブ名
AE2: 11 | AF2: =B$17 -> KRC | AG2: =D17 -> 松好 太一 | AH2: =F17 -> 120 | AI2: 1 | AJ2: 第1節 | AN2: 1 | AO2: 3 | AP2: 1 | AQ2: =VLOOKUP(AO2,$AZ$3:$BA$8,2,FALSE) -> SBC | AR2: =VLOOKUP(VALUE(AO2&AP2),$AE$2:$AG$55,3,FALSE) -> 林 秀忠 | AS2: =VLOOKUP(VALUE(AU2&AV2),$AE$2:$AG$55,3,FALSE) -> 吉向 翔平 | AT2: =VLOOKUP(AU2,$AZ$3:$BA$8,2,FALSE) -> NRC | AU2: 4 | AV2: 1 | AZ2: クラブID | BA2: クラブ名 | BC2: 6クラブ | BI2: 6クラブ | BO2: 5クラブ
A3: 開催日 | E3: 2019-01-13 | AE3: 12 | AF3: KRC | AG3: =G17 -> 清水 義晴 | AH3: =I17 -> 120 | AI3: 2 | AN3: 2 | AO3: =AO2 -> 3 | AP3: 2 | AQ3: SBC | AR3: 大橋 義治 | AS3: 岩本 剛 | AT3: =VLOOKUP(AU3,$AZ$3:$BA$8,2,FALSE) -> NRC | AU3: =AU2 -> 4 | AV3: 2 | AZ3: 1 | BA3: =B17 -> KRC | BC3: 6 | BD3: 5 | BE3: 4 | BF3: 3 | BG3: 2 | BI3: =IF(VLOOKUP(BC3,$AZ$3:$BA$8,2,TRUE)=0,"",VLOOKUP(BC3,$AZ$3:$BA$8,2,TRUE)) -> WRC | BJ3: ORC | BK3: NRC | BL3: SBC | BM3: HRC | BO3: =BJ3 -> ORC | BP3: =BK3 -> NRC | BQ3: =BL3 -> SBC | BR3: =BM3 -> HRC
AE4: 13 | AF4: KRC | AG4: =J17 -> 鈴木 康文 | AH4: =L17 -> 120 | AI4: 3 | AN4: 3 | AO4: 3 | AP4: 3 | AQ4: SBC | AR4: 山中 康寛 | AS4: 白戸 玲人 | AT4: NRC | AU4: 4 | AV4: 3 | AZ4: 2 | BA4: HRC | BC4: 5 | BD4: 3 | BE4: 6 | BF4: 4 | BG4: 1 | BI4: ORC | BJ4: SBC | BK4: WRC | BL4: NRC | BM4: KRC | BO4: =BI4 -> ORC | BP4: =BJ4 -> SBC | BQ4: =BL4 -> NRC | BR4: =BM4 -> KRC
A5: 会場 | E5: 玉出エース | H5: （ | I5: 奈良 | K5: ） | Q5: =COUNTA(D17:E22) -> 6 | R5: クラブ | T5: =COUNTA(D17,G17,J17,M17,P17,S17,V17,Y17) -> 7 | U5: 名対抗 | AE5: 14 | AF5: KRC | AG5: =M17 -> 早川 徹 | AH5: =O17 -> 120 | AI5: 4 | AN5: 4 | AO5: 3 | AP5: 4 | AQ5: SBC | AR5: 西峰 久祐 | AS5: 植田 慎也 | AT5: NRC | AU5: 4 | AV5: 4 | AZ5: 3 | BA5: SBC | BC5: 4 | BD5: 2 | BE5: 5 | BF5: 1 | BG5: 6 | BI5: NRC | BJ5: HRC | BK5: ORC | BL5: KRC | BM5: WRC | BO5: =BI5 -> NRC | BP5: =BJ5 -> HRC | BQ5: =BK5 -> ORC | BR5: =BL5 -> KRC
AE6: 15 | AF6: KRC | AG6: =P17 -> 井関 一成 | AH6: =R17 -> 120 | AI6: 5 | AN6: 5 | AO6: 3 | AP6: 5 | AQ6: SBC | AR6: 大橋 正寛 | AS6: 近藤 拓馬 | AT6: NRC | AU6: 4 | AV6: 5 | AZ6: 4 | BA6: NRC | BC6: 3 | BD6: 6 | BE6: 1 | BF6: 2 | BG6: 5 | BI6: SBC | BJ6: WRC | BK6: KRC | BL6: HRC | BM6: ORC | BO6: =BI6 -> SBC | BP6: =BK6 -> KRC | BQ6: =BL6 -> HRC | BR6: =BM6 -> ORC
A7: 【持点の設定】 | E7: C | F7: ： | G7: クラス | I7: 点数 | K7: 備考 | AE7: 16 | AF7: KRC | AG7: =S17 -> 今村 哲也 | AH7: =U17 -> 120 | AI7: 6 | AN7: 6 | AO7: 3 | AP7: 6 | AQ7: SBC | AR7: 秋田 倫央 | AS7: 長谷川 進 | AT7: NRC | AU7: 4 | AV7: 6 | AZ7: 5 | BA7: ORC | BC7: 2 | BD7: 1 | BE7: 3 | BF7: 6 | BG7: 4 | BI7: HRC | BJ7: KRC | BK7: SBC | BL7: WRC | BM7: NRC | BO7: =BI7 -> HRC | BP7: =BJ7 -> KRC | BQ7: =BK7 -> SBC | BR7: =BM7 -> NRC
E8: M | F8: ： | G8: 男性 | I8: 120 | J8: 点 | AE8: 17 | AF8: KRC | AG8: =V17 -> 森田由佳里 | AH8: =X17 -> 100 | AI8: 7 | AN8: 7 | AO8: 3 | AP8: 7 | AQ8: SBC | AR8: 大橋 洋子 | AS8: 白戸 恭子 | AT8: NRC | AU8: 4 | AV8: 7 | AZ8: 6 | BA8: WRC | BC8: 1 | BD8: 4 | BE8: 2 | BF8: 5 | BG8: 3 | BI8: KRC | BJ8: NRC | BK8: HRC | BL8: ORC | BM8: SBC
E9: W | F9: ： | G9: 女性 | I9: 100 | J9: 点 | AE9: 18 | AF9: KRC | AG9: =Y17 -> 0 | AH9: =AA17 -> 0 | AI9: 8 | AN9: 8 | AO9: 2 | AP9: 1 | AQ9: HRC | AR9: 鐵山 泰三 | AS9: 松居 勝巳 | AT9: ORC | AU9: 5 | AV9: 1
F10: ： | J10: 点 | AE10: 19 | AF10: KRC | AI10: 9 | AN10: 9 | AO10: 2 | AP10: 2 | AQ10: HRC | AR10: 堂園 雅也 | AS10: 藤明 宏樹 | AT10: ORC | AU10: 5 | AV10: 2
F11: ： | J11: 点 | AE11: 21 | AF11: =B$18 -> HRC | AG11: =D18 -> 鐵山 泰三 | AH11: =F18 -> 120 | AI11: 10 | AN11: 10 | AO11: 2 | AP11: 3 | AQ11: HRC | AR11: 宮本 一 | AS11: 吉岡 保俊 | AT11: ORC | AU11: 5 | AV11: 3 | AZ11: 6 | BA11: クラブ | BC11: 5 | BD11: クラブ
F12: ： | J12: 点 | AE12: 22 | AF12: HRC | AG12: =G18 -> 堂園 雅也 | AH12: =I18 -> 120 | AI12: 11 | AN12: 11 | AO12: 2 | AP12: 4 | AQ12: HRC | AR12: 伊藤 登 | AS12: 村上 泰辰 | AT12: ORC | AU12: 5 | AV12: 4 | AY12: 1節目 | AZ12: 1順目 | BA12: 3 | BB12: 4 | BC12: 3 | BD12: 4
AE13: 23 | AF13: HRC | AG13: =J18 -> 宮本 一 | AH13: =L18 -> 120 | AI13: 12 | AN13: 12 | AO13: 2 | AP13: 5 | AQ13: HRC | AR13: 宮井健太郎 | AS13: 小原 嘉丈 | AT13: ORC | AU13: 5 | AV13: 5 | BA13: 2 | BB13: 5 | BC13: 2 | BD13: 5
A14: 出場選手 | AE14: 24 | AF14: HRC | AG14: =M18 -> 伊藤 登 | AH14: =O18 -> 120 | AI14: 13 | AN14: 13 | AO14: 2 | AP14: 6 | AQ14: HRC | AR14: 白澤雄一郎 | AS14: 乾 伸綱 | AT14: ORC | AU14: 5 | AV14: 6 | BA14: 1 | BB14: 6 | BC14: 1 | BD14: 4
B15: チーム | D15: 1 | G15: 2 | J15: 3 | M15: 4 | P15: 5 | S15: 6 | V15: 7 | AE15: 25 | AF15: HRC | AG15: =P18 -> 宮井健太郎 | AH15: =R18 -> 120 | AI15: 14 | AN15: 14 | AO15: 2 | AP15: 7 | AQ15: HRC | AR15: 河地 恵里 | AS15: 山崎真紀子 | AT15: ORC | AU15: 5 | AV15: 7 | AZ15: 2順目 | BA15: 2 | BB15: 3 | BC15: 2 | BD15: 3
D16: 選手名 | F16: 持点 | G16: 選手名 | I16: 持点 | J16: 選手名 | L16: 持点 | M16: 選手名 | O16: 持点 | P16: 選手名 | R16: 持点 | S16: 選手名 | U16: 持点 | V16: 選手名 | X16: 持点 | AE16: 26 | AF16: HRC | AG16: =S18 -> 白澤雄一郎 | AH16: =U18 -> 120 | AI16: 15 | AN16: 15 | AO16: 1 | AP16: 1 | AQ16: KRC | AR16: 松好 太一 | AS16: 末岡 修 | AT16: WRC | AU16: =IF(AO1=5,4,6) -> 6 | AV16: 1 | BA16: 6 | BB16: 4 | BC16: 1 | BD16: 5
B17: KRC | D17: 松好 太一 | F17: 120 | G17: 清水 義晴 | I17: 120 | J17: 鈴木 康文 | L17: 120 | M17: 早川 徹 | O17: 120 | P17: 井関 一成 | R17: 120 | S17: 今村 哲也 | U17: 120 | V17: 森田由佳里 | X17: 100 | AE17: 27 | AF17: HRC | AG17: =V18 -> 河地 恵里 | AH17: =X18 -> 100 | AI17: 16 | AN17: 16 | AO17: =AO16 -> 1 | AP17: 2 | AQ17: KRC | AR17: 清水 義晴 | AS17: 和田宗一郎 | AT17: WRC | AU17: =AU16 -> 6 | AV17: 2 | BA17: 1 | BB17: 5 | BC17: 4 | BD17: 2
B18: HRC | D18: 鐵山 泰三 | F18: 120 | G18: 堂園 雅也 | I18: 120 | J18: 宮本 一 | L18: 120 | M18: 伊藤 登 | O18: 120 | P18: 宮井健太郎 | R18: 120 | S18: 白澤雄一郎 | U18: 120 | V18: 河地 恵里 | X18: 100 | AE18: 28 | AF18: HRC | AG18: =Y18 -> 0 | AH18: =AA18 -> 0 | AI18: 17 | AN18: 17 | AO18: 1 | AP18: 3 | AQ18: KRC | AR18: 鈴木 康文 | AS18: 杉本 博章 | AT18: WRC | AU18: 6 | AV18: 3 | AZ18: 3順目 | BA18: 6 | BB18: 2 | BC18: 3 | BD18: 5
B19: SBC | D19: 林 秀忠 | F19: 120 | G19: 大橋 義治 | I19: 120 | J19: 山中 康寛 | L19: 120 | M19: 西峰 久祐 | O19: 120 | P19: 大橋 正寛 | R19: 120 | S19: 秋田 倫央 | U19: 120 | V19: 大橋 洋子 | X19: 100 | AE19: 29 | AF19: HRC | AI19: 18 | AN19: 18 | AO19: 1 | AP19: 4 | AQ19: KRC | AR19: 早川 徹 | AS19: 中本 雅大 | AT19: WRC | AU19: 6 | AV19: 4 | BA19: 5 | BB19: 3 | BC19: 1 | BD19: 2
B20: NRC | D20: 吉向 翔平 | F20: 120 | G20: 岩本 剛 | I20: 120 | J20: 白戸 玲人 | L20: 120 | M20: 植田 慎也 | O20: 120 | P20: 近藤 拓馬 | R20: 120 | S20: 長谷川 進 | U20: 120 | V20: 白戸 恭子 | X20: 100 | AE20: 31 | AF20: =B$19 -> SBC | AG20: =D19 -> 林 秀忠 | AH20: =F19 -> 120 | AI20: 19 | AN20: 19 | AO20: 1 | AP20: 5 | AQ20: KRC | AR20: 井関 一成 | AS20: 山中 康介 | AT20: WRC | AU20: 6 | AV20: 5 | BA20: 1 | BB20: 4 | BC20: 4 | BD20: 5
B21: ORC | D21: 松居 勝巳 | F21: 120 | G21: 藤明 宏樹 | I21: 120 | J21: 吉岡 保俊 | L21: 120 | M21: 村上 泰辰 | O21: 120 | P21: 小原 嘉丈 | R21: 120 | S21: 乾 伸綱 | U21: 120 | V21: 山崎真紀子 | X21: 100 | AE21: 32 | AF21: SBC | AG21: =G19 -> 大橋 義治 | AH21: =I19 -> 120 | AI21: 20 | AN21: 20 | AO21: 1 | AP21: 6 | AQ21: KRC | AR21: 今村 哲也 | AS21: 芝先 泰生 | AT21: WRC | AU21: 6 | AV21: 6 | AZ21: 4順目 | BA21: 5 | BB21: 6 | BC21: 3 | BD21: 1
B22: WRC | D22: 末岡 修 | F22: 120 | G22: 和田宗一郎 | I22: 120 | J22: 杉本 博章 | L22: 120 | M22: 中本 雅大 | O22: 120 | P22: 山中 康介 | R22: 120 | S22: 芝先 泰生 | U22: 120 | V22: 松房ゆかり | X22: 100 | AE22: 33 | AF22: SBC | AG22: =J19 -> 山中 康寛 | AH22: =L19 -> 120 | AI22: 21 | AN22: 21 | AO22: 1 | AP22: 7 | AQ22: KRC | AR22: 森田由佳里 | AS22: 松房ゆかり | AT22: WRC | AU22: 6 | AV22: 7 | BA22: 4 | BB22: 2 | BC22: 2 | BD22: 5
AE23: 34 | AF23: SBC | AG23: =M19 -> 西峰 久祐 | AH23: =O19 -> 120 | AI23: 22 | AN23: 22 | AO23: 2 | AP23: 1 | AQ23: HRC | AR23: 鐵山 泰三 | AS23: 林 秀忠 | AT23: SBC | AU23: 3 | AV23: 1 | BA23: 1 | BB23: 3 | BC23: 3 | BD23: 4
AE24: 35 | AF24: SBC | AG24: =P19 -> 大橋 正寛 | AH24: =R19 -> 120 | AI24: 23 | AN24: 23 | AO24: =AO23 -> 2 | AP24: 2 | AQ24: HRC | AR24: 堂園 雅也 | AS24: 大橋 義治 | AT24: SBC | AU24: =AU23 -> 3 | AV24: 2 | AZ24: 5順目 | BA24: 4 | BB24: 5 | BC24: 1 | BD24: 5
M25: くにゆき | P25: こうじ | AE25: 36 | AF25: SBC | AG25: =S19 -> 秋田 倫央 | AH25: =U19 -> 120 | AI25: 24 | AN25: 24 | AO25: 2 | AP25: 3 | AQ25: HRC | AR25: 宮本 一 | AS25: 山中 康寛 | AT25: SBC | AU25: 3 | AV25: 3 | BA25: 3 | BB25: 6 | BC25: 3 | BD25: 2
M26: やすひろ | AE26: 37 | AF26: SBC | AG26: =V19 -> 大橋 洋子 | AH26: =X19 -> 100 | AI26: 25 | AN26: 25 | AO26: 2 | AP26: 4 | AQ26: HRC | AR26: 伊藤 登 | AS26: 西峰 久祐 | AT26: SBC | AU26: 3 | AV26: 4 | BA26: 1 | BB26: 2 | BC26: 1 | BD26: 4
AE27: 38 | AF27: SBC | AG27: =Y19 -> 0 | AH27: =AA19 -> 0 | AI27: 26 | AN27: 26 | AO27: 2 | AP27: 5 | AQ27: HRC | AR27: 宮井健太郎 | AS27: 大橋 正寛 | AT27: SBC | AU27: 3 | AV27: 5 | AY27: 2節目 | AZ27: 1順目 | BA27: 3 | BB27: 4 | BC27: 3 | BD27: 5
AE28: 39 | AF28: SBC | AI28: 27 | AN28: 27 | AO28: 2 | AP28: 6 | AQ28: HRC | AR28: 白澤雄一郎 | AS28: 秋田 倫央 | AT28: SBC | AU28: 3 | AV28: 6 | BA28: 2 | BB28: 5 | BC28: 4 | BD28: 2
AE29: 41 | AF29: =B$20 -> NRC | AG29: =D20 -> 吉向 翔平 | AH29: =F20 -> 120 | AI29: 28 | AN29: 28 | AO29: 2 | AP29: 7 | AQ29: HRC | AR29: 河地 恵里 | AS29: 大橋 洋子 | AT29: SBC | AU29: 3 | AV29: 7 | BA29: 1 | BB29: 6 | BC29: 3 | BD29: 1
AE30: 42 | AF30: NRC | AG30: =G20 -> 岩本 剛 | AH30: =I20 -> 120 | AI30: 29 | AN30: 29 | AO30: =IF(AO1=5,1,6) -> 6 | AP30: 1 | AQ30: WRC | AR30: 末岡 修 | AS30: 吉向 翔平 | AT30: NRC | AU30: =IF(AO1=5,5,4) -> 4 | AV30: 1 | AZ30: 2順目 | BA30: 2 | BB30: 3 | BC30: 4 | BD30: 5
AE31: 43 | AF31: NRC | AG31: =J20 -> 白戸 玲人 | AH31: =L20 -> 120 | AI31: 30 | AN31: 30 | AO31: =AO30 -> 6 | AP31: 2 | AQ31: WRC | AR31: 和田宗一郎 | AS31: 岩本 剛 | AT31: NRC | AU31: =AU30 -> 4 | AV31: 2 | BA31: 6 | BB31: 4 | BC31: 1 | BD31: 2
AE32: 44 | AF32: NRC | AG32: =M20 -> 植田 慎也 | AH32: =O20 -> 120 | AI32: 31 | AN32: 31 | AO32: 6 | AP32: 3 | AQ32: WRC | AR32: 杉本 博章 | AS32: 白戸 玲人 | AT32: NRC | AU32: 4 | AV32: 3 | BA32: 1 | BB32: 5
AE33: 45 | AF33: NRC | AG33: =P20 -> 近藤 拓馬 | AH33: =R20 -> 120 | AI33: 32 | AN33: 32 | AO33: 6 | AP33: 4 | AQ33: WRC | AR33: 中本 雅大 | AS33: 植田 慎也 | AT33: NRC | AU33: 4 | AV33: 4 | AZ33: 3順目 | BA33: 6 | BB33: 2
AE34: 46 | AF34: NRC | AG34: =S20 -> 長谷川 進 | AH34: =U20 -> 120 | AI34: 33 | AN34: 33 | AO34: 6 | AP34: 5 | AQ34: WRC | AR34: 山中 康介 | AS34: 近藤 拓馬 | AT34: NRC | AU34: 4 | AV34: 5 | BA34: 5 | BB34: 3
AE35: 47 | AF35: NRC | AG35: =V20 -> 白戸 恭子 | AH35: =X20 -> 100 | AI35: 34 | AN35: 34 | AO35: 6 | AP35: 6 | AQ35: WRC | AR35: 芝先 泰生 | AS35: 長谷川 進 | AT35: NRC | AU35: 4 | AV35: 6 | BA35: 1 | BB35: 4
AE36: 48 | AF36: NRC | AG36: =Y20 -> 0 | AH36: =AA20 -> 0 | AI36: 35 | AN36: 35 | AO36: 6 | AP36: 7 | AQ36: WRC | AR36: 松房ゆかり | AS36: 白戸 恭子 | AT36: NRC | AU36: 4 | AV36: 7 | AZ36: 4順目 | BA36: 5 | BB36: 6
AE37: 49 | AF37: NRC | AI37: 36 | AN37: 36 | AO37: =IF(AO1=5,4,1) -> 1 | AP37: 1 | AQ37: KRC | AR37: 松好 太一 | AS37: 松居 勝巳 | AT37: ORC | AU37: =IF(AO1=5,2,5) -> 5 | AV37: 1 | BA37: 4 | BB37: 2
AE38: 51 | AF38: =B$21 -> ORC | AG38: =D21 -> 松居 勝巳 | AH38: =F21 -> 120 | AI38: 37 | AN38: 37 | AO38: 1 | AP38: 2 | AQ38: KRC | AR38: 清水 義晴 | AS38: 藤明 宏樹 | AT38: ORC | AU38: =AU37 -> 5 | AV38: 2 | BA38: 1 | BB38: 3
AE39: 52 | AF39: ORC | AG39: =G21 -> 藤明 宏樹 | AH39: =I21 -> 120 | AI39: 38 | AN39: 38 | AO39: 1 | AP39: 3 | AQ39: KRC | AR39: 鈴木 康文 | AS39: 吉岡 保俊 | AT39: ORC | AU39: 5 | AV39: 3 | AZ39: 5順目 | BA39: 4 | BB39: 5
AE40: 53 | AF40: ORC | AG40: =J21 -> 吉岡 保俊 | AH40: =L21 -> 120 | AI40: 39 | AN40: 39 | AO40: 1 | AP40: 4 | AQ40: KRC | AR40: 早川 徹 | AS40: 村上 泰辰 | AT40: ORC | AU40: 5 | AV40: 4 | BA40: 3 | BB40: 6
AE41: 54 | AF41: ORC | AG41: =M21 -> 村上 泰辰 | AH41: =O21 -> 120 | AI41: 40 | AN41: 40 | AO41: 1 | AP41: 5 | AQ41: KRC | AR41: 井関 一成 | AS41: 小原 嘉丈 | AT41: ORC | AU41: 5 | AV41: 5 | BA41: 1 | BB41: 2
AE42: 55 | AF42: ORC | AG42: =P21 -> 小原 嘉丈 | AH42: =R21 -> 120 | AI42: 41 | AN42: 41 | AO42: 1 | AP42: 6 | AQ42: KRC | AR42: 今村 哲也 | AS42: 乾 伸綱 | AT42: ORC | AU42: 5 | AV42: 6
AE43: 56 | AF43: ORC | AG43: =S21 -> 乾 伸綱 | AH43: =U21 -> 120 | AI43: 42 | AN43: 42 | AO43: 1 | AP43: 7 | AQ43: KRC | AR43: 森田由佳里 | AS43: 山崎真紀子 | AT43: ORC | AU43: 5 | AV43: 7
AE44: 57 | AF44: ORC | AG44: =V21 -> 山崎真紀子 | AH44: =X21 -> 100 | AI44: 43 | AN44: 43 | AO44: =IF(AO1=5,3,6) -> 6 | AP44: 1 | AQ44: WRC | AR44: 末岡 修 | AS44: 鐵山 泰三 | AT44: HRC | AU44: =IF(AO1=5,5,2) -> 2 | AV44: 1
AE45: 58 | AF45: ORC | AG45: =Y21 -> 0 | AH45: =AA21 -> 0 | AI45: 44 | AN45: 44 | AO45: 6 | AP45: 2 | AQ45: WRC | AR45: 和田宗一郎 | AS45: 堂園 雅也 | AT45: HRC | AU45: =AU44 -> 2 | AV45: 2
AE46: 59 | AF46: ORC | AI46: 45 | AN46: 45 | AO46: 6 | AP46: 3 | AQ46: WRC | AR46: 杉本 博章 | AS46: 宮本 一 | AT46: HRC | AU46: 2 | AV46: 3
AE47: 61 | AF47: =B$22 -> WRC | AG47: =D22 -> 末岡 修 | AH47: =F22 -> 120 | AI47: 46 | AN47: 46 | AO47: 6 | AP47: 4 | AQ47: WRC | AR47: 中本 雅大 | AS47: 伊藤 登 | AT47: HRC | AU47: 2 | AV47: 4
AE48: 62 | AF48: WRC | AG48: =G22 -> 和田宗一郎 | AH48: =I22 -> 120 | AI48: 47 | AN48: 47 | AO48: 6 | AP48: 5 | AQ48: WRC | AR48: 山中 康介 | AS48: 宮井健太郎 | AT48: HRC | AU48: 2 | AV48: 5
AE49: 63 | AF49: WRC | AG49: =J22 -> 杉本 博章 | AH49: =L22 -> 120 | AI49: 48 | AN49: 48 | AO49: 6 | AP49: 6 | AQ49: WRC | AR49: 芝先 泰生 | AS49: 白澤雄一郎 | AT49: HRC | AU49: 2 | AV49: 6
AE50: 64 | AF50: WRC | AG50: =M22 -> 中本 雅大 | AH50: =O22 -> 120 | AI50: 49 | AN50: 49 | AO50: 6 | AP50: 7 | AQ50: WRC | AR50: 松房ゆかり | AS50: 河地 恵里 | AT50: HRC | AU50: 2 | AV50: 7
AE51: 65 | AF51: WRC | AG51: =P22 -> 山中 康介 | AH51: =R22 -> 120 | AI51: 50 | AN51: 50 | AO51: =IF(AO1=5,1,5) -> 5 | AP51: 1 | AQ51: ORC | AR51: 松居 勝巳 | AS51: 林 秀忠 | AT51: SBC | AU51: =IF(AO1=5,2,3) -> 3 | AV51: 1
AE52: 66 | AF52: WRC | AG52: =S22 -> 芝先 泰生 | AH52: =U22 -> 120 | AI52: 51 | AN52: 51 | AO52: 5 | AP52: 2 | AQ52: ORC | AR52: 藤明 宏樹 | AS52: 大橋 義治 | AT52: SBC | AU52: =AU51 -> 3 | AV52: 2
AE53: 67 | AF53: WRC | AG53: =V22 -> 松房ゆかり | AH53: =X22 -> 100 | AI53: 52 | AN53: 52 | AO53: 5 | AP53: 3 | AQ53: ORC | AR53: 吉岡 保俊 | AS53: 山中 康寛 | AT53: SBC | AU53: 3 | AV53: 3
AE54: 68 | AF54: WRC | AG54: =Y22 -> 0 | AH54: =AA22 -> 0 | AI54: 53 | AN54: 53 | AO54: 5 | AP54: 4 | AQ54: ORC | AR54: 村上 泰辰 | AS54: 西峰 久祐 | AT54: SBC | AU54: 3 | AV54: 4
AE55: 69 | AF55: WRC | AI55: 54 | AN55: 54 | AO55: 5 | AP55: 5 | AQ55: ORC | AR55: 小原 嘉丈 | AS55: 大橋 正寛 | AT55: SBC | AU55: 3 | AV55: 5
AI56: 55 | AN56: 55 | AO56: 5 | AP56: 6 | AQ56: ORC | AR56: 乾 伸綱 | AS56: 秋田 倫央 | AT56: SBC | AU56: 3 | AV56: 6
AI57: 56 | AN57: 56 | AO57: 5 | AP57: 7 | AQ57: ORC | AR57: 山崎真紀子 | AS57: 大橋 洋子 | AT57: SBC | AU57: 3 | AV57: 7
AI58: 57 | AN58: 57 | AO58: =IF(AO1=5,4,1) -> 1 | AP58: 1 | AQ58: KRC | AR58: 松好 太一 | AS58: 吉向 翔平 | AT58: NRC | AU58: =IF(AO1=5,5,4) -> 4 | AV58: 1
AI59: 58 | AN59: 58 | AO59: 1 | AP59: 2 | AQ59: KRC | AR59: 清水 義晴 | AS59: 岩本 剛 | AT59: NRC | AU59: =AU58 -> 4 | AV59: 2
AI60: 59 | AN60: 59 | AO60: 1 | AP60: 3 | AQ60: KRC | AR60: 鈴木 康文 | AS60: 白戸 玲人 | AT60: NRC | AU60: 4 | AV60: 3
AI61: 60 | AN61: 60 | AO61: 1 | AP61: 4 | AQ61: KRC | AR61: 早川 徹 | AS61: 植田 慎也 | AT61: NRC | AU61: 4 | AV61: 4
AI62: 61 | AN62: 61 | AO62: 1 | AP62: 5 | AQ62: KRC | AR62: 井関 一成 | AS62: 近藤 拓馬 | AT62: NRC | AU62: 4 | AV62: 5
AI63: 62 | AN63: 62 | AO63: 1 | AP63: 6 | AQ63: KRC | AR63: 今村 哲也 | AS63: 長谷川 進 | AT63: NRC | AU63: 4 | AV63: 6
AI64: 63 | AN64: 63 | AO64: 1 | AP64: 7 | AQ64: KRC | AR64: 森田由佳里 | AS64: 白戸 恭子 | AT64: NRC | AU64: 4 | AV64: 7
AI65: 64 | AN65: 64 | AO65: =IF(AO1=5,2,5) -> 5 | AP65: 1 | AQ65: ORC | AR65: 松居 勝巳 | AS65: 末岡 修 | AT65: WRC | AU65: =IF(AO1=5,1,6) -> 6 | AV65: 1
AI66: 65 | AN66: 65 | AO66: 5 | AP66: 2 | AQ66: =VLOOKUP(AO66,$AZ$3:$BA$8,2,FALSE) -> ORC | AR66: =VLOOKUP(VALUE(AO66&AP66),$AE$2:$AG$55,3,FALSE) -> 藤明 宏樹 | AS66: =VLOOKUP(VALUE(AU66&AV66),$AE$2:$AG$55,3,FALSE) -> 和田宗一郎 | AT66: WRC | AU66: =AU65 -> 6 | AV66: 2
AI67: 66 | AN67: 66 | AO67: 5 | AP67: 3 | AQ67: ORC | AR67: 吉岡 保俊 | AS67: 杉本 博章 | AT67: =VLOOKUP(AU67,$AZ$3:$BA$8,2,FALSE) -> WRC | AU67: 6 | AV67: 3
AI68: 67 | AN68: 67 | AO68: 5 | AP68: 4 | AQ68: ORC | AR68: 村上 泰辰 | AS68: 中本 雅大 | AT68: WRC | AU68: 6 | AV68: 4
AI69: 68 | AN69: 68 | AO69: 5 | AP69: 5 | AQ69: ORC | AR69: 小原 嘉丈 | AS69: 山中 康介 | AT69: WRC | AU69: 6 | AV69: 5
AI70: 69 | AN70: 69 | AO70: 5 | AP70: 6 | AQ70: ORC | AR70: 乾 伸綱 | AS70: 芝先 泰生 | AT70: WRC | AU70: 6 | AV70: 6
AI71: 70 | AN71: 70 | AO71: 5 | AP71: 7 | AQ71: ORC | AR71: 山崎真紀子 | AS71: 松房ゆかり | AT71: WRC | AU71: 6 | AV71: 7
AI72: 71 | AJ72: =IF($AO$1=6,"","第2節") ->  | AN72: 71 | AO72: =IF(AO1=5,2,4) -> 4 | AP72: 1 | AQ72: NRC | AR72: 吉向 翔平 | AS72: 鐵山 泰三 | AT72: HRC | AU72: =IF(AO1=5,5,2) -> 2 | AV72: 1
AI73: 72 | AN73: 72 | AO73: 4 | AP73: 2 | AQ73: NRC | AR73: 岩本 剛 | AS73: 堂園 雅也 | AT73: HRC | AU73: =AU72 -> 2 | AV73: 2
AI74: 73 | AN74: 73 | AO74: 4 | AP74: 3 | AQ74: NRC | AR74: 白戸 玲人 | AS74: 宮本 一 | AT74: HRC | AU74: 2 | AV74: 3
AI75: 74 | AN75: 74 | AO75: 4 | AP75: 4 | AQ75: NRC | AR75: 植田 慎也 | AS75: 伊藤 登 | AT75: HRC | AU75: 2 | AV75: 4
AI76: 75 | AN76: 75 | AO76: 4 | AP76: 5 | AQ76: NRC | AR76: 近藤 拓馬 | AS76: 宮井健太郎 | AT76: HRC | AU76: 2 | AV76: 5
AI77: 76 | AN77: 76 | AO77: 4 | AP77: 6 | AQ77: NRC | AR77: 長谷川 進 | AS77: 白澤雄一郎 | AT77: HRC | AU77: 2 | AV77: 6
AI78: 77 | AN78: 77 | AO78: 4 | AP78: 7 | AQ78: NRC | AR78: 白戸 恭子 | AS78: 河地 恵里 | AT78: HRC | AU78: 2 | AV78: 7
AI79: 78 | AN79: 78 | AO79: =IF(AO1=5,3,1) -> 1 | AP79: 1 | AQ79: KRC | AR79: 松好 太一 | AS79: 林 秀忠 | AT79: SBC | AU79: =IF(AO1=5,4,3) -> 3 | AV79: 1
AI80: 79 | AN80: 79 | AO80: 1 | AP80: 2 | AQ80: KRC | AR80: 清水 義晴 | AS80: 大橋 義治 | AT80: SBC | AU80: =AU79 -> 3 | AV80: 2
AI81: 80 | AN81: 80 | AO81: 1 | AP81: 3 | AQ81: KRC | AR81: 鈴木 康文 | AS81: 山中 康寛 | AT81: SBC | AU81: 3 | AV81: 3
AI82: 81 | AN82: 81 | AO82: 1 | AP82: 4 | AQ82: KRC | AR82: 早川 徹 | AS82: 西峰 久祐 | AT82: SBC | AU82: 3 | AV82: 4
AI83: 82 | AN83: 82 | AO83: 1 | AP83: 5 | AQ83: KRC | AR83: 井関 一成 | AS83: 大橋 正寛 | AT83: SBC | AU83: 3 | AV83: 5
AI84: 83 | AN84: 83 | AO84: 1 | AP84: 6 | AQ84: KRC | AR84: 今村 哲也 | AS84: 秋田 倫央 | AT84: SBC | AU84: 3 | AV84: 6
AI85: 84 | AN85: 84 | AO85: 1 | AP85: 7 | AQ85: KRC | AR85: 森田由佳里 | AS85: 大橋 洋子 | AT85: SBC | AU85: 3 | AV85: 7
AI86: 85 | AN86: 85 | AO86: =IF(AO1=5,1,4) -> 4 | AP86: 1 | AQ86: NRC | AR86: 吉向 翔平 | AS86: 松居 勝巳 | AT86: ORC | AU86: =IF(AO1=5,5,5) -> 5 | AV86: 1
AI87: 86 | AN87: 86 | AO87: 4 | AP87: 2 | AQ87: NRC | AR87: 岩本 剛 | AS87: 藤明 宏樹 | AT87: ORC | AU87: =AU86 -> 5 | AV87: 2
AI88: 87 | AN88: 87 | AO88: 4 | AP88: 3 | AQ88: NRC | AR88: 白戸 玲人 | AS88: 吉岡 保俊 | AT88: ORC | AU88: 5 | AV88: 3
AI89: 88 | AN89: 88 | AO89: 4 | AP89: 4 | AQ89: NRC | AR89: 植田 慎也 | AS89: 村上 泰辰 | AT89: ORC | AU89: 5 | AV89: 4
AI90: 89 | AN90: 89 | AO90: 4 | AP90: 5 | AQ90: NRC | AR90: 近藤 拓馬 | AS90: 小原 嘉丈 | AT90: ORC | AU90: 5 | AV90: 5
AI91: 90 | AN91: 90 | AO91: 4 | AP91: 6 | AQ91: NRC | AR91: 長谷川 進 | AS91: 乾 伸綱 | AT91: ORC | AU91: 5 | AV91: 6
AI92: 91 | AN92: 91 | AO92: 4 | AP92: 7 | AQ92: NRC | AR92: 白戸 恭子 | AS92: 山崎真紀子 | AT92: ORC | AU92: 5 | AV92: 7
AI93: 92 | AN93: 92 | AO93: =IF(AO1=5,3,3) -> 3 | AP93: 1 | AQ93: SBC | AR93: 林 秀忠 | AS93: 末岡 修 | AT93: WRC | AU93: =IF(AO1=5,2,6) -> 6 | AV93: 1
AI94: 93 | AN94: 93 | AO94: 3 | AP94: 2 | AQ94: SBC | AR94: 大橋 義治 | AS94: 和田宗一郎 | AT94: WRC | AU94: =AU93 -> 6 | AV94: 2
AI95: 94 | AN95: 94 | AO95: =AO94 -> 3 | AP95: 3 | AQ95: SBC | AR95: 山中 康寛 | AS95: 杉本 博章 | AT95: WRC | AU95: 6 | AV95: 3
AI96: 95 | AN96: 95 | AO96: =AO95 -> 3 | AP96: 4 | AQ96: SBC | AR96: 西峰 久祐 | AS96: 中本 雅大 | AT96: WRC | AU96: 6 | AV96: 4
AI97: 96 | AN97: 96 | AO97: =AO96 -> 3 | AP97: 5 | AQ97: SBC | AR97: 大橋 正寛 | AS97: 山中 康介 | AT97: WRC | AU97: 6 | AV97: 5
AI98: 97 | AN98: 97 | AO98: =AO97 -> 3 | AP98: 6 | AQ98: SBC | AR98: 秋田 倫央 | AS98: 芝先 泰生 | AT98: WRC | AU98: 6 | AV98: 6
AI99: 98 | AN99: 98 | AO99: =AO98 -> 3 | AP99: 7 | AQ99: SBC | AR99: 大橋 洋子 | AS99: 松房ゆかり | AT99: WRC | AU99: 6 | AV99: 7
AI100: 99 | AN100: 99 | AO100: =IF(AO1=5,1,1) -> 1 | AP100: 1 | AQ100: KRC | AR100: 松好 太一 | AS100: 鐵山 泰三 | AT100: HRC | AU100: =IF(AO1=5,4,2) -> 2 | AV100: 1
AI101: 100 | AN101: 100 | AO101: =AO100 -> 1 | AP101: 2 | AQ101: KRC | AR101: 清水 義晴 | AS101: 堂園 雅也 | AT101: HRC | AU101: =AU100 -> 2 | AV101: 2
AI102: 101 | AN102: 101 | AO102: 1 | AP102: 3 | AQ102: KRC | AR102: 鈴木 康文 | AS102: 宮本 一 | AT102: HRC | AU102: 2 | AV102: 3
AI103: 102 | AN103: 102 | AO103: 1 | AP103: 4 | AQ103: KRC | AR103: 早川 徹 | AS103: 伊藤 登 | AT103: HRC | AU103: 2 | AV103: 4
AI104: 103 | AN104: 103 | AO104: 1 | AP104: 5 | AQ104: KRC | AR104: 井関 一成 | AS104: 宮井健太郎 | AT104: HRC | AU104: 2 | AV104: 5
AI105: 104 | AN105: 104 | AO105: 1 | AP105: 6 | AQ105: KRC | AR105: 今村 哲也 | AS105: 白澤雄一郎 | AT105: HRC | AU105: 2 | AV105: 6
AI106: 105 | AN106: 105 | AO106: 1 | AP106: 7 | AQ106: KRC | AR106: 森田由佳里 | AS106: 河地 恵里 | AT106: HRC | AU106: 2 | AV106: 7
AI107: 106 | AJ107: =IF($AO$1=6,"第2節","") -> 第2節 | AN107: 106 | AO107: =IF(AO1=5,3,3) -> 3 | AP107: 3 | AQ107: SBC | AR107: 山中 康寛 | AS107: 植田 慎也 | AT107: NRC | AU107: =IF(AO1=5,5,4) -> 4 | AV107: 4
AI108: 107 | AN108: 107 | AO108: =AO107 -> 3 | AP108: 4 | AQ108: SBC | AR108: 西峰 久祐 | AS108: 近藤 拓馬 | AT108: NRC | AU108: =AU107 -> 4 | AV108: 5
AI109: 108 | AN109: 108 | AO109: 3 | AP109: 5 | AQ109: SBC | AR109: 大橋 正寛 | AS109: 長谷川 進 | AT109: NRC | AU109: 4 | AV109: 6
AI110: 109 | AN110: 109 | AO110: 3 | AP110: 6 | AQ110: SBC | AR110: 秋田 倫央 | AS110: 白戸 恭子 | AT110: NRC | AU110: 4 | AV110: 7
AI111: 110 | AN111: 110 | AO111: 3 | AP111: 7 | AQ111: SBC | AR111: 大橋 洋子 | AS111: 吉向 翔平 | AT111: NRC | AU111: 4 | AV111: 1
AI112: 111 | AN112: 111 | AO112: 3 | AP112: 1 | AQ112: SBC | AR112: 林 秀忠 | AS112: 岩本 剛 | AT112: NRC | AU112: 4 | AV112: 2
AI113: 112 | AN113: 112 | AO113: 3 | AP113: 2 | AQ113: SBC | AR113: 大橋 義治 | AS113: 白戸 玲人 | AT113: NRC | AU113: 4 | AV113: 3
AI114: 113 | AN114: 113 | AO114: =IF(AO1=5,4,2) -> 2 | AP114: 2 | AQ114: HRC | AR114: 堂園 雅也 | AS114: 小原 嘉丈 | AT114: ORC | AU114: =IF(AO1=5,2,5) -> 5 | AV114: 5
AI115: 114 | AN115: 114 | AO115: =AO114 -> 2 | AP115: 3 | AQ115: HRC | AR115: 宮本 一 | AS115: 乾 伸綱 | AT115: ORC | AU115: =AU114 -> 5 | AV115: 6
AI116: 115 | AN116: 115 | AO116: 2 | AP116: 4 | AQ116: HRC | AR116: 伊藤 登 | AS116: 山崎真紀子 | AT116: ORC | AU116: 5 | AV116: 7
AI117: 116 | AN117: 116 | AO117: 2 | AP117: 5 | AQ117: HRC | AR117: 宮井健太郎 | AS117: 松居 勝巳 | AT117: ORC | AU117: 5 | AV117: 1
AI118: 117 | AN118: 117 | AO118: 2 | AP118: 6 | AQ118: HRC | AR118: 白澤雄一郎 | AS118: 藤明 宏樹 | AT118: ORC | AU118: 5 | AV118: 2
AI119: 118 | AN119: 118 | AO119: 2 | AP119: 7 | AQ119: HRC | AR119: 河地 恵里 | AS119: 吉岡 保俊 | AT119: ORC | AU119: 5 | AV119: 3
AI120: 119 | AN120: 119 | AO120: 2 | AP120: 1 | AQ120: HRC | AR120: 鐵山 泰三 | AS120: 村上 泰辰 | AT120: ORC | AU120: 5 | AV120: 4
AI121: 120 | AN121: 120 | AO121: =IF(AO1=5,3,1) -> 1 | AP121: 1 | AQ121: KRC | AR121: 松好 太一 | AS121: 芝先 泰生 | AT121: WRC | AU121: =IF(AO1=5,1,6) -> 6 | AV121: 6
AI122: 121 | AN122: 121 | AO122: =AO121 -> 1 | AP122: 2 | AQ122: KRC | AR122: 清水 義晴 | AS122: 松房ゆかり | AT122: WRC | AU122: =AU121 -> 6 | AV122: 7
AI123: 122 | AN123: 122 | AO123: 1 | AP123: 3 | AQ123: KRC | AR123: 鈴木 康文 | AS123: 末岡 修 | AT123: WRC | AU123: 6 | AV123: 1
AI124: 123 | AN124: 123 | AO124: 1 | AP124: 4 | AQ124: KRC | AR124: 早川 徹 | AS124: 和田宗一郎 | AT124: WRC | AU124: 6 | AV124: 2
AI125: 124 | AN125: 124 | AO125: 1 | AP125: 5 | AQ125: KRC | AR125: 井関 一成 | AS125: 杉本 博章 | AT125: WRC | AU125: 6 | AV125: 3
AI126: 125 | AN126: 125 | AO126: 1 | AP126: 6 | AQ126: KRC | AR126: 今村 哲也 | AS126: 中本 雅大 | AT126: WRC | AU126: 6 | AV126: 4
AI127: 126 | AN127: 126 | AO127: 1 | AP127: 7 | AQ127: KRC | AR127: 森田由佳里 | AS127: 山中 康介 | AT127: WRC | AU127: 6 | AV127: 5
AI128: 127 | AN128: 127 | AO128: =IF(AO1=5,4,2) -> 2 | AP128: 2 | AQ128: HRC | AR128: 堂園 雅也 | AS128: 山中 康寛 | AT128: SBC | AU128: =IF(AO1=5,5,3) -> 3 | AV128: 3
AI129: 128 | AN129: 128 | AO129: =AO128 -> 2 | AP129: 3 | AQ129: HRC | AR129: 宮本 一 | AS129: 西峰 久祐 | AT129: SBC | AU129: =AU128 -> 3 | AV129: 4
AI130: 129 | AN130: 129 | AO130: 2 | AP130: 4 | AQ130: =VLOOKUP(AO130,$AZ$3:$BA$8,2,FALSE) -> HRC | AR130: =VLOOKUP(VALUE(AO130&AP130),$AE$2:$AG$55,3,FALSE) -> 伊藤 登 | AS130: =VLOOKUP(VALUE(AU130&AV130),$AE$2:$AG$55,3,FALSE) -> 大橋 正寛 | AT130: SBC | AU130: 3 | AV130: 5
AI131: 130 | AN131: 130 | AO131: 2 | AP131: 5 | AQ131: HRC | AR131: 宮井健太郎 | AS131: 秋田 倫央 | AT131: =VLOOKUP(AU131,$AZ$3:$BA$8,2,FALSE) -> SBC | AU131: 3 | AV131: 6
AI132: 131 | AN132: 131 | AO132: 2 | AP132: 6 | AQ132: HRC | AR132: 白澤雄一郎 | AS132: 大橋 洋子 | AT132: SBC | AU132: 3 | AV132: 7
AI133: 132 | AN133: 132 | AO133: 2 | AP133: 7 | AQ133: HRC | AR133: 河地 恵里 | AS133: 林 秀忠 | AT133: SBC | AU133: 3 | AV133: 1
AI134: 133 | AN134: 133 | AO134: 2 | AP134: 1 | AQ134: HRC | AR134: 鐵山 泰三 | AS134: 大橋 義治 | AT134: SBC | AU134: 3 | AV134: 2
AI135: 134 | AN135: 134 | AO135: =IF(AO1=5,1,6) -> 6 | AP135: 6 | AQ135: WRC | AR135: 芝先 泰生 | AS135: 植田 慎也 | AT135: NRC | AU135: =IF(AO1=5,2,4) -> 4 | AV135: 4
AI136: 135 | AN136: 135 | AO136: =AO135 -> 6 | AP136: 7 | AQ136: WRC | AR136: 松房ゆかり | AS136: 近藤 拓馬 | AT136: NRC | AU136: =AU135 -> 4 | AV136: 5
AI137: 136 | AN137: 136 | AO137: 6 | AP137: 1 | AQ137: WRC | AR137: 末岡 修 | AS137: 長谷川 進 | AT137: NRC | AU137: 4 | AV137: 6
AI138: 137 | AN138: 137 | AO138: 6 | AP138: 2 | AQ138: WRC | AR138: 和田宗一郎 | AS138: 白戸 恭子 | AT138: NRC | AU138: 4 | AV138: 7
AI139: 138 | AN139: 138 | AO139: 6 | AP139: 3 | AQ139: WRC | AR139: 杉本 博章 | AS139: 吉向 翔平 | AT139: NRC | AU139: 4 | AV139: 1
AI140: 139 | AN140: 139 | AO140: 6 | AP140: 4 | AQ140: WRC | AR140: 中本 雅大 | AS140: 岩本 剛 | AT140: NRC | AU140: 4 | AV140: 2
AI141: 140 | AN141: 140 | AO141: 6 | AP141: 5 | AQ141: WRC | AR141: 山中 康介 | AS141: 白戸 玲人 | AT141: NRC | AU141: 4 | AV141: 3
AI142: 141 | AN142: =IF($AO$1=5,"",AN141+1) -> 141 | AO142: =IF(AO1=5,"",1) -> 1 | AP142: 1 | AQ142: KRC | AR142: 松好 太一 | AS142: 小原 嘉丈 | AT142: ORC | AU142: =IF(AO1=5,"",5) -> 5 | AV142: 5
AI143: 142 | AN143: =IF($AO$1=5,"",AN142+1) -> 142 | AO143: =AO142 -> 1 | AP143: 2 | AQ143: KRC | AR143: 清水 義晴 | AS143: 乾 伸綱 | AT143: ORC | AU143: =AU142 -> 5 | AV143: 6
AI144: 143 | AN144: 143 | AO144: 1 | AP144: 3 | AQ144: KRC | AR144: 鈴木 康文 | AS144: 山崎真紀子 | AT144: ORC | AU144: 5 | AV144: 7
AI145: 144 | AN145: 144 | AO145: 1 | AP145: 4 | AQ145: KRC | AR145: 早川 徹 | AS145: 松居 勝巳 | AT145: ORC | AU145: 5 | AV145: 1
AI146: 145 | AN146: 145 | AO146: 1 | AP146: 5 | AQ146: KRC | AR146: 井関 一成 | AS146: 藤明 宏樹 | AT146: ORC | AU146: 5 | AV146: 2
AI147: 146 | AN147: 146 | AO147: 1 | AP147: 6 | AQ147: KRC | AR147: 今村 哲也 | AS147: 吉岡 保俊 | AT147: ORC | AU147: 5 | AV147: 3
AI148: 147 | AN148: 147 | AO148: 1 | AP148: 7 | AQ148: KRC | AR148: 森田由佳里 | AS148: 村上 泰辰 | AT148: ORC | AU148: 5 | AV148: 4
AI149: 148 | AN149: 148 | AO149: =IF(AO1=5,"",6) -> 6 | AP149: 6 | AQ149: WRC | AR149: 芝先 泰生 | AS149: 堂園 雅也 | AT149: HRC | AU149: =IF(AO1=5,"",2) -> 2 | AV149: 2
AI150: 149 | AN150: 149 | AO150: =AO149 -> 6 | AP150: 7 | AQ150: WRC | AR150: 松房ゆかり | AS150: 宮本 一 | AT150: HRC | AU150: =AU149 -> 2 | AV150: 3
AI151: 150 | AN151: 150 | AO151: 6 | AP151: 1 | AQ151: WRC | AR151: 末岡 修 | AS151: 伊藤 登 | AT151: HRC | AU151: 2 | AV151: 4
AI152: 151 | AN152: 151 | AO152: 6 | AP152: 2 | AQ152: WRC | AR152: 和田宗一郎 | AS152: 宮井健太郎 | AT152: HRC | AU152: 2 | AV152: 5
AI153: 152 | AN153: 152 | AO153: 6 | AP153: 3 | AQ153: WRC | AR153: 杉本 博章 | AS153: 白澤雄一郎 | AT153: HRC | AU153: 2 | AV153: 6
AI154: 153 | AN154: 153 | AO154: 6 | AP154: 4 | AQ154: WRC | AR154: 中本 雅大 | AS154: 河地 恵里 | AT154: HRC | AU154: 2 | AV154: 7
AI155: 154 | AN155: 154 | AO155: 6 | AP155: 5 | AQ155: WRC | AR155: 山中 康介 | AS155: 鐵山 泰三 | AT155: HRC | AU155: 2 | AV155: 1
AI156: 155 | AN156: 155 | AO156: =IF(AO1=5,"",5) -> 5 | AP156: 5 | AQ156: ORC | AR156: 小原 嘉丈 | AS156: 山中 康寛 | AT156: SBC | AU156: =IF(AO1=5,"",3) -> 3 | AV156: 3
AI157: 156 | AN157: 156 | AO157: =AO156 -> 5 | AP157: 6 | AQ157: ORC | AR157: 乾 伸綱 | AS157: 西峰 久祐 | AT157: SBC | AU157: =AU156 -> 3 | AV157: 4
AI158: 157 | AN158: 157 | AO158: 5 | AP158: 7 | AQ158: ORC | AR158: 山崎真紀子 | AS158: 大橋 正寛 | AT158: SBC | AU158: 3 | AV158: 5
AI159: 158 | AN159: 158 | AO159: 5 | AP159: 1 | AQ159: ORC | AR159: 松居 勝巳 | AS159: 秋田 倫央 | AT159: SBC | AU159: 3 | AV159: 6
AI160: 159 | AN160: 159 | AO160: 5 | AP160: 2 | AQ160: ORC | AR160: 藤明 宏樹 | AS160: 大橋 洋子 | AT160: SBC | AU160: 3 | AV160: 7
AI161: 160 | AN161: 160 | AO161: 5 | AP161: 3 | AQ161: ORC | AR161: 吉岡 保俊 | AS161: 林 秀忠 | AT161: SBC | AU161: 3 | AV161: 1
AI162: 161 | AN162: 161 | AO162: 5 | AP162: 4 | AQ162: ORC | AR162: 村上 泰辰 | AS162: 大橋 義治 | AT162: SBC | AU162: 3 | AV162: 2
AI163: 162 | AN163: 162 | AO163: =IF(AO1=5,"",1) -> 1 | AP163: 1 | AQ163: KRC | AR163: 松好 太一 | AS163: 植田 慎也 | AT163: NRC | AU163: =IF(AO1=5,"",4) -> 4 | AV163: 4
AI164: 163 | AN164: 163 | AO164: =AO163 -> 1 | AP164: 2 | AQ164: KRC | AR164: 清水 義晴 | AS164: 近藤 拓馬 | AT164: NRC | AU164: =AU163 -> 4 | AV164: 5
AI165: 164 | AN165: 164 | AO165: 1 | AP165: 3 | AQ165: KRC | AR165: 鈴木 康文 | AS165: 長谷川 進 | AT165: NRC | AU165: 4 | AV165: 6
AI166: 165 | AN166: 165 | AO166: 1 | AP166: 4 | AQ166: KRC | AR166: 早川 徹 | AS166: 白戸 恭子 | AT166: NRC | AU166: 4 | AV166: 7
AI167: 166 | AN167: 166 | AO167: 1 | AP167: 5 | AQ167: KRC | AR167: 井関 一成 | AS167: 吉向 翔平 | AT167: NRC | AU167: 4 | AV167: 1
AI168: 167 | AN168: 167 | AO168: 1 | AP168: 6 | AQ168: KRC | AR168: 今村 哲也 | AS168: 岩本 剛 | AT168: NRC | AU168: 4 | AV168: 2
AI169: 168 | AN169: 168 | AO169: 1 | AP169: 7 | AQ169: KRC | AR169: 森田由佳里 | AS169: 白戸 玲人 | AT169: NRC | AU169: 4 | AV169: 3
AI170: 169 | AN170: 169 | AO170: =IF(AO1=5,"",5) -> 5 | AP170: 5 | AQ170: ORC | AR170: 小原 嘉丈 | AS170: 芝先 泰生 | AT170: WRC | AU170: =IF(AO1=5,"",6) -> 6 | AV170: 6
AI171: 170 | AN171: 170 | AO171: =AO170 -> 5 | AP171: 6 | AQ171: ORC | AR171: 乾 伸綱 | AS171: 松房ゆかり | AT171: WRC | AU171: =AU170 -> 6 | AV171: 7
AI172: 171 | AN172: 171 | AO172: 5 | AP172: 7 | AQ172: ORC | AR172: 山崎真紀子 | AS172: 末岡 修 | AT172: WRC | AU172: 6 | AV172: 1
AI173: 172 | AN173: 172 | AO173: 5 | AP173: 1 | AQ173: ORC | AR173: 松居 勝巳 | AS173: 和田宗一郎 | AT173: WRC | AU173: 6 | AV173: 2
AI174: 173 | AN174: 173 | AO174: 5 | AP174: 2 | AQ174: ORC | AR174: 藤明 宏樹 | AS174: 杉本 博章 | AT174: WRC | AU174: 6 | AV174: 3
AI175: 174 | AN175: 174 | AO175: 5 | AP175: 3 | AQ175: ORC | AR175: 吉岡 保俊 | AS175: 中本 雅大 | AT175: WRC | AU175: 6 | AV175: 4
AI176: 175 | AN176: 175 | AO176: 5 | AP176: 4 | AQ176: ORC | AR176: 村上 泰辰 | AS176: 山中 康介 | AT176: WRC | AU176: 6 | AV176: 5
AI177: 176 | AN177: 176 | AO177: =IF(AO1=5,"",4) -> 4 | AP177: 4 | AQ177: NRC | AR177: 植田 慎也 | AS177: 堂園 雅也 | AT177: HRC | AU177: =IF(AO1=5,"",2) -> 2 | AV177: 2
AI178: 177 | AN178: 177 | AO178: =AO177 -> 4 | AP178: 5 | AQ178: NRC | AR178: 近藤 拓馬 | AS178: 宮本 一 | AT178: HRC | AU178: =AU177 -> 2 | AV178: 3
AI179: 178 | AN179: 178 | AO179: 4 | AP179: 6 | AQ179: NRC | AR179: 長谷川 進 | AS179: 伊藤 登 | AT179: HRC | AU179: 2 | AV179: 4
AI180: 179 | AN180: 179 | AO180: 4 | AP180: 7 | AQ180: NRC | AR180: 白戸 恭子 | AS180: 宮井健太郎 | AT180: HRC | AU180: 2 | AV180: 5
AI181: 180 | AN181: 180 | AO181: 4 | AP181: 1 | AQ181: NRC | AR181: 吉向 翔平 | AS181: 白澤雄一郎 | AT181: HRC | AU181: 2 | AV181: 6
AI182: 181 | AN182: 181 | AO182: 4 | AP182: 2 | AQ182: NRC | AR182: 岩本 剛 | AS182: 河地 恵里 | AT182: HRC | AU182: 2 | AV182: 7
AI183: 182 | AN183: 182 | AO183: 4 | AP183: 3 | AQ183: NRC | AR183: 白戸 玲人 | AS183: 鐵山 泰三 | AT183: HRC | AU183: 2 | AV183: 1
AI184: 183 | AN184: 183 | AO184: =IF(AO1=5,"",1) -> 1 | AP184: 1 | AQ184: KRC | AR184: 松好 太一 | AS184: 山中 康寛 | AT184: SBC | AU184: =IF(AO1=5,"",3) -> 3 | AV184: 3
AI185: 184 | AN185: 184 | AO185: =AO184 -> 1 | AP185: 2 | AQ185: KRC | AR185: 清水 義晴 | AS185: 西峰 久祐 | AT185: SBC | AU185: =AU184 -> 3 | AV185: 4
AI186: 185 | AN186: 185 | AO186: 1 | AP186: 3 | AQ186: KRC | AR186: 鈴木 康文 | AS186: 大橋 正寛 | AT186: SBC | AU186: 3 | AV186: 5
AI187: 186 | AN187: 186 | AO187: 1 | AP187: 4 | AQ187: KRC | AR187: 早川 徹 | AS187: 秋田 倫央 | AT187: SBC | AU187: 3 | AV187: 6
AI188: 187 | AN188: 187 | AO188: 1 | AP188: 5 | AQ188: KRC | AR188: 井関 一成 | AS188: 大橋 洋子 | AT188: SBC | AU188: 3 | AV188: 7
AI189: 188 | AN189: 188 | AO189: 1 | AP189: 6 | AQ189: KRC | AR189: 今村 哲也 | AS189: 林 秀忠 | AT189: SBC | AU189: 3 | AV189: 1
AI190: 189 | AN190: 189 | AO190: 1 | AP190: 7 | AQ190: KRC | AR190: 森田由佳里 | AS190: 大橋 義治 | AT190: SBC | AU190: 3 | AV190: 2
AI191: 190 | AN191: 190 | AO191: =IF(AO1=5,"",4) -> 4 | AP191: 4 | AQ191: NRC | AR191: 植田 慎也 | AS191: 小原 嘉丈 | AT191: ORC | AU191: =IF(AO1=5,"",5) -> 5 | AV191: 5
AI192: 191 | AN192: 191 | AO192: =AO191 -> 4 | AP192: 5 | AQ192: NRC | AR192: 近藤 拓馬 | AS192: 乾 伸綱 | AT192: ORC | AU192: =AU191 -> 5 | AV192: 6
AI193: 192 | AN193: 192 | AO193: 4 | AP193: 6 | AQ193: NRC | AR193: 長谷川 進 | AS193: 山崎真紀子 | AT193: ORC | AU193: 5 | AV193: 7
AI194: 193 | AN194: 193 | AO194: 4 | AP194: 7 | AQ194: =VLOOKUP(AO194,$AZ$3:$BA$8,2,FALSE) -> NRC | AR194: =VLOOKUP(VALUE(AO194&AP194),$AE$2:$AG$55,3,FALSE) -> 白戸 恭子 | AS194: =VLOOKUP(VALUE(AU194&AV194),$AE$2:$AG$55,3,FALSE) -> 松居 勝巳 | AT194: ORC | AU194: 5 | AV194: 1
AI195: 194 | AN195: 194 | AO195: 4 | AP195: 1 | AQ195: NRC | AR195: 吉向 翔平 | AS195: 藤明 宏樹 | AT195: =VLOOKUP(AU195,$AZ$3:$BA$8,2,FALSE) -> ORC | AU195: 5 | AV195: 2
AI196: 195 | AN196: 195 | AO196: 4 | AP196: 2 | AQ196: NRC | AR196: 岩本 剛 | AS196: 吉岡 保俊 | AT196: ORC | AU196: 5 | AV196: 3
AI197: 196 | AN197: 196 | AO197: 4 | AP197: 3 | AQ197: NRC | AR197: 白戸 玲人 | AS197: 村上 泰辰 | AT197: ORC | AU197: 5 | AV197: 4
AI198: 197 | AN198: 197 | AO198: =IF(AO1=5,"",3) -> 3 | AP198: 3 | AQ198: SBC | AR198: 山中 康寛 | AS198: 芝先 泰生 | AT198: WRC | AU198: =IF(AO1=5,"",6) -> 6 | AV198: 6
AI199: 198 | AN199: 198 | AO199: =AO198 -> 3 | AP199: 4 | AQ199: SBC | AR199: 西峰 久祐 | AS199: 松房ゆかり | AT199: WRC | AU199: =AU198 -> 6 | AV199: 7
AI200: 199 | AN200: 199 | AO200: 3 | AP200: 5 | AQ200: SBC | AR200: 大橋 正寛 | AS200: 末岡 修 | AT200: WRC | AU200: 6 | AV200: 1
... 11 more rows

Sheet 対戦カード
K1: =★個人成績表★!$A$1 -> 第31回 京阪神和奈滋対抗戦 (奈良；玉出エース)
B3: 印刷範囲の設定 | K3: G-No | O3: T-No
N5: 所属
N6: 氏名
N7: 得点
N8: HR
O10: レフリー
B11: =★個人成績表★!$A$1 -> 第31回 京阪神和奈滋対抗戦 (奈良；玉出エース) | K11: =★個人成績表★!$A$1 -> 第31回 京阪神和奈滋対抗戦 (奈良；玉出エース) | T11: =★個人成績表★!$A$1 -> 第31回 京阪神和奈滋対抗戦 (奈良；玉出エース) | AC11: =★個人成績表★!$A$1 -> 第31回 京阪神和奈滋対抗戦 (奈良；玉出エース) | AL11: =★個人成績表★!$A$1 -> 第31回 京阪神和奈滋対抗戦 (奈良；玉出エース) | AU11: =★個人成績表★!$A$1 -> 第31回 京阪神和奈滋対抗戦 (奈良；玉出エース) | BD11: =★個人成績表★!$A$1 -> 第31回 京阪神和奈滋対抗戦 (奈良；玉出エース)
B13: G-No | C13: 1 | F13: T-No | K13: G-No | L13: =C13+1 -> 2 | O13: T-No | T13: G-No | U13: =L13+1 -> 3 | X13: T-No | AC13: G-No | AD13: =U13+1 -> 4 | AG13: T-No | AL13: G-No | AM13: =AD13+1 -> 5 | AP13: T-No | AU13: G-No | AV13: =AM13+1 -> 6 | AY13: T-No | BD13: G-No | BE13: =AV13+1 -> 7 | BH13: T-No
B15: =VLOOKUP(C13,結果入力表!$B$2:$J$212,2,FALSE) -> SBC | E15: 所属 | F15: =VLOOKUP(C13,結果入力表!$B$2:$J$212,9,FALSE) -> NRC | K15: =VLOOKUP(L13,結果入力表!$B$2:$J$212,2,FALSE) -> SBC | N15: 所属 | O15: =VLOOKUP(L13,結果入力表!$B$2:$J$212,9,FALSE) -> NRC | T15: =VLOOKUP(U13,結果入力表!$B$2:$J$212,2,FALSE) -> SBC | W15: 所属 | X15: =VLOOKUP(U13,結果入力表!$B$2:$J$212,9,FALSE) -> NRC | AC15: =VLOOKUP(AD13,結果入力表!$B$2:$J$212,2,FALSE) -> SBC | AF15: 所属 | AG15: =VLOOKUP(AD13,結果入力表!$B$2:$J$212,9,FALSE) -> NRC | AL15: =VLOOKUP(AM13,結果入力表!$B$2:$J$212,2,FALSE) -> SBC | AO15: 所属 | AP15: =VLOOKUP(AM13,結果入力表!$B$2:$J$212,9,FALSE) -> NRC | AU15: =VLOOKUP(AV13,結果入力表!$B$2:$J$212,2,FALSE) -> SBC | AX15: 所属 | AY15: =VLOOKUP(AV13,結果入力表!$B$2:$J$212,9,FALSE) -> NRC | BD15: =VLOOKUP(BE13,結果入力表!$B$2:$J$212,2,FALSE) -> SBC | BG15: 所属 | BH15: =VLOOKUP(BE13,結果入力表!$B$2:$J$212,9,FALSE) -> NRC
B16: =VLOOKUP(C13,結果入力表!$B$2:$J$212,3,FALSE) -> 林 秀忠 | E16: 氏名 | F16: =VLOOKUP(C13,結果入力表!$B$2:$J$212,8,FALSE) -> 吉向 翔平 | K16: =VLOOKUP(L13,結果入力表!$B$2:$J$212,3,FALSE) -> 大橋 義治 | N16: 氏名 | O16: =VLOOKUP(L13,結果入力表!$B$2:$J$212,8,FALSE) -> 岩本 剛 | T16: =VLOOKUP(U13,結果入力表!$B$2:$J$212,3,FALSE) -> 山中 康寛 | W16: 氏名 | X16: =VLOOKUP(U13,結果入力表!$B$2:$J$212,8,FALSE) -> 白戸 玲人 | AC16: =VLOOKUP(AD13,結果入力表!$B$2:$J$212,3,FALSE) -> 西峰 久祐 | AF16: 氏名 | AG16: =VLOOKUP(AD13,結果入力表!$B$2:$J$212,8,FALSE) -> 植田 慎也 | AL16: =VLOOKUP(AM13,結果入力表!$B$2:$J$212,3,FALSE) -> 大橋 正寛 | AO16: 氏名 | AP16: =VLOOKUP(AM13,結果入力表!$B$2:$J$212,8,FALSE) -> 近藤 拓馬 | AU16: =VLOOKUP(AV13,結果入力表!$B$2:$J$212,3,FALSE) -> 秋田 倫央 | AX16: 氏名 | AY16: =VLOOKUP(AV13,結果入力表!$B$2:$J$212,8,FALSE) -> 長谷川 進 | BD16: =VLOOKUP(BE13,結果入力表!$B$2:$J$212,3,FALSE) -> 大橋 洋子 | BG16: 氏名 | BH16: =VLOOKUP(BE13,結果入力表!$B$2:$J$212,8,FALSE) -> 白戸 恭子
E17: 得点 | N17: 得点 | W17: 得点 | AF17: 得点 | AO17: 得点 | AX17: 得点 | BG17: 得点
E18: HR | N18: HR | W18: HR | AF18: HR | AO18: HR | AX18: HR | BG18: HR
F20: レフリー | O20: レフリー | X20: レフリー | AG20: レフリー | AP20: レフリー | AY20: レフリー | BH20: レフリー
B21: =★個人成績表★!$A$1 -> 第31回 京阪神和奈滋対抗戦 (奈良；玉出エース) | K21: =★個人成績表★!$A$1 -> 第31回 京阪神和奈滋対抗戦 (奈良；玉出エース) | T21: =★個人成績表★!$A$1 -> 第31回 京阪神和奈滋対抗戦 (奈良；玉出エース) | AC21: =★個人成績表★!$A$1 -> 第31回 京阪神和奈滋対抗戦 (奈良；玉出エース) | AL21: =★個人成績表★!$A$1 -> 第31回 京阪神和奈滋対抗戦 (奈良；玉出エース) | AU21: =★個人成績表★!$A$1 -> 第31回 京阪神和奈滋対抗戦 (奈良；玉出エース) | BD21: =★個人成績表★!$A$1 -> 第31回 京阪神和奈滋対抗戦 (奈良；玉出エース)
B23: G-No | C23: =BE13+1 -> 8 | F23: T-No | K23: G-No | L23: =C23+1 -> 9 | O23: T-No | T23: G-No | U23: =L23+1 -> 10 | X23: T-No | AC23: G-No | AD23: =U23+1 -> 11 | AG23: T-No | AL23: G-No | AM23: =AD23+1 -> 12 | AP23: T-No | AU23: G-No | AV23: =AM23+1 -> 13 | AY23: T-No | BD23: G-No | BE23: =AV23+1 -> 14 | BH23: T-No
B25: =VLOOKUP(C23,結果入力表!$B$2:$J$212,2,FALSE) -> HRC | E25: 所属 | F25: =VLOOKUP(C23,結果入力表!$B$2:$J$212,9,FALSE) -> ORC | K25: =VLOOKUP(L23,結果入力表!$B$2:$J$212,2,FALSE) -> HRC | N25: 所属 | O25: =VLOOKUP(L23,結果入力表!$B$2:$J$212,9,FALSE) -> ORC | T25: =VLOOKUP(U23,結果入力表!$B$2:$J$212,2,FALSE) -> HRC | W25: 所属 | X25: =VLOOKUP(U23,結果入力表!$B$2:$J$212,9,FALSE) -> ORC | AC25: =VLOOKUP(AD23,結果入力表!$B$2:$J$212,2,FALSE) -> HRC | AF25: 所属 | AG25: =VLOOKUP(AD23,結果入力表!$B$2:$J$212,9,FALSE) -> ORC | AL25: =VLOOKUP(AM23,結果入力表!$B$2:$J$212,2,FALSE) -> HRC | AO25: 所属 | AP25: =VLOOKUP(AM23,結果入力表!$B$2:$J$212,9,FALSE) -> ORC | AU25: =VLOOKUP(AV23,結果入力表!$B$2:$J$212,2,FALSE) -> HRC | AX25: 所属 | AY25: =VLOOKUP(AV23,結果入力表!$B$2:$J$212,9,FALSE) -> ORC | BD25: =VLOOKUP(BE23,結果入力表!$B$2:$J$212,2,FALSE) -> HRC | BG25: 所属 | BH25: =VLOOKUP(BE23,結果入力表!$B$2:$J$212,9,FALSE) -> ORC
B26: =VLOOKUP(C23,結果入力表!$B$2:$J$212,3,FALSE) -> 鐵山 泰三 | E26: 氏名 | F26: =VLOOKUP(C23,結果入力表!$B$2:$J$212,8,FALSE) -> 松居 勝巳 | K26: =VLOOKUP(L23,結果入力表!$B$2:$J$212,3,FALSE) -> 堂園 雅也 | N26: 氏名 | O26: =VLOOKUP(L23,結果入力表!$B$2:$J$212,8,FALSE) -> 藤明 宏樹 | T26: =VLOOKUP(U23,結果入力表!$B$2:$J$212,3,FALSE) -> 宮本 一 | W26: 氏名 | X26: =VLOOKUP(U23,結果入力表!$B$2:$J$212,8,FALSE) -> 吉岡 保俊 | AC26: =VLOOKUP(AD23,結果入力表!$B$2:$J$212,3,FALSE) -> 伊藤 登 | AF26: 氏名 | AG26: =VLOOKUP(AD23,結果入力表!$B$2:$J$212,8,FALSE) -> 村上 泰辰 | AL26: =VLOOKUP(AM23,結果入力表!$B$2:$J$212,3,FALSE) -> 宮井健太郎 | AO26: 氏名 | AP26: =VLOOKUP(AM23,結果入力表!$B$2:$J$212,8,FALSE) -> 小原 嘉丈 | AU26: =VLOOKUP(AV23,結果入力表!$B$2:$J$212,3,FALSE) -> 白澤雄一郎 | AX26: 氏名 | AY26: =VLOOKUP(AV23,結果入力表!$B$2:$J$212,8,FALSE) -> 乾 伸綱 | BD26: =VLOOKUP(BE23,結果入力表!$B$2:$J$212,3,FALSE) -> 河地 恵里 | BG26: 氏名 | BH26: =VLOOKUP(BE23,結果入力表!$B$2:$J$212,8,FALSE) -> 山崎真紀子
E27: 得点 | N27: 得点 | W27: 得点 | AF27: 得点 | AO27: 得点 | AX27: 得点 | BG27: 得点
E28: HR | N28: HR | W28: HR | AF28: HR | AO28: HR | AX28: HR | BG28: HR
F30: レフリー | O30: レフリー | X30: レフリー | AG30: レフリー | AP30: レフリー | AY30: レフリー | BH30: レフリー
B31: =★個人成績表★!$A$1 -> 第31回 京阪神和奈滋対抗戦 (奈良；玉出エース) | K31: =★個人成績表★!$A$1 -> 第31回 京阪神和奈滋対抗戦 (奈良；玉出エース) | T31: =★個人成績表★!$A$1 -> 第31回 京阪神和奈滋対抗戦 (奈良；玉出エース) | AC31: =★個人成績表★!$A$1 -> 第31回 京阪神和奈滋対抗戦 (奈良；玉出エース) | AL31: =★個人成績表★!$A$1 -> 第31回 京阪神和奈滋対抗戦 (奈良；玉出エース) | AU31: =★個人成績表★!$A$1 -> 第31回 京阪神和奈滋対抗戦 (奈良；玉出エース) | BD31: =★個人成績表★!$A$1 -> 第31回 京阪神和奈滋対抗戦 (奈良；玉出エース)
B33: G-No | C33: =BE23+1 -> 15 | F33: T-No | K33: G-No | L33: =C33+1 -> 16 | O33: T-No | T33: G-No | U33: =L33+1 -> 17 | X33: T-No | AC33: G-No | AD33: =U33+1 -> 18 | AG33: T-No | AL33: G-No | AM33: =AD33+1 -> 19 | AP33: T-No | AU33: G-No | AV33: =AM33+1 -> 20 | AY33: T-No | BD33: G-No | BE33: =AV33+1 -> 21 | BH33: T-No
B35: =VLOOKUP(C33,結果入力表!$B$2:$J$212,2,FALSE) -> KRC | E35: 所属 | F35: =VLOOKUP(C33,結果入力表!$B$2:$J$212,9,FALSE) -> WRC | K35: =VLOOKUP(L33,結果入力表!$B$2:$J$212,2,FALSE) -> KRC | N35: 所属 | O35: =VLOOKUP(L33,結果入力表!$B$2:$J$212,9,FALSE) -> WRC | T35: =VLOOKUP(U33,結果入力表!$B$2:$J$212,2,FALSE) -> KRC | W35: 所属 | X35: =VLOOKUP(U33,結果入力表!$B$2:$J$212,9,FALSE) -> WRC | AC35: =VLOOKUP(AD33,結果入力表!$B$2:$J$212,2,FALSE) -> KRC | AF35: 所属 | AG35: =VLOOKUP(AD33,結果入力表!$B$2:$J$212,9,FALSE) -> WRC | AL35: =VLOOKUP(AM33,結果入力表!$B$2:$J$212,2,FALSE) -> KRC | AO35: 所属 | AP35: =VLOOKUP(AM33,結果入力表!$B$2:$J$212,9,FALSE) -> WRC | AU35: =VLOOKUP(AV33,結果入力表!$B$2:$J$212,2,FALSE) -> KRC | AX35: 所属 | AY35: =VLOOKUP(AV33,結果入力表!$B$2:$J$212,9,FALSE) -> WRC | BD35: =VLOOKUP(BE33,結果入力表!$B$2:$J$212,2,FALSE) -> KRC | BG35: 所属 | BH35: =VLOOKUP(BE33,結果入力表!$B$2:$J$212,9,FALSE) -> WRC
B36: =VLOOKUP(C33,結果入力表!$B$2:$J$212,3,FALSE) -> 松好 太一 | E36: 氏名 | F36: =VLOOKUP(C33,結果入力表!$B$2:$J$212,8,FALSE) -> 末岡 修 | K36: =VLOOKUP(L33,結果入力表!$B$2:$J$212,3,FALSE) -> 清水 義晴 | N36: 氏名 | O36: =VLOOKUP(L33,結果入力表!$B$2:$J$212,8,FALSE) -> 和田宗一郎 | T36: =VLOOKUP(U33,結果入力表!$B$2:$J$212,3,FALSE) -> 鈴木 康文 | W36: 氏名 | X36: =VLOOKUP(U33,結果入力表!$B$2:$J$212,8,FALSE) -> 杉本 博章 | AC36: =VLOOKUP(AD33,結果入力表!$B$2:$J$212,3,FALSE) -> 早川 徹 | AF36: 氏名 | AG36: =VLOOKUP(AD33,結果入力表!$B$2:$J$212,8,FALSE) -> 中本 雅大 | AL36: =VLOOKUP(AM33,結果入力表!$B$2:$J$212,3,FALSE) -> 井関 一成 | AO36: 氏名 | AP36: =VLOOKUP(AM33,結果入力表!$B$2:$J$212,8,FALSE) -> 山中 康介 | AU36: =VLOOKUP(AV33,結果入力表!$B$2:$J$212,3,FALSE) -> 今村 哲也 | AX36: 氏名 | AY36: =VLOOKUP(AV33,結果入力表!$B$2:$J$212,8,FALSE) -> 芝先 泰生 | BD36: =VLOOKUP(BE33,結果入力表!$B$2:$J$212,3,FALSE) -> 森田由佳里 | BG36: 氏名 | BH36: =VLOOKUP(BE33,結果入力表!$B$2:$J$212,8,FALSE) -> 松房ゆかり
E37: 得点 | N37: 得点 | W37: 得点 | AF37: 得点 | AO37: 得点 | AX37: 得点 | BG37: 得点
E38: HR | N38: HR | W38: HR | AF38: HR | AO38: HR | AX38: HR | BG38: HR
F40: レフリー | O40: レフリー | X40: レフリー | AG40: レフリー | AP40: レフリー | AY40: レフリー | BH40: レフリー
B41: =★個人成績表★!$A$1 -> 第31回 京阪神和奈滋対抗戦 (奈良；玉出エース) | K41: =★個人成績表★!$A$1 -> 第31回 京阪神和奈滋対抗戦 (奈良；玉出エース) | T41: =★個人成績表★!$A$1 -> 第31回 京阪神和奈滋対抗戦 (奈良；玉出エース) | AC41: =★個人成績表★!$A$1 -> 第31回 京阪神和奈滋対抗戦 (奈良；玉出エース) | AL41: =★個人成績表★!$A$1 -> 第31回 京阪神和奈滋対抗戦 (奈良；玉出エース) | AU41: =★個人成績表★!$A$1 -> 第31回 京阪神和奈滋対抗戦 (奈良；玉出エース) | BD41: =★個人成績表★!$A$1 -> 第31回 京阪神和奈滋対抗戦 (奈良；玉出エース)
B43: G-No | C43: =BE33+1 -> 22 | F43: T-No | K43: G-No | L43: =C43+1 -> 23 | O43: T-No | T43: G-No | U43: =L43+1 -> 24 | X43: T-No | AC43: G-No | AD43: =U43+1 -> 25 | AG43: T-No | AL43: G-No | AM43: =AD43+1 -> 26 | AP43: T-No | AU43: G-No | AV43: =AM43+1 -> 27 | AY43: T-No | BD43: G-No | BE43: =AV43+1 -> 28 | BH43: T-No
B45: =VLOOKUP(C43,結果入力表!$B$2:$J$212,2,FALSE) -> HRC | E45: 所属 | F45: =VLOOKUP(C43,結果入力表!$B$2:$J$212,9,FALSE) -> SBC | K45: =VLOOKUP(L43,結果入力表!$B$2:$J$212,2,FALSE) -> HRC | N45: 所属 | O45: =VLOOKUP(L43,結果入力表!$B$2:$J$212,9,FALSE) -> SBC | T45: =VLOOKUP(U43,結果入力表!$B$2:$J$212,2,FALSE) -> HRC | W45: 所属 | X45: =VLOOKUP(U43,結果入力表!$B$2:$J$212,9,FALSE) -> SBC | AC45: =VLOOKUP(AD43,結果入力表!$B$2:$J$212,2,FALSE) -> HRC | AF45: 所属 | AG45: =VLOOKUP(AD43,結果入力表!$B$2:$J$212,9,FALSE) -> SBC | AL45: =VLOOKUP(AM43,結果入力表!$B$2:$J$212,2,FALSE) -> HRC | AO45: 所属 | AP45: =VLOOKUP(AM43,結果入力表!$B$2:$J$212,9,FALSE) -> SBC | AU45: =VLOOKUP(AV43,結果入力表!$B$2:$J$212,2,FALSE) -> HRC | AX45: 所属 | AY45: =VLOOKUP(AV43,結果入力表!$B$2:$J$212,9,FALSE) -> SBC | BD45: =VLOOKUP(BE43,結果入力表!$B$2:$J$212,2,FALSE) -> HRC | BG45: 所属 | BH45: =VLOOKUP(BE43,結果入力表!$B$2:$J$212,9,FALSE) -> SBC
B46: =VLOOKUP(C43,結果入力表!$B$2:$J$212,3,FALSE) -> 鐵山 泰三 | E46: 氏名 | F46: =VLOOKUP(C43,結果入力表!$B$2:$J$212,8,FALSE) -> 林 秀忠 | K46: =VLOOKUP(L43,結果入力表!$B$2:$J$212,3,FALSE) -> 堂園 雅也 | N46: 氏名 | O46: =VLOOKUP(L43,結果入力表!$B$2:$J$212,8,FALSE) -> 大橋 義治 | T46: =VLOOKUP(U43,結果入力表!$B$2:$J$212,3,FALSE) -> 宮本 一 | W46: 氏名 | X46: =VLOOKUP(U43,結果入力表!$B$2:$J$212,8,FALSE) -> 山中 康寛 | AC46: =VLOOKUP(AD43,結果入力表!$B$2:$J$212,3,FALSE) -> 伊藤 登 | AF46: 氏名 | AG46: =VLOOKUP(AD43,結果入力表!$B$2:$J$212,8,FALSE) -> 西峰 久祐 | AL46: =VLOOKUP(AM43,結果入力表!$B$2:$J$212,3,FALSE) -> 宮井健太郎 | AO46: 氏名 | AP46: =VLOOKUP(AM43,結果入力表!$B$2:$J$212,8,FALSE) -> 大橋 正寛 | AU46: =VLOOKUP(AV43,結果入力表!$B$2:$J$212,3,FALSE) -> 白澤雄一郎 | AX46: 氏名 | AY46: =VLOOKUP(AV43,結果入力表!$B$2:$J$212,8,FALSE) -> 秋田 倫央 | BD46: =VLOOKUP(BE43,結果入力表!$B$2:$J$212,3,FALSE) -> 河地 恵里 | BG46: 氏名 | BH46: =VLOOKUP(BE43,結果入力表!$B$2:$J$212,8,FALSE) -> 大橋 洋子
E47: 得点 | N47: 得点 | W47: 得点 | AF47: 得点 | AO47: 得点 | AX47: 得点 | BG47: 得点
E48: HR | N48: HR | W48: HR | AF48: HR | AO48: HR | AX48: HR | BG48: HR
F50: レフリー | O50: レフリー | X50: レフリー | AG50: レフリー | AP50: レフリー | AY50: レフリー | BH50: レフリー
B51: =★個人成績表★!$A$1 -> 第31回 京阪神和奈滋対抗戦 (奈良；玉出エース) | K51: =★個人成績表★!$A$1 -> 第31回 京阪神和奈滋対抗戦 (奈良；玉出エース) | T51: =★個人成績表★!$A$1 -> 第31回 京阪神和奈滋対抗戦 (奈良；玉出エース) | AC51: =★個人成績表★!$A$1 -> 第31回 京阪神和奈滋対抗戦 (奈良；玉出エース) | AL51: =★個人成績表★!$A$1 -> 第31回 京阪神和奈滋対抗戦 (奈良；玉出エース) | AU51: =★個人成績表★!$A$1 -> 第31回 京阪神和奈滋対抗戦 (奈良；玉出エース) | BD51: =★個人成績表★!$A$1 -> 第31回 京阪神和奈滋対抗戦 (奈良；玉出エース)
B53: G-No | C53: =BE43+1 -> 29 | F53: T-No | K53: G-No | L53: =C53+1 -> 30 | O53: T-No | T53: G-No | U53: =L53+1 -> 31 | X53: T-No | AC53: G-No | AD53: =U53+1 -> 32 | AG53: T-No | AL53: G-No | AM53: =AD53+1 -> 33 | AP53: T-No | AU53: G-No | AV53: =AM53+1 -> 34 | AY53: T-No | BD53: G-No | BE53: =AV53+1 -> 35 | BH53: T-No
B55: =VLOOKUP(C53,結果入力表!$B$2:$J$212,2,FALSE) -> WRC | E55: 所属 | F55: =VLOOKUP(C53,結果入力表!$B$2:$J$212,9,FALSE) -> NRC | K55: =VLOOKUP(L53,結果入力表!$B$2:$J$212,2,FALSE) -> WRC | N55: 所属 | O55: =VLOOKUP(L53,結果入力表!$B$2:$J$212,9,FALSE) -> NRC | T55: =VLOOKUP(U53,結果入力表!$B$2:$J$212,2,FALSE) -> WRC | W55: 所属 | X55: =VLOOKUP(U53,結果入力表!$B$2:$J$212,9,FALSE) -> NRC | AC55: =VLOOKUP(AD53,結果入力表!$B$2:$J$212,2,FALSE) -> WRC | AF55: 所属 | AG55: =VLOOKUP(AD53,結果入力表!$B$2:$J$212,9,FALSE) -> NRC | AL55: =VLOOKUP(AM53,結果入力表!$B$2:$J$212,2,FALSE) -> WRC | AO55: 所属 | AP55: =VLOOKUP(AM53,結果入力表!$B$2:$J$212,9,FALSE) -> NRC | AU55: =VLOOKUP(AV53,結果入力表!$B$2:$J$212,2,FALSE) -> WRC | AX55: 所属 | AY55: =VLOOKUP(AV53,結果入力表!$B$2:$J$212,9,FALSE) -> NRC | BD55: =VLOOKUP(BE53,結果入力表!$B$2:$J$212,2,FALSE) -> WRC | BG55: 所属 | BH55: =VLOOKUP(BE53,結果入力表!$B$2:$J$212,9,FALSE) -> NRC
B56: =VLOOKUP(C53,結果入力表!$B$2:$J$212,3,FALSE) -> 末岡 修 | E56: 氏名 | F56: =VLOOKUP(C53,結果入力表!$B$2:$J$212,8,FALSE) -> 吉向 翔平 | K56: =VLOOKUP(L53,結果入力表!$B$2:$J$212,3,FALSE) -> 和田宗一郎 | N56: 氏名 | O56: =VLOOKUP(L53,結果入力表!$B$2:$J$212,8,FALSE) -> 岩本 剛 | T56: =VLOOKUP(U53,結果入力表!$B$2:$J$212,3,FALSE) -> 杉本 博章 | W56: 氏名 | X56: =VLOOKUP(U53,結果入力表!$B$2:$J$212,8,FALSE) -> 白戸 玲人 | AC56: =VLOOKUP(AD53,結果入力表!$B$2:$J$212,3,FALSE) -> 中本 雅大 | AF56: 氏名 | AG56: =VLOOKUP(AD53,結果入力表!$B$2:$J$212,8,FALSE) -> 植田 慎也 | AL56: =VLOOKUP(AM53,結果入力表!$B$2:$J$212,3,FALSE) -> 山中 康介 | AO56: 氏名 | AP56: =VLOOKUP(AM53,結果入力表!$B$2:$J$212,8,FALSE) -> 近藤 拓馬 | AU56: =VLOOKUP(AV53,結果入力表!$B$2:$J$212,3,FALSE) -> 芝先 泰生 | AX56: 氏名 | AY56: =VLOOKUP(AV53,結果入力表!$B$2:$J$212,8,FALSE) -> 長谷川 進 | BD56: =VLOOKUP(BE53,結果入力表!$B$2:$J$212,3,FALSE) -> 松房ゆかり | BG56: 氏名 | BH56: =VLOOKUP(BE53,結果入力表!$B$2:$J$212,8,FALSE) -> 白戸 恭子
E57: 得点 | N57: 得点 | W57: 得点 | AF57: 得点 | AO57: 得点 | AX57: 得点 | BG57: 得点
E58: HR | N58: HR | W58: HR | AF58: HR | AO58: HR | AX58: HR | BG58: HR
F60: レフリー | O60: レフリー | X60: レフリー | AG60: レフリー | AP60: レフリー | AY60: レフリー | BH60: レフリー
B61: =★個人成績表★!$A$1 -> 第31回 京阪神和奈滋対抗戦 (奈良；玉出エース) | K61: =★個人成績表★!$A$1 -> 第31回 京阪神和奈滋対抗戦 (奈良；玉出エース) | T61: =★個人成績表★!$A$1 -> 第31回 京阪神和奈滋対抗戦 (奈良；玉出エース) | AC61: =★個人成績表★!$A$1 -> 第31回 京阪神和奈滋対抗戦 (奈良；玉出エース) | AL61: =★個人成績表★!$A$1 -> 第31回 京阪神和奈滋対抗戦 (奈良；玉出エース) | AU61: =★個人成績表★!$A$1 -> 第31回 京阪神和奈滋対抗戦 (奈良；玉出エース) | BD61: =★個人成績表★!$A$1 -> 第31回 京阪神和奈滋対抗戦 (奈良；玉出エース)
B63: G-No | C63: =BE53+1 -> 36 | F63: T-No | K63: G-No | L63: =C63+1 -> 37 | O63: T-No | T63: G-No | U63: =L63+1 -> 38 | X63: T-No | AC63: G-No | AD63: =U63+1 -> 39 | AG63: T-No | AL63: G-No | AM63: =AD63+1 -> 40 | AP63: T-No | AU63: G-No | AV63: =AM63+1 -> 41 | AY63: T-No | BD63: G-No | BE63: =AV63+1 -> 42 | BH63: T-No
B65: =VLOOKUP(C63,結果入力表!$B$2:$J$212,2,FALSE) -> KRC | E65: 所属 | F65: =VLOOKUP(C63,結果入力表!$B$2:$J$212,9,FALSE) -> ORC | K65: =VLOOKUP(L63,結果入力表!$B$2:$J$212,2,FALSE) -> KRC | N65: 所属 | O65: =VLOOKUP(L63,結果入力表!$B$2:$J$212,9,FALSE) -> ORC | T65: =VLOOKUP(U63,結果入力表!$B$2:$J$212,2,FALSE) -> KRC | W65: 所属 | X65: =VLOOKUP(U63,結果入力表!$B$2:$J$212,9,FALSE) -> ORC | AC65: =VLOOKUP(AD63,結果入力表!$B$2:$J$212,2,FALSE) -> KRC | AF65: 所属 | AG65: =VLOOKUP(AD63,結果入力表!$B$2:$J$212,9,FALSE) -> ORC | AL65: =VLOOKUP(AM63,結果入力表!$B$2:$J$212,2,FALSE) -> KRC | AO65: 所属 | AP65: =VLOOKUP(AM63,結果入力表!$B$2:$J$212,9,FALSE) -> ORC | AU65: =VLOOKUP(AV63,結果入力表!$B$2:$J$212,2,FALSE) -> KRC | AX65: 所属 | AY65: =VLOOKUP(AV63,結果入力表!$B$2:$J$212,9,FALSE) -> ORC | BD65: =VLOOKUP(BE63,結果入力表!$B$2:$J$212,2,FALSE) -> KRC | BG65: 所属 | BH65: =VLOOKUP(BE63,結果入力表!$B$2:$J$212,9,FALSE) -> ORC
B66: =VLOOKUP(C63,結果入力表!$B$2:$J$212,3,FALSE) -> 松好 太一 | E66: 氏名 | F66: =VLOOKUP(C63,結果入力表!$B$2:$J$212,8,FALSE) -> 松居 勝巳 | K66: =VLOOKUP(L63,結果入力表!$B$2:$J$212,3,FALSE) -> 清水 義晴 | N66: 氏名 | O66: =VLOOKUP(L63,結果入力表!$B$2:$J$212,8,FALSE) -> 藤明 宏樹 | T66: =VLOOKUP(U63,結果入力表!$B$2:$J$212,3,FALSE) -> 鈴木 康文 | W66: 氏名 | X66: =VLOOKUP(U63,結果入力表!$B$2:$J$212,8,FALSE) -> 吉岡 保俊 | AC66: =VLOOKUP(AD63,結果入力表!$B$2:$J$212,3,FALSE) -> 早川 徹 | AF66: 氏名 | AG66: =VLOOKUP(AD63,結果入力表!$B$2:$J$212,8,FALSE) -> 村上 泰辰 | AL66: =VLOOKUP(AM63,結果入力表!$B$2:$J$212,3,FALSE) -> 井関 一成 | AO66: 氏名 | AP66: =VLOOKUP(AM63,結果入力表!$B$2:$J$212,8,FALSE) -> 小原 嘉丈 | AU66: =VLOOKUP(AV63,結果入力表!$B$2:$J$212,3,FALSE) -> 今村 哲也 | AX66: 氏名 | AY66: =VLOOKUP(AV63,結果入力表!$B$2:$J$212,8,FALSE) -> 乾 伸綱 | BD66: =VLOOKUP(BE63,結果入力表!$B$2:$J$212,3,FALSE) -> 森田由佳里 | BG66: 氏名 | BH66: =VLOOKUP(BE63,結果入力表!$B$2:$J$212,8,FALSE) -> 山崎真紀子
E67: 得点 | N67: 得点 | W67: 得点 | AF67: 得点 | AO67: 得点 | AX67: 得点 | BG67: 得点
E68: HR | N68: HR | W68: HR | AF68: HR | AO68: HR | AX68: HR | BG68: HR
F70: レフリー | O70: レフリー | X70: レフリー | AG70: レフリー | AP70: レフリー | AY70: レフリー | BH70: レフリー
B71: =★個人成績表★!$A$1 -> 第31回 京阪神和奈滋対抗戦 (奈良；玉出エース) | K71: =★個人成績表★!$A$1 -> 第31回 京阪神和奈滋対抗戦 (奈良；玉出エース) | T71: =★個人成績表★!$A$1 -> 第31回 京阪神和奈滋対抗戦 (奈良；玉出エース) | AC71: =★個人成績表★!$A$1 -> 第31回 京阪神和奈滋対抗戦 (奈良；玉出エース) | AL71: =★個人成績表★!$A$1 -> 第31回 京阪神和奈滋対抗戦 (奈良；玉出エース) | AU71: =★個人成績表★!$A$1 -> 第31回 京阪神和奈滋対抗戦 (奈良；玉出エース) | BD71: =★個人成績表★!$A$1 -> 第31回 京阪神和奈滋対抗戦 (奈良；玉出エース)
B73: G-No | C73: =BE63+1 -> 43 | F73: T-No | K73: G-No | L73: =C73+1 -> 44 | O73: T-No | T73: G-No | U73: =L73+1 -> 45 | X73: T-No | AC73: G-No | AD73: =U73+1 -> 46 | AG73: T-No | AL73: G-No | AM73: =AD73+1 -> 47 | AP73: T-No | AU73: G-No | AV73: =AM73+1 -> 48 | AY73: T-No | BD73: G-No | BE73: =AV73+1 -> 49 | BH73: T-No
B75: =VLOOKUP(C73,結果入力表!$B$2:$J$212,2,FALSE) -> WRC | E75: 所属 | F75: =VLOOKUP(C73,結果入力表!$B$2:$J$212,9,FALSE) -> HRC | K75: =VLOOKUP(L73,結果入力表!$B$2:$J$212,2,FALSE) -> WRC | N75: 所属 | O75: =VLOOKUP(L73,結果入力表!$B$2:$J$212,9,FALSE) -> HRC | T75: =VLOOKUP(U73,結果入力表!$B$2:$J$212,2,FALSE) -> WRC | W75: 所属 | X75: =VLOOKUP(U73,結果入力表!$B$2:$J$212,9,FALSE) -> HRC | AC75: =VLOOKUP(AD73,結果入力表!$B$2:$J$212,2,FALSE) -> WRC | AF75: 所属 | AG75: =VLOOKUP(AD73,結果入力表!$B$2:$J$212,9,FALSE) -> HRC | AL75: =VLOOKUP(AM73,結果入力表!$B$2:$J$212,2,FALSE) -> WRC | AO75: 所属 | AP75: =VLOOKUP(AM73,結果入力表!$B$2:$J$212,9,FALSE) -> HRC | AU75: =VLOOKUP(AV73,結果入力表!$B$2:$J$212,2,FALSE) -> WRC | AX75: 所属 | AY75: =VLOOKUP(AV73,結果入力表!$B$2:$J$212,9,FALSE) -> HRC | BD75: =VLOOKUP(BE73,結果入力表!$B$2:$J$212,2,FALSE) -> WRC | BG75: 所属 | BH75: =VLOOKUP(BE73,結果入力表!$B$2:$J$212,9,FALSE) -> HRC
B76: =VLOOKUP(C73,結果入力表!$B$2:$J$212,3,FALSE) -> 末岡 修 | E76: 氏名 | F76: =VLOOKUP(C73,結果入力表!$B$2:$J$212,8,FALSE) -> 鐵山 泰三 | K76: =VLOOKUP(L73,結果入力表!$B$2:$J$212,3,FALSE) -> 和田宗一郎 | N76: 氏名 | O76: =VLOOKUP(L73,結果入力表!$B$2:$J$212,8,FALSE) -> 堂園 雅也 | T76: =VLOOKUP(U73,結果入力表!$B$2:$J$212,3,FALSE) -> 杉本 博章 | W76: 氏名 | X76: =VLOOKUP(U73,結果入力表!$B$2:$J$212,8,FALSE) -> 宮本 一 | AC76: =VLOOKUP(AD73,結果入力表!$B$2:$J$212,3,FALSE) -> 中本 雅大 | AF76: 氏名 | AG76: =VLOOKUP(AD73,結果入力表!$B$2:$J$212,8,FALSE) -> 伊藤 登 | AL76: =VLOOKUP(AM73,結果入力表!$B$2:$J$212,3,FALSE) -> 山中 康介 | AO76: 氏名 | AP76: =VLOOKUP(AM73,結果入力表!$B$2:$J$212,8,FALSE) -> 宮井健太郎 | AU76: =VLOOKUP(AV73,結果入力表!$B$2:$J$212,3,FALSE) -> 芝先 泰生 | AX76: 氏名 | AY76: =VLOOKUP(AV73,結果入力表!$B$2:$J$212,8,FALSE) -> 白澤雄一郎 | BD76: =VLOOKUP(BE73,結果入力表!$B$2:$J$212,3,FALSE) -> 松房ゆかり | BG76: 氏名 | BH76: =VLOOKUP(BE73,結果入力表!$B$2:$J$212,8,FALSE) -> 河地 恵里
E77: 得点 | N77: 得点 | W77: 得点 | AF77: 得点 | AO77: 得点 | AX77: 得点 | BG77: 得点
E78: HR | N78: HR | W78: HR | AF78: HR | AO78: HR | AX78: HR | BG78: HR
F80: レフリー | O80: レフリー | X80: レフリー | AG80: レフリー | AP80: レフリー | AY80: レフリー | BH80: レフリー
B81: =★個人成績表★!$A$1 -> 第31回 京阪神和奈滋対抗戦 (奈良；玉出エース) | K81: =★個人成績表★!$A$1 -> 第31回 京阪神和奈滋対抗戦 (奈良；玉出エース) | T81: =★個人成績表★!$A$1 -> 第31回 京阪神和奈滋対抗戦 (奈良；玉出エース) | AC81: =★個人成績表★!$A$1 -> 第31回 京阪神和奈滋対抗戦 (奈良；玉出エース) | AL81: =★個人成績表★!$A$1 -> 第31回 京阪神和奈滋対抗戦 (奈良；玉出エース) | AU81: =★個人成績表★!$A$1 -> 第31回 京阪神和奈滋対抗戦 (奈良；玉出エース) | BD81: =★個人成績表★!$A$1 -> 第31回 京阪神和奈滋対抗戦 (奈良；玉出エース)
B83: G-No | C83: =BE73+1 -> 50 | F83: T-No | K83: G-No | L83: =C83+1 -> 51 | O83: T-No | T83: G-No | U83: =L83+1 -> 52 | X83: T-No | AC83: G-No | AD83: =U83+1 -> 53 | AG83: T-No | AL83: G-No | AM83: =AD83+1 -> 54 | AP83: T-No | AU83: G-No | AV83: =AM83+1 -> 55 | AY83: T-No | BD83: G-No | BE83: =AV83+1 -> 56 | BH83: T-No
B85: =VLOOKUP(C83,結果入力表!$B$2:$J$212,2,FALSE) -> ORC | E85: 所属 | F85: =VLOOKUP(C83,結果入力表!$B$2:$J$212,9,FALSE) -> SBC | K85: =VLOOKUP(L83,結果入力表!$B$2:$J$212,2,FALSE) -> ORC | N85: 所属 | O85: =VLOOKUP(L83,結果入力表!$B$2:$J$212,9,FALSE) -> SBC | T85: =VLOOKUP(U83,結果入力表!$B$2:$J$212,2,FALSE) -> ORC | W85: 所属 | X85: =VLOOKUP(U83,結果入力表!$B$2:$J$212,9,FALSE) -> SBC | AC85: =VLOOKUP(AD83,結果入力表!$B$2:$J$212,2,FALSE) -> ORC | AF85: 所属 | AG85: =VLOOKUP(AD83,結果入力表!$B$2:$J$212,9,FALSE) -> SBC | AL85: =VLOOKUP(AM83,結果入力表!$B$2:$J$212,2,FALSE) -> ORC | AO85: 所属 | AP85: =VLOOKUP(AM83,結果入力表!$B$2:$J$212,9,FALSE) -> SBC | AU85: =VLOOKUP(AV83,結果入力表!$B$2:$J$212,2,FALSE) -> ORC | AX85: 所属 | AY85: =VLOOKUP(AV83,結果入力表!$B$2:$J$212,9,FALSE) -> SBC | BD85: =VLOOKUP(BE83,結果入力表!$B$2:$J$212,2,FALSE) -> ORC | BG85: 所属 | BH85: =VLOOKUP(BE83,結果入力表!$B$2:$J$212,9,FALSE) -> SBC
B86: =VLOOKUP(C83,結果入力表!$B$2:$J$212,3,FALSE) -> 松居 勝巳 | E86: 氏名 | F86: =VLOOKUP(C83,結果入力表!$B$2:$J$212,8,FALSE) -> 林 秀忠 | K86: =VLOOKUP(L83,結果入力表!$B$2:$J$212,3,FALSE) -> 藤明 宏樹 | N86: 氏名 | O86: =VLOOKUP(L83,結果入力表!$B$2:$J$212,8,FALSE) -> 大橋 義治 | T86: =VLOOKUP(U83,結果入力表!$B$2:$J$212,3,FALSE) -> 吉岡 保俊 | W86: 氏名 | X86: =VLOOKUP(U83,結果入力表!$B$2:$J$212,8,FALSE) -> 山中 康寛 | AC86: =VLOOKUP(AD83,結果入力表!$B$2:$J$212,3,FALSE) -> 村上 泰辰 | AF86: 氏名 | AG86: =VLOOKUP(AD83,結果入力表!$B$2:$J$212,8,FALSE) -> 西峰 久祐 | AL86: =VLOOKUP(AM83,結果入力表!$B$2:$J$212,3,FALSE) -> 小原 嘉丈 | AO86: 氏名 | AP86: =VLOOKUP(AM83,結果入力表!$B$2:$J$212,8,FALSE) -> 大橋 正寛 | AU86: =VLOOKUP(AV83,結果入力表!$B$2:$J$212,3,FALSE) -> 乾 伸綱 | AX86: 氏名 | AY86: =VLOOKUP(AV83,結果入力表!$B$2:$J$212,8,FALSE) -> 秋田 倫央 | BD86: =VLOOKUP(BE83,結果入力表!$B$2:$J$212,3,FALSE) -> 山崎真紀子 | BG86: 氏名 | BH86: =VLOOKUP(BE83,結果入力表!$B$2:$J$212,8,FALSE) -> 大橋 洋子
E87: 得点 | N87: 得点 | W87: 得点 | AF87: 得点 | AO87: 得点 | AX87: 得点 | BG87: 得点
E88: HR | N88: HR | W88: HR | AF88: HR | AO88: HR | AX88: HR | BG88: HR
F90: レフリー | O90: レフリー | X90: レフリー | AG90: レフリー | AP90: レフリー | AY90: レフリー | BH90: レフリー
B91: =★個人成績表★!$A$1 -> 第31回 京阪神和奈滋対抗戦 (奈良；玉出エース) | K91: =★個人成績表★!$A$1 -> 第31回 京阪神和奈滋対抗戦 (奈良；玉出エース) | T91: =★個人成績表★!$A$1 -> 第31回 京阪神和奈滋対抗戦 (奈良；玉出エース) | AC91: =★個人成績表★!$A$1 -> 第31回 京阪神和奈滋対抗戦 (奈良；玉出エース) | AL91: =★個人成績表★!$A$1 -> 第31回 京阪神和奈滋対抗戦 (奈良；玉出エース) | AU91: =★個人成績表★!$A$1 -> 第31回 京阪神和奈滋対抗戦 (奈良；玉出エース) | BD91: =★個人成績表★!$A$1 -> 第31回 京阪神和奈滋対抗戦 (奈良；玉出エース)
B93: G-No | C93: =BE83+1 -> 57 | F93: T-No | K93: G-No | L93: =C93+1 -> 58 | O93: T-No | T93: G-No | U93: =L93+1 -> 59 | X93: T-No | AC93: G-No | AD93: =U93+1 -> 60 | AG93: T-No | AL93: G-No | AM93: =AD93+1 -> 61 | AP93: T-No | AU93: G-No | AV93: =AM93+1 -> 62 | AY93: T-No | BD93: G-No | BE93: =AV93+1 -> 63 | BH93: T-No
B95: =VLOOKUP(C93,結果入力表!$B$2:$J$212,2,FALSE) -> KRC | E95: 所属 | F95: =VLOOKUP(C93,結果入力表!$B$2:$J$212,9,FALSE) -> NRC | K95: =VLOOKUP(L93,結果入力表!$B$2:$J$212,2,FALSE) -> KRC | N95: 所属 | O95: =VLOOKUP(L93,結果入力表!$B$2:$J$212,9,FALSE) -> NRC | T95: =VLOOKUP(U93,結果入力表!$B$2:$J$212,2,FALSE) -> KRC | W95: 所属 | X95: =VLOOKUP(U93,結果入力表!$B$2:$J$212,9,FALSE) -> NRC | AC95: =VLOOKUP(AD93,結果入力表!$B$2:$J$212,2,FALSE) -> KRC | AF95: 所属 | AG95: =VLOOKUP(AD93,結果入力表!$B$2:$J$212,9,FALSE) -> NRC | AL95: =VLOOKUP(AM93,結果入力表!$B$2:$J$212,2,FALSE) -> KRC | AO95: 所属 | AP95: =VLOOKUP(AM93,結果入力表!$B$2:$J$212,9,FALSE) -> NRC | AU95: =VLOOKUP(AV93,結果入力表!$B$2:$J$212,2,FALSE) -> KRC | AX95: 所属 | AY95: =VLOOKUP(AV93,結果入力表!$B$2:$J$212,9,FALSE) -> NRC | BD95: =VLOOKUP(BE93,結果入力表!$B$2:$J$212,2,FALSE) -> KRC | BG95: 所属 | BH95: =VLOOKUP(BE93,結果入力表!$B$2:$J$212,9,FALSE) -> NRC
B96: =VLOOKUP(C93,結果入力表!$B$2:$J$212,3,FALSE) -> 松好 太一 | E96: 氏名 | F96: =VLOOKUP(C93,結果入力表!$B$2:$J$212,8,FALSE) -> 吉向 翔平 | K96: =VLOOKUP(L93,結果入力表!$B$2:$J$212,3,FALSE) -> 清水 義晴 | N96: 氏名 | O96: =VLOOKUP(L93,結果入力表!$B$2:$J$212,8,FALSE) -> 岩本 剛 | T96: =VLOOKUP(U93,結果入力表!$B$2:$J$212,3,FALSE) -> 鈴木 康文 | W96: 氏名 | X96: =VLOOKUP(U93,結果入力表!$B$2:$J$212,8,FALSE) -> 白戸 玲人 | AC96: =VLOOKUP(AD93,結果入力表!$B$2:$J$212,3,FALSE) -> 早川 徹 | AF96: 氏名 | AG96: =VLOOKUP(AD93,結果入力表!$B$2:$J$212,8,FALSE) -> 植田 慎也 | AL96: =VLOOKUP(AM93,結果入力表!$B$2:$J$212,3,FALSE) -> 井関 一成 | AO96: 氏名 | AP96: =VLOOKUP(AM93,結果入力表!$B$2:$J$212,8,FALSE) -> 近藤 拓馬 | AU96: =VLOOKUP(AV93,結果入力表!$B$2:$J$212,3,FALSE) -> 今村 哲也 | AX96: 氏名 | AY96: =VLOOKUP(AV93,結果入力表!$B$2:$J$212,8,FALSE) -> 長谷川 進 | BD96: =VLOOKUP(BE93,結果入力表!$B$2:$J$212,3,FALSE) -> 森田由佳里 | BG96: 氏名 | BH96: =VLOOKUP(BE93,結果入力表!$B$2:$J$212,8,FALSE) -> 白戸 恭子
E97: 得点 | N97: 得点 | W97: 得点 | AF97: 得点 | AO97: 得点 | AX97: 得点 | BG97: 得点
E98: HR | N98: HR | W98: HR | AF98: HR | AO98: HR | AX98: HR | BG98: HR
F100: レフリー | O100: レフリー | X100: レフリー | AG100: レフリー | AP100: レフリー | AY100: レフリー | BH100: レフリー
B101: =★個人成績表★!$A$1 -> 第31回 京阪神和奈滋対抗戦 (奈良；玉出エース) | K101: =★個人成績表★!$A$1 -> 第31回 京阪神和奈滋対抗戦 (奈良；玉出エース) | T101: =★個人成績表★!$A$1 -> 第31回 京阪神和奈滋対抗戦 (奈良；玉出エース) | AC101: =★個人成績表★!$A$1 -> 第31回 京阪神和奈滋対抗戦 (奈良；玉出エース) | AL101: =★個人成績表★!$A$1 -> 第31回 京阪神和奈滋対抗戦 (奈良；玉出エース) | AU101: =★個人成績表★!$A$1 -> 第31回 京阪神和奈滋対抗戦 (奈良；玉出エース) | BD101: =★個人成績表★!$A$1 -> 第31回 京阪神和奈滋対抗戦 (奈良；玉出エース)
B103: G-No | C103: =BE93+1 -> 64 | F103: T-No | K103: G-No | L103: =C103+1 -> 65 | O103: T-No | T103: G-No | U103: =L103+1 -> 66 | X103: T-No | AC103: G-No | AD103: =U103+1 -> 67 | AG103: T-No | AL103: G-No | AM103: =AD103+1 -> 68 | AP103: T-No | AU103: G-No | AV103: =AM103+1 -> 69 | AY103: T-No | BD103: G-No | BE103: =AV103+1 -> 70 | BH103: T-No
B105: =VLOOKUP(C103,結果入力表!$B$2:$J$212,2,FALSE) -> ORC | E105: 所属 | F105: =VLOOKUP(C103,結果入力表!$B$2:$J$212,9,FALSE) -> WRC | K105: =VLOOKUP(L103,結果入力表!$B$2:$J$212,2,FALSE) -> ORC | N105: 所属 | O105: =VLOOKUP(L103,結果入力表!$B$2:$J$212,9,FALSE) -> WRC | T105: =VLOOKUP(U103,結果入力表!$B$2:$J$212,2,FALSE) -> ORC | W105: 所属 | X105: =VLOOKUP(U103,結果入力表!$B$2:$J$212,9,FALSE) -> WRC | AC105: =VLOOKUP(AD103,結果入力表!$B$2:$J$212,2,FALSE) -> ORC | AF105: 所属 | AG105: =VLOOKUP(AD103,結果入力表!$B$2:$J$212,9,FALSE) -> WRC | AL105: =VLOOKUP(AM103,結果入力表!$B$2:$J$212,2,FALSE) -> ORC | AO105: 所属 | AP105: =VLOOKUP(AM103,結果入力表!$B$2:$J$212,9,FALSE) -> WRC | AU105: =VLOOKUP(AV103,結果入力表!$B$2:$J$212,2,FALSE) -> ORC | AX105: 所属 | AY105: =VLOOKUP(AV103,結果入力表!$B$2:$J$212,9,FALSE) -> WRC | BD105: =VLOOKUP(BE103,結果入力表!$B$2:$J$212,2,FALSE) -> ORC | BG105: 所属 | BH105: =VLOOKUP(BE103,結果入力表!$B$2:$J$212,9,FALSE) -> WRC
B106: =VLOOKUP(C103,結果入力表!$B$2:$J$212,3,FALSE) -> 松居 勝巳 | E106: 氏名 | F106: =VLOOKUP(C103,結果入力表!$B$2:$J$212,8,FALSE) -> 末岡 修 | K106: =VLOOKUP(L103,結果入力表!$B$2:$J$212,3,FALSE) -> 藤明 宏樹 | N106: 氏名 | O106: =VLOOKUP(L103,結果入力表!$B$2:$J$212,8,FALSE) -> 和田宗一郎 | T106: =VLOOKUP(U103,結果入力表!$B$2:$J$212,3,FALSE) -> 吉岡 保俊 | W106: 氏名 | X106: =VLOOKUP(U103,結果入力表!$B$2:$J$212,8,FALSE) -> 杉本 博章 | AC106: =VLOOKUP(AD103,結果入力表!$B$2:$J$212,3,FALSE) -> 村上 泰辰 | AF106: 氏名 | AG106: =VLOOKUP(AD103,結果入力表!$B$2:$J$212,8,FALSE) -> 中本 雅大 | AL106: =VLOOKUP(AM103,結果入力表!$B$2:$J$212,3,FALSE) -> 小原 嘉丈 | AO106: 氏名 | AP106: =VLOOKUP(AM103,結果入力表!$B$2:$J$212,8,FALSE) -> 山中 康介 | AU106: =VLOOKUP(AV103,結果入力表!$B$2:$J$212,3,FALSE) -> 乾 伸綱 | AX106: 氏名 | AY106: =VLOOKUP(AV103,結果入力表!$B$2:$J$212,8,FALSE) -> 芝先 泰生 | BD106: =VLOOKUP(BE103,結果入力表!$B$2:$J$212,3,FALSE) -> 山崎真紀子 | BG106: 氏名 | BH106: =VLOOKUP(BE103,結果入力表!$B$2:$J$212,8,FALSE) -> 松房ゆかり
E107: 得点 | N107: 得点 | W107: 得点 | AF107: 得点 | AO107: 得点 | AX107: 得点 | BG107: 得点
E108: HR | N108: HR | W108: HR | AF108: HR | AO108: HR | AX108: HR | BG108: HR
F110: レフリー | O110: レフリー | X110: レフリー | AG110: レフリー | AP110: レフリー | AY110: レフリー | BH110: レフリー
B111: =★個人成績表★!$A$1 -> 第31回 京阪神和奈滋対抗戦 (奈良；玉出エース) | K111: =★個人成績表★!$A$1 -> 第31回 京阪神和奈滋対抗戦 (奈良；玉出エース) | T111: =★個人成績表★!$A$1 -> 第31回 京阪神和奈滋対抗戦 (奈良；玉出エース) | AC111: =★個人成績表★!$A$1 -> 第31回 京阪神和奈滋対抗戦 (奈良；玉出エース) | AL111: =★個人成績表★!$A$1 -> 第31回 京阪神和奈滋対抗戦 (奈良；玉出エース) | AU111: =★個人成績表★!$A$1 -> 第31回 京阪神和奈滋対抗戦 (奈良；玉出エース) | BD111: =★個人成績表★!$A$1 -> 第31回 京阪神和奈滋対抗戦 (奈良；玉出エース)
B113: G-No | C113: =BE103+1 -> 71 | F113: T-No | K113: G-No | L113: =C113+1 -> 72 | O113: T-No | T113: G-No | U113: =L113+1 -> 73 | X113: T-No | AC113: G-No | AD113: =U113+1 -> 74 | AG113: T-No | AL113: G-No | AM113: =AD113+1 -> 75 | AP113: T-No | AU113: G-No | AV113: =AM113+1 -> 76 | AY113: T-No | BD113: G-No | BE113: =AV113+1 -> 77 | BH113: T-No
B115: =VLOOKUP(C113,結果入力表!$B$2:$J$212,2,FALSE) -> NRC | E115: 所属 | F115: =VLOOKUP(C113,結果入力表!$B$2:$J$212,9,FALSE) -> HRC | K115: =VLOOKUP(L113,結果入力表!$B$2:$J$212,2,FALSE) -> NRC | N115: 所属 | O115: =VLOOKUP(L113,結果入力表!$B$2:$J$212,9,FALSE) -> HRC | T115: =VLOOKUP(U113,結果入力表!$B$2:$J$212,2,FALSE) -> NRC | W115: 所属 | X115: =VLOOKUP(U113,結果入力表!$B$2:$J$212,9,FALSE) -> HRC | AC115: =VLOOKUP(AD113,結果入力表!$B$2:$J$212,2,FALSE) -> NRC | AF115: 所属 | AG115: =VLOOKUP(AD113,結果入力表!$B$2:$J$212,9,FALSE) -> HRC | AL115: =VLOOKUP(AM113,結果入力表!$B$2:$J$212,2,FALSE) -> NRC | AO115: 所属 | AP115: =VLOOKUP(AM113,結果入力表!$B$2:$J$212,9,FALSE) -> HRC | AU115: =VLOOKUP(AV113,結果入力表!$B$2:$J$212,2,FALSE) -> NRC | AX115: 所属 | AY115: =VLOOKUP(AV113,結果入力表!$B$2:$J$212,9,FALSE) -> HRC | BD115: =VLOOKUP(BE113,結果入力表!$B$2:$J$212,2,FALSE) -> NRC | BG115: 所属 | BH115: =VLOOKUP(BE113,結果入力表!$B$2:$J$212,9,FALSE) -> HRC
B116: =VLOOKUP(C113,結果入力表!$B$2:$J$212,3,FALSE) -> 吉向 翔平 | E116: 氏名 | F116: =VLOOKUP(C113,結果入力表!$B$2:$J$212,8,FALSE) -> 鐵山 泰三 | K116: =VLOOKUP(L113,結果入力表!$B$2:$J$212,3,FALSE) -> 岩本 剛 | N116: 氏名 | O116: =VLOOKUP(L113,結果入力表!$B$2:$J$212,8,FALSE) -> 堂園 雅也 | T116: =VLOOKUP(U113,結果入力表!$B$2:$J$212,3,FALSE) -> 白戸 玲人 | W116: 氏名 | X116: =VLOOKUP(U113,結果入力表!$B$2:$J$212,8,FALSE) -> 宮本 一 | AC116: =VLOOKUP(AD113,結果入力表!$B$2:$J$212,3,FALSE) -> 植田 慎也 | AF116: 氏名 | AG116: =VLOOKUP(AD113,結果入力表!$B$2:$J$212,8,FALSE) -> 伊藤 登 | AL116: =VLOOKUP(AM113,結果入力表!$B$2:$J$212,3,FALSE) -> 近藤 拓馬 | AO116: 氏名 | AP116: =VLOOKUP(AM113,結果入力表!$B$2:$J$212,8,FALSE) -> 宮井健太郎 | AU116: =VLOOKUP(AV113,結果入力表!$B$2:$J$212,3,FALSE) -> 長谷川 進 | AX116: 氏名 | AY116: =VLOOKUP(AV113,結果入力表!$B$2:$J$212,8,FALSE) -> 白澤雄一郎 | BD116: =VLOOKUP(BE113,結果入力表!$B$2:$J$212,3,FALSE) -> 白戸 恭子 | BG116: 氏名 | BH116: =VLOOKUP(BE113,結果入力表!$B$2:$J$212,8,FALSE) -> 河地 恵里
E117: 得点 | N117: 得点 | W117: 得点 | AF117: 得点 | AO117: 得点 | AX117: 得点 | BG117: 得点
E118: HR | N118: HR | W118: HR | AF118: HR | AO118: HR | AX118: HR | BG118: HR
F120: レフリー | O120: レフリー | X120: レフリー | AG120: レフリー | AP120: レフリー | AY120: レフリー | BH120: レフリー
B121: =★個人成績表★!$A$1 -> 第31回 京阪神和奈滋対抗戦 (奈良；玉出エース) | K121: =★個人成績表★!$A$1 -> 第31回 京阪神和奈滋対抗戦 (奈良；玉出エース) | T121: =★個人成績表★!$A$1 -> 第31回 京阪神和奈滋対抗戦 (奈良；玉出エース) | AC121: =★個人成績表★!$A$1 -> 第31回 京阪神和奈滋対抗戦 (奈良；玉出エース) | AL121: =★個人成績表★!$A$1 -> 第31回 京阪神和奈滋対抗戦 (奈良；玉出エース) | AU121: =★個人成績表★!$A$1 -> 第31回 京阪神和奈滋対抗戦 (奈良；玉出エース) | BD121: =★個人成績表★!$A$1 -> 第31回 京阪神和奈滋対抗戦 (奈良；玉出エース)
B123: G-No | C123: =BE113+1 -> 78 | F123: T-No | K123: G-No | L123: =C123+1 -> 79 | O123: T-No | T123: G-No | U123: =L123+1 -> 80 | X123: T-No | AC123: G-No | AD123: =U123+1 -> 81 | AG123: T-No | AL123: G-No | AM123: =AD123+1 -> 82 | AP123: T-No | AU123: G-No | AV123: =AM123+1 -> 83 | AY123: T-No | BD123: G-No | BE123: =AV123+1 -> 84 | BH123: T-No
B125: =VLOOKUP(C123,結果入力表!$B$2:$J$212,2,FALSE) -> KRC | E125: 所属 | F125: =VLOOKUP(C123,結果入力表!$B$2:$J$212,9,FALSE) -> SBC | K125: =VLOOKUP(L123,結果入力表!$B$2:$J$212,2,FALSE) -> KRC | N125: 所属 | O125: =VLOOKUP(L123,結果入力表!$B$2:$J$212,9,FALSE) -> SBC | T125: =VLOOKUP(U123,結果入力表!$B$2:$J$212,2,FALSE) -> KRC | W125: 所属 | X125: =VLOOKUP(U123,結果入力表!$B$2:$J$212,9,FALSE) -> SBC | AC125: =VLOOKUP(AD123,結果入力表!$B$2:$J$212,2,FALSE) -> KRC | AF125: 所属 | AG125: =VLOOKUP(AD123,結果入力表!$B$2:$J$212,9,FALSE) -> SBC | AL125: =VLOOKUP(AM123,結果入力表!$B$2:$J$212,2,FALSE) -> KRC | AO125: 所属 | AP125: =VLOOKUP(AM123,結果入力表!$B$2:$J$212,9,FALSE) -> SBC | AU125: =VLOOKUP(AV123,結果入力表!$B$2:$J$212,2,FALSE) -> KRC | AX125: 所属 | AY125: =VLOOKUP(AV123,結果入力表!$B$2:$J$212,9,FALSE) -> SBC | BD125: =VLOOKUP(BE123,結果入力表!$B$2:$J$212,2,FALSE) -> KRC | BG125: 所属 | BH125: =VLOOKUP(BE123,結果入力表!$B$2:$J$212,9,FALSE) -> SBC
B126: =VLOOKUP(C123,結果入力表!$B$2:$J$212,3,FALSE) -> 松好 太一 | E126: 氏名 | F126: =VLOOKUP(C123,結果入力表!$B$2:$J$212,8,FALSE) -> 林 秀忠 | K126: =VLOOKUP(L123,結果入力表!$B$2:$J$212,3,FALSE) -> 清水 義晴 | N126: 氏名 | O126: =VLOOKUP(L123,結果入力表!$B$2:$J$212,8,FALSE) -> 大橋 義治 | T126: =VLOOKUP(U123,結果入力表!$B$2:$J$212,3,FALSE) -> 鈴木 康文 | W126: 氏名 | X126: =VLOOKUP(U123,結果入力表!$B$2:$J$212,8,FALSE) -> 山中 康寛 | AC126: =VLOOKUP(AD123,結果入力表!$B$2:$J$212,3,FALSE) -> 早川 徹 | AF126: 氏名 | AG126: =VLOOKUP(AD123,結果入力表!$B$2:$J$212,8,FALSE) -> 西峰 久祐 | AL126: =VLOOKUP(AM123,結果入力表!$B$2:$J$212,3,FALSE) -> 井関 一成 | AO126: 氏名 | AP126: =VLOOKUP(AM123,結果入力表!$B$2:$J$212,8,FALSE) -> 大橋 正寛 | AU126: =VLOOKUP(AV123,結果入力表!$B$2:$J$212,3,FALSE) -> 今村 哲也 | AX126: 氏名 | AY126: =VLOOKUP(AV123,結果入力表!$B$2:$J$212,8,FALSE) -> 秋田 倫央 | BD126: =VLOOKUP(BE123,結果入力表!$B$2:$J$212,3,FALSE) -> 森田由佳里 | BG126: 氏名 | BH126: =VLOOKUP(BE123,結果入力表!$B$2:$J$212,8,FALSE) -> 大橋 洋子
E127: 得点 | N127: 得点 | W127: 得点 | AF127: 得点 | AO127: 得点 | AX127: 得点 | BG127: 得点
E128: HR | N128: HR | W128: HR | AF128: HR | AO128: HR | AX128: HR | BG128: HR
F130: レフリー | O130: レフリー | X130: レフリー | AG130: レフリー | AP130: レフリー | AY130: レフリー | BH130: レフリー
B131: =★個人成績表★!$A$1 -> 第31回 京阪神和奈滋対抗戦 (奈良；玉出エース) | K131: =★個人成績表★!$A$1 -> 第31回 京阪神和奈滋対抗戦 (奈良；玉出エース) | T131: =★個人成績表★!$A$1 -> 第31回 京阪神和奈滋対抗戦 (奈良；玉出エース) | AC131: =★個人成績表★!$A$1 -> 第31回 京阪神和奈滋対抗戦 (奈良；玉出エース) | AL131: =★個人成績表★!$A$1 -> 第31回 京阪神和奈滋対抗戦 (奈良；玉出エース) | AU131: =★個人成績表★!$A$1 -> 第31回 京阪神和奈滋対抗戦 (奈良；玉出エース) | BD131: =★個人成績表★!$A$1 -> 第31回 京阪神和奈滋対抗戦 (奈良；玉出エース)
B133: G-No | C133: =BE123+1 -> 85 | F133: T-No | K133: G-No | L133: =C133+1 -> 86 | O133: T-No | T133: G-No | U133: =L133+1 -> 87 | X133: T-No | AC133: G-No | AD133: =U133+1 -> 88 | AG133: T-No | AL133: G-No | AM133: =AD133+1 -> 89 | AP133: T-No | AU133: G-No | AV133: =AM133+1 -> 90 | AY133: T-No | BD133: G-No | BE133: =AV133+1 -> 91 | BH133: T-No
B135: =VLOOKUP(C133,結果入力表!$B$2:$J$212,2,FALSE) -> NRC | E135: 所属 | F135: =VLOOKUP(C133,結果入力表!$B$2:$J$212,9,FALSE) -> ORC | K135: =VLOOKUP(L133,結果入力表!$B$2:$J$212,2,FALSE) -> NRC | N135: 所属 | O135: =VLOOKUP(L133,結果入力表!$B$2:$J$212,9,FALSE) -> ORC | T135: =VLOOKUP(U133,結果入力表!$B$2:$J$212,2,FALSE) -> NRC | W135: 所属 | X135: =VLOOKUP(U133,結果入力表!$B$2:$J$212,9,FALSE) -> ORC | AC135: =VLOOKUP(AD133,結果入力表!$B$2:$J$212,2,FALSE) -> NRC | AF135: 所属 | AG135: =VLOOKUP(AD133,結果入力表!$B$2:$J$212,9,FALSE) -> ORC | AL135: =VLOOKUP(AM133,結果入力表!$B$2:$J$212,2,FALSE) -> NRC | AO135: 所属 | AP135: =VLOOKUP(AM133,結果入力表!$B$2:$J$212,9,FALSE) -> ORC | AU135: =VLOOKUP(AV133,結果入力表!$B$2:$J$212,2,FALSE) -> NRC | AX135: 所属 | AY135: =VLOOKUP(AV133,結果入力表!$B$2:$J$212,9,FALSE) -> ORC | BD135: =VLOOKUP(BE133,結果入力表!$B$2:$J$212,2,FALSE) -> NRC | BG135: 所属 | BH135: =VLOOKUP(BE133,結果入力表!$B$2:$J$212,9,FALSE) -> ORC
B136: =VLOOKUP(C133,結果入力表!$B$2:$J$212,3,FALSE) -> 吉向 翔平 | E136: 氏名 | F136: =VLOOKUP(C133,結果入力表!$B$2:$J$212,8,FALSE) -> 松居 勝巳 | K136: =VLOOKUP(L133,結果入力表!$B$2:$J$212,3,FALSE) -> 岩本 剛 | N136: 氏名 | O136: =VLOOKUP(L133,結果入力表!$B$2:$J$212,8,FALSE) -> 藤明 宏樹 | T136: =VLOOKUP(U133,結果入力表!$B$2:$J$212,3,FALSE) -> 白戸 玲人 | W136: 氏名 | X136: =VLOOKUP(U133,結果入力表!$B$2:$J$212,8,FALSE) -> 吉岡 保俊 | AC136: =VLOOKUP(AD133,結果入力表!$B$2:$J$212,3,FALSE) -> 植田 慎也 | AF136: 氏名 | AG136: =VLOOKUP(AD133,結果入力表!$B$2:$J$212,8,FALSE) -> 村上 泰辰 | AL136: =VLOOKUP(AM133,結果入力表!$B$2:$J$212,3,FALSE) -> 近藤 拓馬 | AO136: 氏名 | AP136: =VLOOKUP(AM133,結果入力表!$B$2:$J$212,8,FALSE) -> 小原 嘉丈 | AU136: =VLOOKUP(AV133,結果入力表!$B$2:$J$212,3,FALSE) -> 長谷川 進 | AX136: 氏名 | AY136: =VLOOKUP(AV133,結果入力表!$B$2:$J$212,8,FALSE) -> 乾 伸綱 | BD136: =VLOOKUP(BE133,結果入力表!$B$2:$J$212,3,FALSE) -> 白戸 恭子 | BG136: 氏名 | BH136: =VLOOKUP(BE133,結果入力表!$B$2:$J$212,8,FALSE) -> 山崎真紀子
E137: 得点 | N137: 得点 | W137: 得点 | AF137: 得点 | AO137: 得点 | AX137: 得点 | BG137: 得点
E138: HR | N138: HR | W138: HR | AF138: HR | AO138: HR | AX138: HR | BG138: HR
F140: レフリー | O140: レフリー | X140: レフリー | AG140: レフリー | AP140: レフリー | AY140: レフリー | BH140: レフリー
B141: =★個人成績表★!$A$1 -> 第31回 京阪神和奈滋対抗戦 (奈良；玉出エース) | K141: =★個人成績表★!$A$1 -> 第31回 京阪神和奈滋対抗戦 (奈良；玉出エース) | T141: =★個人成績表★!$A$1 -> 第31回 京阪神和奈滋対抗戦 (奈良；玉出エース) | AC141: =★個人成績表★!$A$1 -> 第31回 京阪神和奈滋対抗戦 (奈良；玉出エース) | AL141: =★個人成績表★!$A$1 -> 第31回 京阪神和奈滋対抗戦 (奈良；玉出エース) | AU141: =★個人成績表★!$A$1 -> 第31回 京阪神和奈滋対抗戦 (奈良；玉出エース) | BD141: =★個人成績表★!$A$1 -> 第31回 京阪神和奈滋対抗戦 (奈良；玉出エース)
B143: G-No | C143: =BE133+1 -> 92 | F143: T-No | K143: G-No | L143: =C143+1 -> 93 | O143: T-No | T143: G-No | U143: =L143+1 -> 94 | X143: T-No | AC143: G-No | AD143: =U143+1 -> 95 | AG143: T-No | AL143: G-No | AM143: =AD143+1 -> 96 | AP143: T-No | AU143: G-No | AV143: =AM143+1 -> 97 | AY143: T-No | BD143: G-No | BE143: =AV143+1 -> 98 | BH143: T-No
B145: =VLOOKUP(C143,結果入力表!$B$2:$J$212,2,FALSE) -> SBC | E145: 所属 | F145: =VLOOKUP(C143,結果入力表!$B$2:$J$212,9,FALSE) -> WRC | K145: =VLOOKUP(L143,結果入力表!$B$2:$J$212,2,FALSE) -> SBC | N145: 所属 | O145: =VLOOKUP(L143,結果入力表!$B$2:$J$212,9,FALSE) -> WRC | T145: =VLOOKUP(U143,結果入力表!$B$2:$J$212,2,FALSE) -> SBC | W145: 所属 | X145: =VLOOKUP(U143,結果入力表!$B$2:$J$212,9,FALSE) -> WRC | AC145: =VLOOKUP(AD143,結果入力表!$B$2:$J$212,2,FALSE) -> SBC | AF145: 所属 | AG145: =VLOOKUP(AD143,結果入力表!$B$2:$J$212,9,FALSE) -> WRC | AL145: =VLOOKUP(AM143,結果入力表!$B$2:$J$212,2,FALSE) -> SBC | AO145: 所属 | AP145: =VLOOKUP(AM143,結果入力表!$B$2:$J$212,9,FALSE) -> WRC | AU145: =VLOOKUP(AV143,結果入力表!$B$2:$J$212,2,FALSE) -> SBC | AX145: 所属 | AY145: =VLOOKUP(AV143,結果入力表!$B$2:$J$212,9,FALSE) -> WRC | BD145: =VLOOKUP(BE143,結果入力表!$B$2:$J$212,2,FALSE) -> SBC | BG145: 所属 | BH145: =VLOOKUP(BE143,結果入力表!$B$2:$J$212,9,FALSE) -> WRC
B146: =VLOOKUP(C143,結果入力表!$B$2:$J$212,3,FALSE) -> 林 秀忠 | E146: 氏名 | F146: =VLOOKUP(C143,結果入力表!$B$2:$J$212,8,FALSE) -> 末岡 修 | K146: =VLOOKUP(L143,結果入力表!$B$2:$J$212,3,FALSE) -> 大橋 義治 | N146: 氏名 | O146: =VLOOKUP(L143,結果入力表!$B$2:$J$212,8,FALSE) -> 和田宗一郎 | T146: =VLOOKUP(U143,結果入力表!$B$2:$J$212,3,FALSE) -> 山中 康寛 | W146: 氏名 | X146: =VLOOKUP(U143,結果入力表!$B$2:$J$212,8,FALSE) -> 杉本 博章 | AC146: =VLOOKUP(AD143,結果入力表!$B$2:$J$212,3,FALSE) -> 西峰 久祐 | AF146: 氏名 | AG146: =VLOOKUP(AD143,結果入力表!$B$2:$J$212,8,FALSE) -> 中本 雅大 | AL146: =VLOOKUP(AM143,結果入力表!$B$2:$J$212,3,FALSE) -> 大橋 正寛 | AO146: 氏名 | AP146: =VLOOKUP(AM143,結果入力表!$B$2:$J$212,8,FALSE) -> 山中 康介 | AU146: =VLOOKUP(AV143,結果入力表!$B$2:$J$212,3,FALSE) -> 秋田 倫央 | AX146: 氏名 | AY146: =VLOOKUP(AV143,結果入力表!$B$2:$J$212,8,FALSE) -> 芝先 泰生 | BD146: =VLOOKUP(BE143,結果入力表!$B$2:$J$212,3,FALSE) -> 大橋 洋子 | BG146: 氏名 | BH146: =VLOOKUP(BE143,結果入力表!$B$2:$J$212,8,FALSE) -> 松房ゆかり
E147: 得点 | N147: 得点 | W147: 得点 | AF147: 得点 | AO147: 得点 | AX147: 得点 | BG147: 得点
E148: HR | N148: HR | W148: HR | AF148: HR | AO148: HR | AX148: HR | BG148: HR
F150: レフリー | O150: レフリー | X150: レフリー | AG150: レフリー | AP150: レフリー | AY150: レフリー | BH150: レフリー
B151: =★個人成績表★!$A$1 -> 第31回 京阪神和奈滋対抗戦 (奈良；玉出エース) | K151: =★個人成績表★!$A$1 -> 第31回 京阪神和奈滋対抗戦 (奈良；玉出エース) | T151: =★個人成績表★!$A$1 -> 第31回 京阪神和奈滋対抗戦 (奈良；玉出エース) | AC151: =★個人成績表★!$A$1 -> 第31回 京阪神和奈滋対抗戦 (奈良；玉出エース) | AL151: =★個人成績表★!$A$1 -> 第31回 京阪神和奈滋対抗戦 (奈良；玉出エース) | AU151: =★個人成績表★!$A$1 -> 第31回 京阪神和奈滋対抗戦 (奈良；玉出エース) | BD151: =★個人成績表★!$A$1 -> 第31回 京阪神和奈滋対抗戦 (奈良；玉出エース)
B153: G-No | C153: =BE143+1 -> 99 | F153: T-No | K153: G-No | L153: =C153+1 -> 100 | O153: T-No | T153: G-No | U153: =L153+1 -> 101 | X153: T-No | AC153: G-No | AD153: =U153+1 -> 102 | AG153: T-No | AL153: G-No | AM153: =AD153+1 -> 103 | AP153: T-No | AU153: G-No | AV153: =AM153+1 -> 104 | AY153: T-No | BD153: G-No | BE153: =AV153+1 -> 105 | BH153: T-No
B155: =VLOOKUP(C153,結果入力表!$B$2:$J$212,2,FALSE) -> KRC | E155: 所属 | F155: =VLOOKUP(C153,結果入力表!$B$2:$J$212,9,FALSE) -> HRC | K155: =VLOOKUP(L153,結果入力表!$B$2:$J$212,2,FALSE) -> KRC | N155: 所属 | O155: =VLOOKUP(L153,結果入力表!$B$2:$J$212,9,FALSE) -> HRC | T155: =VLOOKUP(U153,結果入力表!$B$2:$J$212,2,FALSE) -> KRC | W155: 所属 | X155: =VLOOKUP(U153,結果入力表!$B$2:$J$212,9,FALSE) -> HRC | AC155: =VLOOKUP(AD153,結果入力表!$B$2:$J$212,2,FALSE) -> KRC | AF155: 所属 | AG155: =VLOOKUP(AD153,結果入力表!$B$2:$J$212,9,FALSE) -> HRC | AL155: =VLOOKUP(AM153,結果入力表!$B$2:$J$212,2,FALSE) -> KRC | AO155: 所属 | AP155: =VLOOKUP(AM153,結果入力表!$B$2:$J$212,9,FALSE) -> HRC | AU155: =VLOOKUP(AV153,結果入力表!$B$2:$J$212,2,FALSE) -> KRC | AX155: 所属 | AY155: =VLOOKUP(AV153,結果入力表!$B$2:$J$212,9,FALSE) -> HRC | BD155: =VLOOKUP(BE153,結果入力表!$B$2:$J$212,2,FALSE) -> KRC | BG155: 所属 | BH155: =VLOOKUP(BE153,結果入力表!$B$2:$J$212,9,FALSE) -> HRC
B156: =VLOOKUP(C153,結果入力表!$B$2:$J$212,3,FALSE) -> 松好 太一 | E156: 氏名 | F156: =VLOOKUP(C153,結果入力表!$B$2:$J$212,8,FALSE) -> 鐵山 泰三 | K156: =VLOOKUP(L153,結果入力表!$B$2:$J$212,3,FALSE) -> 清水 義晴 | N156: 氏名 | O156: =VLOOKUP(L153,結果入力表!$B$2:$J$212,8,FALSE) -> 堂園 雅也 | T156: =VLOOKUP(U153,結果入力表!$B$2:$J$212,3,FALSE) -> 鈴木 康文 | W156: 氏名 | X156: =VLOOKUP(U153,結果入力表!$B$2:$J$212,8,FALSE) -> 宮本 一 | AC156: =VLOOKUP(AD153,結果入力表!$B$2:$J$212,3,FALSE) -> 早川 徹 | AF156: 氏名 | AG156: =VLOOKUP(AD153,結果入力表!$B$2:$J$212,8,FALSE) -> 伊藤 登 | AL156: =VLOOKUP(AM153,結果入力表!$B$2:$J$212,3,FALSE) -> 井関 一成 | AO156: 氏名 | AP156: =VLOOKUP(AM153,結果入力表!$B$2:$J$212,8,FALSE) -> 宮井健太郎 | AU156: =VLOOKUP(AV153,結果入力表!$B$2:$J$212,3,FALSE) -> 今村 哲也 | AX156: 氏名 | AY156: =VLOOKUP(AV153,結果入力表!$B$2:$J$212,8,FALSE) -> 白澤雄一郎 | BD156: =VLOOKUP(BE153,結果入力表!$B$2:$J$212,3,FALSE) -> 森田由佳里 | BG156: 氏名 | BH156: =VLOOKUP(BE153,結果入力表!$B$2:$J$212,8,FALSE) -> 河地 恵里
E157: 得点 | N157: 得点 | W157: 得点 | AF157: 得点 | AO157: 得点 | AX157: 得点 | BG157: 得点
E158: HR | N158: HR | W158: HR | AF158: HR | AO158: HR | AX158: HR | BG158: HR
F160: レフリー | O160: レフリー | X160: レフリー | AG160: レフリー | AP160: レフリー | AY160: レフリー | BH160: レフリー
B161: =★個人成績表★!$A$1 -> 第31回 京阪神和奈滋対抗戦 (奈良；玉出エース) | K161: =★個人成績表★!$A$1 -> 第31回 京阪神和奈滋対抗戦 (奈良；玉出エース) | T161: =★個人成績表★!$A$1 -> 第31回 京阪神和奈滋対抗戦 (奈良；玉出エース) | AC161: =★個人成績表★!$A$1 -> 第31回 京阪神和奈滋対抗戦 (奈良；玉出エース) | AL161: =★個人成績表★!$A$1 -> 第31回 京阪神和奈滋対抗戦 (奈良；玉出エース) | AU161: =★個人成績表★!$A$1 -> 第31回 京阪神和奈滋対抗戦 (奈良；玉出エース) | BD161: =★個人成績表★!$A$1 -> 第31回 京阪神和奈滋対抗戦 (奈良；玉出エース)
B163: G-No | C163: =BE153+1 -> 106 | F163: T-No | K163: G-No | L163: =C163+1 -> 107 | O163: T-No | T163: G-No | U163: =L163+1 -> 108 | X163: T-No | AC163: G-No | AD163: =U163+1 -> 109 | AG163: T-No | AL163: G-No | AM163: =AD163+1 -> 110 | AP163: T-No | AU163: G-No | AV163: =AM163+1 -> 111 | AY163: T-No | BD163: G-No | BE163: =AV163+1 -> 112 | BH163: T-No
B165: =VLOOKUP(C163,結果入力表!$B$2:$J$212,2,FALSE) -> SBC | E165: 所属 | F165: =VLOOKUP(C163,結果入力表!$B$2:$J$212,9,FALSE) -> NRC | K165: =VLOOKUP(L163,結果入力表!$B$2:$J$212,2,FALSE) -> SBC | N165: 所属 | O165: =VLOOKUP(L163,結果入力表!$B$2:$J$212,9,FALSE) -> NRC | T165: =VLOOKUP(U163,結果入力表!$B$2:$J$212,2,FALSE) -> SBC | W165: 所属 | X165: =VLOOKUP(U163,結果入力表!$B$2:$J$212,9,FALSE) -> NRC | AC165: =VLOOKUP(AD163,結果入力表!$B$2:$J$212,2,FALSE) -> SBC | AF165: 所属 | AG165: =VLOOKUP(AD163,結果入力表!$B$2:$J$212,9,FALSE) -> NRC | AL165: =VLOOKUP(AM163,結果入力表!$B$2:$J$212,2,FALSE) -> SBC | AO165: 所属 | AP165: =VLOOKUP(AM163,結果入力表!$B$2:$J$212,9,FALSE) -> NRC | AU165: =VLOOKUP(AV163,結果入力表!$B$2:$J$212,2,FALSE) -> SBC | AX165: 所属 | AY165: =VLOOKUP(AV163,結果入力表!$B$2:$J$212,9,FALSE) -> NRC | BD165: =VLOOKUP(BE163,結果入力表!$B$2:$J$212,2,FALSE) -> SBC | BG165: 所属 | BH165: =VLOOKUP(BE163,結果入力表!$B$2:$J$212,9,FALSE) -> NRC
B166: =VLOOKUP(C163,結果入力表!$B$2:$J$212,3,FALSE) -> 山中 康寛 | E166: 氏名 | F166: =VLOOKUP(C163,結果入力表!$B$2:$J$212,8,FALSE) -> 植田 慎也 | K166: =VLOOKUP(L163,結果入力表!$B$2:$J$212,3,FALSE) -> 西峰 久祐 | N166: 氏名 | O166: =VLOOKUP(L163,結果入力表!$B$2:$J$212,8,FALSE) -> 近藤 拓馬 | T166: =VLOOKUP(U163,結果入力表!$B$2:$J$212,3,FALSE) -> 大橋 正寛 | W166: 氏名 | X166: =VLOOKUP(U163,結果入力表!$B$2:$J$212,8,FALSE) -> 長谷川 進 | AC166: =VLOOKUP(AD163,結果入力表!$B$2:$J$212,3,FALSE) -> 秋田 倫央 | AF166: 氏名 | AG166: =VLOOKUP(AD163,結果入力表!$B$2:$J$212,8,FALSE) -> 白戸 恭子 | AL166: =VLOOKUP(AM163,結果入力表!$B$2:$J$212,3,FALSE) -> 大橋 洋子 | AO166: 氏名 | AP166: =VLOOKUP(AM163,結果入力表!$B$2:$J$212,8,FALSE) -> 吉向 翔平 | AU166: =VLOOKUP(AV163,結果入力表!$B$2:$J$212,3,FALSE) -> 林 秀忠 | AX166: 氏名 | AY166: =VLOOKUP(AV163,結果入力表!$B$2:$J$212,8,FALSE) -> 岩本 剛 | BD166: =VLOOKUP(BE163,結果入力表!$B$2:$J$212,3,FALSE) -> 大橋 義治 | BG166: 氏名 | BH166: =VLOOKUP(BE163,結果入力表!$B$2:$J$212,8,FALSE) -> 白戸 玲人
E167: 得点 | N167: 得点 | W167: 得点 | AF167: 得点 | AO167: 得点 | AX167: 得点 | BG167: 得点
E168: HR | N168: HR | W168: HR | AF168: HR | AO168: HR | AX168: HR | BG168: HR
F170: レフリー | O170: レフリー | X170: レフリー | AG170: レフリー | AP170: レフリー | AY170: レフリー | BH170: レフリー
B171: =★個人成績表★!$A$1 -> 第31回 京阪神和奈滋対抗戦 (奈良；玉出エース) | K171: =★個人成績表★!$A$1 -> 第31回 京阪神和奈滋対抗戦 (奈良；玉出エース) | T171: =★個人成績表★!$A$1 -> 第31回 京阪神和奈滋対抗戦 (奈良；玉出エース) | AC171: =★個人成績表★!$A$1 -> 第31回 京阪神和奈滋対抗戦 (奈良；玉出エース) | AL171: =★個人成績表★!$A$1 -> 第31回 京阪神和奈滋対抗戦 (奈良；玉出エース) | AU171: =★個人成績表★!$A$1 -> 第31回 京阪神和奈滋対抗戦 (奈良；玉出エース) | BD171: =★個人成績表★!$A$1 -> 第31回 京阪神和奈滋対抗戦 (奈良；玉出エース)
B173: G-No | C173: =BE163+1 -> 113 | F173: T-No | K173: G-No | L173: =C173+1 -> 114 | O173: T-No | T173: G-No | U173: =L173+1 -> 115 | X173: T-No | AC173: G-No | AD173: =U173+1 -> 116 | AG173: T-No | AL173: G-No | AM173: =AD173+1 -> 117 | AP173: T-No | AU173: G-No | AV173: =AM173+1 -> 118 | AY173: T-No | BD173: G-No | BE173: =AV173+1 -> 119 | BH173: T-No
B175: =VLOOKUP(C173,結果入力表!$B$2:$J$212,2,FALSE) -> HRC | E175: 所属 | F175: =VLOOKUP(C173,結果入力表!$B$2:$J$212,9,FALSE) -> ORC | K175: =VLOOKUP(L173,結果入力表!$B$2:$J$212,2,FALSE) -> HRC | N175: 所属 | O175: =VLOOKUP(L173,結果入力表!$B$2:$J$212,9,FALSE) -> ORC | T175: =VLOOKUP(U173,結果入力表!$B$2:$J$212,2,FALSE) -> HRC | W175: 所属 | X175: =VLOOKUP(U173,結果入力表!$B$2:$J$212,9,FALSE) -> ORC | AC175: =VLOOKUP(AD173,結果入力表!$B$2:$J$212,2,FALSE) -> HRC | AF175: 所属 | AG175: =VLOOKUP(AD173,結果入力表!$B$2:$J$212,9,FALSE) -> ORC | AL175: =VLOOKUP(AM173,結果入力表!$B$2:$J$212,2,FALSE) -> HRC | AO175: 所属 | AP175: =VLOOKUP(AM173,結果入力表!$B$2:$J$212,9,FALSE) -> ORC | AU175: =VLOOKUP(AV173,結果入力表!$B$2:$J$212,2,FALSE) -> HRC | AX175: 所属 | AY175: =VLOOKUP(AV173,結果入力表!$B$2:$J$212,9,FALSE) -> ORC | BD175: =VLOOKUP(BE173,結果入力表!$B$2:$J$212,2,FALSE) -> HRC | BG175: 所属 | BH175: =VLOOKUP(BE173,結果入力表!$B$2:$J$212,9,FALSE) -> ORC
B176: =VLOOKUP(C173,結果入力表!$B$2:$J$212,3,FALSE) -> 堂園 雅也 | E176: 氏名 | F176: =VLOOKUP(C173,結果入力表!$B$2:$J$212,8,FALSE) -> 小原 嘉丈 | K176: =VLOOKUP(L173,結果入力表!$B$2:$J$212,3,FALSE) -> 宮本 一 | N176: 氏名 | O176: =VLOOKUP(L173,結果入力表!$B$2:$J$212,8,FALSE) -> 乾 伸綱 | T176: =VLOOKUP(U173,結果入力表!$B$2:$J$212,3,FALSE) -> 伊藤 登 | W176: 氏名 | X176: =VLOOKUP(U173,結果入力表!$B$2:$J$212,8,FALSE) -> 山崎真紀子 | AC176: =VLOOKUP(AD173,結果入力表!$B$2:$J$212,3,FALSE) -> 宮井健太郎 | AF176: 氏名 | AG176: =VLOOKUP(AD173,結果入力表!$B$2:$J$212,8,FALSE) -> 松居 勝巳 | AL176: =VLOOKUP(AM173,結果入力表!$B$2:$J$212,3,FALSE) -> 白澤雄一郎 | AO176: 氏名 | AP176: =VLOOKUP(AM173,結果入力表!$B$2:$J$212,8,FALSE) -> 藤明 宏樹 | AU176: =VLOOKUP(AV173,結果入力表!$B$2:$J$212,3,FALSE) -> 河地 恵里 | AX176: 氏名 | AY176: =VLOOKUP(AV173,結果入力表!$B$2:$J$212,8,FALSE) -> 吉岡 保俊 | BD176: =VLOOKUP(BE173,結果入力表!$B$2:$J$212,3,FALSE) -> 鐵山 泰三 | BG176: 氏名 | BH176: =VLOOKUP(BE173,結果入力表!$B$2:$J$212,8,FALSE) -> 村上 泰辰
E177: 得点 | N177: 得点 | W177: 得点 | AF177: 得点 | AO177: 得点 | AX177: 得点 | BG177: 得点
E178: HR | N178: HR | W178: HR | AF178: HR | AO178: HR | AX178: HR | BG178: HR
F180: レフリー | O180: レフリー | X180: レフリー | AG180: レフリー | AP180: レフリー | AY180: レフリー | BH180: レフリー
B181: =★個人成績表★!$A$1 -> 第31回 京阪神和奈滋対抗戦 (奈良；玉出エース) | K181: =★個人成績表★!$A$1 -> 第31回 京阪神和奈滋対抗戦 (奈良；玉出エース) | T181: =★個人成績表★!$A$1 -> 第31回 京阪神和奈滋対抗戦 (奈良；玉出エース) | AC181: =★個人成績表★!$A$1 -> 第31回 京阪神和奈滋対抗戦 (奈良；玉出エース) | AL181: =★個人成績表★!$A$1 -> 第31回 京阪神和奈滋対抗戦 (奈良；玉出エース) | AU181: =★個人成績表★!$A$1 -> 第31回 京阪神和奈滋対抗戦 (奈良；玉出エース) | BD181: =★個人成績表★!$A$1 -> 第31回 京阪神和奈滋対抗戦 (奈良；玉出エース)
B183: G-No | C183: =BE173+1 -> 120 | F183: T-No | K183: G-No | L183: =C183+1 -> 121 | O183: T-No | T183: G-No | U183: =L183+1 -> 122 | X183: T-No | AC183: G-No | AD183: =U183+1 -> 123 | AG183: T-No | AL183: G-No | AM183: =AD183+1 -> 124 | AP183: T-No | AU183: G-No | AV183: =AM183+1 -> 125 | AY183: T-No | BD183: G-No | BE183: =AV183+1 -> 126 | BH183: T-No
B185: =VLOOKUP(C183,結果入力表!$B$2:$J$212,2,FALSE) -> KRC | E185: 所属 | F185: =VLOOKUP(C183,結果入力表!$B$2:$J$212,9,FALSE) -> WRC | K185: =VLOOKUP(L183,結果入力表!$B$2:$J$212,2,FALSE) -> KRC | N185: 所属 | O185: =VLOOKUP(L183,結果入力表!$B$2:$J$212,9,FALSE) -> WRC | T185: =VLOOKUP(U183,結果入力表!$B$2:$J$212,2,FALSE) -> KRC | W185: 所属 | X185: =VLOOKUP(U183,結果入力表!$B$2:$J$212,9,FALSE) -> WRC | AC185: =VLOOKUP(AD183,結果入力表!$B$2:$J$212,2,FALSE) -> KRC | AF185: 所属 | AG185: =VLOOKUP(AD183,結果入力表!$B$2:$J$212,9,FALSE) -> WRC | AL185: =VLOOKUP(AM183,結果入力表!$B$2:$J$212,2,FALSE) -> KRC | AO185: 所属 | AP185: =VLOOKUP(AM183,結果入力表!$B$2:$J$212,9,FALSE) -> WRC | AU185: =VLOOKUP(AV183,結果入力表!$B$2:$J$212,2,FALSE) -> KRC | AX185: 所属 | AY185: =VLOOKUP(AV183,結果入力表!$B$2:$J$212,9,FALSE) -> WRC | BD185: =VLOOKUP(BE183,結果入力表!$B$2:$J$212,2,FALSE) -> KRC | BG185: 所属 | BH185: =VLOOKUP(BE183,結果入力表!$B$2:$J$212,9,FALSE) -> WRC
B186: =VLOOKUP(C183,結果入力表!$B$2:$J$212,3,FALSE) -> 松好 太一 | E186: 氏名 | F186: =VLOOKUP(C183,結果入力表!$B$2:$J$212,8,FALSE) -> 芝先 泰生 | K186: =VLOOKUP(L183,結果入力表!$B$2:$J$212,3,FALSE) -> 清水 義晴 | N186: 氏名 | O186: =VLOOKUP(L183,結果入力表!$B$2:$J$212,8,FALSE) -> 松房ゆかり | T186: =VLOOKUP(U183,結果入力表!$B$2:$J$212,3,FALSE) -> 鈴木 康文 | W186: 氏名 | X186: =VLOOKUP(U183,結果入力表!$B$2:$J$212,8,FALSE) -> 末岡 修 | AC186: =VLOOKUP(AD183,結果入力表!$B$2:$J$212,3,FALSE) -> 早川 徹 | AF186: 氏名 | AG186: =VLOOKUP(AD183,結果入力表!$B$2:$J$212,8,FALSE) -> 和田宗一郎 | AL186: =VLOOKUP(AM183,結果入力表!$B$2:$J$212,3,FALSE) -> 井関 一成 | AO186: 氏名 | AP186: =VLOOKUP(AM183,結果入力表!$B$2:$J$212,8,FALSE) -> 杉本 博章 | AU186: =VLOOKUP(AV183,結果入力表!$B$2:$J$212,3,FALSE) -> 今村 哲也 | AX186: 氏名 | AY186: =VLOOKUP(AV183,結果入力表!$B$2:$J$212,8,FALSE) -> 中本 雅大 | BD186: =VLOOKUP(BE183,結果入力表!$B$2:$J$212,3,FALSE) -> 森田由佳里 | BG186: 氏名 | BH186: =VLOOKUP(BE183,結果入力表!$B$2:$J$212,8,FALSE) -> 山中 康介
E187: 得点 | N187: 得点 | W187: 得点 | AF187: 得点 | AO187: 得点 | AX187: 得点 | BG187: 得点
E188: HR | N188: HR | W188: HR | AF188: HR | AO188: HR | AX188: HR | BG188: HR
F190: レフリー | O190: レフリー | X190: レフリー | AG190: レフリー | AP190: レフリー | AY190: レフリー | BH190: レフリー
B191: =★個人成績表★!$A$1 -> 第31回 京阪神和奈滋対抗戦 (奈良；玉出エース) | K191: =★個人成績表★!$A$1 -> 第31回 京阪神和奈滋対抗戦 (奈良；玉出エース) | T191: =★個人成績表★!$A$1 -> 第31回 京阪神和奈滋対抗戦 (奈良；玉出エース) | AC191: =★個人成績表★!$A$1 -> 第31回 京阪神和奈滋対抗戦 (奈良；玉出エース) | AL191: =★個人成績表★!$A$1 -> 第31回 京阪神和奈滋対抗戦 (奈良；玉出エース) | AU191: =★個人成績表★!$A$1 -> 第31回 京阪神和奈滋対抗戦 (奈良；玉出エース) | BD191: =★個人成績表★!$A$1 -> 第31回 京阪神和奈滋対抗戦 (奈良；玉出エース)
B193: G-No | C193: =BE183+1 -> 127 | F193: T-No | K193: G-No | L193: =C193+1 -> 128 | O193: T-No | T193: G-No | U193: =L193+1 -> 129 | X193: T-No | AC193: G-No | AD193: =U193+1 -> 130 | AG193: T-No | AL193: G-No | AM193: =AD193+1 -> 131 | AP193: T-No | AU193: G-No | AV193: =AM193+1 -> 132 | AY193: T-No | BD193: G-No | BE193: =AV193+1 -> 133 | BH193: T-No
B195: =VLOOKUP(C193,結果入力表!$B$2:$J$212,2,FALSE) -> HRC | E195: 所属 | F195: =VLOOKUP(C193,結果入力表!$B$2:$J$212,9,FALSE) -> SBC | K195: =VLOOKUP(L193,結果入力表!$B$2:$J$212,2,FALSE) -> HRC | N195: 所属 | O195: =VLOOKUP(L193,結果入力表!$B$2:$J$212,9,FALSE) -> SBC | T195: =VLOOKUP(U193,結果入力表!$B$2:$J$212,2,FALSE) -> HRC | W195: 所属 | X195: =VLOOKUP(U193,結果入力表!$B$2:$J$212,9,FALSE) -> SBC | AC195: =VLOOKUP(AD193,結果入力表!$B$2:$J$212,2,FALSE) -> HRC | AF195: 所属 | AG195: =VLOOKUP(AD193,結果入力表!$B$2:$J$212,9,FALSE) -> SBC | AL195: =VLOOKUP(AM193,結果入力表!$B$2:$J$212,2,FALSE) -> HRC | AO195: 所属 | AP195: =VLOOKUP(AM193,結果入力表!$B$2:$J$212,9,FALSE) -> SBC | AU195: =VLOOKUP(AV193,結果入力表!$B$2:$J$212,2,FALSE) -> HRC | AX195: 所属 | AY195: =VLOOKUP(AV193,結果入力表!$B$2:$J$212,9,FALSE) -> SBC | BD195: =VLOOKUP(BE193,結果入力表!$B$2:$J$212,2,FALSE) -> HRC | BG195: 所属 | BH195: =VLOOKUP(BE193,結果入力表!$B$2:$J$212,9,FALSE) -> SBC
B196: =VLOOKUP(C193,結果入力表!$B$2:$J$212,3,FALSE) -> 堂園 雅也 | E196: 氏名 | F196: =VLOOKUP(C193,結果入力表!$B$2:$J$212,8,FALSE) -> 山中 康寛 | K196: =VLOOKUP(L193,結果入力表!$B$2:$J$212,3,FALSE) -> 宮本 一 | N196: 氏名 | O196: =VLOOKUP(L193,結果入力表!$B$2:$J$212,8,FALSE) -> 西峰 久祐 | T196: =VLOOKUP(U193,結果入力表!$B$2:$J$212,3,FALSE) -> 伊藤 登 | W196: 氏名 | X196: =VLOOKUP(U193,結果入力表!$B$2:$J$212,8,FALSE) -> 大橋 正寛 | AC196: =VLOOKUP(AD193,結果入力表!$B$2:$J$212,3,FALSE) -> 宮井健太郎 | AF196: 氏名 | AG196: =VLOOKUP(AD193,結果入力表!$B$2:$J$212,8,FALSE) -> 秋田 倫央 | AL196: =VLOOKUP(AM193,結果入力表!$B$2:$J$212,3,FALSE) -> 白澤雄一郎 | AO196: 氏名 | AP196: =VLOOKUP(AM193,結果入力表!$B$2:$J$212,8,FALSE) -> 大橋 洋子 | AU196: =VLOOKUP(AV193,結果入力表!$B$2:$J$212,3,FALSE) -> 河地 恵里 | AX196: 氏名 | AY196: =VLOOKUP(AV193,結果入力表!$B$2:$J$212,8,FALSE) -> 林 秀忠 | BD196: =VLOOKUP(BE193,結果入力表!$B$2:$J$212,3,FALSE) -> 鐵山 泰三 | BG196: 氏名 | BH196: =VLOOKUP(BE193,結果入力表!$B$2:$J$212,8,FALSE) -> 大橋 義治
E197: 得点 | N197: 得点 | W197: 得点 | AF197: 得点 | AO197: 得点 | AX197: 得点 | BG197: 得点
E198: HR | N198: HR | W198: HR | AF198: HR | AO198: HR | AX198: HR | BG198: HR
F200: レフリー | O200: レフリー | X200: レフリー | AG200: レフリー | AP200: レフリー | AY200: レフリー | BH200: レフリー
B201: =★個人成績表★!$A$1 -> 第31回 京阪神和奈滋対抗戦 (奈良；玉出エース) | K201: =★個人成績表★!$A$1 -> 第31回 京阪神和奈滋対抗戦 (奈良；玉出エース) | T201: =★個人成績表★!$A$1 -> 第31回 京阪神和奈滋対抗戦 (奈良；玉出エース) | AC201: =★個人成績表★!$A$1 -> 第31回 京阪神和奈滋対抗戦 (奈良；玉出エース) | AL201: =★個人成績表★!$A$1 -> 第31回 京阪神和奈滋対抗戦 (奈良；玉出エース) | AU201: =★個人成績表★!$A$1 -> 第31回 京阪神和奈滋対抗戦 (奈良；玉出エース) | BD201: =★個人成績表★!$A$1 -> 第31回 京阪神和奈滋対抗戦 (奈良；玉出エース)
B203: G-No | C203: =BE193+1 -> 134 | F203: T-No | K203: G-No | L203: =C203+1 -> 135 | O203: T-No | T203: G-No | U203: =L203+1 -> 136 | X203: T-No | AC203: G-No | AD203: =U203+1 -> 137 | AG203: T-No | AL203: G-No | AM203: =AD203+1 -> 138 | AP203: T-No | AU203: G-No | AV203: =AM203+1 -> 139 | AY203: T-No | BD203: G-No | BE203: =AV203+1 -> 140 | BH203: T-No
B205: =VLOOKUP(C203,結果入力表!$B$2:$J$212,2,FALSE) -> WRC | E205: 所属 | F205: =VLOOKUP(C203,結果入力表!$B$2:$J$212,9,FALSE) -> NRC | K205: =VLOOKUP(L203,結果入力表!$B$2:$J$212,2,FALSE) -> WRC | N205: 所属 | O205: =VLOOKUP(L203,結果入力表!$B$2:$J$212,9,FALSE) -> NRC | T205: =VLOOKUP(U203,結果入力表!$B$2:$J$212,2,FALSE) -> WRC | W205: 所属 | X205: =VLOOKUP(U203,結果入力表!$B$2:$J$212,9,FALSE) -> NRC | AC205: =VLOOKUP(AD203,結果入力表!$B$2:$J$212,2,FALSE) -> WRC | AF205: 所属 | AG205: =VLOOKUP(AD203,結果入力表!$B$2:$J$212,9,FALSE) -> NRC | AL205: =VLOOKUP(AM203,結果入力表!$B$2:$J$212,2,FALSE) -> WRC | AO205: 所属 | AP205: =VLOOKUP(AM203,結果入力表!$B$2:$J$212,9,FALSE) -> NRC | AU205: =VLOOKUP(AV203,結果入力表!$B$2:$J$212,2,FALSE) -> WRC | AX205: 所属 | AY205: =VLOOKUP(AV203,結果入力表!$B$2:$J$212,9,FALSE) -> NRC | BD205: =VLOOKUP(BE203,結果入力表!$B$2:$J$212,2,FALSE) -> WRC | BG205: 所属 | BH205: =VLOOKUP(BE203,結果入力表!$B$2:$J$212,9,FALSE) -> NRC
B206: =VLOOKUP(C203,結果入力表!$B$2:$J$212,3,FALSE) -> 芝先 泰生 | E206: 氏名 | F206: =VLOOKUP(C203,結果入力表!$B$2:$J$212,8,FALSE) -> 植田 慎也 | K206: =VLOOKUP(L203,結果入力表!$B$2:$J$212,3,FALSE) -> 松房ゆかり | N206: 氏名 | O206: =VLOOKUP(L203,結果入力表!$B$2:$J$212,8,FALSE) -> 近藤 拓馬 | T206: =VLOOKUP(U203,結果入力表!$B$2:$J$212,3,FALSE) -> 末岡 修 | W206: 氏名 | X206: =VLOOKUP(U203,結果入力表!$B$2:$J$212,8,FALSE) -> 長谷川 進 | AC206: =VLOOKUP(AD203,結果入力表!$B$2:$J$212,3,FALSE) -> 和田宗一郎 | AF206: 氏名 | AG206: =VLOOKUP(AD203,結果入力表!$B$2:$J$212,8,FALSE) -> 白戸 恭子 | AL206: =VLOOKUP(AM203,結果入力表!$B$2:$J$212,3,FALSE) -> 杉本 博章 | AO206: 氏名 | AP206: =VLOOKUP(AM203,結果入力表!$B$2:$J$212,8,FALSE) -> 吉向 翔平 | AU206: =VLOOKUP(AV203,結果入力表!$B$2:$J$212,3,FALSE) -> 中本 雅大 | AX206: 氏名 | AY206: =VLOOKUP(AV203,結果入力表!$B$2:$J$212,8,FALSE) -> 岩本 剛 | BD206: =VLOOKUP(BE203,結果入力表!$B$2:$J$212,3,FALSE) -> 山中 康介 | BG206: 氏名 | BH206: =VLOOKUP(BE203,結果入力表!$B$2:$J$212,8,FALSE) -> 白戸 玲人
E207: 得点 | N207: 得点 | W207: 得点 | AF207: 得点 | AO207: 得点 | AX207: 得点 | BG207: 得点
E208: HR | N208: HR | W208: HR | AF208: HR | AO208: HR | AX208: HR | BG208: HR
F210: レフリー | O210: レフリー | X210: レフリー | AG210: レフリー | AP210: レフリー | AY210: レフリー | BH210: レフリー
B211: =★個人成績表★!$A$1 -> 第31回 京阪神和奈滋対抗戦 (奈良；玉出エース) | K211: =★個人成績表★!$A$1 -> 第31回 京阪神和奈滋対抗戦 (奈良；玉出エース) | T211: =★個人成績表★!$A$1 -> 第31回 京阪神和奈滋対抗戦 (奈良；玉出エース) | AC211: =★個人成績表★!$A$1 -> 第31回 京阪神和奈滋対抗戦 (奈良；玉出エース) | AL211: =★個人成績表★!$A$1 -> 第31回 京阪神和奈滋対抗戦 (奈良；玉出エース) | AU211: =★個人成績表★!$A$1 -> 第31回 京阪神和奈滋対抗戦 (奈良；玉出エース) | BD211: =★個人成績表★!$A$1 -> 第31回 京阪神和奈滋対抗戦 (奈良；玉出エース)
B213: G-No | C213: =BE203+1 -> 141 | F213: T-No | K213: G-No | L213: =C213+1 -> 142 | O213: T-No | T213: G-No | U213: =L213+1 -> 143 | X213: T-No | AC213: G-No | AD213: =U213+1 -> 144 | AG213: T-No | AL213: G-No | AM213: =AD213+1 -> 145 | AP213: T-No | AU213: G-No | AV213: =AM213+1 -> 146 | AY213: T-No | BD213: G-No | BE213: =AV213+1 -> 147 | BH213: T-No
B215: =VLOOKUP(C213,結果入力表!$B$2:$J$212,2,FALSE) -> KRC | E215: 所属 | F215: =VLOOKUP(C213,結果入力表!$B$2:$J$212,9,FALSE) -> ORC | K215: =VLOOKUP(L213,結果入力表!$B$2:$J$212,2,FALSE) -> KRC | N215: 所属 | O215: =VLOOKUP(L213,結果入力表!$B$2:$J$212,9,FALSE) -> ORC | T215: =VLOOKUP(U213,結果入力表!$B$2:$J$212,2,FALSE) -> KRC | W215: 所属 | X215: =VLOOKUP(U213,結果入力表!$B$2:$J$212,9,FALSE) -> ORC | AC215: =VLOOKUP(AD213,結果入力表!$B$2:$J$212,2,FALSE) -> KRC | AF215: 所属 | AG215: =VLOOKUP(AD213,結果入力表!$B$2:$J$212,9,FALSE) -> ORC | AL215: =VLOOKUP(AM213,結果入力表!$B$2:$J$212,2,FALSE) -> KRC | AO215: 所属 | AP215: =VLOOKUP(AM213,結果入力表!$B$2:$J$212,9,FALSE) -> ORC | AU215: =VLOOKUP(AV213,結果入力表!$B$2:$J$212,2,FALSE) -> KRC | AX215: 所属 | AY215: =VLOOKUP(AV213,結果入力表!$B$2:$J$212,9,FALSE) -> ORC | BD215: =VLOOKUP(BE213,結果入力表!$B$2:$J$212,2,FALSE) -> KRC | BG215: 所属 | BH215: =VLOOKUP(BE213,結果入力表!$B$2:$J$212,9,FALSE) -> ORC
B216: =VLOOKUP(C213,結果入力表!$B$2:$J$212,3,FALSE) -> 松好 太一 | E216: 氏名 | F216: =VLOOKUP(C213,結果入力表!$B$2:$J$212,8,FALSE) -> 小原 嘉丈 | K216: =VLOOKUP(L213,結果入力表!$B$2:$J$212,3,FALSE) -> 清水 義晴 | N216: 氏名 | O216: =VLOOKUP(L213,結果入力表!$B$2:$J$212,8,FALSE) -> 乾 伸綱 | T216: =VLOOKUP(U213,結果入力表!$B$2:$J$212,3,FALSE) -> 鈴木 康文 | W216: 氏名 | X216: =VLOOKUP(U213,結果入力表!$B$2:$J$212,8,FALSE) -> 山崎真紀子 | AC216: =VLOOKUP(AD213,結果入力表!$B$2:$J$212,3,FALSE) -> 早川 徹 | AF216: 氏名 | AG216: =VLOOKUP(AD213,結果入力表!$B$2:$J$212,8,FALSE) -> 松居 勝巳 | AL216: =VLOOKUP(AM213,結果入力表!$B$2:$J$212,3,FALSE) -> 井関 一成 | AO216: 氏名 | AP216: =VLOOKUP(AM213,結果入力表!$B$2:$J$212,8,FALSE) -> 藤明 宏樹 | AU216: =VLOOKUP(AV213,結果入力表!$B$2:$J$212,3,FALSE) -> 今村 哲也 | AX216: 氏名 | AY216: =VLOOKUP(AV213,結果入力表!$B$2:$J$212,8,FALSE) -> 吉岡 保俊 | BD216: =VLOOKUP(BE213,結果入力表!$B$2:$J$212,3,FALSE) -> 森田由佳里 | BG216: 氏名 | BH216: =VLOOKUP(BE213,結果入力表!$B$2:$J$212,8,FALSE) -> 村上 泰辰
E217: 得点 | N217: 得点 | W217: 得点 | AF217: 得点 | AO217: 得点 | AX217: 得点 | BG217: 得点
E218: HR | N218: HR | W218: HR | AF218: HR | AO218: HR | AX218: HR | BG218: HR
F220: レフリー | O220: レフリー | X220: レフリー | AG220: レフリー | AP220: レフリー | AY220: レフリー | BH220: レフリー
B221: =★個人成績表★!$A$1 -> 第31回 京阪神和奈滋対抗戦 (奈良；玉出エース) | K221: =★個人成績表★!$A$1 -> 第31回 京阪神和奈滋対抗戦 (奈良；玉出エース) | T221: =★個人成績表★!$A$1 -> 第31回 京阪神和奈滋対抗戦 (奈良；玉出エース) | AC221: =★個人成績表★!$A$1 -> 第31回 京阪神和奈滋対抗戦 (奈良；玉出エース) | AL221: =★個人成績表★!$A$1 -> 第31回 京阪神和奈滋対抗戦 (奈良；玉出エース) | AU221: =★個人成績表★!$A$1 -> 第31回 京阪神和奈滋対抗戦 (奈良；玉出エース) | BD221: =★個人成績表★!$A$1 -> 第31回 京阪神和奈滋対抗戦 (奈良；玉出エース)
B223: G-No | C223: =BE213+1 -> 148 | F223: T-No | K223: G-No | L223: =C223+1 -> 149 | O223: T-No | T223: G-No | U223: =L223+1 -> 150 | X223: T-No | AC223: G-No | AD223: =U223+1 -> 151 | AG223: T-No | AL223: G-No | AM223: =AD223+1 -> 152 | AP223: T-No | AU223: G-No | AV223: =AM223+1 -> 153 | AY223: T-No | BD223: G-No | BE223: =AV223+1 -> 154 | BH223: T-No
B225: =VLOOKUP(C223,結果入力表!$B$2:$J$212,2,FALSE) -> WRC | E225: 所属 | F225: =VLOOKUP(C223,結果入力表!$B$2:$J$212,9,FALSE) -> HRC | K225: =VLOOKUP(L223,結果入力表!$B$2:$J$212,2,FALSE) -> WRC | N225: 所属 | O225: =VLOOKUP(L223,結果入力表!$B$2:$J$212,9,FALSE) -> HRC | T225: =VLOOKUP(U223,結果入力表!$B$2:$J$212,2,FALSE) -> WRC | W225: 所属 | X225: =VLOOKUP(U223,結果入力表!$B$2:$J$212,9,FALSE) -> HRC | AC225: =VLOOKUP(AD223,結果入力表!$B$2:$J$212,2,FALSE) -> WRC | AF225: 所属 | AG225: =VLOOKUP(AD223,結果入力表!$B$2:$J$212,9,FALSE) -> HRC | AL225: =VLOOKUP(AM223,結果入力表!$B$2:$J$212,2,FALSE) -> WRC | AO225: 所属 | AP225: =VLOOKUP(AM223,結果入力表!$B$2:$J$212,9,FALSE) -> HRC | AU225: =VLOOKUP(AV223,結果入力表!$B$2:$J$212,2,FALSE) -> WRC | AX225: 所属 | AY225: =VLOOKUP(AV223,結果入力表!$B$2:$J$212,9,FALSE) -> HRC | BD225: =VLOOKUP(BE223,結果入力表!$B$2:$J$212,2,FALSE) -> WRC | BG225: 所属 | BH225: =VLOOKUP(BE223,結果入力表!$B$2:$J$212,9,FALSE) -> HRC
B226: =VLOOKUP(C223,結果入力表!$B$2:$J$212,3,FALSE) -> 芝先 泰生 | E226: 氏名 | F226: =VLOOKUP(C223,結果入力表!$B$2:$J$212,8,FALSE) -> 堂園 雅也 | K226: =VLOOKUP(L223,結果入力表!$B$2:$J$212,3,FALSE) -> 松房ゆかり | N226: 氏名 | O226: =VLOOKUP(L223,結果入力表!$B$2:$J$212,8,FALSE) -> 宮本 一 | T226: =VLOOKUP(U223,結果入力表!$B$2:$J$212,3,FALSE) -> 末岡 修 | W226: 氏名 | X226: =VLOOKUP(U223,結果入力表!$B$2:$J$212,8,FALSE) -> 伊藤 登 | AC226: =VLOOKUP(AD223,結果入力表!$B$2:$J$212,3,FALSE) -> 和田宗一郎 | AF226: 氏名 | AG226: =VLOOKUP(AD223,結果入力表!$B$2:$J$212,8,FALSE) -> 宮井健太郎 | AL226: =VLOOKUP(AM223,結果入力表!$B$2:$J$212,3,FALSE) -> 杉本 博章 | AO226: 氏名 | AP226: =VLOOKUP(AM223,結果入力表!$B$2:$J$212,8,FALSE) -> 白澤雄一郎 | AU226: =VLOOKUP(AV223,結果入力表!$B$2:$J$212,3,FALSE) -> 中本 雅大 | AX226: 氏名 | AY226: =VLOOKUP(AV223,結果入力表!$B$2:$J$212,8,FALSE) -> 河地 恵里 | BD226: =VLOOKUP(BE223,結果入力表!$B$2:$J$212,3,FALSE) -> 山中 康介 | BG226: 氏名 | BH226: =VLOOKUP(BE223,結果入力表!$B$2:$J$212,8,FALSE) -> 鐵山 泰三
E227: 得点 | N227: 得点 | W227: 得点 | AF227: 得点 | AO227: 得点 | AX227: 得点 | BG227: 得点
E228: HR | N228: HR | W228: HR | AF228: HR | AO228: HR | AX228: HR | BG228: HR
F230: レフリー | O230: レフリー | X230: レフリー | AG230: レフリー | AP230: レフリー | AY230: レフリー | BH230: レフリー
B231: =★個人成績表★!$A$1 -> 第31回 京阪神和奈滋対抗戦 (奈良；玉出エース) | K231: =★個人成績表★!$A$1 -> 第31回 京阪神和奈滋対抗戦 (奈良；玉出エース) | T231: =★個人成績表★!$A$1 -> 第31回 京阪神和奈滋対抗戦 (奈良；玉出エース) | AC231: =★個人成績表★!$A$1 -> 第31回 京阪神和奈滋対抗戦 (奈良；玉出エース) | AL231: =★個人成績表★!$A$1 -> 第31回 京阪神和奈滋対抗戦 (奈良；玉出エース) | AU231: =★個人成績表★!$A$1 -> 第31回 京阪神和奈滋対抗戦 (奈良；玉出エース) | BD231: =★個人成績表★!$A$1 -> 第31回 京阪神和奈滋対抗戦 (奈良；玉出エース)
B233: G-No | C233: =BE223+1 -> 155 | F233: T-No | K233: G-No | L233: =C233+1 -> 156 | O233: T-No | T233: G-No | U233: =L233+1 -> 157 | X233: T-No | AC233: G-No | AD233: =U233+1 -> 158 | AG233: T-No | AL233: G-No | AM233: =AD233+1 -> 159 | AP233: T-No | AU233: G-No | AV233: =AM233+1 -> 160 | AY233: T-No | BD233: G-No | BE233: =AV233+1 -> 161 | BH233: T-No
B235: =VLOOKUP(C233,結果入力表!$B$2:$J$212,2,FALSE) -> ORC | E235: 所属 | F235: =VLOOKUP(C233,結果入力表!$B$2:$J$212,9,FALSE) -> SBC | K235: =VLOOKUP(L233,結果入力表!$B$2:$J$212,2,FALSE) -> ORC | N235: 所属 | O235: =VLOOKUP(L233,結果入力表!$B$2:$J$212,9,FALSE) -> SBC | T235: =VLOOKUP(U233,結果入力表!$B$2:$J$212,2,FALSE) -> ORC | W235: 所属 | X235: =VLOOKUP(U233,結果入力表!$B$2:$J$212,9,FALSE) -> SBC | AC235: =VLOOKUP(AD233,結果入力表!$B$2:$J$212,2,FALSE) -> ORC | AF235: 所属 | AG235: =VLOOKUP(AD233,結果入力表!$B$2:$J$212,9,FALSE) -> SBC | AL235: =VLOOKUP(AM233,結果入力表!$B$2:$J$212,2,FALSE) -> ORC | AO235: 所属 | AP235: =VLOOKUP(AM233,結果入力表!$B$2:$J$212,9,FALSE) -> SBC | AU235: =VLOOKUP(AV233,結果入力表!$B$2:$J$212,2,FALSE) -> ORC | AX235: 所属 | AY235: =VLOOKUP(AV233,結果入力表!$B$2:$J$212,9,FALSE) -> SBC | BD235: =VLOOKUP(BE233,結果入力表!$B$2:$J$212,2,FALSE) -> ORC | BG235: 所属 | BH235: =VLOOKUP(BE233,結果入力表!$B$2:$J$212,9,FALSE) -> SBC
B236: =VLOOKUP(C233,結果入力表!$B$2:$J$212,3,FALSE) -> 小原 嘉丈 | E236: 氏名 | F236: =VLOOKUP(C233,結果入力表!$B$2:$J$212,8,FALSE) -> 山中 康寛 | K236: =VLOOKUP(L233,結果入力表!$B$2:$J$212,3,FALSE) -> 乾 伸綱 | N236: 氏名 | O236: =VLOOKUP(L233,結果入力表!$B$2:$J$212,8,FALSE) -> 西峰 久祐 | T236: =VLOOKUP(U233,結果入力表!$B$2:$J$212,3,FALSE) -> 山崎真紀子 | W236: 氏名 | X236: =VLOOKUP(U233,結果入力表!$B$2:$J$212,8,FALSE) -> 大橋 正寛 | AC236: =VLOOKUP(AD233,結果入力表!$B$2:$J$212,3,FALSE) -> 松居 勝巳 | AF236: 氏名 | AG236: =VLOOKUP(AD233,結果入力表!$B$2:$J$212,8,FALSE) -> 秋田 倫央 | AL236: =VLOOKUP(AM233,結果入力表!$B$2:$J$212,3,FALSE) -> 藤明 宏樹 | AO236: 氏名 | AP236: =VLOOKUP(AM233,結果入力表!$B$2:$J$212,8,FALSE) -> 大橋 洋子 | AU236: =VLOOKUP(AV233,結果入力表!$B$2:$J$212,3,FALSE) -> 吉岡 保俊 | AX236: 氏名 | AY236: =VLOOKUP(AV233,結果入力表!$B$2:$J$212,8,FALSE) -> 林 秀忠 | BD236: =VLOOKUP(BE233,結果入力表!$B$2:$J$212,3,FALSE) -> 村上 泰辰 | BG236: 氏名 | BH236: =VLOOKUP(BE233,結果入力表!$B$2:$J$212,8,FALSE) -> 大橋 義治
E237: 得点 | N237: 得点 | W237: 得点 | AF237: 得点 | AO237: 得点 | AX237: 得点 | BG237: 得点
E238: HR | N238: HR | W238: HR | AF238: HR | AO238: HR | AX238: HR | BG238: HR
F240: レフリー | O240: レフリー | X240: レフリー | AG240: レフリー | AP240: レフリー | AY240: レフリー | BH240: レフリー
B241: =★個人成績表★!$A$1 -> 第31回 京阪神和奈滋対抗戦 (奈良；玉出エース) | K241: =★個人成績表★!$A$1 -> 第31回 京阪神和奈滋対抗戦 (奈良；玉出エース) | T241: =★個人成績表★!$A$1 -> 第31回 京阪神和奈滋対抗戦 (奈良；玉出エース) | AC241: =★個人成績表★!$A$1 -> 第31回 京阪神和奈滋対抗戦 (奈良；玉出エース) | AL241: =★個人成績表★!$A$1 -> 第31回 京阪神和奈滋対抗戦 (奈良；玉出エース) | AU241: =★個人成績表★!$A$1 -> 第31回 京阪神和奈滋対抗戦 (奈良；玉出エース) | BD241: =★個人成績表★!$A$1 -> 第31回 京阪神和奈滋対抗戦 (奈良；玉出エース)
B243: G-No | C243: =BE233+1 -> 162 | F243: T-No | K243: G-No | L243: =C243+1 -> 163 | O243: T-No | T243: G-No | U243: =L243+1 -> 164 | X243: T-No | AC243: G-No | AD243: =U243+1 -> 165 | AG243: T-No | AL243: G-No | AM243: =AD243+1 -> 166 | AP243: T-No | AU243: G-No | AV243: =AM243+1 -> 167 | AY243: T-No | BD243: G-No | BE243: =AV243+1 -> 168 | BH243: T-No
B245: =VLOOKUP(C243,結果入力表!$B$2:$J$212,2,FALSE) -> KRC | E245: 所属 | F245: =VLOOKUP(C243,結果入力表!$B$2:$J$212,9,FALSE) -> NRC | K245: =VLOOKUP(L243,結果入力表!$B$2:$J$212,2,FALSE) -> KRC | N245: 所属 | O245: =VLOOKUP(L243,結果入力表!$B$2:$J$212,9,FALSE) -> NRC | T245: =VLOOKUP(U243,結果入力表!$B$2:$J$212,2,FALSE) -> KRC | W245: 所属 | X245: =VLOOKUP(U243,結果入力表!$B$2:$J$212,9,FALSE) -> NRC | AC245: =VLOOKUP(AD243,結果入力表!$B$2:$J$212,2,FALSE) -> KRC | AF245: 所属 | AG245: =VLOOKUP(AD243,結果入力表!$B$2:$J$212,9,FALSE) -> NRC | AL245: =VLOOKUP(AM243,結果入力表!$B$2:$J$212,2,FALSE) -> KRC | AO245: 所属 | AP245: =VLOOKUP(AM243,結果入力表!$B$2:$J$212,9,FALSE) -> NRC | AU245: =VLOOKUP(AV243,結果入力表!$B$2:$J$212,2,FALSE) -> KRC | AX245: 所属 | AY245: =VLOOKUP(AV243,結果入力表!$B$2:$J$212,9,FALSE) -> NRC | BD245: =VLOOKUP(BE243,結果入力表!$B$2:$J$212,2,FALSE) -> KRC | BG245: 所属 | BH245: =VLOOKUP(BE243,結果入力表!$B$2:$J$212,9,FALSE) -> NRC
B246: =VLOOKUP(C243,結果入力表!$B$2:$J$212,3,FALSE) -> 松好 太一 | E246: 氏名 | F246: =VLOOKUP(C243,結果入力表!$B$2:$J$212,8,FALSE) -> 植田 慎也 | K246: =VLOOKUP(L243,結果入力表!$B$2:$J$212,3,FALSE) -> 清水 義晴 | N246: 氏名 | O246: =VLOOKUP(L243,結果入力表!$B$2:$J$212,8,FALSE) -> 近藤 拓馬 | T246: =VLOOKUP(U243,結果入力表!$B$2:$J$212,3,FALSE) -> 鈴木 康文 | W246: 氏名 | X246: =VLOOKUP(U243,結果入力表!$B$2:$J$212,8,FALSE) -> 長谷川 進 | AC246: =VLOOKUP(AD243,結果入力表!$B$2:$J$212,3,FALSE) -> 早川 徹 | AF246: 氏名 | AG246: =VLOOKUP(AD243,結果入力表!$B$2:$J$212,8,FALSE) -> 白戸 恭子 | AL246: =VLOOKUP(AM243,結果入力表!$B$2:$J$212,3,FALSE) -> 井関 一成 | AO246: 氏名 | AP246: =VLOOKUP(AM243,結果入力表!$B$2:$J$212,8,FALSE) -> 吉向 翔平 | AU246: =VLOOKUP(AV243,結果入力表!$B$2:$J$212,3,FALSE) -> 今村 哲也 | AX246: 氏名 | AY246: =VLOOKUP(AV243,結果入力表!$B$2:$J$212,8,FALSE) -> 岩本 剛 | BD246: =VLOOKUP(BE243,結果入力表!$B$2:$J$212,3,FALSE) -> 森田由佳里 | BG246: 氏名 | BH246: =VLOOKUP(BE243,結果入力表!$B$2:$J$212,8,FALSE) -> 白戸 玲人
E247: 得点 | N247: 得点 | W247: 得点 | AF247: 得点 | AO247: 得点 | AX247: 得点 | BG247: 得点
E248: HR | N248: HR | W248: HR | AF248: HR | AO248: HR | AX248: HR | BG248: HR
F250: レフリー | O250: レフリー | X250: レフリー | AG250: レフリー | AP250: レフリー | AY250: レフリー | BH250: レフリー
B251: =★個人成績表★!$A$1 -> 第31回 京阪神和奈滋対抗戦 (奈良；玉出エース) | K251: =★個人成績表★!$A$1 -> 第31回 京阪神和奈滋対抗戦 (奈良；玉出エース) | T251: =★個人成績表★!$A$1 -> 第31回 京阪神和奈滋対抗戦 (奈良；玉出エース) | AC251: =★個人成績表★!$A$1 -> 第31回 京阪神和奈滋対抗戦 (奈良；玉出エース) | AL251: =★個人成績表★!$A$1 -> 第31回 京阪神和奈滋対抗戦 (奈良；玉出エース) | AU251: =★個人成績表★!$A$1 -> 第31回 京阪神和奈滋対抗戦 (奈良；玉出エース) | BD251: =★個人成績表★!$A$1 -> 第31回 京阪神和奈滋対抗戦 (奈良；玉出エース)
B253: G-No | C253: =BE243+1 -> 169 | F253: T-No | K253: G-No | L253: =C253+1 -> 170 | O253: T-No | T253: G-No | U253: =L253+1 -> 171 | X253: T-No | AC253: G-No | AD253: =U253+1 -> 172 | AG253: T-No | AL253: G-No | AM253: =AD253+1 -> 173 | AP253: T-No | AU253: G-No | AV253: =AM253+1 -> 174 | AY253: T-No | BD253: G-No | BE253: =AV253+1 -> 175 | BH253: T-No
B255: =VLOOKUP(C253,結果入力表!$B$2:$J$212,2,FALSE) -> ORC | E255: 所属 | F255: =VLOOKUP(C253,結果入力表!$B$2:$J$212,9,FALSE) -> WRC | K255: =VLOOKUP(L253,結果入力表!$B$2:$J$212,2,FALSE) -> ORC | N255: 所属 | O255: =VLOOKUP(L253,結果入力表!$B$2:$J$212,9,FALSE) -> WRC | T255: =VLOOKUP(U253,結果入力表!$B$2:$J$212,2,FALSE) -> ORC | W255: 所属 | X255: =VLOOKUP(U253,結果入力表!$B$2:$J$212,9,FALSE) -> WRC | AC255: =VLOOKUP(AD253,結果入力表!$B$2:$J$212,2,FALSE) -> ORC | AF255: 所属 | AG255: =VLOOKUP(AD253,結果入力表!$B$2:$J$212,9,FALSE) -> WRC | AL255: =VLOOKUP(AM253,結果入力表!$B$2:$J$212,2,FALSE) -> ORC | AO255: 所属 | AP255: =VLOOKUP(AM253,結果入力表!$B$2:$J$212,9,FALSE) -> WRC | AU255: =VLOOKUP(AV253,結果入力表!$B$2:$J$212,2,FALSE) -> ORC | AX255: 所属 | AY255: =VLOOKUP(AV253,結果入力表!$B$2:$J$212,9,FALSE) -> WRC | BD255: =VLOOKUP(BE253,結果入力表!$B$2:$J$212,2,FALSE) -> ORC | BG255: 所属 | BH255: =VLOOKUP(BE253,結果入力表!$B$2:$J$212,9,FALSE) -> WRC
B256: =VLOOKUP(C253,結果入力表!$B$2:$J$212,3,FALSE) -> 小原 嘉丈 | E256: 氏名 | F256: =VLOOKUP(C253,結果入力表!$B$2:$J$212,8,FALSE) -> 芝先 泰生 | K256: =VLOOKUP(L253,結果入力表!$B$2:$J$212,3,FALSE) -> 乾 伸綱 | N256: 氏名 | O256: =VLOOKUP(L253,結果入力表!$B$2:$J$212,8,FALSE) -> 松房ゆかり | T256: =VLOOKUP(U253,結果入力表!$B$2:$J$212,3,FALSE) -> 山崎真紀子 | W256: 氏名 | X256: =VLOOKUP(U253,結果入力表!$B$2:$J$212,8,FALSE) -> 末岡 修 | AC256: =VLOOKUP(AD253,結果入力表!$B$2:$J$212,3,FALSE) -> 松居 勝巳 | AF256: 氏名 | AG256: =VLOOKUP(AD253,結果入力表!$B$2:$J$212,8,FALSE) -> 和田宗一郎 | AL256: =VLOOKUP(AM253,結果入力表!$B$2:$J$212,3,FALSE) -> 藤明 宏樹 | AO256: 氏名 | AP256: =VLOOKUP(AM253,結果入力表!$B$2:$J$212,8,FALSE) -> 杉本 博章 | AU256: =VLOOKUP(AV253,結果入力表!$B$2:$J$212,3,FALSE) -> 吉岡 保俊 | AX256: 氏名 | AY256: =VLOOKUP(AV253,結果入力表!$B$2:$J$212,8,FALSE) -> 中本 雅大 | BD256: =VLOOKUP(BE253,結果入力表!$B$2:$J$212,3,FALSE) -> 村上 泰辰 | BG256: 氏名 | BH256: =VLOOKUP(BE253,結果入力表!$B$2:$J$212,8,FALSE) -> 山中 康介
E257: 得点 | N257: 得点 | W257: 得点 | AF257: 得点 | AO257: 得点 | AX257: 得点 | BG257: 得点
E258: HR | N258: HR | W258: HR | AF258: HR | AO258: HR | AX258: HR | BG258: HR
F260: レフリー | O260: レフリー | X260: レフリー | AG260: レフリー | AP260: レフリー | AY260: レフリー | BH260: レフリー
B261: =★個人成績表★!$A$1 -> 第31回 京阪神和奈滋対抗戦 (奈良；玉出エース) | K261: =★個人成績表★!$A$1 -> 第31回 京阪神和奈滋対抗戦 (奈良；玉出エース) | T261: =★個人成績表★!$A$1 -> 第31回 京阪神和奈滋対抗戦 (奈良；玉出エース) | AC261: =★個人成績表★!$A$1 -> 第31回 京阪神和奈滋対抗戦 (奈良；玉出エース) | AL261: =★個人成績表★!$A$1 -> 第31回 京阪神和奈滋対抗戦 (奈良；玉出エース) | AU261: =★個人成績表★!$A$1 -> 第31回 京阪神和奈滋対抗戦 (奈良；玉出エース) | BD261: =★個人成績表★!$A$1 -> 第31回 京阪神和奈滋対抗戦 (奈良；玉出エース)
B263: G-No | C263: =BE253+1 -> 176 | F263: T-No | K263: G-No | L263: =C263+1 -> 177 | O263: T-No | T263: G-No | U263: =L263+1 -> 178 | X263: T-No | AC263: G-No | AD263: =U263+1 -> 179 | AG263: T-No | AL263: G-No | AM263: =AD263+1 -> 180 | AP263: T-No | AU263: G-No | AV263: =AM263+1 -> 181 | AY263: T-No | BD263: G-No | BE263: =AV263+1 -> 182 | BH263: T-No
B265: =VLOOKUP(C263,結果入力表!$B$2:$J$212,2,FALSE) -> NRC | E265: 所属 | F265: =VLOOKUP(C263,結果入力表!$B$2:$J$212,9,FALSE) -> HRC | K265: =VLOOKUP(L263,結果入力表!$B$2:$J$212,2,FALSE) -> NRC | N265: 所属 | O265: =VLOOKUP(L263,結果入力表!$B$2:$J$212,9,FALSE) -> HRC | T265: =VLOOKUP(U263,結果入力表!$B$2:$J$212,2,FALSE) -> NRC | W265: 所属 | X265: =VLOOKUP(U263,結果入力表!$B$2:$J$212,9,FALSE) -> HRC | AC265: =VLOOKUP(AD263,結果入力表!$B$2:$J$212,2,FALSE) -> NRC | AF265: 所属 | AG265: =VLOOKUP(AD263,結果入力表!$B$2:$J$212,9,FALSE) -> HRC | AL265: =VLOOKUP(AM263,結果入力表!$B$2:$J$212,2,FALSE) -> NRC | AO265: 所属 | AP265: =VLOOKUP(AM263,結果入力表!$B$2:$J$212,9,FALSE) -> HRC | AU265: =VLOOKUP(AV263,結果入力表!$B$2:$J$212,2,FALSE) -> NRC | AX265: 所属 | AY265: =VLOOKUP(AV263,結果入力表!$B$2:$J$212,9,FALSE) -> HRC | BD265: =VLOOKUP(BE263,結果入力表!$B$2:$J$212,2,FALSE) -> NRC | BG265: 所属 | BH265: =VLOOKUP(BE263,結果入力表!$B$2:$J$212,9,FALSE) -> HRC
B266: =VLOOKUP(C263,結果入力表!$B$2:$J$212,3,FALSE) -> 植田 慎也 | E266: 氏名 | F266: =VLOOKUP(C263,結果入力表!$B$2:$J$212,8,FALSE) -> 堂園 雅也 | K266: =VLOOKUP(L263,結果入力表!$B$2:$J$212,3,FALSE) -> 近藤 拓馬 | N266: 氏名 | O266: =VLOOKUP(L263,結果入力表!$B$2:$J$212,8,FALSE) -> 宮本 一 | T266: =VLOOKUP(U263,結果入力表!$B$2:$J$212,3,FALSE) -> 長谷川 進 | W266: 氏名 | X266: =VLOOKUP(U263,結果入力表!$B$2:$J$212,8,FALSE) -> 伊藤 登 | AC266: =VLOOKUP(AD263,結果入力表!$B$2:$J$212,3,FALSE) -> 白戸 恭子 | AF266: 氏名 | AG266: =VLOOKUP(AD263,結果入力表!$B$2:$J$212,8,FALSE) -> 宮井健太郎 | AL266: =VLOOKUP(AM263,結果入力表!$B$2:$J$212,3,FALSE) -> 吉向 翔平 | AO266: 氏名 | AP266: =VLOOKUP(AM263,結果入力表!$B$2:$J$212,8,FALSE) -> 白澤雄一郎 | AU266: =VLOOKUP(AV263,結果入力表!$B$2:$J$212,3,FALSE) -> 岩本 剛 | AX266: 氏名 | AY266: =VLOOKUP(AV263,結果入力表!$B$2:$J$212,8,FALSE) -> 河地 恵里 | BD266: =VLOOKUP(BE263,結果入力表!$B$2:$J$212,3,FALSE) -> 白戸 玲人 | BG266: 氏名 | BH266: =VLOOKUP(BE263,結果入力表!$B$2:$J$212,8,FALSE) -> 鐵山 泰三
E267: 得点 | N267: 得点 | W267: 得点 | AF267: 得点 | AO267: 得点 | AX267: 得点 | BG267: 得点
E268: HR | N268: HR | W268: HR | AF268: HR | AO268: HR | AX268: HR | BG268: HR
F270: レフリー | O270: レフリー | X270: レフリー | AG270: レフリー | AP270: レフリー | AY270: レフリー | BH270: レフリー
B271: =★個人成績表★!$A$1 -> 第31回 京阪神和奈滋対抗戦 (奈良；玉出エース) | K271: =★個人成績表★!$A$1 -> 第31回 京阪神和奈滋対抗戦 (奈良；玉出エース) | T271: =★個人成績表★!$A$1 -> 第31回 京阪神和奈滋対抗戦 (奈良；玉出エース) | AC271: =★個人成績表★!$A$1 -> 第31回 京阪神和奈滋対抗戦 (奈良；玉出エース) | AL271: =★個人成績表★!$A$1 -> 第31回 京阪神和奈滋対抗戦 (奈良；玉出エース) | AU271: =★個人成績表★!$A$1 -> 第31回 京阪神和奈滋対抗戦 (奈良；玉出エース) | BD271: =★個人成績表★!$A$1 -> 第31回 京阪神和奈滋対抗戦 (奈良；玉出エース)
B273: G-No | C273: =BE263+1 -> 183 | F273: T-No | K273: G-No | L273: =C273+1 -> 184 | O273: T-No | T273: G-No | U273: =L273+1 -> 185 | X273: T-No | AC273: G-No | AD273: =U273+1 -> 186 | AG273: T-No | AL273: G-No | AM273: =AD273+1 -> 187 | AP273: T-No | AU273: G-No | AV273: =AM273+1 -> 188 | AY273: T-No | BD273: G-No | BE273: =AV273+1 -> 189 | BH273: T-No
B275: =VLOOKUP(C273,結果入力表!$B$2:$J$212,2,FALSE) -> KRC | E275: 所属 | F275: =VLOOKUP(C273,結果入力表!$B$2:$J$212,9,FALSE) -> SBC | K275: =VLOOKUP(L273,結果入力表!$B$2:$J$212,2,FALSE) -> KRC | N275: 所属 | O275: =VLOOKUP(L273,結果入力表!$B$2:$J$212,9,FALSE) -> SBC | T275: =VLOOKUP(U273,結果入力表!$B$2:$J$212,2,FALSE) -> KRC | W275: 所属 | X275: =VLOOKUP(U273,結果入力表!$B$2:$J$212,9,FALSE) -> SBC | AC275: =VLOOKUP(AD273,結果入力表!$B$2:$J$212,2,FALSE) -> KRC | AF275: 所属 | AG275: =VLOOKUP(AD273,結果入力表!$B$2:$J$212,9,FALSE) -> SBC | AL275: =VLOOKUP(AM273,結果入力表!$B$2:$J$212,2,FALSE) -> KRC | AO275: 所属 | AP275: =VLOOKUP(AM273,結果入力表!$B$2:$J$212,9,FALSE) -> SBC | AU275: =VLOOKUP(AV273,結果入力表!$B$2:$J$212,2,FALSE) -> KRC | AX275: 所属 | AY275: =VLOOKUP(AV273,結果入力表!$B$2:$J$212,9,FALSE) -> SBC | BD275: =VLOOKUP(BE273,結果入力表!$B$2:$J$212,2,FALSE) -> KRC | BG275: 所属 | BH275: =VLOOKUP(BE273,結果入力表!$B$2:$J$212,9,FALSE) -> SBC
B276: =VLOOKUP(C273,結果入力表!$B$2:$J$212,3,FALSE) -> 松好 太一 | E276: 氏名 | F276: =VLOOKUP(C273,結果入力表!$B$2:$J$212,8,FALSE) -> 山中 康寛 | K276: =VLOOKUP(L273,結果入力表!$B$2:$J$212,3,FALSE) -> 清水 義晴 | N276: 氏名 | O276: =VLOOKUP(L273,結果入力表!$B$2:$J$212,8,FALSE) -> 西峰 久祐 | T276: =VLOOKUP(U273,結果入力表!$B$2:$J$212,3,FALSE) -> 鈴木 康文 | W276: 氏名 | X276: =VLOOKUP(U273,結果入力表!$B$2:$J$212,8,FALSE) -> 大橋 正寛 | AC276: =VLOOKUP(AD273,結果入力表!$B$2:$J$212,3,FALSE) -> 早川 徹 | AF276: 氏名 | AG276: =VLOOKUP(AD273,結果入力表!$B$2:$J$212,8,FALSE) -> 秋田 倫央 | AL276: =VLOOKUP(AM273,結果入力表!$B$2:$J$212,3,FALSE) -> 井関 一成 | AO276: 氏名 | AP276: =VLOOKUP(AM273,結果入力表!$B$2:$J$212,8,FALSE) -> 大橋 洋子 | AU276: =VLOOKUP(AV273,結果入力表!$B$2:$J$212,3,FALSE) -> 今村 哲也 | AX276: 氏名 | AY276: =VLOOKUP(AV273,結果入力表!$B$2:$J$212,8,FALSE) -> 林 秀忠 | BD276: =VLOOKUP(BE273,結果入力表!$B$2:$J$212,3,FALSE) -> 森田由佳里 | BG276: 氏名 | BH276: =VLOOKUP(BE273,結果入力表!$B$2:$J$212,8,FALSE) -> 大橋 義治
E277: 得点 | N277: 得点 | W277: 得点 | AF277: 得点 | AO277: 得点 | AX277: 得点 | BG277: 得点
E278: HR | N278: HR | W278: HR | AF278: HR | AO278: HR | AX278: HR | BG278: HR
F280: レフリー | O280: レフリー | X280: レフリー | AG280: レフリー | AP280: レフリー | AY280: レフリー | BH280: レフリー
B281: =★個人成績表★!$A$1 -> 第31回 京阪神和奈滋対抗戦 (奈良；玉出エース) | K281: =★個人成績表★!$A$1 -> 第31回 京阪神和奈滋対抗戦 (奈良；玉出エース) | T281: =★個人成績表★!$A$1 -> 第31回 京阪神和奈滋対抗戦 (奈良；玉出エース) | AC281: =★個人成績表★!$A$1 -> 第31回 京阪神和奈滋対抗戦 (奈良；玉出エース) | AL281: =★個人成績表★!$A$1 -> 第31回 京阪神和奈滋対抗戦 (奈良；玉出エース) | AU281: =★個人成績表★!$A$1 -> 第31回 京阪神和奈滋対抗戦 (奈良；玉出エース) | BD281: =★個人成績表★!$A$1 -> 第31回 京阪神和奈滋対抗戦 (奈良；玉出エース)
B283: G-No | C283: =BE273+1 -> 190 | F283: T-No | K283: G-No | L283: =C283+1 -> 191 | O283: T-No | T283: G-No | U283: =L283+1 -> 192 | X283: T-No | AC283: G-No | AD283: =U283+1 -> 193 | AG283: T-No | AL283: G-No | AM283: =AD283+1 -> 194 | AP283: T-No | AU283: G-No | AV283: =AM283+1 -> 195 | AY283: T-No | BD283: G-No | BE283: =AV283+1 -> 196 | BH283: T-No
B285: =VLOOKUP(C283,結果入力表!$B$2:$J$212,2,FALSE) -> NRC | E285: 所属 | F285: =VLOOKUP(C283,結果入力表!$B$2:$J$212,9,FALSE) -> ORC | K285: =VLOOKUP(L283,結果入力表!$B$2:$J$212,2,FALSE) -> NRC | N285: 所属 | O285: =VLOOKUP(L283,結果入力表!$B$2:$J$212,9,FALSE) -> ORC | T285: =VLOOKUP(U283,結果入力表!$B$2:$J$212,2,FALSE) -> NRC | W285: 所属 | X285: =VLOOKUP(U283,結果入力表!$B$2:$J$212,9,FALSE) -> ORC | AC285: =VLOOKUP(AD283,結果入力表!$B$2:$J$212,2,FALSE) -> NRC | AF285: 所属 | AG285: =VLOOKUP(AD283,結果入力表!$B$2:$J$212,9,FALSE) -> ORC | AL285: =VLOOKUP(AM283,結果入力表!$B$2:$J$212,2,FALSE) -> NRC | AO285: 所属 | AP285: =VLOOKUP(AM283,結果入力表!$B$2:$J$212,9,FALSE) -> ORC | AU285: =VLOOKUP(AV283,結果入力表!$B$2:$J$212,2,FALSE) -> NRC | AX285: 所属 | AY285: =VLOOKUP(AV283,結果入力表!$B$2:$J$212,9,FALSE) -> ORC | BD285: =VLOOKUP(BE283,結果入力表!$B$2:$J$212,2,FALSE) -> NRC | BG285: 所属 | BH285: =VLOOKUP(BE283,結果入力表!$B$2:$J$212,9,FALSE) -> ORC
B286: =VLOOKUP(C283,結果入力表!$B$2:$J$212,3,FALSE) -> 植田 慎也 | E286: 氏名 | F286: =VLOOKUP(C283,結果入力表!$B$2:$J$212,8,FALSE) -> 小原 嘉丈 | K286: =VLOOKUP(L283,結果入力表!$B$2:$J$212,3,FALSE) -> 近藤 拓馬 | N286: 氏名 | O286: =VLOOKUP(L283,結果入力表!$B$2:$J$212,8,FALSE) -> 乾 伸綱 | T286: =VLOOKUP(U283,結果入力表!$B$2:$J$212,3,FALSE) -> 長谷川 進 | W286: 氏名 | X286: =VLOOKUP(U283,結果入力表!$B$2:$J$212,8,FALSE) -> 山崎真紀子 | AC286: =VLOOKUP(AD283,結果入力表!$B$2:$J$212,3,FALSE) -> 白戸 恭子 | AF286: 氏名 | AG286: =VLOOKUP(AD283,結果入力表!$B$2:$J$212,8,FALSE) -> 松居 勝巳 | AL286: =VLOOKUP(AM283,結果入力表!$B$2:$J$212,3,FALSE) -> 吉向 翔平 | AO286: 氏名 | AP286: =VLOOKUP(AM283,結果入力表!$B$2:$J$212,8,FALSE) -> 藤明 宏樹 | AU286: =VLOOKUP(AV283,結果入力表!$B$2:$J$212,3,FALSE) -> 岩本 剛 | AX286: 氏名 | AY286: =VLOOKUP(AV283,結果入力表!$B$2:$J$212,8,FALSE) -> 吉岡 保俊 | BD286: =VLOOKUP(BE283,結果入力表!$B$2:$J$212,3,FALSE) -> 白戸 玲人 | BG286: 氏名 | BH286: =VLOOKUP(BE283,結果入力表!$B$2:$J$212,8,FALSE) -> 村上 泰辰
... 17 more rows

Sheet ★個人成績表★
A1: =登録!E1&登録!F1&登録!G1&" "&登録!I1&登録!M1&" "&"("&登録!I5&"；"&登録!E5&")" -> 第31回 京阪神和奈滋対抗戦 (奈良；玉出エース)
D3: 1st Section | I3: 2nd Section | N3: RESULT | T3: R | U3: MAX | X3: 途中経過
A4: =IF(登録!B17="","",登録!B17) -> KRC | B4: Player＼VS | C4: 持点 | D4: =登録!BI3 -> WRC | E4: =登録!BJ3 -> ORC | F4: =登録!BK3 -> NRC | G4: =登録!BL3 -> SBC | H4: =登録!BM3 -> HRC | I4: =D4 -> WRC | J4: =E4 -> ORC | K4: =F4 -> NRC | L4: =G4 -> SBC | M4: =H4 -> HRC | N4: W | O4: L | P4: TP | Q4: (TP) | R4: TP | T4: K | U4: HR | W4: Player | X4: W | Y4: L | Z4: TP | AA4: R_P
B5: =IF(登録!AG2=0,"",登録!AG2) -> 松好 太一 | C5: =登録!F17 -> 120 | D5: =IF(結果入力表!F16="","",結果入力表!F16) -> w | E5: =IF(結果入力表!F37="","",結果入力表!F37) -> 105 | F5: =IF(結果入力表!F58="","",結果入力表!F58) -> 83 | G5: =IF(結果入力表!F79="","",結果入力表!F79) -> 83 | H5: =IF(結果入力表!F100="","",結果入力表!F100) -> w | I5: =IF(結果入力表!F121="","",結果入力表!F121) -> 97 | J5: =IF(結果入力表!F142="","",結果入力表!F142) -> 57 | K5: =IF(結果入力表!F163="","",結果入力表!F163) -> w | L5: =IF(結果入力表!F184="","",結果入力表!F184) -> w | M5: =IF(結果入力表!F205="","",結果入力表!F205) -> w | N5: =IF(COUNTBLANK(D5:M5)=10,"",COUNTIF(D5:M5,"w")) -> 5 | O5: =IF(COUNTBLANK(D5:M5)=10,"",10-COUNTBLANK(D5:M5)-N5) -> 5 | P5: =IF(N5="","",N5*C5+SUM(D5:M5)) -> 1025 | Q5: =IF(N5="","",IF(C5=登録!$I$8,P5,N5*登録!$I$8+SUM(D5:M5)/★個人成績表★!C5*登録!$I$8)) -> 1025 | R5: =IF(P5=Q5,"","*") ->  | S5: =IF(COUNTBLANK(D5:M5)=10,"",Q5) -> 1025 | T5: =IF(COUNTBLANK(D5:M5)=10,"",RANK(AA5,$AA5:$AA11)) -> 3 | U5: =IF(★対戦リーグ表★!BS6=0,"",★対戦リーグ表★!BS6) ->  | W5: =B5 -> 松好 太一 | X5: =N5 -> 5 | Y5: =O5 -> 5 | Z5: =Q5 -> 1025 | AA5: =X5*1000000+Z5 -> 5001025
B6: =IF(登録!AG3=0,"",登録!AG3) -> 清水 義晴 | C6: =登録!I17 -> 120 | D6: =IF(結果入力表!F17="","",結果入力表!F17) -> w | E6: =IF(結果入力表!F38="","",結果入力表!F38) -> w | F6: =IF(結果入力表!F59="","",結果入力表!F59) -> 58 | G6: =IF(結果入力表!F80="","",結果入力表!F80) -> 22 | H6: =IF(結果入力表!F101="","",結果入力表!F101) -> w | I6: =IF(結果入力表!F122="","",結果入力表!F122) -> 5 | J6: =IF(結果入力表!F143="","",結果入力表!F143) -> 108 | K6: =IF(結果入力表!F164="","",結果入力表!F164) -> w | L6: =IF(結果入力表!F185="","",結果入力表!F185) -> w | M6: =IF(結果入力表!F206="","",結果入力表!F206) -> 117 | N6: =IF(COUNTBLANK(D6:M6)=10,"",COUNTIF(D6:M6,"w")) -> 5 | O6: =IF(COUNTBLANK(D6:M6)=10,"",10-COUNTBLANK(D6:M6)-N6) -> 5 | P6: =IF(N6="","",N6*C6+SUM(D6:M6)) -> 910 | Q6: =IF(N6="","",IF(C6=登録!$I$8,P6,N6*登録!$I$8+SUM(D6:M6)/★個人成績表★!C6*登録!$I$8)) -> 910 | R6: =IF(P6=Q6,"","*") ->  | S6: =IF(COUNTBLANK(D6:M6)=10,"",Q6) -> 910 | T6: =IF(COUNTBLANK(D6:M6)=10,"",RANK(AA6,$AA5:$AA11)) -> 4 | U6: =IF(★対戦リーグ表★!BS7=0,"",★対戦リーグ表★!BS7) ->  | W6: =B6 -> 清水 義晴 | X6: =N6 -> 5 | Y6: =O6 -> 5 | Z6: =Q6 -> 910 | AA6: =X6*1000000+Z6 -> 5000910
B7: =IF(登録!AG4=0,"",登録!AG4) -> 鈴木 康文 | C7: =登録!L17 -> 120 | D7: =IF(結果入力表!F18="","",結果入力表!F18) -> w | E7: =IF(結果入力表!F39="","",結果入力表!F39) -> w | F7: =IF(結果入力表!F60="","",結果入力表!F60) -> w | G7: =IF(結果入力表!F81="","",結果入力表!F81) -> w | H7: =IF(結果入力表!F102="","",結果入力表!F102) -> 2 | I7: =IF(結果入力表!F123="","",結果入力表!F123) -> w | J7: =IF(結果入力表!F144="","",結果入力表!F144) -> w | K7: =IF(結果入力表!F165="","",結果入力表!F165) -> 119 | L7: =IF(結果入力表!F186="","",結果入力表!F186) -> w | M7: =IF(結果入力表!F207="","",結果入力表!F207) -> 53 | N7: 7 | O7: 3 | P7: 1014 | Q7: =IF(N7="","",IF(C7=登録!$I$8,P7,N7*登録!$I$8+SUM(D7:M7)/★個人成績表★!C7*登録!$I$8)) -> 1014 | S7: 1014 | T7: =IF(COUNTBLANK(D7:M7)=10,"",RANK(AA7,$AA5:$AA11)) -> 2 | U7: =IF(★対戦リーグ表★!BS8=0,"",★対戦リーグ表★!BS8) -> 107 | W7: 鈴木 康文 | X7: 7 | Y7: 3 | Z7: 1014 | AA7: 7001014
B8: =IF(登録!AG5=0,"",登録!AG5) -> 早川 徹 | C8: =登録!O17 -> 120 | D8: =IF(結果入力表!F19="","",結果入力表!F19) -> w | E8: =IF(結果入力表!F40="","",結果入力表!F40) -> w | F8: =IF(結果入力表!F61="","",結果入力表!F61) -> w | G8: =IF(結果入力表!F82="","",結果入力表!F82) -> w | H8: =IF(結果入力表!F103="","",結果入力表!F103) -> w | I8: =IF(結果入力表!F124="","",結果入力表!F124) -> w | J8: =IF(結果入力表!F145="","",結果入力表!F145) -> 38 | K8: =IF(結果入力表!F166="","",結果入力表!F166) -> w | L8: =IF(結果入力表!F187="","",結果入力表!F187) -> w | M8: =IF(結果入力表!F208="","",結果入力表!F208) -> w | N8: 9 | O8: 1 | P8: 1118 | Q8: =IF(N8="","",IF(C8=登録!$I$8,P8,N8*登録!$I$8+SUM(D8:M8)/★個人成績表★!C8*登録!$I$8)) -> 1118 | S8: 1118 | T8: =IF(COUNTBLANK(D8:M8)=10,"",RANK(AA8,$AA5:$AA11)) -> 1 | U8: =IF(★対戦リーグ表★!BS9=0,"",★対戦リーグ表★!BS9) ->  | W8: 早川 徹 | X8: 9 | Y8: 1 | Z8: 1118 | AA8: 9001118
B9: =IF(登録!AG6=0,"",登録!AG6) -> 井関 一成 | C9: =登録!R17 -> 120 | D9: =IF(結果入力表!F20="","",結果入力表!F20) -> 96 | E9: =IF(結果入力表!F41="","",結果入力表!F41) -> w | F9: =IF(結果入力表!F62="","",結果入力表!F62) -> 102 | G9: =IF(結果入力表!F83="","",結果入力表!F83) -> 50 | H9: =IF(結果入力表!F104="","",結果入力表!F104) -> w | I9: =IF(結果入力表!F125="","",結果入力表!F125) -> 119 | J9: =IF(結果入力表!F146="","",結果入力表!F146) -> 63 | K9: =IF(結果入力表!F167="","",結果入力表!F167) -> 76 | L9: =IF(結果入力表!F188="","",結果入力表!F188) -> w | M9: =IF(結果入力表!F209="","",結果入力表!F209) -> 99 | N9: 3 | O9: 7 | P9: 965 | Q9: =IF(N9="","",IF(C9=登録!$I$8,P9,N9*登録!$I$8+SUM(D9:M9)/★個人成績表★!C9*登録!$I$8)) -> 965 | S9: 965 | T9: =IF(COUNTBLANK(D9:M9)=10,"",RANK(AA9,$AA5:$AA11)) -> 7 | U9: =IF(★対戦リーグ表★!BS10=0,"",★対戦リーグ表★!BS10) ->  | W9: 井関 一成 | X9: 3 | Y9: 7 | Z9: 965 | AA9: 3000965
B10: =IF(登録!AG7=0,"",登録!AG7) -> 今村 哲也 | C10: =登録!U17 -> 120 | D10: =IF(結果入力表!F21="","",結果入力表!F21) -> 20 | E10: =IF(結果入力表!F42="","",結果入力表!F42) -> 75 | F10: =IF(結果入力表!F63="","",結果入力表!F63) -> 4 | G10: =IF(結果入力表!F84="","",結果入力表!F84) -> w | H10: =IF(結果入力表!F105="","",結果入力表!F105) -> w | I10: =IF(結果入力表!F126="","",結果入力表!F126) -> 91 | J10: =IF(結果入力表!F147="","",結果入力表!F147) -> 44 | K10: =IF(結果入力表!F168="","",結果入力表!F168) -> w | L10: =IF(結果入力表!F189="","",結果入力表!F189) -> w | M10: =IF(結果入力表!F210="","",結果入力表!F210) -> 87 | N10: 4 | O10: 6 | P10: 801 | Q10: =IF(N10="","",IF(C10=登録!$I$8,P10,N10*登録!$I$8+SUM(D10:M10)/★個人成績表★!C10*登録!$I$8)) -> 801 | S10: 801 | T10: =IF(COUNTBLANK(D10:M10)=10,"",RANK(AA10,$AA5:$AA11)) -> 5 | U10: =IF(★対戦リーグ表★!BS11=0,"",★対戦リーグ表★!BS11) ->  | W10: 今村 哲也 | X10: 4 | Y10: 6 | Z10: 801 | AA10: 4000801
B11: =IF(登録!AG8=0,"",登録!AG8) -> 森田由佳里 | C11: =登録!X17 -> 100 | D11: =IF(結果入力表!F22="","",結果入力表!F22) -> 2 | E11: =IF(結果入力表!F43="","",結果入力表!F43) -> 92 | F11: =IF(結果入力表!F64="","",結果入力表!F64) -> 36 | G11: =IF(結果入力表!F85="","",結果入力表!F85) -> w | H11: =IF(結果入力表!F106="","",結果入力表!F106) -> w | I11: =IF(結果入力表!F127="","",結果入力表!F127) -> w | J11: =IF(結果入力表!F148="","",結果入力表!F148) -> 35 | K11: =IF(結果入力表!F169="","",結果入力表!F169) -> 31 | L11: =IF(結果入力表!F190="","",結果入力表!F190) -> w | M11: =IF(結果入力表!F211="","",結果入力表!F211) -> 19 | N11: 4 | O11: 6 | P11: 615 | Q11: =IF(N11="","",IF(C11=登録!$I$8,P11,N11*登録!$I$8+SUM(D11:M11)/★個人成績表★!C11*登録!$I$8)) -> 738 | R11: * | S11: 738 | T11: =IF(COUNTBLANK(D11:M11)=10,"",RANK(AA11,$AA5:$AA11)) -> 6 | U11: =IF(★対戦リーグ表★!BS12=0,"",★対戦リーグ表★!BS12) ->  | W11: 森田由佳里 | X11: 4 | Y11: 6 | Z11: 738 | AA11: 4000738 | AC11: MVP
B12: Total | N12: =IF(COUNTBLANK(N5:N11)=7,"",SUM(N5:N11)) -> 37 | O12: =IF(COUNTBLANK(O5:O11)=7,"",SUM(O5:O11)) -> 33 | P12: =IF(COUNTBLANK(P5:P11)=7,"",SUM(P5:P11)) -> 6448 | Q12: =IF(COUNTBLANK(Q5:Q11)=7,"",SUM(Q5:Q11)) -> 6571 | R12: * | S12: =IF(COUNTBLANK(S5:S11)=7,"",IF(Q12=P12,P12,Q12)) -> 6571 | X12: 37 | Y12: 33 | Z12: 6571 | AA12: 37006571 | AC12: 1 | AD12: =VLOOKUP($AC12,$AC15:$AI20,2,FALSE) -> KRC | AE12: =VLOOKUP($AC12,$AC15:$AI20,3,FALSE) -> 早川 徹 | AF12: =VLOOKUP($AC12,$AC15:$AI20,4,FALSE) -> 9 | AG12: =VLOOKUP($AC12,$AC15:$AI20,5,FALSE) -> 1 | AH12: =VLOOKUP($AC12,$AC15:$AI20,6,FALSE) -> 1118 | AI12: =VLOOKUP($AC12,$AC15:$AI20,7,FALSE) -> 9001118 | AJ12: =AE12&"("&AD12&") "&AF12&"勝"&AG12&"敗" -> 早川 徹(KRC) 9勝1敗
A13: =IF(登録!B18="","",登録!B18) -> HRC | B13: =B4 -> Player＼VS | C13: =C4 -> 持点 | D13: =登録!BI4 -> ORC | E13: =登録!BJ4 -> SBC | F13: =登録!BK4 -> WRC | G13: =登録!BL4 -> NRC | H13: =登録!BM4 -> KRC | I13: =D13 -> ORC | J13: =E13 -> SBC | K13: =F13 -> WRC | L13: =G13 -> NRC | M13: =H13 -> KRC | N13: W | O13: L | P13: TP | Q13: (TP) | R13: TP | T13: R | U13: HR | W13: Player | X13: W | Y13: L | Z13: TP | AA13: R_P | AC13: VP
B14: =IF(登録!AG11=0,"",登録!AG11) -> 鐵山 泰三 | C14: =登録!F18 -> 120 | D14: =IF(結果入力表!F9="","",結果入力表!F9) -> w | E14: =IF(結果入力表!F23="","",結果入力表!F23) -> w | F14: =IF(結果入力表!G44="","",結果入力表!G44) -> 13 | G14: =IF(結果入力表!G72="","",結果入力表!G72) -> w | H14: =IF(結果入力表!G100="","",結果入力表!G100) -> 100 | I14: =IF(結果入力表!F120="","",結果入力表!F120) -> 75 | J14: =IF(結果入力表!F134="","",結果入力表!F134) -> 33 | K14: =IF(結果入力表!G155="","",結果入力表!G155) -> 114 | L14: =IF(結果入力表!G183="","",結果入力表!G183) -> w | M14: =IF(結果入力表!G211="","",結果入力表!G211) -> w | N14: =IF(COUNTBLANK(D14:M14)=10,"",COUNTIF(D14:M14,"w")) -> 5 | O14: =IF(COUNTBLANK(D14:M14)=10,"",10-COUNTBLANK(D14:M14)-N14) -> 5 | P14: =IF(N14="","",N14*C14+SUM(D14:M14)) -> 935 | Q14: =IF(N14="","",IF(C14=登録!$I$8,P14,N14*登録!$I$8+SUM(D14:M14)/★個人成績表★!C14*登録!$I$8)) -> 935 | R14: =IF(P14=Q14,"","*") ->  | S14: =IF(COUNTBLANK(D14:M14)=10,"",Q14) -> 935 | T14: =IF(COUNTBLANK(D14:M14)=10,"",RANK(AA14,$AA14:$AA20)) -> 4 | U14: =IF(★対戦リーグ表★!BS15=0,"",★対戦リーグ表★!BS15) -> 128 | W14: =B14 -> 鐵山 泰三 | X14: =N14 -> 5 | Y14: 5 | Z14: =Q14 -> 935 | AA14: =X14*1000000+Z14 -> 5000935 | AC14: VP_R | AD14: Team | AE14: Player | AF14: W | AG14: L | AH14: TP | AI14: R_P
B15: =IF(登録!AG12=0,"",登録!AG12) -> 堂園 雅也 | C15: =登録!I18 -> 120 | D15: =IF(結果入力表!F10="","",結果入力表!F10) -> w | E15: =IF(結果入力表!F24="","",結果入力表!F24) -> w | F15: =IF(結果入力表!G45="","",結果入力表!G45) -> 8 | G15: =IF(結果入力表!G73="","",結果入力表!G73) -> w | H15: =IF(結果入力表!G101="","",結果入力表!G101) -> 114 | I15: =IF(結果入力表!F114="","",結果入力表!F114) -> 114 | J15: =IF(結果入力表!F128="","",結果入力表!F128) -> w | K15: =IF(結果入力表!G149="","",結果入力表!G149) -> w | L15: =IF(結果入力表!G177="","",結果入力表!G177) -> w | M15: =IF(結果入力表!G205="","",結果入力表!G205) -> 41 | N15: =IF(COUNTBLANK(D15:M15)=10,"",COUNTIF(D15:M15,"w")) -> 6 | O15: =IF(COUNTBLANK(D15:M15)=10,"",10-COUNTBLANK(D15:M15)-N15) -> 4 | P15: =IF(N15="","",N15*C15+SUM(D15:M15)) -> 997 | Q15: =IF(N15="","",IF(C15=登録!$I$8,P15,N15*登録!$I$8+SUM(D15:M15)/★個人成績表★!C15*登録!$I$8)) -> 997 | S15: 997 | T15: =IF(COUNTBLANK(D15:M15)=10,"",RANK(AA15,$AA14:$AA20)) -> 2 | U15: =IF(★対戦リーグ表★!BS16=0,"",★対戦リーグ表★!BS16) -> 104 | W15: 堂園 雅也 | X15: 6 | Y15: 4 | Z15: 997 | AA15: =X15*1000000+Z15 -> 6000997 | AC15: =RANK(AI15,$AI$15:$AI$20) -> 1 | AD15: =A4 -> KRC | AE15: =VLOOKUP(1,$T5:$AA11,4,FALSE) -> 早川 徹 | AF15: =VLOOKUP(1,$T5:$AA11,5,FALSE) -> 9 | AG15: =VLOOKUP(1,$T5:$AA11,6,FALSE) -> 1 | AH15: =VLOOKUP(1,$T5:$AA11,7,FALSE) -> 1118 | AI15: =VLOOKUP(1,$T5:$AA11,8,FALSE) -> 9001118 | AJ15: =AE15&"("&AD15&") "&AF15&"勝"&AG15&"敗" -> 早川 徹(KRC) 9勝1敗
B16: =IF(登録!AG13=0,"",登録!AG13) -> 宮本 一 | C16: =登録!L18 -> 120 | D16: =IF(結果入力表!F11="","",結果入力表!F11) -> w | E16: =IF(結果入力表!F25="","",結果入力表!F25) -> 91 | F16: =IF(結果入力表!G46="","",結果入力表!G46) -> 115 | G16: =IF(結果入力表!G74="","",結果入力表!G74) -> w | H16: =IF(結果入力表!G102="","",結果入力表!G102) -> w | I16: =IF(結果入力表!F115="","",結果入力表!F115) -> w | J16: =IF(結果入力表!F129="","",結果入力表!F129) -> 76 | K16: =IF(結果入力表!G150="","",結果入力表!G150) -> w | L16: =IF(結果入力表!G178="","",結果入力表!G178) -> w | M16: =IF(結果入力表!G206="","",結果入力表!G206) -> w | N16: 7 | O16: 3 | P16: 1122 | Q16: =IF(N16="","",IF(C16=登録!$I$8,P16,N16*登録!$I$8+SUM(D16:M16)/★個人成績表★!C16*登録!$I$8)) -> 1122 | S16: 1122 | T16: =IF(COUNTBLANK(D16:M16)=10,"",RANK(AA16,$AA14:$AA20)) -> 1 | U16: =IF(★対戦リーグ表★!BS17=0,"",★対戦リーグ表★!BS17) -> B120 | W16: 宮本 一 | X16: 7 | Y16: 3 | Z16: 1122 | AA16: 7001122 | AC16: 3 | AD16: =A13 -> HRC | AE16: =VLOOKUP(1,$T14:$AA20,4,FALSE) -> 宮本 一 | AF16: =VLOOKUP(1,$T14:$AA20,5,FALSE) -> 7 | AG16: =VLOOKUP(1,$T14:$AA20,6,FALSE) -> 3 | AH16: =VLOOKUP(1,$T14:$AA20,7,FALSE) -> 1122 | AI16: =VLOOKUP(1,$T14:$AA20,8,FALSE) -> 7001122 | AJ16: 宮本 一(HRC) 7勝3敗
B17: =IF(登録!AG14=0,"",登録!AG14) -> 伊藤 登 | C17: =登録!O18 -> 120 | D17: =IF(結果入力表!F12="","",結果入力表!F12) -> 88 | E17: =IF(結果入力表!F26="","",結果入力表!F26) -> w | F17: =IF(結果入力表!G47="","",結果入力表!G47) -> 6 | G17: =IF(結果入力表!G75="","",結果入力表!G75) -> w | H17: =IF(結果入力表!G103="","",結果入力表!G103) -> 100 | I17: =IF(結果入力表!F116="","",結果入力表!F116) -> w | J17: =IF(結果入力表!F130="","",結果入力表!F130) -> 72 | K17: =IF(結果入力表!G151="","",結果入力表!G151) -> 42 | L17: =IF(結果入力表!G179="","",結果入力表!G179) -> w | M17: =IF(結果入力表!G207="","",結果入力表!G207) -> w | N17: 5 | O17: 5 | P17: 908 | Q17: =IF(N17="","",IF(C17=登録!$I$8,P17,N17*登録!$I$8+SUM(D17:M17)/★個人成績表★!C17*登録!$I$8)) -> 908 | S17: 908 | T17: =IF(COUNTBLANK(D17:M17)=10,"",RANK(AA17,$AA14:$AA20)) -> 5 | U17: =IF(★対戦リーグ表★!BS18=0,"",★対戦リーグ表★!BS18) ->  | W17: 伊藤 登 | X17: 5 | Y17: 5 | Z17: 908 | AA17: 5000908 | AC17: 4 | AD17: =A22 -> SBC | AE17: =VLOOKUP(1,$T23:$AA29,4,FALSE) -> 林 秀忠 | AF17: =VLOOKUP(1,$T23:$AA29,5,FALSE) -> 7 | AG17: =VLOOKUP(1,$T23:$AA29,6,FALSE) -> 3 | AH17: =VLOOKUP(1,$T23:$AA29,7,FALSE) -> 1011 | AI17: =VLOOKUP(1,$T23:$AA29,8,FALSE) -> 7001011 | AJ17: 林 秀忠(SBC) 7勝3敗
B18: =IF(登録!AG15=0,"",登録!AG15) -> 宮井健太郎 | C18: =登録!R18 -> 120 | D18: =IF(結果入力表!F13="","",結果入力表!F13) -> 7 | E18: =IF(結果入力表!F27="","",結果入力表!F27) -> 48 | F18: =IF(結果入力表!G48="","",結果入力表!G48) -> 26 | G18: =IF(結果入力表!G76="","",結果入力表!G76) -> w | H18: =IF(結果入力表!G104="","",結果入力表!G104) -> 25 | I18: =IF(結果入力表!F117="","",結果入力表!F117) -> 32 | J18: =IF(結果入力表!F131="","",結果入力表!F131) -> 107 | K18: =IF(結果入力表!G152="","",結果入力表!G152) -> w | L18: =IF(結果入力表!G180="","",結果入力表!G180) -> 92 | M18: =IF(結果入力表!G208="","",結果入力表!G208) -> 45 | N18: 2 | O18: 8 | P18: 622 | Q18: =IF(N18="","",IF(C18=登録!$I$8,P18,N18*登録!$I$8+SUM(D18:M18)/★個人成績表★!C18*登録!$I$8)) -> 622 | S18: 622 | T18: =IF(COUNTBLANK(D18:M18)=10,"",RANK(AA18,$AA14:$AA20)) -> 7 | U18: =IF(★対戦リーグ表★!BS19=0,"",★対戦リーグ表★!BS19) ->  | W18: 宮井健太郎 | X18: 2 | Y18: 8 | Z18: 622 | AA18: 2000622 | AC18: 6 | AD18: =A31 -> NRC | AE18: =VLOOKUP(1,$T32:$AA38,4,FALSE) -> 白戸 恭子 | AF18: =VLOOKUP(1,$T32:$AA38,5,FALSE) -> 6 | AG18: =VLOOKUP(1,$T32:$AA38,6,FALSE) -> 4 | AH18: =VLOOKUP(1,$T32:$AA38,7,FALSE) -> 925.2 | AI18: =VLOOKUP(1,$T32:$AA38,8,FALSE) -> 6000925.2 | AJ18: 白戸 恭子(NRC) 6勝4敗
B19: =IF(登録!AG16=0,"",登録!AG16) -> 白澤雄一郎 | C19: =登録!U18 -> 120 | D19: =IF(結果入力表!F14="","",結果入力表!F14) -> 18 | E19: =IF(結果入力表!F28="","",結果入力表!F28) -> 13 | F19: =IF(結果入力表!G49="","",結果入力表!G49) -> w | G19: =IF(結果入力表!G77="","",結果入力表!G77) -> w | H19: =IF(結果入力表!G105="","",結果入力表!G105) -> 20 | I19: =IF(結果入力表!F118="","",結果入力表!F118) -> 72 | J19: =IF(結果入力表!F132="","",結果入力表!F132) -> w | K19: =IF(結果入力表!G153="","",結果入力表!G153) -> 0 | L19: =IF(結果入力表!G181="","",結果入力表!G181) -> w | M19: =IF(結果入力表!G209="","",結果入力表!G209) -> w | N19: 5 | O19: 5 | P19: 723 | Q19: =IF(N19="","",IF(C19=登録!$I$8,P19,N19*登録!$I$8+SUM(D19:M19)/★個人成績表★!C19*登録!$I$8)) -> 723 | S19: 723 | T19: =IF(COUNTBLANK(D19:M19)=10,"",RANK(AA19,$AA14:$AA20)) -> 6 | U19: =IF(★対戦リーグ表★!BS20=0,"",★対戦リーグ表★!BS20) -> 107 | W19: 白澤雄一郎 | X19: 5 | Y19: 5 | Z19: 723 | AA19: 5000723 | AC19: 2 | AD19: =A40 -> ORC | AE19: =VLOOKUP(1,$T41:$AA47,4,FALSE) -> 乾 伸綱 | AF19: =VLOOKUP(1,$T41:$AA47,5,FALSE) -> 8 | AG19: =VLOOKUP(1,$T41:$AA47,6,FALSE) -> 2 | AH19: =VLOOKUP(1,$T41:$AA47,7,FALSE) -> 1160 | AI19: =VLOOKUP(1,$T41:$AA47,8,FALSE) -> 8001160 | AJ19: 乾 伸綱(ORC) 8勝2敗
B20: =IF(登録!AG17=0,"",登録!AG17) -> 河地 恵里 | C20: =登録!X18 -> 100 | D20: =IF(結果入力表!F15="","",結果入力表!F15) -> 26 | E20: =IF(結果入力表!F29="","",結果入力表!F29) -> w | F20: =IF(結果入力表!G50="","",結果入力表!G50) -> w | G20: =IF(結果入力表!G78="","",結果入力表!G78) -> w | H20: =IF(結果入力表!G106="","",結果入力表!G106) -> 15 | I20: =IF(結果入力表!F119="","",結果入力表!F119) -> 22 | J20: =IF(結果入力表!F133="","",結果入力表!F133) -> 30 | K20: =IF(結果入力表!G154="","",結果入力表!G154) -> w | L20: =IF(結果入力表!G182="","",結果入力表!G182) -> w | M20: =IF(結果入力表!G210="","",結果入力表!G210) -> w | N20: 6 | O20: 4 | P20: 693 | Q20: =IF(N20="","",IF(C20=登録!$I$8,P20,N20*登録!$I$8+SUM(D20:M20)/★個人成績表★!C20*登録!$I$8)) -> 831.6 | R20: * | S20: 831.6 | T20: =IF(COUNTBLANK(D20:M20)=10,"",RANK(AA20,$AA14:$AA20)) -> 3 | U20: =IF(★対戦リーグ表★!BS21=0,"",★対戦リーグ表★!BS21) ->  | W20: 河地 恵里 | X20: 6 | Y20: 4 | Z20: 831.6 | AA20: 6000831.6 | AC20: 5 | AD20: =A49 -> WRC | AE20: =VLOOKUP(1,$T50:$AA56,4,FALSE) -> 山中 康介 | AF20: =IF(AD20="","",VLOOKUP(1,$T50:$AA56,5,FALSE)) -> 7 | AG20: =IF(AD20="","",VLOOKUP(1,$T50:$AA56,6,FALSE)) -> 3 | AH20: =IF(AD20="","",VLOOKUP(1,$T50:$AA56,7,FALSE)) -> 974 | AI20: =IF(AD20="","",VLOOKUP(1,$T50:$AA56,8,FALSE)) -> 7000974 | AJ20: 山中 康介(WRC) 7勝3敗
B21: Total | N21: =IF(COUNTBLANK(N14:N20)=7,"",SUM(N14:N20)) -> 36 | O21: =IF(COUNTBLANK(O14:O20)=7,"",SUM(O14:O20)) -> 34 | P21: =IF(COUNTBLANK(P14:P20)=7,"",SUM(P14:P20)) -> 6000 | Q21: =IF(COUNTBLANK(Q14:Q20)=7,"",SUM(Q14:Q20)) -> 6138.6 | R21: * | S21: =IF(COUNTBLANK(S14:S20)=7,"",IF(Q21=P21,P21,Q21)) -> 6138.6 | X21: 36 | Y21: 34 | Z21: 6138.6 | AA21: 36006138.6 | AC21: HR
A22: =IF(登録!B19="","",登録!B19) -> SBC | B22: =B4 -> Player＼VS | C22: =C4 -> 持点 | D22: =登録!BI5 -> NRC | E22: =登録!BJ5 -> HRC | F22: =登録!BK5 -> ORC | G22: =登録!BL5 -> KRC | H22: =登録!BM5 -> WRC | I22: =D22 -> NRC | J22: =E22 -> HRC | K22: =F22 -> ORC | L22: =G22 -> KRC | M22: =H22 -> WRC | N22: W | O22: L | P22: TP | Q22: (TP) | R22: TP | T22: R | U22: HR | W22: Player | X22: W | Y22: L | Z22: TP | AA22: R_P
B23: =IF(登録!AG20=0,"",登録!AG20) -> 林 秀忠 | C23: =登録!F19 -> 120 | D23: =IF(結果入力表!F2="","",結果入力表!F2) -> w | E23: =IF(結果入力表!G23="","",結果入力表!G23) -> 31 | F23: =IF(結果入力表!G51="","",結果入力表!G51) -> w | G23: =IF(結果入力表!G79="","",結果入力表!G79) -> w | H23: =IF(結果入力表!F93="","",結果入力表!F93) -> w | I23: =IF(結果入力表!F112="","",結果入力表!F112) -> w | J23: =IF(結果入力表!G133="","",結果入力表!G133) -> w | K23: =IF(結果入力表!G161="","",結果入力表!G161) -> 55 | L23: =IF(結果入力表!G189="","",結果入力表!G189) -> 85 | M23: =IF(結果入力表!F203="","",結果入力表!F203) -> w | N23: =IF(COUNTBLANK(D23:M23)=10,"",COUNTIF(D23:M23,"w")) -> 7 | O23: =IF(COUNTBLANK(D23:M23)=10,"",10-COUNTBLANK(D23:M23)-N23) -> 3 | P23: =IF(N23="","",N23*C23+SUM(D23:M23)) -> 1011 | Q23: =IF(N23="","",IF(C23=登録!$I$8,P23,N23*登録!$I$8+SUM(D23:M23)/★個人成績表★!C23*登録!$I$8)) -> 1011 | R23: =IF(P23=Q23,"","*") ->  | S23: =IF(COUNTBLANK(D23:M23)=10,"",Q23) -> 1011 | T23: =IF(COUNTBLANK(D23:M23)=10,"",RANK(AA23,$AA23:$AA29)) -> 1 | U23: =IF(★対戦リーグ表★!BS24=0,"",★対戦リーグ表★!BS24) -> A120 | W23: =B23 -> 林 秀忠 | X23: =N23 -> 7 | Y23: 3 | Z23: =Q23 -> 1011 | AA23: =X23*1000000+Z23 -> 7001011
B24: =IF(登録!AG21=0,"",登録!AG21) -> 大橋 義治 | C24: =登録!I19 -> 120 | D24: =IF(結果入力表!F3="","",結果入力表!F3) -> w | E24: =IF(結果入力表!G24="","",結果入力表!G24) -> 61 | F24: =IF(結果入力表!G52="","",結果入力表!G52) -> w | G24: =IF(結果入力表!G80="","",結果入力表!G80) -> w | H24: =IF(結果入力表!F94="","",結果入力表!F94) -> w | I24: =IF(結果入力表!F113="","",結果入力表!F113) -> 101 | J24: =IF(結果入力表!G134="","",結果入力表!G134) -> w | K24: =IF(結果入力表!G162="","",結果入力表!G162) -> 82 | L24: =IF(結果入力表!G190="","",結果入力表!G190) -> 84 | M24: =IF(結果入力表!F204="","",結果入力表!F204) -> w | N24: =IF(COUNTBLANK(D24:M24)=10,"",COUNTIF(D24:M24,"w")) -> 6 | O24: =IF(COUNTBLANK(D24:M24)=10,"",10-COUNTBLANK(D24:M24)-N24) -> 4 | P24: =IF(N24="","",N24*C24+SUM(D24:M24)) -> 1048 | Q24: =IF(N24="","",IF(C24=登録!$I$8,P24,N24*登録!$I$8+SUM(D24:M24)/★個人成績表★!C24*登録!$I$8)) -> 1048 | S24: 1048 | T24: =IF(COUNTBLANK(D24:M24)=10,"",RANK(AA24,$AA23:$AA29)) -> 3 | U24: =IF(★対戦リーグ表★!BS25=0,"",★対戦リーグ表★!BS25) ->  | W24: 大橋 義治 | X24: 6 | Y24: 4 | Z24: 1048 | AA24: 6001048
B25: =IF(登録!AG22=0,"",登録!AG22) -> 山中 康寛 | C25: =登録!L19 -> 120 | D25: =IF(結果入力表!F4="","",結果入力表!F4) -> 0 | E25: =IF(結果入力表!G25="","",結果入力表!G25) -> w | F25: =IF(結果入力表!G53="","",結果入力表!G53) -> 63 | G25: =IF(結果入力表!G81="","",結果入力表!G81) -> 51 | H25: =IF(結果入力表!F95="","",結果入力表!F95) -> w | I25: =IF(結果入力表!F107="","",結果入力表!F107) -> w | J25: =IF(結果入力表!G128="","",結果入力表!G128) -> 0 | K25: =IF(結果入力表!G156="","",結果入力表!G156) -> 90 | L25: =IF(結果入力表!G184="","",結果入力表!G184) -> 71 | M25: =IF(結果入力表!F198="","",結果入力表!F198) -> w | N25: 4 | O25: 6 | P25: 755 | Q25: =IF(N25="","",IF(C25=登録!$I$8,P25,N25*登録!$I$8+SUM(D25:M25)/★個人成績表★!C25*登録!$I$8)) -> 755 | S25: 755 | T25: =IF(COUNTBLANK(D25:M25)=10,"",RANK(AA25,$AA23:$AA29)) -> 5 | U25: =IF(★対戦リーグ表★!BS26=0,"",★対戦リーグ表★!BS26) ->  | W25: 山中 康寛 | X25: 4 | Y25: 6 | Z25: 755 | AA25: 4000755
B26: =IF(登録!AG23=0,"",登録!AG23) -> 西峰 久祐 | C26: =登録!O19 -> 120 | D26: =IF(結果入力表!F5="","",結果入力表!F5) -> w | E26: =IF(結果入力表!G26="","",結果入力表!G26) -> 61 | F26: =IF(結果入力表!G54="","",結果入力表!G54) -> 3 | G26: =IF(結果入力表!G82="","",結果入力表!G82) -> 57 | H26: =IF(結果入力表!F96="","",結果入力表!F96) -> 28 | I26: =IF(結果入力表!F108="","",結果入力表!F108) -> w | J26: =IF(結果入力表!G129="","",結果入力表!G129) -> w | K26: =IF(結果入力表!G157="","",結果入力表!G157) -> w | L26: =IF(結果入力表!G185="","",結果入力表!G185) -> 116 | M26: =IF(結果入力表!F199="","",結果入力表!F199) -> 81 | N26: 4 | O26: 6 | P26: 826 | Q26: =IF(N26="","",IF(C26=登録!$I$8,P26,N26*登録!$I$8+SUM(D26:M26)/★個人成績表★!C26*登録!$I$8)) -> 826 | S26: 826 | T26: =IF(COUNTBLANK(D26:M26)=10,"",RANK(AA26,$AA23:$AA29)) -> 4 | U26: =IF(★対戦リーグ表★!BS27=0,"",★対戦リーグ表★!BS27) -> 101 | W26: 西峰 久祐 | X26: 4 | Y26: 6 | Z26: 826 | AA26: 4000826
B27: =IF(登録!AG24=0,"",登録!AG24) -> 大橋 正寛 | C27: =登録!R19 -> 120 | D27: =IF(結果入力表!F6="","",結果入力表!F6) -> w | E27: =IF(結果入力表!G27="","",結果入力表!G27) -> w | F27: =IF(結果入力表!G55="","",結果入力表!G55) -> 20 | G27: =IF(結果入力表!G83="","",結果入力表!G83) -> w | H27: =IF(結果入力表!F97="","",結果入力表!F97) -> 39 | I27: =IF(結果入力表!F109="","",結果入力表!F109) -> w | J27: =IF(結果入力表!G130="","",結果入力表!G130) -> w | K27: =IF(結果入力表!G158="","",結果入力表!G158) -> w | L27: =IF(結果入力表!G186="","",結果入力表!G186) -> 44 | M27: =IF(結果入力表!F200="","",結果入力表!F200) -> w | N27: 7 | O27: 3 | P27: 943 | Q27: =IF(N27="","",IF(C27=登録!$I$8,P27,N27*登録!$I$8+SUM(D27:M27)/★個人成績表★!C27*登録!$I$8)) -> 943 | S27: 943 | T27: =IF(COUNTBLANK(D27:M27)=10,"",RANK(AA27,$AA23:$AA29)) -> 2 | U27: =IF(★対戦リーグ表★!BS28=0,"",★対戦リーグ表★!BS28) -> A120 | W27: 大橋 正寛 | X27: 7 | Y27: 3 | Z27: 943 | AA27: 7000943
B28: =IF(登録!AG25=0,"",登録!AG25) -> 秋田 倫央 | C28: =登録!U19 -> 120 | D28: =IF(結果入力表!F7="","",結果入力表!F7) -> 98 | E28: =IF(結果入力表!G28="","",結果入力表!G28) -> w | F28: =IF(結果入力表!G56="","",結果入力表!G56) -> 28 | G28: =IF(結果入力表!G84="","",結果入力表!G84) -> 24 | H28: =IF(結果入力表!F98="","",結果入力表!F98) -> w | I28: =IF(結果入力表!F110="","",結果入力表!F110) -> 46 | J28: =IF(結果入力表!G131="","",結果入力表!G131) -> w | K28: =IF(結果入力表!G159="","",結果入力表!G159) -> 109 | L28: =IF(結果入力表!G187="","",結果入力表!G187) -> 11 | M28: =IF(結果入力表!F201="","",結果入力表!F201) -> 31 | N28: 3 | O28: 7 | P28: 707 | Q28: =IF(N28="","",IF(C28=登録!$I$8,P28,N28*登録!$I$8+SUM(D28:M28)/★個人成績表★!C28*登録!$I$8)) -> 707 | S28: 707 | T28: =IF(COUNTBLANK(D28:M28)=10,"",RANK(AA28,$AA23:$AA29)) -> 6 | U28: =IF(★対戦リーグ表★!BS29=0,"",★対戦リーグ表★!BS29) ->  | W28: 秋田 倫央 | X28: 3 | Y28: 7 | Z28: 707 | AA28: 3000707
B29: =IF(登録!AG26=0,"",登録!AG26) -> 大橋 洋子 | C29: =登録!X19 -> 100 | D29: =IF(結果入力表!F8="","",結果入力表!F8) -> 64 | E29: =IF(結果入力表!G29="","",結果入力表!G29) -> 6 | F29: =IF(結果入力表!G57="","",結果入力表!G57) -> w | G29: =IF(結果入力表!G85="","",結果入力表!G85) -> 1 | H29: =IF(結果入力表!F99="","",結果入力表!F99) -> 27 | I29: =IF(結果入力表!F111="","",結果入力表!F111) -> 32 | J29: =IF(結果入力表!G132="","",結果入力表!G132) -> 3 | K29: =IF(結果入力表!G160="","",結果入力表!G160) -> 16 | L29: =IF(結果入力表!G188="","",結果入力表!G188) -> 23 | M29: =IF(結果入力表!F202="","",結果入力表!F202) -> 70 | N29: 1 | O29: 9 | P29: 342 | Q29: =IF(N29="","",IF(C29=登録!$I$8,P29,N29*登録!$I$8+SUM(D29:M29)/★個人成績表★!C29*登録!$I$8)) -> 410.4 | R29: * | S29: 410.4 | T29: =IF(COUNTBLANK(D29:M29)=10,"",RANK(AA29,$AA23:$AA29)) -> 7 | U29: =IF(★対戦リーグ表★!BS30=0,"",★対戦リーグ表★!BS30) ->  | W29: 大橋 洋子 | X29: 1 | Y29: 9 | Z29: 410.4 | AA29: 1000410.4
B30: Total | N30: =IF(COUNTBLANK(N23:N29)=7,"",SUM(N23:N29)) -> 32 | O30: =IF(COUNTBLANK(O23:O29)=7,"",SUM(O23:O29)) -> 38 | P30: =IF(COUNTBLANK(P23:P29)=7,"",SUM(P23:P29)) -> 5632 | Q30: =IF(COUNTBLANK(Q23:Q29)=7,"",SUM(Q23:Q29)) -> 5700.4 | R30: * | S30: =IF(COUNTBLANK(S23:S29)=7,"",IF(Q30=P30,P30,Q30)) -> 5700.4 | X30: 32 | Y30: 38 | Z30: 5700.4 | AA30: 32005700.4
A31: =IF(登録!B20="","",登録!B20) -> NRC | B31: =B22 -> Player＼VS | C31: =C22 -> 持点 | D31: =登録!BI6 -> SBC | E31: =登録!BJ6 -> WRC | F31: =登録!BK6 -> KRC | G31: =登録!BL6 -> HRC | H31: =登録!BM6 -> ORC | I31: =D31 -> SBC | J31: =E31 -> WRC | K31: =F31 -> KRC | L31: =G31 -> HRC | M31: =H31 -> ORC | N31: W | O31: L | P31: TP | Q31: (TP) | R31: TP | T31: R | U31: HR | W31: Player | X31: W | Y31: L | Z31: TP | AA31: R_P
B32: =IF(登録!AG29=0,"",登録!AG29) -> 吉向 翔平 | C32: =登録!F20 -> 120 | D32: =IF(結果入力表!G2="","",結果入力表!G2) -> 55 | E32: =IF(結果入力表!G30="","",結果入力表!G30) -> 25 | F32: =IF(結果入力表!G58="","",結果入力表!G58) -> w | G32: =IF(結果入力表!F72="","",結果入力表!F72) -> 56 | H32: =IF(結果入力表!F86="","",結果入力表!F86) -> 63 | I32: =IF(結果入力表!G111="","",結果入力表!G111) -> w | J32: =IF(結果入力表!G139="","",結果入力表!G139) -> w | K32: =IF(結果入力表!G167="","",結果入力表!G167) -> w | L32: =IF(結果入力表!F181="","",結果入力表!F181) -> 26 | M32: =IF(結果入力表!F195="","",結果入力表!F195) -> w | N32: =IF(COUNTBLANK(D32:M32)=10,"",COUNTIF(D32:M32,"w")) -> 5 | O32: =IF(COUNTBLANK(D32:M32)=10,"",10-COUNTBLANK(D32:M32)-N32) -> 5 | P32: =IF(N32="","",N32*C32+SUM(D32:M32)) -> 825 | Q32: =IF(N32="","",IF(C32=登録!$I$8,P32,N32*登録!$I$8+SUM(D32:M32)/★個人成績表★!C32*登録!$I$8)) -> 825 | R32: =IF(P32=Q32,"","*") ->  | S32: =IF(COUNTBLANK(D32:M32)=10,"",Q32) -> 825 | T32: =IF(COUNTBLANK(D32:M32)=10,"",RANK(AA32,$AA32:$AA38)) -> 4 | U32: =IF(★対戦リーグ表★!BS33=0,"",★対戦リーグ表★!BS33) ->  | W32: =B32 -> 吉向 翔平 | X32: =N32 -> 5 | Y32: 5 | Z32: =Q32 -> 825 | AA32: =X32*1000000+Z32 -> 5000825
B33: =IF(登録!AG30=0,"",登録!AG30) -> 岩本 剛 | C33: =登録!I20 -> 120 | D33: =IF(結果入力表!G3="","",結果入力表!G3) -> 112 | E33: =IF(結果入力表!G31="","",結果入力表!G31) -> w | F33: =IF(結果入力表!G59="","",結果入力表!G59) -> w | G33: =IF(結果入力表!F73="","",結果入力表!F73) -> 45 | H33: =IF(結果入力表!F87="","",結果入力表!F87) -> w | I33: =IF(結果入力表!G112="","",結果入力表!G112) -> 47 | J33: =IF(結果入力表!G140="","",結果入力表!G140) -> w | K33: =IF(結果入力表!G168="","",結果入力表!G168) -> 53 | L33: =IF(結果入力表!F182="","",結果入力表!F182) -> 79 | M33: =IF(結果入力表!F196="","",結果入力表!F196) -> w | N33: =IF(COUNTBLANK(D33:M33)=10,"",COUNTIF(D33:M33,"w")) -> 5 | O33: =IF(COUNTBLANK(D33:M33)=10,"",10-COUNTBLANK(D33:M33)-N33) -> 5 | P33: =IF(N33="","",N33*C33+SUM(D33:M33)) -> 936 | Q33: =IF(N33="","",IF(C33=登録!$I$8,P33,N33*登録!$I$8+SUM(D33:M33)/★個人成績表★!C33*登録!$I$8)) -> 936 | S33: 936 | T33: =IF(COUNTBLANK(D33:M33)=10,"",RANK(AA33,$AA32:$AA38)) -> 3 | U33: =IF(★対戦リーグ表★!BS34=0,"",★対戦リーグ表★!BS34) ->  | W33: 岩本 剛 | X33: 5 | Y33: 5 | Z33: 936 | AA33: 5000936
B34: =IF(登録!AG31=0,"",登録!AG31) -> 白戸 玲人 | C34: =登録!L20 -> 120 | D34: =IF(結果入力表!G4="","",結果入力表!G4) -> w | E34: =IF(結果入力表!G32="","",結果入力表!G32) -> w | F34: =IF(結果入力表!G60="","",結果入力表!G60) -> 113 | G34: =IF(結果入力表!F74="","",結果入力表!F74) -> 0 | H34: =IF(結果入力表!F88="","",結果入力表!F88) -> 79 | I34: =IF(結果入力表!G113="","",結果入力表!G113) -> w | J34: =IF(結果入力表!G141="","",結果入力表!G141) -> w | K34: =IF(結果入力表!G169="","",結果入力表!G169) -> w | L34: =IF(結果入力表!F183="","",結果入力表!F183) -> 0 | M34: =IF(結果入力表!F197="","",結果入力表!F197) -> w | N34: 6 | O34: 4 | P34: 912 | Q34: =IF(N34="","",IF(C34=登録!$I$8,P34,N34*登録!$I$8+SUM(D34:M34)/★個人成績表★!C34*登録!$I$8)) -> 912 | S34: 912 | T34: =IF(COUNTBLANK(D34:M34)=10,"",RANK(AA34,$AA32:$AA38)) -> 2 | U34: =IF(★対戦リーグ表★!BS35=0,"",★対戦リーグ表★!BS35) -> 107 | W34: 白戸 玲人 | X34: 6 | Y34: 4 | Z34: 912 | AA34: 6000912
B35: =IF(登録!AG32=0,"",登録!AG32) -> 植田 慎也 | C35: =登録!O20 -> 120 | D35: =IF(結果入力表!G5="","",結果入力表!G5) -> 72 | E35: =IF(結果入力表!G33="","",結果入力表!G33) -> 76 | F35: =IF(結果入力表!G61="","",結果入力表!G61) -> 86 | G35: =IF(結果入力表!F75="","",結果入力表!F75) -> 34 | H35: =IF(結果入力表!F89="","",結果入力表!F89) -> 106 | I35: =IF(結果入力表!G107="","",結果入力表!G107) -> 17 | J35: =IF(結果入力表!G135="","",結果入力表!G135) -> w | K35: =IF(結果入力表!G163="","",結果入力表!G163) -> 24 | L35: =IF(結果入力表!F177="","",結果入力表!F177) -> 29 | M35: =IF(結果入力表!F191="","",結果入力表!F191) -> 118 | N35: 1 | O35: 9 | P35: 682 | Q35: =IF(N35="","",IF(C35=登録!$I$8,P35,N35*登録!$I$8+SUM(D35:M35)/★個人成績表★!C35*登録!$I$8)) -> 682 | S35: 682 | T35: =IF(COUNTBLANK(D35:M35)=10,"",RANK(AA35,$AA32:$AA38)) -> 6 | U35: =IF(★対戦リーグ表★!BS36=0,"",★対戦リーグ表★!BS36) -> 106 | W35: 植田 慎也 | X35: 1 | Y35: 9 | Z35: 682 | AA35: 1000682
B36: =IF(登録!AG33=0,"",登録!AG33) -> 近藤 拓馬 | C36: =登録!R20 -> 120 | D36: =IF(結果入力表!G6="","",結果入力表!G6) -> 19 | E36: =IF(結果入力表!G34="","",結果入力表!G34) -> 57 | F36: =IF(結果入力表!G62="","",結果入力表!G62) -> w | G36: =IF(結果入力表!F76="","",結果入力表!F76) -> 21 | H36: =IF(結果入力表!F90="","",結果入力表!F90) -> 1 | I36: =IF(結果入力表!G108="","",結果入力表!G108) -> 17 | J36: =IF(結果入力表!G136="","",結果入力表!G136) -> 81 | K36: =IF(結果入力表!G164="","",結果入力表!G164) -> 8 | L36: =IF(結果入力表!F178="","",結果入力表!F178) -> 0 | M36: =IF(結果入力表!F192="","",結果入力表!F192) -> 33 | N36: 1 | O36: 9 | P36: 357 | Q36: =IF(N36="","",IF(C36=登録!$I$8,P36,N36*登録!$I$8+SUM(D36:M36)/★個人成績表★!C36*登録!$I$8)) -> 357 | S36: 357 | T36: =IF(COUNTBLANK(D36:M36)=10,"",RANK(AA36,$AA32:$AA38)) -> 7 | U36: =IF(★対戦リーグ表★!BS37=0,"",★対戦リーグ表★!BS37) ->  | W36: 近藤 拓馬 | X36: 1 | Y36: 9 | Z36: 357 | AA36: 1000357
B37: =IF(登録!AG34=0,"",登録!AG34) -> 長谷川 進 | C37: =登録!U20 -> 120 | D37: =IF(結果入力表!G7="","",結果入力表!G7) -> w | E37: =IF(結果入力表!G35="","",結果入力表!G35) -> 0 | F37: =IF(結果入力表!G63="","",結果入力表!G63) -> w | G37: =IF(結果入力表!F77="","",結果入力表!F77) -> 21 | H37: =IF(結果入力表!F91="","",結果入力表!F91) -> 23 | I37: =IF(結果入力表!G109="","",結果入力表!G109) -> 0 | J37: =IF(結果入力表!G137="","",結果入力表!G137) -> 13 | K37: =IF(結果入力表!G165="","",結果入力表!G165) -> w | L37: =IF(結果入力表!F179="","",結果入力表!F179) -> 32 | M37: =IF(結果入力表!F193="","",結果入力表!F193) -> 55 | N37: 3 | O37: 7 | P37: 504 | Q37: =IF(N37="","",IF(C37=登録!$I$8,P37,N37*登録!$I$8+SUM(D37:M37)/★個人成績表★!C37*登録!$I$8)) -> 504 | S37: 504 | T37: =IF(COUNTBLANK(D37:M37)=10,"",RANK(AA37,$AA32:$AA38)) -> 5 | U37: =IF(★対戦リーグ表★!BS38=0,"",★対戦リーグ表★!BS38) ->  | W37: 長谷川 進 | X37: 3 | Y37: 7 | Z37: 504 | AA37: 3000504
B38: =IF(登録!AG35=0,"",登録!AG35) -> 白戸 恭子 | C38: =登録!X20 -> 100 | D38: =IF(結果入力表!G8="","",結果入力表!G8) -> w | E38: =IF(結果入力表!G36="","",結果入力表!G36) -> 39 | F38: =IF(結果入力表!G64="","",結果入力表!G64) -> w | G38: =IF(結果入力表!F78="","",結果入力表!F78) -> 41 | H38: =IF(結果入力表!F92="","",結果入力表!F92) -> w | I38: =IF(結果入力表!G110="","",結果入力表!G110) -> w | J38: =IF(結果入力表!G138="","",結果入力表!G138) -> w | K38: =IF(結果入力表!G166="","",結果入力表!G166) -> 66 | L38: =IF(結果入力表!F180="","",結果入力表!F180) -> w | M38: =IF(結果入力表!F194="","",結果入力表!F194) -> 25 | N38: 6 | O38: 4 | P38: 771 | Q38: =IF(N38="","",IF(C38=登録!$I$8,P38,N38*登録!$I$8+SUM(D38:M38)/★個人成績表★!C38*登録!$I$8)) -> 925.2 | R38: * | S38: 925.2 | T38: =IF(COUNTBLANK(D38:M38)=10,"",RANK(AA38,$AA32:$AA38)) -> 1 | U38: =IF(★対戦リーグ表★!BS39=0,"",★対戦リーグ表★!BS39) -> A120 | W38: 白戸 恭子 | X38: 6 | Y38: 4 | Z38: 925.2 | AA38: 6000925.2
B39: Total | N39: =IF(COUNTBLANK(N32:N38)=7,"",SUM(N32:N38)) -> 27 | O39: =IF(COUNTBLANK(O32:O38)=7,"",SUM(O32:O38)) -> 43 | P39: =IF(COUNTBLANK(P32:P38)=7,"",SUM(P32:P38)) -> 4987 | Q39: =IF(COUNTBLANK(Q32:Q38)=7,"",SUM(Q32:Q38)) -> 5141.2 | R39: * | S39: =IF(COUNTBLANK(S32:S38)=7,"",IF(Q39=P39,P39,Q39)) -> 5141.2 | X39: 27 | Y39: 43 | Z39: 5141.2 | AA39: 27005141.2
A40: =IF(登録!B21="","",登録!B21) -> ORC | B40: =B22 -> Player＼VS | C40: =C22 -> 持点 | D40: =登録!BI7 -> HRC | E40: =登録!BJ7 -> KRC | F40: =登録!BK7 -> SBC | G40: =登録!BL7 -> WRC | H40: =登録!BM7 -> NRC | I40: =D40 -> HRC | J40: =E40 -> KRC | K40: =F40 -> SBC | L40: =G40 -> WRC | M40: =H40 -> NRC | N40: W | O40: L | P40: TP | Q40: (TP) | R40: TP | T40: R | U40: HR | W40: Player | X40: W | Y40: L | Z40: TP | AA40: R_P
B41: =IF(登録!AG38=0,"",登録!AG38) -> 松居 勝巳 | C41: =登録!F21 -> 120 | D41: =IF(結果入力表!G9="","",結果入力表!G9) -> 104 | E41: =IF(結果入力表!G37="","",結果入力表!G37) -> w | F41: =IF(結果入力表!F51="","",結果入力表!F51) -> 0 | G41: =IF(結果入力表!F65="","",結果入力表!F65) -> 58 | H41: =IF(結果入力表!G86="","",結果入力表!G86) -> w | I41: =IF(結果入力表!G117="","",結果入力表!G117) -> w | J41: =IF(結果入力表!G145="","",結果入力表!G145) -> w | K41: =IF(結果入力表!F159="","",結果入力表!F159) -> w | L41: =IF(結果入力表!F173="","",結果入力表!F173) -> w | M41: =IF(結果入力表!G194="","",結果入力表!G194) -> w | N41: =IF(COUNTBLANK(D41:M41)=10,"",COUNTIF(D41:M41,"w")) -> 7 | O41: =IF(COUNTBLANK(D41:M41)=10,"",10-COUNTBLANK(D41:M41)-N41) -> 3 | P41: =IF(N41="","",N41*C41+SUM(D41:M41)) -> 1002 | Q41: =IF(N41="","",IF(C41=登録!$I$8,P41,N41*登録!$I$8+SUM(D41:M41)/★個人成績表★!C41*登録!$I$8)) -> 1002 | R41: =IF(P41=Q41,"","*") ->  | S41: =IF(COUNTBLANK(D41:M41)=10,"",Q41) -> 1002 | T41: =IF(COUNTBLANK(D41:M41)=10,"",RANK(AA41,$AA41:$AA47)) -> 3 | U41: =IF(★対戦リーグ表★!BS42=0,"",★対戦リーグ表★!BS42) ->  | W41: =B41 -> 松居 勝巳 | X41: =N41 -> 7 | Y41: =O41 -> 3 | Z41: =Q41 -> 1002 | AA41: =X41*1000000+Z41 -> 7001002
B42: =IF(登録!AG39=0,"",登録!AG39) -> 藤明 宏樹 | C42: =登録!I21 -> 120 | D42: =IF(結果入力表!G10="","",結果入力表!G10) -> 86 | E42: =IF(結果入力表!G38="","",結果入力表!G38) -> 83 | F42: =IF(結果入力表!F52="","",結果入力表!F52) -> 67 | G42: =IF(結果入力表!F66="","",結果入力表!F66) -> 48 | H42: =IF(結果入力表!G87="","",結果入力表!G87) -> 5 | I42: =IF(結果入力表!G118="","",結果入力表!G118) -> w | J42: =IF(結果入力表!G146="","",結果入力表!G146) -> w | K42: =IF(結果入力表!F160="","",結果入力表!F160) -> w | L42: =IF(結果入力表!F174="","",結果入力表!F174) -> 92 | M42: =IF(結果入力表!G195="","",結果入力表!G195) -> 60 | N42: =IF(COUNTBLANK(D42:M42)=10,"",COUNTIF(D42:M42,"w")) -> 3 | O42: =IF(COUNTBLANK(D42:M42)=10,"",10-COUNTBLANK(D42:M42)-N42) -> 7 | P42: =IF(N42="","",N42*C42+SUM(D42:M42)) -> 801 | Q42: =IF(N42="","",IF(C42=登録!$I$8,P42,N42*登録!$I$8+SUM(D42:M42)/★個人成績表★!C42*登録!$I$8)) -> 801 | S42: 801 | T42: =IF(COUNTBLANK(D42:M42)=10,"",RANK(AA42,$AA41:$AA47)) -> 7 | U42: =IF(★対戦リーグ表★!BS43=0,"",★対戦リーグ表★!BS43) ->  | W42: 藤明 宏樹 | X42: 3 | Y42: 7 | Z42: 801 | AA42: 3000801
B43: =IF(登録!AG40=0,"",登録!AG40) -> 吉岡 保俊 | C43: =登録!L21 -> 120 | D43: =IF(結果入力表!G11="","",結果入力表!G11) -> 106 | E43: =IF(結果入力表!G39="","",結果入力表!G39) -> 67 | F43: =IF(結果入力表!F53="","",結果入力表!F53) -> w | G43: =IF(結果入力表!F67="","",結果入力表!F67) -> 98 | H43: =IF(結果入力表!G88="","",結果入力表!G88) -> w | I43: =IF(結果入力表!G119="","",結果入力表!G119) -> w | J43: =IF(結果入力表!G147="","",結果入力表!G147) -> w | K43: =IF(結果入力表!F161="","",結果入力表!F161) -> w | L43: =IF(結果入力表!F175="","",結果入力表!F175) -> 83 | M43: =IF(結果入力表!G196="","",結果入力表!G196) -> 18 | N43: 5 | O43: 5 | P43: 972 | Q43: =IF(N43="","",IF(C43=登録!$I$8,P43,N43*登録!$I$8+SUM(D43:M43)/★個人成績表★!C43*登録!$I$8)) -> 972 | S43: 972 | T43: =IF(COUNTBLANK(D43:M43)=10,"",RANK(AA43,$AA41:$AA47)) -> 5 | U43: =IF(★対戦リーグ表★!BS44=0,"",★対戦リーグ表★!BS44) -> 106 | W43: 吉岡 保俊 | X43: 5 | Y43: 5 | Z43: 972 | AA43: 5000972
B44: =IF(登録!AG41=0,"",登録!AG41) -> 村上 泰辰 | C44: =登録!O21 -> 120 | D44: =IF(結果入力表!G12="","",結果入力表!G12) -> w | E44: =IF(結果入力表!G40="","",結果入力表!G40) -> 34 | F44: =IF(結果入力表!F54="","",結果入力表!F54) -> w | G44: =IF(結果入力表!F68="","",結果入力表!F68) -> w | H44: =IF(結果入力表!G89="","",結果入力表!G89) -> w | I44: =IF(結果入力表!G120="","",結果入力表!G120) -> w | J44: =IF(結果入力表!G148="","",結果入力表!G148) -> w | K44: =IF(結果入力表!F162="","",結果入力表!F162) -> w | L44: =IF(結果入力表!F176="","",結果入力表!F176) -> 38 | M44: =IF(結果入力表!G197="","",結果入力表!G197) -> 11 | N44: 7 | O44: 3 | P44: 923 | Q44: =IF(N44="","",IF(C44=登録!$I$8,P44,N44*登録!$I$8+SUM(D44:M44)/★個人成績表★!C44*登録!$I$8)) -> 923 | S44: 923 | T44: =IF(COUNTBLANK(D44:M44)=10,"",RANK(AA44,$AA41:$AA47)) -> 4 | U44: =IF(★対戦リーグ表★!BS45=0,"",★対戦リーグ表★!BS45) ->  | W44: 村上 泰辰 | X44: 7 | Y44: 3 | Z44: 923 | AA44: 7000923
B45: =IF(登録!AG42=0,"",登録!AG42) -> 小原 嘉丈 | C45: =登録!R21 -> 120 | D45: =IF(結果入力表!G13="","",結果入力表!G13) -> w | E45: =IF(結果入力表!G41="","",結果入力表!G41) -> 0 | F45: =IF(結果入力表!F55="","",結果入力表!F55) -> w | G45: =IF(結果入力表!F69="","",結果入力表!F69) -> 73 | H45: =IF(結果入力表!G90="","",結果入力表!G90) -> w | I45: =IF(結果入力表!G114="","",結果入力表!G114) -> w | J45: =IF(結果入力表!G142="","",結果入力表!G142) -> w | K45: =IF(結果入力表!F156="","",結果入力表!F156) -> w | L45: =IF(結果入力表!F170="","",結果入力表!F170) -> w | M45: =IF(結果入力表!G191="","",結果入力表!G191) -> w | N45: 8 | O45: 2 | P45: 1033 | Q45: =IF(N45="","",IF(C45=登録!$I$8,P45,N45*登録!$I$8+SUM(D45:M45)/★個人成績表★!C45*登録!$I$8)) -> 1033 | S45: 1033 | T45: =IF(COUNTBLANK(D45:M45)=10,"",RANK(AA45,$AA41:$AA47)) -> 2 | U45: =IF(★対戦リーグ表★!BS46=0,"",★対戦リーグ表★!BS46) -> 116 | W45: 小原 嘉丈 | X45: 8 | Y45: 2 | Z45: 1033 | AA45: 8001033
B46: =IF(登録!AG43=0,"",登録!AG43) -> 乾 伸綱 | C46: =登録!U21 -> 120 | D46: =IF(結果入力表!G14="","",結果入力表!G14) -> w | E46: =IF(結果入力表!G42="","",結果入力表!G42) -> w | F46: =IF(結果入力表!F56="","",結果入力表!F56) -> w | G46: =IF(結果入力表!F70="","",結果入力表!F70) -> w | H46: =IF(結果入力表!G91="","",結果入力表!G91) -> w | I46: =IF(結果入力表!G115="","",結果入力表!G115) -> 115 | J46: =IF(結果入力表!G143="","",結果入力表!G143) -> w | K46: =IF(結果入力表!F157="","",結果入力表!F157) -> 85 | L46: =IF(結果入力表!F171="","",結果入力表!F171) -> w | M46: =IF(結果入力表!G192="","",結果入力表!G192) -> w | N46: 8 | O46: 2 | P46: 1160 | Q46: =IF(N46="","",IF(C46=登録!$I$8,P46,N46*登録!$I$8+SUM(D46:M46)/★個人成績表★!C46*登録!$I$8)) -> 1160 | S46: 1160 | T46: =IF(COUNTBLANK(D46:M46)=10,"",RANK(AA46,$AA41:$AA47)) -> 1 | U46: =IF(★対戦リーグ表★!BS47=0,"",★対戦リーグ表★!BS47) ->  | W46: 乾 伸綱 | X46: 8 | Y46: 2 | Z46: 1160 | AA46: 8001160
B47: =IF(登録!AG44=0,"",登録!AG44) -> 山崎真紀子 | C47: =登録!X21 -> 100 | D47: =IF(結果入力表!G15="","",結果入力表!G15) -> w | E47: =IF(結果入力表!G43="","",結果入力表!G43) -> w | F47: =IF(結果入力表!F57="","",結果入力表!F57) -> 27 | G47: =IF(結果入力表!F71="","",結果入力表!F71) -> 91 | H47: =IF(結果入力表!G92="","",結果入力表!G92) -> 88 | I47: =IF(結果入力表!G116="","",結果入力表!G116) -> 84 | J47: =IF(結果入力表!G144="","",結果入力表!G144) -> 1 | K47: =IF(結果入力表!F158="","",結果入力表!F158) -> 61 | L47: =IF(結果入力表!F172="","",結果入力表!F172) -> 52 | M47: =IF(結果入力表!G193="","",結果入力表!G193) -> w | N47: 3 | O47: 7 | P47: 704 | Q47: =IF(N47="","",IF(C47=登録!$I$8,P47,N47*登録!$I$8+SUM(D47:M47)/★個人成績表★!C47*登録!$I$8)) -> 844.8 | R47: * | S47: 844.8 | T47: =IF(COUNTBLANK(D47:M47)=10,"",RANK(AA47,$AA41:$AA47)) -> 6 | U47: =IF(★対戦リーグ表★!BS48=0,"",★対戦リーグ表★!BS48) ->  | W47: 山崎真紀子 | X47: 3 | Y47: 7 | Z47: 844.8 | AA47: 3000844.8
B48: Total | N48: =IF(COUNTBLANK(N41:N47)=7,"",SUM(N41:N47)) -> 41 | O48: =IF(COUNTBLANK(O41:O47)=7,"",SUM(O41:O47)) -> 29 | P48: =IF(COUNTBLANK(P41:P47)=7,"",SUM(P41:P47)) -> 6595 | Q48: =IF(COUNTBLANK(Q41:Q47)=7,"",SUM(Q41:Q47)) -> 6735.8 | R48: * | S48: =IF(COUNTBLANK(S41:S47)=7,"",IF(Q48=P48,P48,Q48)) -> 6735.8 | X48: 41 | Y48: 29 | Z48: 6735.8 | AA48: 41006735.8
A49: =IF(登録!B22="","",登録!B22) -> WRC | B49: =B31 -> Player＼VS | C49: =C31 -> 持点 | D49: =IF(登録!$Q$5=5,"",登録!BI8) -> KRC | E49: =IF(登録!$Q$5=5,"",登録!BJ8) -> NRC | F49: =IF(登録!$Q$5=5,"",登録!BK8) -> HRC | G49: =IF(登録!$Q$5=5,"",登録!BL8) -> ORC | H49: =IF(登録!$Q$5=5,"",登録!BM8) -> SBC | I49: =D49 -> KRC | J49: =E49 -> NRC | K49: =F49 -> HRC | L49: =G49 -> ORC | M49: =H49 -> SBC | N49: W | O49: L | P49: TP | Q49: (TP) | R49: TP | T49: R | U49: HR | W49: Player | X49: W | Y49: L | Z49: TP | AA49: R_P
B50: =IF(登録!AG47=0,"",登録!AG47) -> 末岡 修 | C50: =IF(登録!F22="","",登録!F22) -> 120 | D50: =IF(結果入力表!G16="","",結果入力表!G16) -> 48 | E50: =IF(結果入力表!F30="","",結果入力表!F30) -> w | F50: =IF(結果入力表!F44="","",結果入力表!F44) -> w | G50: =IF(結果入力表!G65="","",結果入力表!G65) -> w | H50: =IF(結果入力表!G93="","",結果入力表!G93) -> 79 | I50: =IF(結果入力表!G123="","",結果入力表!G123) -> 117 | J50: =IF(結果入力表!F137="","",結果入力表!F137) -> w | K50: =IF(結果入力表!F151="","",結果入力表!F151) -> w | L50: =IF(結果入力表!G172="","",結果入力表!G172) -> w | M50: =IF(結果入力表!G200="","",結果入力表!G200) -> 87 | N50: =IF(COUNTBLANK(D50:M50)=10,"",COUNTIF(D50:M50,"w")) -> 6 | O50: =IF(COUNTBLANK(D50:M50)=10,"",10-COUNTBLANK(D50:M50)-N50) -> 4 | P50: =IF(N50="","",N50*C50+SUM(D50:M50)) -> 1051 | Q50: =IF(N50="","",IF(C50=登録!$I$8,P50,N50*登録!$I$8+SUM(D50:M50)/★個人成績表★!C50*登録!$I$8)) -> 1051 | S50: =IF(COUNTBLANK(D50:M50)=10,"",Q50) -> 1051 | T50: =IF(COUNTBLANK(D50:M50)=10,"",RANK(AA50,$AA50:$AA56)) -> 3 | U50: =IF(★対戦リーグ表★!BS51=0,"",★対戦リーグ表★!BS51) ->  | W50: =B50 -> 末岡 修 | X50: =N50 -> 6 | Y50: =O50 -> 4 | Z50: =Q50 -> 1051 | AA50: =X50*1000000+Z50 -> 6001051
B51: =IF(登録!AG48=0,"",登録!AG48) -> 和田宗一郎 | C51: =IF(登録!I22="","",登録!I22) -> 120 | D51: =IF(結果入力表!G17="","",結果入力表!G17) -> 33 | E51: =IF(結果入力表!F31="","",結果入力表!F31) -> 22 | F51: =IF(結果入力表!F45="","",結果入力表!F45) -> w | G51: =IF(結果入力表!G66="","",結果入力表!G66) -> w | H51: =IF(結果入力表!G94="","",結果入力表!G94) -> 51 | I51: =IF(結果入力表!G124="","",結果入力表!G124) -> 61 | J51: =IF(結果入力表!F138="","",結果入力表!F138) -> 0 | K51: =IF(結果入力表!F152="","",結果入力表!F152) -> 37 | L51: =IF(結果入力表!G173="","",結果入力表!G173) -> 83 | M51: =IF(結果入力表!G201="","",結果入力表!G201) -> w | N51: =IF(COUNTBLANK(D51:M51)=10,"",COUNTIF(D51:M51,"w")) -> 3 | O51: =IF(COUNTBLANK(D51:M51)=10,"",10-COUNTBLANK(D51:M51)-N51) -> 7 | P51: =IF(N51="","",N51*C51+SUM(D51:M51)) -> 647 | Q51: =IF(N51="","",IF(C51=登録!$I$8,P51,N51*登録!$I$8+SUM(D51:M51)/★個人成績表★!C51*登録!$I$8)) -> 647 | S51: 647 | T51: =IF(COUNTBLANK(D51:M51)=10,"",RANK(AA51,$AA50:$AA56)) -> 6 | U51: =IF(★対戦リーグ表★!BS52=0,"",★対戦リーグ表★!BS52) ->  | W51: 和田宗一郎 | X51: 3 | Y51: 7 | Z51: 647 | AA51: 3000647
B52: =IF(登録!AG49=0,"",登録!AG49) -> 杉本 博章 | C52: =IF(登録!L22="","",登録!L22) -> 120 | D52: =IF(結果入力表!G18="","",結果入力表!G18) -> 38 | E52: =IF(結果入力表!F32="","",結果入力表!F32) -> 71 | F52: =IF(結果入力表!F46="","",結果入力表!F46) -> w | G52: =IF(結果入力表!G67="","",結果入力表!G67) -> w | H52: =IF(結果入力表!G95="","",結果入力表!G95) -> 87 | I52: =IF(結果入力表!G125="","",結果入力表!G125) -> w | J52: =IF(結果入力表!F139="","",結果入力表!F139) -> 80 | K52: =IF(結果入力表!F153="","",結果入力表!F153) -> w | L52: =IF(結果入力表!G174="","",結果入力表!G174) -> w | M52: =IF(結果入力表!G202="","",結果入力表!G202) -> w | N52: 6 | O52: 4 | P52: 996 | Q52: =IF(N52="","",IF(C52=登録!$I$8,P52,N52*登録!$I$8+SUM(D52:M52)/★個人成績表★!C52*登録!$I$8)) -> 996 | S52: 996 | T52: =IF(COUNTBLANK(D52:M52)=10,"",RANK(AA52,$AA50:$AA56)) -> 4 | U52: =IF(★対戦リーグ表★!BS53=0,"",★対戦リーグ表★!BS53) ->  | W52: 杉本 博章 | X52: 6 | Y52: 4 | Z52: 996 | AA52: 6000996
B53: =IF(登録!AG50=0,"",登録!AG50) -> 中本 雅大 | C53: =IF(登録!O22="","",登録!O22) -> 120 | D53: =IF(結果入力表!G19="","",結果入力表!G19) -> 64 | E53: =IF(結果入力表!F33="","",結果入力表!F33) -> w | F53: =IF(結果入力表!F47="","",結果入力表!F47) -> w | G53: =IF(結果入力表!G68="","",結果入力表!G68) -> 119 | H53: =IF(結果入力表!G96="","",結果入力表!G96) -> w | I53: =IF(結果入力表!G126="","",結果入力表!G126) -> w | J53: =IF(結果入力表!F140="","",結果入力表!F140) -> 68 | K53: =IF(結果入力表!F154="","",結果入力表!F154) -> 51 | L53: =IF(結果入力表!G175="","",結果入力表!G175) -> w | M53: =IF(結果入力表!G203="","",結果入力表!G203) -> 105 | N53: 5 | O53: 5 | P53: 1007 | Q53: =IF(N53="","",IF(C53=登録!$I$8,P53,N53*登録!$I$8+SUM(D53:M53)/★個人成績表★!C53*登録!$I$8)) -> 1007 | S53: 1007 | T53: =IF(COUNTBLANK(D53:M53)=10,"",RANK(AA53,$AA50:$AA56)) -> 5 | U53: =IF(★対戦リーグ表★!BS54=0,"",★対戦リーグ表★!BS54) ->  | W53: 中本 雅大 | X53: 5 | Y53: 5 | Z53: 1007 | AA53: 5001007
B54: =IF(登録!AG51=0,"",登録!AG51) -> 山中 康介 | C54: =IF(登録!R22="","",登録!R22) -> 120 | D54: =IF(結果入力表!G20="","",結果入力表!G20) -> w | E54: =IF(結果入力表!F34="","",結果入力表!F34) -> w | F54: =IF(結果入力表!F48="","",結果入力表!F48) -> w | G54: =IF(結果入力表!G69="","",結果入力表!G69) -> w | H54: =IF(結果入力表!G97="","",結果入力表!G97) -> w | I54: =IF(結果入力表!G127="","",結果入力表!G127) -> 81 | J54: =IF(結果入力表!F141="","",結果入力表!F141) -> 0 | K54: =IF(結果入力表!F155="","",結果入力表!F155) -> w | L54: =IF(結果入力表!G176="","",結果入力表!G176) -> w | M54: =IF(結果入力表!G204="","",結果入力表!G204) -> 53 | N54: 7 | O54: 3 | P54: 974 | Q54: =IF(N54="","",IF(C54=登録!$I$8,P54,N54*登録!$I$8+SUM(D54:M54)/★個人成績表★!C54*登録!$I$8)) -> 974 | S54: 974 | T54: =IF(COUNTBLANK(D54:M54)=10,"",RANK(AA54,$AA50:$AA56)) -> 1 | U54: =IF(★対戦リーグ表★!BS55=0,"",★対戦リーグ表★!BS55) -> 105 | W54: 山中 康介 | X54: 7 | Y54: 3 | Z54: 974 | AA54: 7000974
B55: =IF(登録!AG52=0,"",登録!AG52) -> 芝先 泰生 | C55: =IF(登録!U22="","",登録!U22) -> 120 | D55: =IF(結果入力表!G21="","",結果入力表!G21) -> w | E55: =IF(結果入力表!F35="","",結果入力表!F35) -> w | F55: =IF(結果入力表!F49="","",結果入力表!F49) -> 65 | G55: =IF(結果入力表!G70="","",結果入力表!G70) -> 48 | H55: =IF(結果入力表!G98="","",結果入力表!G98) -> 29 | I55: =IF(結果入力表!G121="","",結果入力表!G121) -> w | J55: =IF(結果入力表!F135="","",結果入力表!F135) -> 25 | K55: =IF(結果入力表!F149="","",結果入力表!F149) -> 30 | L55: =IF(結果入力表!G170="","",結果入力表!G170) -> 20 | M55: =IF(結果入力表!G198="","",結果入力表!G198) -> 4 | N55: 3 | O55: 7 | P55: 581 | Q55: =IF(N55="","",IF(C55=登録!$I$8,P55,N55*登録!$I$8+SUM(D55:M55)/★個人成績表★!C55*登録!$I$8)) -> 581 | S55: 581 | T55: =IF(COUNTBLANK(D55:M55)=10,"",RANK(AA55,$AA50:$AA56)) -> 7 | U55: =IF(★対戦リーグ表★!BS56=0,"",★対戦リーグ表★!BS56) -> A120 | W55: 芝先 泰生 | X55: 3 | Y55: 7 | Z55: 581 | AA55: 3000581
B56: =IF(登録!AG53=0,"",登録!AG53) -> 松房ゆかり | C56: =IF(登録!X22="","",登録!X22) -> 100 | D56: =IF(結果入力表!G22="","",結果入力表!G22) -> w | E56: =IF(結果入力表!F36="","",結果入力表!F36) -> w | F56: =IF(結果入力表!F50="","",結果入力表!F50) -> 46 | G56: =IF(結果入力表!G71="","",結果入力表!G71) -> w | H56: =IF(結果入力表!G99="","",結果入力表!G99) -> w | I56: =IF(結果入力表!G122="","",結果入力表!G122) -> w | J56: =IF(結果入力表!F136="","",結果入力表!F136) -> w | K56: =IF(結果入力表!F150="","",結果入力表!F150) -> 58 | L56: =IF(結果入力表!G171="","",結果入力表!G171) -> 0 | M56: =IF(結果入力表!G199="","",結果入力表!G199) -> w | N56: 7 | O56: 3 | P56: 804 | Q56: =IF(N56="","",IF(C56=登録!$I$8,P56,N56*登録!$I$8+SUM(D56:M56)/★個人成績表★!C56*登録!$I$8)) -> 964.8 | R56: * | S56: 964.8 | T56: =IF(COUNTBLANK(D56:M56)=10,"",RANK(AA56,$AA50:$AA56)) -> 2 | U56: =IF(★対戦リーグ表★!BS57=0,"",★対戦リーグ表★!BS57) ->  | W56: 松房ゆかり | X56: 7 | Y56: 3 | Z56: 964.8 | AA56: 7000964.8
B57: Total | N57: =IF(COUNTBLANK(N50:N56)=7,"",SUM(N50:N56)) -> 37 | O57: =IF(COUNTBLANK(O50:O56)=7,"",SUM(O50:O56)) -> 33 | P57: =IF(COUNTBLANK(P50:P56)=7,"",SUM(P50:P56)) -> 6060 | Q57: =IF(COUNTBLANK(Q50:Q56)=7,"",SUM(Q50:Q56)) -> 6220.8 | R57: * | S57: =IF(COUNTBLANK(S50:S56)=7,"",IF(Q57=P57,P57,Q57)) -> 6220.8 | X57: 37 | Y57: 33 | Z57: 6220.8 | AA57: 37006220.8
R59: * | S59: ：ハンデ換算値

Sheet ★対戦リーグ表★
B1: =★個人成績表★!A1&" (1/2)" -> 第31回 京阪神和奈滋対抗戦 (奈良；玉出エース) (1/2) | Z1: =★個人成績表★!A1&" (2/2)" -> 第31回 京阪神和奈滋対抗戦 (奈良；玉出エース) (2/2) | AX1: HR
T2: =登録!E3 -> 2019-01-13 | AR2: =登録!E3 -> 2019-01-13 | AX2: 1 | AZ2: =VLOOKUP(AX2,$AX$6:$BP$59,3,FALSE) -> 芝先 泰生 | BA2: =VLOOKUP(AX2,$AX$6:$BP$59,4,FALSE) -> WRC | BB2: =VLOOKUP(AX2,$AX$6:$BP$59,15,FALSE) -> A120
B3: 1st | C3: Section | Z3: 2nd | AA3: Section | BS3: max
B5: 1 | C5: Player | D5: handy | E5: =B6 -> KRC | F5: =B7 -> HRC | G5: =B8 -> SBC | H5: =B9 -> NRC | I5: =B10 -> ORC | J5: =B11 -> WRC | K5: W | L5: L | M5: TP | N5: (TP) | O5: TP | Q5: R_P | R5: R | S5: HR | Z5: 1 | AA5: Player | AB5: handy | AC5: =$B$6 -> KRC | AD5: =$B$7 -> HRC | AE5: =$B$8 -> SBC | AF5: =$B$9 -> NRC | AG5: =$B$10 -> ORC | AH5: =$B$11 -> WRC | AI5: W | AJ5: L | AK5: TP | AL5: (TP) | AM5: TP | AO5: R_P | AP5: R | AQ5: HR | AX5: R | BB5: 1G | BC5: 2G | BD5: 3G | BE5: 4G | BF5: 5G | BG5: 6G | BH5: 7G | BI5: 8G | BJ5: 9G | BK5: 10G | BL5: max | BM5: A | BN5: B | BO5: Ｎ | BP5: HR_PT
A6: 1 | B6: =IF(登録!$AF17="","",登録!$B17) -> KRC | C6: =VLOOKUP(VALUE(A6&B5),登録!$AE$2:$AH$55,3,FALSE) -> 松好 太一 | D6: =VLOOKUP(VALUE(A6&B5),登録!$AE$2:$AH$55,4,FALSE) -> 120 | F6: =★個人成績表★!H5 -> w | G6: =★個人成績表★!G5 -> 83 | H6: =★個人成績表★!F5 -> 83 | I6: =★個人成績表★!E5 -> 105 | J6: =★個人成績表★!D5 -> w | K6: =IF(COUNTBLANK(E6:J6)=6,"",COUNTIF(E6:J6,"w")) -> 2 | L6: =IF(COUNTBLANK(E6:J6)=6,"",6-COUNTBLANK(E6:J6)-K6) -> 3 | M6: =K6*D6+SUM(E6:J6) -> 511 | N6: =M6*登録!$I$8/★対戦リーグ表★!D6 -> 511 | O6: =IF(ISERROR(N6),"",IF(M6=N6,"","*")) ->  | P6: =IF(COUNTBLANK(E6:J6)=6,"",N6) -> 511 | Q6: =K6*100000+N6 -> 200511 | R6: =IF(COUNTBLANK(E6:J6)=6,"",RANK(Q6,Q6:Q11)) -> 4 | T6: =IF(結果入力表!E100="","",結果入力表!E100) ->  | U6: =IF(結果入力表!E79="","",結果入力表!E79) ->  | V6: =IF(結果入力表!E58="","",結果入力表!E58) ->  | W6: =IF(結果入力表!E37="","",結果入力表!E37) ->  | X6: =IF(結果入力表!E16="","",結果入力表!E16) ->  | Y6: 11 | Z6: =IF(登録!$AF17="","",登録!$B17) -> KRC | AA6: =VLOOKUP(Y6,登録!$AE$2:$AH$55,3,FALSE) -> 松好 太一 | AB6: =VLOOKUP(Y6,登録!$AE$2:$AH$55,4,FALSE) -> 120 | AD6: =★個人成績表★!M5 -> w | AE6: =★個人成績表★!L5 -> w | AF6: =★個人成績表★!K5 -> w | AG6: =★個人成績表★!J5 -> 57 | AH6: =★個人成績表★!I5 -> 97 | AI6: =IF(COUNTBLANK(AC6:AH6)=6,"",COUNTIF(AC6:AH6,"w")) -> 3 | AJ6: =IF(COUNTBLANK(AC6:AH6)=6,"",6-COUNTBLANK(AC6:AH6)-AI6) -> 2 | AK6: =AI6*AB6+SUM(AC6:AH6) -> 514 | AL6: =AK6*登録!$I$8/★対戦リーグ表★!AB6 -> 514 | AM6: =IF(ISERROR(AL6),"",IF(AK6=AL6,"","*")) ->  | AN6: =IF(COUNTBLANK(AC6:AH6)=6,"",AL6) -> 514 | AO6: =AI6*100000+AL6 -> 300514 | AP6: =IF(COUNTBLANK(AC6:AH6)=6,"",RANK(AO6,AO6:AO11)) -> 3 | AR6: =IF(結果入力表!E205="","",結果入力表!E205) ->  | AS6: =IF(結果入力表!E184="","",結果入力表!E184) ->  | AT6: =IF(結果入力表!E163="","",結果入力表!E163) ->  | AU6: =IF(結果入力表!E142="","",結果入力表!E142) ->  | AV6: =IF(結果入力表!E121="","",結果入力表!E121) ->  | AX6: =RANK(BP6,$BP$6:$BP$59) -> 16 | AZ6: =C6 -> 松好 太一 | BA6: =B6 -> KRC | BB6: =IF(LEFT(T6,1)="A","A",IF(LEFT(T6,1)="B","B",T6)) ->  | BC6: =IF(LEFT(U6,1)="A","A",IF(LEFT(U6,1)="B","B",U6)) ->  | BD6: =IF(LEFT(V6,1)="A","A",IF(LEFT(V6,1)="B","B",V6)) ->  | BE6: =IF(LEFT(W6,1)="A","A",IF(LEFT(W6,1)="B","B",W6)) ->  | BF6: =IF(LEFT(X6,1)="A","A",IF(LEFT(X6,1)="B","B",X6)) ->  | BG6: =IF(LEFT(AR6,1)="A","A",IF(LEFT(AR6,1)="B","B",AR6)) ->  | BH6: =IF(LEFT(AS6,1)="A","A",IF(LEFT(AS6,1)="B","B",AS6)) ->  | BI6: =IF(LEFT(AT6,1)="A","A",IF(LEFT(AT6,1)="B","B",AT6)) ->  | BJ6: =IF(LEFT(AU6,1)="A","A",IF(LEFT(AU6,1)="B","B",AU6)) ->  | BK6: =IF(LEFT(AV6,1)="A","A",IF(LEFT(AV6,1)="B","B",AV6)) ->  | BL6: =IF(BM6>0,"A"&登録!$I$8,IF(BN6>0,"B"&登録!$I$8,BO6)) -> 0 | BM6: =COUNTIF($BB6:$BK6,BM$5) -> 0 | BN6: 0 | BO6: =MAX(BB6:BK6) -> 0 | BP6: =BM6*10000+BN6*1000+BO6 -> 0 | BR6: =★個人成績表★!B5 -> 松好 太一 | BS6: =VLOOKUP(BR6,$AZ$6:$BL$59,13,FALSE) -> 0
A7: 2 | B7: =IF(登録!$B18="","",登録!$B18) -> HRC | C7: =VLOOKUP(VALUE(A7&B5),登録!$AE$2:$AH$55,3,FALSE) -> 鐵山 泰三 | D7: =VLOOKUP(VALUE(A7&B5),登録!$AE$2:$AH$55,4,FALSE) -> 120 | E7: =★個人成績表★!H14 -> 100 | G7: =★個人成績表★!E14 -> w | H7: =★個人成績表★!G14 -> w | I7: =★個人成績表★!D14 -> w | J7: =★個人成績表★!F14 -> 13 | K7: 3 | L7: 2 | M7: 473 | N7: =M7*登録!$I$8/★対戦リーグ表★!D7 -> 473 | P7: 473 | Q7: =K7*100000+N7 -> 300473 | R7: =IF(COUNTBLANK(E7:J7)=6,"",RANK(Q7,Q6:Q11)) -> 3 | S7: =IF(結果入力表!H100="","",結果入力表!H100) ->  | U7: =IF(結果入力表!E23="","",結果入力表!E23) ->  | V7: =IF(結果入力表!H72="","",結果入力表!H72) ->  | W7: =IF(結果入力表!E9="","",結果入力表!E9) ->  | X7: =IF(結果入力表!H44="","",結果入力表!H44) ->  | Y7: 22 | Z7: =IF(登録!$B18="","",登録!$B18) -> HRC | AA7: =VLOOKUP(Y7,登録!$AE$2:$AH$55,3,FALSE) -> 堂園 雅也 | AB7: =VLOOKUP(Y7,登録!$AE$2:$AH$55,4,FALSE) -> 120 | AC7: =★個人成績表★!M15 -> 41 | AE7: =★個人成績表★!J15 -> w | AF7: =★個人成績表★!L15 -> w | AG7: =★個人成績表★!I15 -> 114 | AH7: =★個人成績表★!K15 -> w | AI7: 3 | AJ7: 2 | AK7: 515 | AL7: =AK7*登録!$I$8/★対戦リーグ表★!AB7 -> 515 | AN7: 515 | AO7: =AI7*100000+AL7 -> 300515 | AP7: =IF(COUNTBLANK(AC7:AH7)=6,"",RANK(AO7,AO6:AO11)) -> 2 | AQ7: =IF(結果入力表!H205="","",結果入力表!H205) ->  | AS7: =IF(結果入力表!E128="","",結果入力表!E128) -> 104 | AT7: =IF(結果入力表!H177="","",結果入力表!H177) ->  | AU7: =IF(結果入力表!E114="","",結果入力表!E114) ->  | AV7: =IF(結果入力表!H149="","",結果入力表!H149) ->  | AX7: 6 | AZ7: 鐵山 泰三 | BA7: HRC | BB7: =IF(LEFT(S7,1)="A","A",IF(LEFT(S7,1)="B","B",S7)) ->  | BC7: =IF(LEFT(U7,1)="A","A",IF(LEFT(U7,1)="B","B",U7)) ->  | BD7: =IF(LEFT(V7,1)="A","A",IF(LEFT(V7,1)="B","B",V7)) ->  | BE7: =IF(LEFT(W7,1)="A","A",IF(LEFT(W7,1)="B","B",W7)) ->  | BF7: =IF(LEFT(X7,1)="A","A",IF(LEFT(X7,1)="B","B",X7)) ->  | BG7: =IF(LEFT(AQ55,1)="A","A",IF(LEFT(AQ55,1)="B","B",AQ55)) -> 128 | BH7: =IF(LEFT(AS55,1)="A","A",IF(LEFT(AS55,1)="B","B",AS55)) ->  | BI7: =IF(LEFT(AT55,1)="A","A",IF(LEFT(AT55,1)="B","B",AT55)) ->  | BJ7: =IF(LEFT(AU55,1)="A","A",IF(LEFT(AU55,1)="B","B",AU55)) ->  | BK7: =IF(LEFT(AV55,1)="A","A",IF(LEFT(AV55,1)="B","B",AV55)) ->  | BL7: =IF(BM7>0,"A"&登録!$I$8,IF(BN7>0,"B"&登録!$I$8,BO7)) -> 128 | BM7: 0 | BN7: 0 | BO7: 128 | BP7: 128 | BR7: =★個人成績表★!B6 -> 清水 義晴 | BS7: 0
A8: 3 | B8: =IF(登録!$B19="","",登録!$B19) -> SBC | C8: =VLOOKUP(VALUE(A8&B5),登録!$AE$2:$AH$55,3,FALSE) -> 林 秀忠 | D8: =VLOOKUP(VALUE(A8&B5),登録!$AE$2:$AH$55,4,FALSE) -> 120 | E8: =★個人成績表★!G23 -> w | F8: =★個人成績表★!E23 -> 31 | H8: =★個人成績表★!D23 -> w | I8: =★個人成績表★!F23 -> w | J8: =★個人成績表★!H23 -> w | K8: 4 | L8: 1 | M8: 511 | N8: =M8*登録!$I$8/★対戦リーグ表★!D8 -> 511 | P8: 511 | Q8: =K8*100000+N8 -> 400511 | R8: =IF(COUNTBLANK(E8:J8)=6,"",RANK(Q8,Q6:Q11)) -> 1 | S8: =IF(結果入力表!H79="","",結果入力表!H79) ->  | T8: =IF(結果入力表!H23="","",結果入力表!H23) ->  | V8: =IF(結果入力表!E2="","",結果入力表!E2) ->  | W8: =IF(結果入力表!H51="","",結果入力表!H51) -> A120 | X8: =IF(結果入力表!E93="","",結果入力表!E93) ->  | Y8: 33 | Z8: =IF(登録!$B19="","",登録!$B19) -> SBC | AA8: =VLOOKUP(Y8,登録!$AE$2:$AH$55,3,FALSE) -> 山中 康寛 | AB8: =VLOOKUP(Y8,登録!$AE$2:$AH$55,4,FALSE) -> 120 | AC8: =★個人成績表★!L25 -> 71 | AD8: =★個人成績表★!J25 -> 0 | AF8: =★個人成績表★!I25 -> w | AG8: =★個人成績表★!K25 -> 90 | AH8: =★個人成績表★!M25 -> w | AI8: 2 | AJ8: 3 | AK8: 401 | AL8: =AK8*登録!$I$8/★対戦リーグ表★!AB8 -> 401 | AN8: 401 | AO8: =AI8*100000+AL8 -> 200401 | AP8: =IF(COUNTBLANK(AC8:AH8)=6,"",RANK(AO8,AO6:AO11)) -> 4 | AQ8: =IF(結果入力表!H184="","",結果入力表!H184) ->  | AR8: =IF(結果入力表!H128="","",結果入力表!H128) ->  | AT8: =IF(結果入力表!E107="","",結果入力表!E107) ->  | AU8: =IF(結果入力表!H156="","",結果入力表!H156) ->  | AV8: =IF(結果入力表!E198="","",結果入力表!E198) ->  | AX8: 2 | AZ8: 林 秀忠 | BA8: SBC | BD8: =IF(LEFT(V8,1)="A","A",IF(LEFT(V8,1)="B","B",V8)) ->  | BE8: =IF(LEFT(W8,1)="A","A",IF(LEFT(W8,1)="B","B",W8)) -> A | BF8: =IF(LEFT(X8,1)="A","A",IF(LEFT(X8,1)="B","B",X8)) ->  | BG8: =IF(LEFT(AQ48,1)="A","A",IF(LEFT(AQ48,1)="B","B",AQ48)) ->  | BH8: =IF(LEFT(AR48,1)="A","A",IF(LEFT(AR48,1)="B","B",AR48)) ->  | BI8: =IF(LEFT(AT48,1)="A","A",IF(LEFT(AT48,1)="B","B",AT48)) ->  | BJ8: =IF(LEFT(AU48,1)="A","A",IF(LEFT(AU48,1)="B","B",AU48)) ->  | BK8: =IF(LEFT(AV48,1)="A","A",IF(LEFT(AV48,1)="B","B",AV48)) ->  | BL8: =IF(BM8>0,"A"&登録!$I$8,IF(BN8>0,"B"&登録!$I$8,BO8)) -> A120 | BM8: 1 | BN8: 0 | BO8: 0 | BP8: 10000 | BR8: =★個人成績表★!B7 -> 鈴木 康文 | BS8: 107
A9: 4 | B9: =IF(登録!$B20="","",登録!$B20) -> NRC | C9: =VLOOKUP(VALUE(A9&B5),登録!$AE$2:$AH$55,3,FALSE) -> 吉向 翔平 | D9: =VLOOKUP(VALUE(A9&B5),登録!$AE$2:$AH$55,4,FALSE) -> 120 | E9: =★個人成績表★!F32 -> w | F9: =★個人成績表★!G32 -> 56 | G9: =★個人成績表★!D32 -> 55 | I9: =★個人成績表★!H32 -> 63 | J9: =★個人成績表★!E32 -> 25 | K9: 1 | L9: 4 | M9: 319 | N9: =M9*登録!$I$8/★対戦リーグ表★!D9 -> 319 | P9: 319 | Q9: =K9*100000+N9 -> 100319 | R9: =IF(COUNTBLANK(E9:J9)=6,"",RANK(Q9,Q6:Q11)) -> 6 | S9: =IF(結果入力表!H58="","",結果入力表!H58) ->  | T9: =IF(結果入力表!E72="","",結果入力表!E72) ->  | U9: =IF(結果入力表!H2="","",結果入力表!H2) ->  | W9: =IF(結果入力表!E86="","",結果入力表!E86) ->  | X9: =IF(結果入力表!H30="","",結果入力表!H30) ->  | Y9: 44 | Z9: =IF(登録!$B20="","",登録!$B20) -> NRC | AA9: =VLOOKUP(Y9,登録!$AE$2:$AH$55,3,FALSE) -> 植田 慎也 | AB9: =VLOOKUP(Y9,登録!$AE$2:$AH$55,4,FALSE) -> 120 | AC9: =★個人成績表★!K35 -> 24 | AD9: =★個人成績表★!L35 -> 29 | AE9: =★個人成績表★!I35 -> 17 | AG9: =★個人成績表★!M35 -> 118 | AH9: =★個人成績表★!J35 -> w | AI9: 1 | AJ9: 4 | AK9: 308 | AL9: =AK9*登録!$I$8/★対戦リーグ表★!AB9 -> 308 | AN9: 308 | AO9: =AI9*100000+AL9 -> 100308 | AP9: =IF(COUNTBLANK(AC9:AH9)=6,"",RANK(AO9,AO6:AO11)) -> 5 | AQ9: =IF(結果入力表!H163="","",結果入力表!H163) ->  | AR9: =IF(結果入力表!E177="","",結果入力表!E177) ->  | AS9: =IF(結果入力表!H107="","",結果入力表!H107) ->  | AU9: =IF(結果入力表!E191="","",結果入力表!E191) ->  | AV9: =IF(結果入力表!H135="","",結果入力表!H135) -> 106 | AX9: 16 | AZ9: 吉向 翔平 | BA9: NRC | BE9: =IF(LEFT(W9,1)="A","A",IF(LEFT(W9,1)="B","B",W9)) ->  | BF9: =IF(LEFT(X9,1)="A","A",IF(LEFT(X9,1)="B","B",X9)) ->  | BG9: =IF(LEFT(AQ41,1)="A","A",IF(LEFT(AQ41,1)="B","B",AQ41)) ->  | BH9: =IF(LEFT(AR41,1)="A","A",IF(LEFT(AR41,1)="B","B",AR41)) ->  | BI9: =IF(LEFT(AS41,1)="A","A",IF(LEFT(AS41,1)="B","B",AS41)) ->  | BJ9: =IF(LEFT(AU41,1)="A","A",IF(LEFT(AU41,1)="B","B",AU41)) ->  | BK9: =IF(LEFT(AV41,1)="A","A",IF(LEFT(AV41,1)="B","B",AV41)) ->  | BL9: =IF(BM9>0,"A"&登録!$I$8,IF(BN9>0,"B"&登録!$I$8,BO9)) -> 0 | BM9: 0 | BN9: 0 | BO9: 0 | BP9: 0 | BR9: =★個人成績表★!B8 -> 早川 徹 | BS9: 0
A10: 5 | B10: =IF(登録!$B21="","",登録!$B21) -> ORC | C10: =VLOOKUP(VALUE(A10&B5),登録!$AE$2:$AH$55,3,FALSE) -> 松居 勝巳 | D10: =VLOOKUP(VALUE(A10&B5),登録!$AE$2:$AH$55,4,FALSE) -> 120 | E10: =★個人成績表★!E41 -> w | F10: =★個人成績表★!D41 -> 104 | G10: =★個人成績表★!F41 -> 0 | H10: =★個人成績表★!H41 -> w | J10: =★個人成績表★!G41 -> 58 | K10: 2 | L10: 3 | M10: 402 | N10: =M10*登録!$I$8/★対戦リーグ表★!D10 -> 402 | P10: 402 | Q10: =K10*100000+N10 -> 200402 | R10: =IF(COUNTBLANK(E10:J10)=6,"",RANK(Q10,Q6:Q11)) -> 5 | S10: =IF(結果入力表!H37="","",結果入力表!H37) ->  | T10: =IF(結果入力表!H9="","",結果入力表!H9) ->  | U10: =IF(結果入力表!E51="","",結果入力表!E51) ->  | V10: =IF(結果入力表!H86="","",結果入力表!H86) ->  | X10: =IF(結果入力表!E65="","",結果入力表!E65) ->  | Y10: 55 | Z10: =IF(登録!$B21="","",登録!$B21) -> ORC | AA10: =VLOOKUP(Y10,登録!$AE$2:$AH$55,3,FALSE) -> 小原 嘉丈 | AB10: =VLOOKUP(Y10,登録!$AE$2:$AH$55,4,FALSE) -> 120 | AC10: =★個人成績表★!J45 -> w | AD10: =★個人成績表★!I45 -> w | AE10: =★個人成績表★!K45 -> w | AF10: =★個人成績表★!M45 -> w | AH10: =★個人成績表★!L45 -> w | AI10: 5 | AJ10: 0 | AK10: 600 | AL10: =AK10*登録!$I$8/★対戦リーグ表★!AB10 -> 600 | AN10: 600 | AO10: =AI10*100000+AL10 -> 500600 | AP10: =IF(COUNTBLANK(AC10:AH10)=6,"",RANK(AO10,AO6:AO11)) -> 1 | AQ10: =IF(結果入力表!H142="","",結果入力表!H142) ->  | AR10: =IF(結果入力表!H114="","",結果入力表!H114) ->  | AS10: =IF(結果入力表!E156="","",結果入力表!E156) ->  | AT10: =IF(結果入力表!H191="","",結果入力表!H191) ->  | AV10: =IF(結果入力表!E170="","",結果入力表!E170) ->  | AX10: 16 | AZ10: 松居 勝巳 | BA10: ORC | BF10: =IF(LEFT(X10,1)="A","A",IF(LEFT(X10,1)="B","B",X10)) ->  | BG10: =IF(LEFT(AQ34,1)="A","A",IF(LEFT(AQ34,1)="B","B",AQ34)) ->  | BH10: =IF(LEFT(AR34,1)="A","A",IF(LEFT(AR34,1)="B","B",AR34)) ->  | BI10: =IF(LEFT(AS34,1)="A","A",IF(LEFT(AS34,1)="B","B",AS34)) ->  | BJ10: =IF(LEFT(AT34,1)="A","A",IF(LEFT(AT34,1)="B","B",AT34)) ->  | BK10: =IF(LEFT(AV34,1)="A","A",IF(LEFT(AV34,1)="B","B",AV34)) ->  | BL10: =IF(BM10>0,"A"&登録!$I$8,IF(BN10>0,"B"&登録!$I$8,BO10)) -> 0 | BM10: 0 | BN10: 0 | BO10: 0 | BP10: 0 | BR10: =★個人成績表★!B9 -> 井関 一成 | BS10: 0
A11: 6 | B11: =IF(登録!$B22="","",登録!$B22) -> WRC | C11: =IF(B11="","",VLOOKUP(VALUE(A11&B5),登録!$AE$2:$AH$55,3,FALSE)) -> 末岡 修 | D11: =IF(B11="","",VLOOKUP(VALUE(A11&B5),登録!$AE$2:$AH$55,4,FALSE)) -> 120 | E11: =★個人成績表★!D50 -> 48 | F11: =★個人成績表★!F50 -> w | G11: =★個人成績表★!H50 -> 79 | H11: =★個人成績表★!E50 -> w | I11: =★個人成績表★!G50 -> w | K11: 3 | L11: 2 | M11: 487 | N11: =M11*登録!$I$8/★対戦リーグ表★!D11 -> 487 | P11: 487 | Q11: =IF(D11="","",K11*100000+N11) -> 300487 | R11: =IF(COUNTBLANK(E11:J11)=6,"",RANK(Q11,Q6:Q11)) -> 2 | S11: =IF(結果入力表!H16="","",結果入力表!H16) ->  | T11: =IF(結果入力表!E44="","",結果入力表!E44) ->  | U11: =IF(結果入力表!H93="","",結果入力表!H93) ->  | V11: =IF(結果入力表!E30="","",結果入力表!E30) ->  | W11: =IF(結果入力表!H65="","",結果入力表!H65) ->  | Y11: 66 | Z11: =IF(登録!$B22="","",登録!$B22) -> WRC | AA11: =IF(Z11="","",VLOOKUP(Y11,登録!$AE$2:$AH$55,3,FALSE)) -> 芝先 泰生 | AB11: =IF(Z11="","",VLOOKUP(Y11,登録!$AE$2:$AH$55,4,FALSE)) -> 120 | AC11: =★個人成績表★!I55 -> w | AD11: =★個人成績表★!K55 -> 30 | AE11: =★個人成績表★!M55 -> 4 | AF11: =★個人成績表★!J55 -> 25 | AG11: =★個人成績表★!L55 -> 20 | AI11: 1 | AJ11: 4 | AK11: 199 | AL11: =AK11*登録!$I$8/★対戦リーグ表★!AB11 -> 199 | AN11: 199 | AO11: =IF(AB11="","",AI11*100000+AL11) -> 100199 | AP11: =IF(COUNTBLANK(AC11:AH11)=6,"",RANK(AO11,AO6:AO11)) -> 6 | AQ11: =IF(結果入力表!H121="","",結果入力表!H121) ->  | AR11: =IF(結果入力表!E149="","",結果入力表!E149) ->  | AS11: =IF(結果入力表!H198="","",結果入力表!H198) ->  | AT11: =IF(結果入力表!E135="","",結果入力表!E135) ->  | AU11: =IF(結果入力表!H170="","",結果入力表!H170) ->  | AX11: 16 | AZ11: 末岡 修 | BA11: WRC | BG11: =IF(LEFT(AQ27,1)="A","A",IF(LEFT(AQ27,1)="B","B",AQ27)) ->  | BH11: =IF(LEFT(AR27,1)="A","A",IF(LEFT(AR27,1)="B","B",AR27)) ->  | BI11: =IF(LEFT(AS27,1)="A","A",IF(LEFT(AS27,1)="B","B",AS27)) ->  | BJ11: =IF(LEFT(AT27,1)="A","A",IF(LEFT(AT27,1)="B","B",AT27)) ->  | BK11: =IF(LEFT(AU27,1)="A","A",IF(LEFT(AU27,1)="B","B",AU27)) ->  | BL11: =IF(BM11>0,"A"&登録!$I$8,IF(BN11>0,"B"&登録!$I$8,BO11)) -> 0 | BM11: 0 | BN11: 0 | BO11: 0 | BP11: 0 | BR11: =★個人成績表★!B10 -> 今村 哲也 | BS11: 0
BR12: =★個人成績表★!B11 -> 森田由佳里 | BS12: 0
B13: 2 | C13: Player | D13: handy | E13: =B14 -> KRC | F13: =B15 -> HRC | G13: =B16 -> SBC | H13: =B17 -> NRC | I13: =B18 -> ORC | J13: =B19 -> WRC | K13: W | L13: L | M13: TP | N13: (TP) | O13: TP | Q13: R_P | R13: R | Z13: 2 | AA13: Player | AB13: handy | AC13: =$B$6 -> KRC | AD13: =$B$7 -> HRC | AE13: =$B$8 -> SBC | AF13: =$B$9 -> NRC | AG13: =$B$10 -> ORC | AH13: =$B$11 -> WRC | AI13: W | AJ13: L | AK13: TP | AL13: (TP) | AM13: TP | AO13: R_P | AP13: R
A14: 1 | B14: =B6 -> KRC | C14: =VLOOKUP(VALUE(A14&B13),登録!$AE$2:$AH$55,3,FALSE) -> 清水 義晴 | D14: =VLOOKUP(VALUE(A14&B13),登録!$AE$2:$AH$55,4,FALSE) -> 120 | F14: =★個人成績表★!H6 -> w | G14: =★個人成績表★!G6 -> 22 | H14: =★個人成績表★!F6 -> 58 | I14: =★個人成績表★!E6 -> w | J14: =★個人成績表★!D6 -> w | K14: =IF(COUNTBLANK(E14:J14)=6,"",COUNTIF(E14:J14,"w")) -> 3 | L14: =IF(COUNTBLANK(E14:J14)=6,"",6-COUNTBLANK(E14:J14)-K14) -> 2 | M14: =K14*D14+SUM(E14:J14) -> 440 | N14: =M14*登録!$I$8/★対戦リーグ表★!D14 -> 440 | O14: =IF(ISERROR(N14),"",IF(M14=N14,"","*")) ->  | P14: =IF(COUNTBLANK(E14:J14)=6,"",N14) -> 440 | Q14: =K14*100000+N14 -> 300440 | R14: =IF(COUNTBLANK(E14:J14)=6,"",RANK(Q14,Q14:Q19)) -> 4 | T14: =IF(結果入力表!E101="","",結果入力表!E101) ->  | U14: =IF(結果入力表!E80="","",結果入力表!E80) ->  | V14: =IF(結果入力表!E59="","",結果入力表!E59) ->  | W14: =IF(結果入力表!E38="","",結果入力表!E38) ->  | X14: =IF(結果入力表!E17="","",結果入力表!E17) ->  | Y14: 12 | Z14: =Z6 -> KRC | AA14: =VLOOKUP(Y14,登録!$AE$2:$AH$55,3,FALSE) -> 清水 義晴 | AB14: =VLOOKUP(Y14,登録!$AE$2:$AH$55,4,FALSE) -> 120 | AD14: =★個人成績表★!M6 -> 117 | AE14: =★個人成績表★!L6 -> w | AF14: =★個人成績表★!K6 -> w | AG14: =★個人成績表★!J6 -> 108 | AH14: =★個人成績表★!I6 -> 5 | AI14: =IF(COUNTBLANK(AC14:AH14)=6,"",COUNTIF(AC14:AH14,"w")) -> 2 | AJ14: =IF(COUNTBLANK(AC14:AH14)=6,"",6-COUNTBLANK(AC14:AH14)-AI14) -> 3 | AK14: =AI14*AB14+SUM(AC14:AH14) -> 470 | AL14: =AK14*登録!$I$8/★対戦リーグ表★!AB14 -> 470 | AM14: =IF(ISERROR(AL14),"",IF(AK14=AL14,"","*")) ->  | AN14: =IF(COUNTBLANK(AC14:AH14)=6,"",AL14) -> 470 | AO14: =AI14*100000+AL14 -> 200470 | AP14: =IF(COUNTBLANK(AC14:AH14)=6,"",RANK(AO14,AO14:AO19)) -> 5 | AR14: =IF(結果入力表!E206="","",結果入力表!E206) ->  | AS14: =IF(結果入力表!E185="","",結果入力表!E185) ->  | AT14: =IF(結果入力表!E164="","",結果入力表!E164) ->  | AU14: =IF(結果入力表!E143="","",結果入力表!E143) ->  | AV14: =IF(結果入力表!E122="","",結果入力表!E122) ->  | AX14: =RANK(BP14,$BP$6:$BP$59) -> 16 | AZ14: =C14 -> 清水 義晴 | BA14: =B14 -> KRC | BB14: =IF(LEFT(T14,1)="A","A",IF(LEFT(T14,1)="B","B",T14)) ->  | BC14: =IF(LEFT(U14,1)="A","A",IF(LEFT(U14,1)="B","B",U14)) ->  | BD14: =IF(LEFT(V14,1)="A","A",IF(LEFT(V14,1)="B","B",V14)) ->  | BE14: =IF(LEFT(W14,1)="A","A",IF(LEFT(W14,1)="B","B",W14)) ->  | BF14: =IF(LEFT(X14,1)="A","A",IF(LEFT(X14,1)="B","B",X14)) ->  | BG14: =IF(LEFT(AR14,1)="A","A",IF(LEFT(AR14,1)="B","B",AR14)) ->  | BH14: =IF(LEFT(AS14,1)="A","A",IF(LEFT(AS14,1)="B","B",AS14)) ->  | BI14: =IF(LEFT(AT14,1)="A","A",IF(LEFT(AT14,1)="B","B",AT14)) ->  | BJ14: =IF(LEFT(AU14,1)="A","A",IF(LEFT(AU14,1)="B","B",AU14)) ->  | BK14: =IF(LEFT(AV14,1)="A","A",IF(LEFT(AV14,1)="B","B",AV14)) ->  | BL14: =IF(BM14>0,"A"&登録!$I$8,IF(BN14>0,"B"&登録!$I$8,BO14)) -> 0 | BM14: =COUNTIF($BB14:$BK14,BM$5) -> 0 | BN14: 0 | BO14: =MAX(BB14:BK14) -> 0 | BP14: =BM14*10000+BN14*1000+BO14 -> 0
A15: 2 | B15: HRC | C15: =VLOOKUP(VALUE(A15&B13),登録!$AE$2:$AH$55,3,FALSE) -> 堂園 雅也 | D15: =VLOOKUP(VALUE(A15&B13),登録!$AE$2:$AH$55,4,FALSE) -> 120 | E15: =★個人成績表★!H15 -> 114 | G15: =★個人成績表★!E15 -> w | H15: =★個人成績表★!G15 -> w | I15: =★個人成績表★!D15 -> w | J15: =★個人成績表★!F15 -> 8 | K15: 3 | L15: 2 | M15: 482 | N15: =M15*登録!$I$8/★対戦リーグ表★!D15 -> 482 | P15: 482 | Q15: =K15*100000+N15 -> 300482 | R15: =IF(COUNTBLANK(E15:J15)=6,"",RANK(Q15,Q14:Q19)) -> 3 | S15: =IF(結果入力表!H101="","",結果入力表!H101) ->  | U15: =IF(結果入力表!E24="","",結果入力表!E24) ->  | V15: =IF(結果入力表!H73="","",結果入力表!H73) ->  | W15: =IF(結果入力表!E10="","",結果入力表!E10) ->  | X15: =IF(結果入力表!H45="","",結果入力表!H45) ->  | Y15: 23 | Z15: HRC | AA15: =VLOOKUP(Y15,登録!$AE$2:$AH$55,3,FALSE) -> 宮本 一 | AB15: =VLOOKUP(Y15,登録!$AE$2:$AH$55,4,FALSE) -> 120 | AC15: =★個人成績表★!M16 -> w | AE15: =★個人成績表★!J16 -> 76 | AF15: =★個人成績表★!L16 -> w | AG15: =★個人成績表★!I16 -> w | AH15: =★個人成績表★!K16 -> w | AI15: 4 | AJ15: 1 | AK15: 556 | AL15: =AK15*登録!$I$8/★対戦リーグ表★!AB15 -> 556 | AN15: 556 | AO15: =AI15*100000+AL15 -> 400556 | AP15: =IF(COUNTBLANK(AC15:AH15)=6,"",RANK(AO15,AO14:AO19)) -> 1 | AQ15: =IF(結果入力表!H206="","",結果入力表!H206) ->  | AS15: =IF(結果入力表!E129="","",結果入力表!E129) ->  | AT15: =IF(結果入力表!H178="","",結果入力表!H178) -> 112 | AU15: =IF(結果入力表!E115="","",結果入力表!E115) ->  | AV15: =IF(結果入力表!H150="","",結果入力表!H150) ->  | AX15: 14 | AZ15: 堂園 雅也 | BA15: HRC | BB15: =IF(LEFT(S15,1)="A","A",IF(LEFT(S15,1)="B","B",S15)) ->  | BC15: =IF(LEFT(U15,1)="A","A",IF(LEFT(U15,1)="B","B",U15)) ->  | BD15: =IF(LEFT(V15,1)="A","A",IF(LEFT(V15,1)="B","B",V15)) ->  | BE15: =IF(LEFT(W15,1)="A","A",IF(LEFT(W15,1)="B","B",W15)) ->  | BF15: =IF(LEFT(X15,1)="A","A",IF(LEFT(X15,1)="B","B",X15)) ->  | BG15: =IF(LEFT(AQ7,1)="A","A",IF(LEFT(AQ7,1)="B","B",AQ7)) ->  | BH15: =IF(LEFT(AS7,1)="A","A",IF(LEFT(AS7,1)="B","B",AS7)) -> 104 | BI15: =IF(LEFT(AT7,1)="A","A",IF(LEFT(AT7,1)="B","B",AT7)) ->  | BJ15: =IF(LEFT(AU7,1)="A","A",IF(LEFT(AU7,1)="B","B",AU7)) ->  | BK15: =IF(LEFT(AV7,1)="A","A",IF(LEFT(AV7,1)="B","B",AV7)) ->  | BL15: =IF(BM15>0,"A"&登録!$I$8,IF(BN15>0,"B"&登録!$I$8,BO15)) -> 104 | BM15: 0 | BN15: 0 | BO15: 104 | BP15: 104 | BR15: =★個人成績表★!B14 -> 鐵山 泰三 | BS15: =VLOOKUP(BR15,$AZ$6:$BL$59,13,FALSE) -> 128
A16: 3 | B16: SBC | C16: =VLOOKUP(VALUE(A16&B13),登録!$AE$2:$AH$55,3,FALSE) -> 大橋 義治 | D16: =VLOOKUP(VALUE(A16&B13),登録!$AE$2:$AH$55,4,FALSE) -> 120 | E16: =★個人成績表★!G24 -> w | F16: =★個人成績表★!E24 -> 61 | H16: =★個人成績表★!D24 -> w | I16: =★個人成績表★!F24 -> w | J16: =★個人成績表★!H24 -> w | K16: 4 | L16: 1 | M16: 541 | N16: =M16*登録!$I$8/★対戦リーグ表★!D16 -> 541 | P16: 541 | Q16: =K16*100000+N16 -> 400541 | R16: =IF(COUNTBLANK(E16:J16)=6,"",RANK(Q16,Q14:Q19)) -> 1 | S16: =IF(結果入力表!H80="","",結果入力表!H80) ->  | T16: =IF(結果入力表!H24="","",結果入力表!H24) ->  | V16: =IF(結果入力表!E3="","",結果入力表!E3) ->  | W16: =IF(結果入力表!H52="","",結果入力表!H52) ->  | X16: =IF(結果入力表!E94="","",結果入力表!E94) ->  | Y16: 34 | Z16: SBC | AA16: =VLOOKUP(Y16,登録!$AE$2:$AH$55,3,FALSE) -> 西峰 久祐 | AB16: =VLOOKUP(Y16,登録!$AE$2:$AH$55,4,FALSE) -> 120 | AC16: =★個人成績表★!L26 -> 116 | AD16: =★個人成績表★!J26 -> w | AF16: =★個人成績表★!I26 -> w | AG16: =★個人成績表★!K26 -> w | AH16: =★個人成績表★!M26 -> 81 | AI16: 3 | AJ16: 2 | AK16: 557 | AL16: =AK16*登録!$I$8/★対戦リーグ表★!AB16 -> 557 | AN16: 557 | AO16: =AI16*100000+AL16 -> 300557 | AP16: =IF(COUNTBLANK(AC16:AH16)=6,"",RANK(AO16,AO14:AO19)) -> 3 | AQ16: =IF(結果入力表!H185="","",結果入力表!H185) ->  | AR16: =IF(結果入力表!H129="","",結果入力表!H129) ->  | AT16: =IF(結果入力表!E108="","",結果入力表!E108) ->  | AU16: =IF(結果入力表!H157="","",結果入力表!H157) -> 101 | AV16: =IF(結果入力表!E199="","",結果入力表!E199) ->  | AX16: 16 | AZ16: 大橋 義治 | BA16: SBC | BB16: =IF(LEFT(S16,1)="A","A",IF(LEFT(S16,1)="B","B",S16)) ->  | BC16: =IF(LEFT(T16,1)="A","A",IF(LEFT(T16,1)="B","B",T16)) ->  | BD16: =IF(LEFT(V16,1)="A","A",IF(LEFT(V16,1)="B","B",V16)) ->  | BE16: =IF(LEFT(W16,1)="A","A",IF(LEFT(W16,1)="B","B",W16)) ->  | BF16: =IF(LEFT(X16,1)="A","A",IF(LEFT(X16,1)="B","B",X16)) ->  | BG16: =IF(LEFT(AQ56,1)="A","A",IF(LEFT(AQ56,1)="B","B",AQ56)) ->  | BH16: =IF(LEFT(AR56,1)="A","A",IF(LEFT(AR56,1)="B","B",AR56)) ->  | BI16: =IF(LEFT(AT56,1)="A","A",IF(LEFT(AT56,1)="B","B",AT56)) ->  | BJ16: =IF(LEFT(AU56,1)="A","A",IF(LEFT(AU56,1)="B","B",AU56)) ->  | BK16: =IF(LEFT(AV56,1)="A","A",IF(LEFT(AV56,1)="B","B",AV56)) ->  | BL16: =IF(BM16>0,"A"&登録!$I$8,IF(BN16>0,"B"&登録!$I$8,BO16)) -> 0 | BM16: 0 | BN16: 0 | BO16: 0 | BP16: 0 | BR16: =★個人成績表★!B15 -> 堂園 雅也 | BS16: 104
A17: 4 | B17: NRC | C17: =VLOOKUP(VALUE(A17&B13),登録!$AE$2:$AH$55,3,FALSE) -> 岩本 剛 | D17: =VLOOKUP(VALUE(A17&B13),登録!$AE$2:$AH$55,4,FALSE) -> 120 | E17: =★個人成績表★!F33 -> w | F17: =★個人成績表★!G33 -> 45 | G17: =★個人成績表★!D33 -> 112 | I17: =★個人成績表★!H33 -> w | J17: =★個人成績表★!E33 -> w | K17: 3 | L17: 2 | M17: 517 | N17: =M17*登録!$I$8/★対戦リーグ表★!D17 -> 517 | P17: 517 | Q17: =K17*100000+N17 -> 300517 | R17: =IF(COUNTBLANK(E17:J17)=6,"",RANK(Q17,Q14:Q19)) -> 2 | S17: =IF(結果入力表!H59="","",結果入力表!H59) ->  | T17: =IF(結果入力表!E73="","",結果入力表!E73) ->  | U17: =IF(結果入力表!H3="","",結果入力表!H3) ->  | W17: =IF(結果入力表!E87="","",結果入力表!E87) ->  | X17: =IF(結果入力表!H31="","",結果入力表!H31) ->  | Y17: 45 | Z17: NRC | AA17: =VLOOKUP(Y17,登録!$AE$2:$AH$55,3,FALSE) -> 近藤 拓馬 | AB17: =VLOOKUP(Y17,登録!$AE$2:$AH$55,4,FALSE) -> 120 | AC17: =★個人成績表★!K36 -> 8 | AD17: =★個人成績表★!L36 -> 0 | AE17: =★個人成績表★!I36 -> 17 | AG17: =★個人成績表★!M36 -> 33 | AH17: =★個人成績表★!J36 -> 81 | AI17: 0 | AJ17: 5 | AK17: 139 | AL17: =AK17*登録!$I$8/★対戦リーグ表★!AB17 -> 139 | AN17: 139 | AO17: =AI17*100000+AL17 -> 139 | AP17: =IF(COUNTBLANK(AC17:AH17)=6,"",RANK(AO17,AO14:AO19)) -> 6 | AQ17: =IF(結果入力表!H164="","",結果入力表!H164) ->  | AR17: =IF(結果入力表!E178="","",結果入力表!E178) ->  | AS17: =IF(結果入力表!H108="","",結果入力表!H108) ->  | AU17: =IF(結果入力表!E192="","",結果入力表!E192) ->  | AV17: =IF(結果入力表!H136="","",結果入力表!H136) ->  | AX17: 16 | AZ17: 岩本 剛 | BA17: NRC | BB17: =IF(LEFT(S17,1)="A","A",IF(LEFT(S17,1)="B","B",S17)) ->  | BC17: =IF(LEFT(T17,1)="A","A",IF(LEFT(T17,1)="B","B",T17)) ->  | BD17: =IF(LEFT(U17,1)="A","A",IF(LEFT(U17,1)="B","B",U17)) ->  | BE17: =IF(LEFT(W17,1)="A","A",IF(LEFT(W17,1)="B","B",W17)) ->  | BF17: =IF(LEFT(X17,1)="A","A",IF(LEFT(X17,1)="B","B",X17)) ->  | BG17: =IF(LEFT(AQ49,1)="A","A",IF(LEFT(AQ49,1)="B","B",AQ49)) ->  | BH17: =IF(LEFT(AR49,1)="A","A",IF(LEFT(AR49,1)="B","B",AR49)) ->  | BI17: =IF(LEFT(AS49,1)="A","A",IF(LEFT(AS49,1)="B","B",AS49)) ->  | BJ17: =IF(LEFT(AU49,1)="A","A",IF(LEFT(AU49,1)="B","B",AU49)) ->  | BK17: =IF(LEFT(AV49,1)="A","A",IF(LEFT(AV49,1)="B","B",AV49)) ->  | BL17: =IF(BM17>0,"A"&登録!$I$8,IF(BN17>0,"B"&登録!$I$8,BO17)) -> 0 | BM17: 0 | BN17: 0 | BO17: 0 | BP17: 0 | BR17: =★個人成績表★!B16 -> 宮本 一 | BS17: B120
A18: 5 | B18: ORC | C18: =VLOOKUP(VALUE(A18&B13),登録!$AE$2:$AH$55,3,FALSE) -> 藤明 宏樹 | D18: =VLOOKUP(VALUE(A18&B13),登録!$AE$2:$AH$55,4,FALSE) -> 120 | E18: =★個人成績表★!E42 -> 83 | F18: =★個人成績表★!D42 -> 86 | G18: =★個人成績表★!F42 -> 67 | H18: =★個人成績表★!H42 -> 5 | J18: =★個人成績表★!G42 -> 48 | K18: 0 | L18: 5 | M18: 289 | N18: =M18*登録!$I$8/★対戦リーグ表★!D18 -> 289 | P18: 289 | Q18: =K18*100000+N18 -> 289 | R18: =IF(COUNTBLANK(E18:J18)=6,"",RANK(Q18,Q14:Q19)) -> 6 | S18: =IF(結果入力表!H38="","",結果入力表!H38) ->  | T18: =IF(結果入力表!H10="","",結果入力表!H10) ->  | U18: =IF(結果入力表!E52="","",結果入力表!E52) ->  | V18: =IF(結果入力表!H87="","",結果入力表!H87) ->  | X18: =IF(結果入力表!E66="","",結果入力表!E66) ->  | Y18: 56 | Z18: ORC | AA18: =VLOOKUP(Y18,登録!$AE$2:$AH$55,3,FALSE) -> 乾 伸綱 | AB18: =VLOOKUP(Y18,登録!$AE$2:$AH$55,4,FALSE) -> 120 | AC18: =★個人成績表★!J46 -> w | AD18: =★個人成績表★!I46 -> 115 | AE18: =★個人成績表★!K46 -> 85 | AF18: =★個人成績表★!M46 -> w | AH18: =★個人成績表★!L46 -> w | AI18: 3 | AJ18: 2 | AK18: 560 | AL18: =AK18*登録!$I$8/★対戦リーグ表★!AB18 -> 560 | AN18: 560 | AO18: =AI18*100000+AL18 -> 300560 | AP18: =IF(COUNTBLANK(AC18:AH18)=6,"",RANK(AO18,AO14:AO19)) -> 2 | AQ18: =IF(結果入力表!H143="","",結果入力表!H143) ->  | AR18: =IF(結果入力表!H115="","",結果入力表!H115) ->  | AS18: =IF(結果入力表!E157="","",結果入力表!E157) ->  | AT18: =IF(結果入力表!H192="","",結果入力表!H192) ->  | AV18: =IF(結果入力表!E171="","",結果入力表!E171) ->  | AX18: 16 | AZ18: 藤明 宏樹 | BA18: ORC | BB18: =IF(LEFT(S18,1)="A","A",IF(LEFT(S18,1)="B","B",S18)) ->  | BC18: =IF(LEFT(T18,1)="A","A",IF(LEFT(T18,1)="B","B",T18)) ->  | BD18: =IF(LEFT(U18,1)="A","A",IF(LEFT(U18,1)="B","B",U18)) ->  | BE18: =IF(LEFT(V18,1)="A","A",IF(LEFT(V18,1)="B","B",V18)) ->  | BF18: =IF(LEFT(X18,1)="A","A",IF(LEFT(X18,1)="B","B",X18)) ->  | BG18: =IF(LEFT(AQ42,1)="A","A",IF(LEFT(AQ42,1)="B","B",AQ42)) ->  | BH18: =IF(LEFT(AR42,1)="A","A",IF(LEFT(AR42,1)="B","B",AR42)) ->  | BI18: =IF(LEFT(AS42,1)="A","A",IF(LEFT(AS42,1)="B","B",AS42)) ->  | BJ18: =IF(LEFT(AT42,1)="A","A",IF(LEFT(AT42,1)="B","B",AT42)) ->  | BK18: =IF(LEFT(AV42,1)="A","A",IF(LEFT(AV42,1)="B","B",AV42)) ->  | BL18: =IF(BM18>0,"A"&登録!$I$8,IF(BN18>0,"B"&登録!$I$8,BO18)) -> 0 | BM18: 0 | BN18: 0 | BO18: 0 | BP18: 0 | BR18: =★個人成績表★!B17 -> 伊藤 登 | BS18: 0
A19: 6 | B19: WRC | C19: =IF(B19="","",VLOOKUP(VALUE(A19&B13),登録!$AE$2:$AH$55,3,FALSE)) -> 和田宗一郎 | D19: =IF(B19="","",VLOOKUP(VALUE(A19&B13),登録!$AE$2:$AH$55,4,FALSE)) -> 120 | E19: =★個人成績表★!D51 -> 33 | F19: =★個人成績表★!F51 -> w | G19: =★個人成績表★!H51 -> 51 | H19: =★個人成績表★!E51 -> 22 | I19: =★個人成績表★!G51 -> w | K19: 2 | L19: 3 | M19: 346 | N19: =M19*登録!$I$8/★対戦リーグ表★!D19 -> 346 | P19: 346 | Q19: =IF(D19="","",K19*100000+N19) -> 200346 | R19: =IF(COUNTBLANK(E19:J19)=6,"",RANK(Q19,Q14:Q19)) -> 5 | S19: =IF(結果入力表!H17="","",結果入力表!H17) ->  | T19: =IF(結果入力表!E45="","",結果入力表!E45) ->  | U19: =IF(結果入力表!H94="","",結果入力表!H94) ->  | V19: =IF(結果入力表!E31="","",結果入力表!E31) ->  | W19: =IF(結果入力表!H66="","",結果入力表!H66) ->  | Y19: 67 | Z19: WRC | AA19: =IF(Z19="","",VLOOKUP(Y19,登録!$AE$2:$AH$55,3,FALSE)) -> 松房ゆかり | AB19: =IF(Z19="","",VLOOKUP(Y19,登録!$AE$2:$AH$55,4,FALSE)) -> 100 | AC19: =★個人成績表★!I56 -> w | AD19: =★個人成績表★!K56 -> 58 | AE19: =★個人成績表★!M56 -> w | AF19: =★個人成績表★!J56 -> w | AG19: =★個人成績表★!L56 -> 0 | AI19: 3 | AJ19: 2 | AK19: 358 | AL19: =AK19*登録!$I$8/★対戦リーグ表★!AB19 -> 429.6 | AM19: * | AN19: 429.6 | AO19: =IF(AB19="","",AI19*100000+AL19) -> 300429.6 | AP19: =IF(COUNTBLANK(AC19:AH19)=6,"",RANK(AO19,AO14:AO19)) -> 4 | AQ19: =IF(結果入力表!H122="","",結果入力表!H122) ->  | AR19: =IF(結果入力表!E150="","",結果入力表!E150) ->  | AS19: =IF(結果入力表!H199="","",結果入力表!H199) ->  | AT19: =IF(結果入力表!E136="","",結果入力表!E136) ->  | AU19: =IF(結果入力表!H171="","",結果入力表!H171) ->  | AX19: 16 | AZ19: 和田宗一郎 | BA19: WRC | BB19: =IF(LEFT(S19,1)="A","A",IF(LEFT(S19,1)="B","B",S19)) ->  | BC19: =IF(LEFT(T19,1)="A","A",IF(LEFT(T19,1)="B","B",T19)) ->  | BD19: =IF(LEFT(U19,1)="A","A",IF(LEFT(U19,1)="B","B",U19)) ->  | BE19: =IF(LEFT(V19,1)="A","A",IF(LEFT(V19,1)="B","B",V19)) ->  | BF19: =IF(LEFT(W19,1)="A","A",IF(LEFT(W19,1)="B","B",W19)) ->  | BG19: =IF(LEFT(AQ35,1)="A","A",IF(LEFT(AQ35,1)="B","B",AQ35)) ->  | BH19: =IF(LEFT(AR35,1)="A","A",IF(LEFT(AR35,1)="B","B",AR35)) ->  | BI19: =IF(LEFT(AS35,1)="A","A",IF(LEFT(AS35,1)="B","B",AS35)) ->  | BJ19: =IF(LEFT(AT35,1)="A","A",IF(LEFT(AT35,1)="B","B",AT35)) ->  | BK19: =IF(LEFT(AU35,1)="A","A",IF(LEFT(AU35,1)="B","B",AU35)) ->  | BL19: =IF(BM19>0,"A"&登録!$I$8,IF(BN19>0,"B"&登録!$I$8,BO19)) -> 0 | BM19: 0 | BN19: 0 | BO19: 0 | BP19: 0 | BR19: =★個人成績表★!B18 -> 宮井健太郎 | BS19: 0
BR20: =★個人成績表★!B19 -> 白澤雄一郎 | BS20: 107
B21: 3 | C21: Player | D21: handy | E21: =B22 -> KRC | F21: =B23 -> HRC | G21: =B24 -> SBC | H21: =B25 -> NRC | I21: =B26 -> ORC | J21: =B27 -> WRC | K21: W | L21: L | M21: TP | N21: (TP) | O21: TP | Q21: R_P | R21: R | Z21: 3 | AA21: Player | AB21: handy | AC21: =$B$6 -> KRC | AD21: =$B$7 -> HRC | AE21: =$B$8 -> SBC | AF21: =$B$9 -> NRC | AG21: =$B$10 -> ORC | AH21: =$B$11 -> WRC | AI21: W | AJ21: L | AK21: TP | AL21: (TP) | AM21: TP | AO21: R_P | AP21: R | BL21: =IF(BM21>0,"A"&登録!$I$8,IF(BN21>0,"B"&登録!$I$8,BO21)) -> 0 | BR21: =★個人成績表★!B20 -> 河地 恵里 | BS21: 0
A22: 1 | B22: =B14 -> KRC | C22: =VLOOKUP(VALUE(A22&B21),登録!$AE$2:$AH$55,3,FALSE) -> 鈴木 康文 | D22: =VLOOKUP(VALUE(A22&B21),登録!$AE$2:$AH$55,4,FALSE) -> 120 | F22: =★個人成績表★!H7 -> 2 | G22: =★個人成績表★!G7 -> w | H22: =★個人成績表★!F7 -> w | I22: =★個人成績表★!E7 -> w | J22: =★個人成績表★!D7 -> w | K22: =IF(COUNTBLANK(E22:J22)=6,"",COUNTIF(E22:J22,"w")) -> 4 | L22: =IF(COUNTBLANK(E22:J22)=6,"",6-COUNTBLANK(E22:J22)-K22) -> 1 | M22: =K22*D22+SUM(E22:J22) -> 482 | N22: =M22*登録!$I$8/★対戦リーグ表★!D22 -> 482 | O22: =IF(ISERROR(N22),"",IF(M22=N22,"","*")) ->  | P22: =IF(COUNTBLANK(E22:J22)=6,"",N22) -> 482 | Q22: =K22*100000+N22 -> 400482 | R22: =IF(COUNTBLANK(E22:J22)=6,"",RANK(Q22,Q22:Q27)) -> 1 | T22: =IF(結果入力表!E102="","",結果入力表!E102) ->  | U22: =IF(結果入力表!E81="","",結果入力表!E81) ->  | V22: =IF(結果入力表!E60="","",結果入力表!E60) ->  | W22: =IF(結果入力表!E39="","",結果入力表!E39) ->  | X22: =IF(結果入力表!E18="","",結果入力表!E18) ->  | Y22: 13 | Z22: =Z14 -> KRC | AA22: =VLOOKUP(Y22,登録!$AE$2:$AH$55,3,FALSE) -> 鈴木 康文 | AB22: =VLOOKUP(Y22,登録!$AE$2:$AH$55,4,FALSE) -> 120 | AD22: =★個人成績表★!M7 -> 53 | AE22: =★個人成績表★!L7 -> w | AF22: =★個人成績表★!K7 -> 119 | AG22: =★個人成績表★!J7 -> w | AH22: =★個人成績表★!I7 -> w | AI22: =IF(COUNTBLANK(AC22:AH22)=6,"",COUNTIF(AC22:AH22,"w")) -> 3 | AJ22: =IF(COUNTBLANK(AC22:AH22)=6,"",6-COUNTBLANK(AC22:AH22)-AI22) -> 2 | AK22: =AI22*AB22+SUM(AC22:AH22) -> 532 | AL22: =AK22*登録!$I$8/★対戦リーグ表★!AB22 -> 532 | AM22: =IF(ISERROR(AL22),"",IF(AK22=AL22,"","*")) ->  | AN22: =IF(COUNTBLANK(AC22:AH22)=6,"",AL22) -> 532 | AO22: =AI22*100000+AL22 -> 300532 | AP22: =IF(COUNTBLANK(AC22:AH22)=6,"",RANK(AO22,AO22:AO27)) -> 3 | AR22: =IF(結果入力表!E207="","",結果入力表!E207) ->  | AS22: =IF(結果入力表!E186="","",結果入力表!E186) ->  | AT22: =IF(結果入力表!E165="","",結果入力表!E165) ->  | AU22: =IF(結果入力表!E144="","",結果入力表!E144) -> 107 | AV22: =IF(結果入力表!E123="","",結果入力表!E123) ->  | AX22: =RANK(BP22,$BP$6:$BP$59) -> 8 | AZ22: =C22 -> 鈴木 康文 | BA22: =B22 -> KRC | BB22: =IF(LEFT(T22,1)="A","A",IF(LEFT(T22,1)="B","B",T22)) ->  | BC22: =IF(LEFT(U22,1)="A","A",IF(LEFT(U22,1)="B","B",U22)) ->  | BD22: =IF(LEFT(V22,1)="A","A",IF(LEFT(V22,1)="B","B",V22)) ->  | BE22: =IF(LEFT(W22,1)="A","A",IF(LEFT(W22,1)="B","B",W22)) ->  | BF22: =IF(LEFT(X22,1)="A","A",IF(LEFT(X22,1)="B","B",X22)) ->  | BG22: =IF(LEFT(AR22,1)="A","A",IF(LEFT(AR22,1)="B","B",AR22)) ->  | BH22: =IF(LEFT(AS22,1)="A","A",IF(LEFT(AS22,1)="B","B",AS22)) ->  | BI22: =IF(LEFT(AT22,1)="A","A",IF(LEFT(AT22,1)="B","B",AT22)) ->  | BJ22: =IF(LEFT(AU22,1)="A","A",IF(LEFT(AU22,1)="B","B",AU22)) -> 107 | BK22: =IF(LEFT(AV22,1)="A","A",IF(LEFT(AV22,1)="B","B",AV22)) ->  | BL22: =IF(BM22>0,"A"&登録!$I$8,IF(BN22>0,"B"&登録!$I$8,BO22)) -> 107 | BM22: =COUNTIF($BB22:$BK22,BM$5) -> 0 | BN22: 0 | BO22: =MAX(BB22:BK22) -> 107 | BP22: =BM22*10000+BN22*1000+BO22 -> 107
A23: 2 | B23: HRC | C23: =VLOOKUP(VALUE(A23&B21),登録!$AE$2:$AH$55,3,FALSE) -> 宮本 一 | D23: =VLOOKUP(VALUE(A23&B21),登録!$AE$2:$AH$55,4,FALSE) -> 120 | E23: =★個人成績表★!H16 -> w | G23: =★個人成績表★!E16 -> 91 | H23: =★個人成績表★!G16 -> w | I23: =★個人成績表★!D16 -> w | J23: =★個人成績表★!F16 -> 115 | K23: 3 | L23: 2 | M23: 566 | N23: =M23*登録!$I$8/★対戦リーグ表★!D23 -> 566 | P23: 566 | Q23: =K23*100000+N23 -> 300566 | R23: =IF(COUNTBLANK(E23:J23)=6,"",RANK(Q23,Q22:Q27)) -> 2 | S23: =IF(結果入力表!H102="","",結果入力表!H102) -> 105 | U23: =IF(結果入力表!E25="","",結果入力表!E25) ->  | V23: =IF(結果入力表!H74="","",結果入力表!H74) -> B120 | W23: =IF(結果入力表!E11="","",結果入力表!E11) ->  | X23: =IF(結果入力表!H46="","",結果入力表!H46) ->  | Y23: 24 | Z23: HRC | AA23: =VLOOKUP(Y23,登録!$AE$2:$AH$55,3,FALSE) -> 伊藤 登 | AB23: =VLOOKUP(Y23,登録!$AE$2:$AH$55,4,FALSE) -> 120 | AC23: =★個人成績表★!M17 -> w | AE23: =★個人成績表★!J17 -> 72 | AF23: =★個人成績表★!L17 -> w | AG23: =★個人成績表★!I17 -> w | AH23: =★個人成績表★!K17 -> 42 | AI23: 3 | AJ23: 2 | AK23: 474 | AL23: =AK23*登録!$I$8/★対戦リーグ表★!AB23 -> 474 | AN23: 474 | AO23: =AI23*100000+AL23 -> 300474 | AP23: =IF(COUNTBLANK(AC23:AH23)=6,"",RANK(AO23,AO22:AO27)) -> 4 | AQ23: =IF(結果入力表!H207="","",結果入力表!H207) ->  | AS23: =IF(結果入力表!E130="","",結果入力表!E130) ->  | AT23: =IF(結果入力表!H179="","",結果入力表!H179) ->  | AU23: =IF(結果入力表!E116="","",結果入力表!E116) ->  | AV23: =IF(結果入力表!H151="","",結果入力表!H151) ->  | AX23: 5 | AZ23: 宮本 一 | BA23: HRC | BB23: =IF(LEFT(S23,1)="A","A",IF(LEFT(S23,1)="B","B",S23)) -> 105 | BC23: =IF(LEFT(U23,1)="A","A",IF(LEFT(U23,1)="B","B",U23)) ->  | BD23: =IF(LEFT(V23,1)="A","A",IF(LEFT(V23,1)="B","B",V23)) -> B | BE23: =IF(LEFT(W23,1)="A","A",IF(LEFT(W23,1)="B","B",W23)) ->  | BF23: =IF(LEFT(X23,1)="A","A",IF(LEFT(X23,1)="B","B",X23)) ->  | BG23: =IF(LEFT(AQ15,1)="A","A",IF(LEFT(AQ15,1)="B","B",AQ15)) ->  | BH23: =IF(LEFT(AS15,1)="A","A",IF(LEFT(AS15,1)="B","B",AS15)) ->  | BI23: =IF(LEFT(AT15,1)="A","A",IF(LEFT(AT15,1)="B","B",AT15)) -> 112 | BJ23: =IF(LEFT(AU15,1)="A","A",IF(LEFT(AU15,1)="B","B",AU15)) ->  | BK23: =IF(LEFT(AV15,1)="A","A",IF(LEFT(AV15,1)="B","B",AV15)) ->  | BL23: =IF(BM23>0,"A"&登録!$I$8,IF(BN23>0,"B"&登録!$I$8,BO23)) -> B120 | BM23: 0 | BN23: 1 | BO23: 112 | BP23: 1112
A24: 3 | B24: SBC | C24: =VLOOKUP(VALUE(A24&B21),登録!$AE$2:$AH$55,3,FALSE) -> 山中 康寛 | D24: =VLOOKUP(VALUE(A24&B21),登録!$AE$2:$AH$55,4,FALSE) -> 120 | E24: =★個人成績表★!G25 -> 51 | F24: =★個人成績表★!E25 -> w | H24: =★個人成績表★!D25 -> 0 | I24: =★個人成績表★!F25 -> 63 | J24: =★個人成績表★!H25 -> w | K24: 2 | L24: 3 | M24: 354 | N24: =M24*登録!$I$8/★対戦リーグ表★!D24 -> 354 | P24: 354 | Q24: =K24*100000+N24 -> 200354 | R24: =IF(COUNTBLANK(E24:J24)=6,"",RANK(Q24,Q22:Q27)) -> 6 | S24: =IF(結果入力表!H81="","",結果入力表!H81) ->  | T24: =IF(結果入力表!H25="","",結果入力表!H25) ->  | V24: =IF(結果入力表!E4="","",結果入力表!E4) ->  | W24: =IF(結果入力表!H53="","",結果入力表!H53) ->  | X24: =IF(結果入力表!E95="","",結果入力表!E95) ->  | Y24: 35 | Z24: SBC | AA24: =VLOOKUP(Y24,登録!$AE$2:$AH$55,3,FALSE) -> 大橋 正寛 | AB24: =VLOOKUP(Y24,登録!$AE$2:$AH$55,4,FALSE) -> 120 | AC24: =★個人成績表★!L27 -> 44 | AD24: =★個人成績表★!J27 -> w | AF24: =★個人成績表★!I27 -> w | AG24: =★個人成績表★!K27 -> w | AH24: =★個人成績表★!M27 -> w | AI24: 4 | AJ24: 1 | AK24: 524 | AL24: =AK24*登録!$I$8/★対戦リーグ表★!AB24 -> 524 | AN24: 524 | AO24: =AI24*100000+AL24 -> 400524 | AP24: =IF(COUNTBLANK(AC24:AH24)=6,"",RANK(AO24,AO22:AO27)) -> 1 | AQ24: =IF(結果入力表!H186="","",結果入力表!H186) ->  | AR24: =IF(結果入力表!H130="","",結果入力表!H130) ->  | AT24: =IF(結果入力表!E109="","",結果入力表!E109) -> A120 | AU24: =IF(結果入力表!H158="","",結果入力表!H158) ->  | AV24: =IF(結果入力表!E200="","",結果入力表!E200) ->  | AX24: 16 | AZ24: 山中 康寛 | BA24: SBC | BB24: =IF(LEFT(S24,1)="A","A",IF(LEFT(S24,1)="B","B",S24)) ->  | BC24: =IF(LEFT(T24,1)="A","A",IF(LEFT(T24,1)="B","B",T24)) ->  | BD24: =IF(LEFT(V24,1)="A","A",IF(LEFT(V24,1)="B","B",V24)) ->  | BE24: =IF(LEFT(W24,1)="A","A",IF(LEFT(W24,1)="B","B",W24)) ->  | BF24: =IF(LEFT(X24,1)="A","A",IF(LEFT(X24,1)="B","B",X24)) ->  | BG24: =IF(LEFT(AQ8,1)="A","A",IF(LEFT(AQ8,1)="B","B",AQ8)) ->  | BH24: =IF(LEFT(AR8,1)="A","A",IF(LEFT(AR8,1)="B","B",AR8)) ->  | BI24: =IF(LEFT(AT8,1)="A","A",IF(LEFT(AT8,1)="B","B",AT8)) ->  | BJ24: =IF(LEFT(AU8,1)="A","A",IF(LEFT(AU8,1)="B","B",AU8)) ->  | BK24: =IF(LEFT(AV8,1)="A","A",IF(LEFT(AV8,1)="B","B",AV8)) ->  | BL24: =IF(BM24>0,"A"&登録!$I$8,IF(BN24>0,"B"&登録!$I$8,BO24)) -> 0 | BM24: 0 | BN24: 0 | BO24: 0 | BP24: 0 | BR24: =★個人成績表★!B23 -> 林 秀忠 | BS24: =VLOOKUP(BR24,$AZ$6:$BL$59,13,FALSE) -> A120
A25: 4 | B25: NRC | C25: =VLOOKUP(VALUE(A25&B21),登録!$AE$2:$AH$55,3,FALSE) -> 白戸 玲人 | D25: =VLOOKUP(VALUE(A25&B21),登録!$AE$2:$AH$55,4,FALSE) -> 120 | E25: =★個人成績表★!F34 -> 113 | F25: =★個人成績表★!G34 -> 0 | G25: =★個人成績表★!D34 -> w | I25: =★個人成績表★!H34 -> 79 | J25: =★個人成績表★!E34 -> w | K25: 2 | L25: 3 | M25: 432 | N25: =M25*登録!$I$8/★対戦リーグ表★!D25 -> 432 | P25: 432 | Q25: =K25*100000+N25 -> 200432 | R25: =IF(COUNTBLANK(E25:J25)=6,"",RANK(Q25,Q22:Q27)) -> 5 | S25: =IF(結果入力表!H60="","",結果入力表!H60) ->  | T25: =IF(結果入力表!E74="","",結果入力表!E74) ->  | U25: =IF(結果入力表!H4="","",結果入力表!H4) ->  | W25: =IF(結果入力表!E88="","",結果入力表!E88) ->  | X25: =IF(結果入力表!H32="","",結果入力表!H32) ->  | Y25: 46 | Z25: NRC | AA25: =VLOOKUP(Y25,登録!$AE$2:$AH$55,3,FALSE) -> 長谷川 進 | AB25: =VLOOKUP(Y25,登録!$AE$2:$AH$55,4,FALSE) -> 120 | AC25: =★個人成績表★!K37 -> w | AD25: =★個人成績表★!L37 -> 32 | AE25: =★個人成績表★!I37 -> 0 | AG25: =★個人成績表★!M37 -> 55 | AH25: =★個人成績表★!J37 -> 13 | AI25: 1 | AJ25: 4 | AK25: 220 | AL25: =AK25*登録!$I$8/★対戦リーグ表★!AB25 -> 220 | AN25: 220 | AO25: =AI25*100000+AL25 -> 100220 | AP25: =IF(COUNTBLANK(AC25:AH25)=6,"",RANK(AO25,AO22:AO27)) -> 6 | AQ25: =IF(結果入力表!H165="","",結果入力表!H165) ->  | AR25: =IF(結果入力表!E179="","",結果入力表!E179) ->  | AS25: =IF(結果入力表!H109="","",結果入力表!H109) ->  | AU25: =IF(結果入力表!E193="","",結果入力表!E193) ->  | AV25: =IF(結果入力表!H137="","",結果入力表!H137) ->  | AX25: 8 | AZ25: 白戸 玲人 | BA25: NRC | BB25: =IF(LEFT(S25,1)="A","A",IF(LEFT(S25,1)="B","B",S25)) ->  | BC25: =IF(LEFT(T25,1)="A","A",IF(LEFT(T25,1)="B","B",T25)) ->  | BD25: =IF(LEFT(U25,1)="A","A",IF(LEFT(U25,1)="B","B",U25)) ->  | BE25: =IF(LEFT(W25,1)="A","A",IF(LEFT(W25,1)="B","B",W25)) ->  | BF25: =IF(LEFT(X25,1)="A","A",IF(LEFT(X25,1)="B","B",X25)) ->  | BG25: =IF(LEFT(AQ57,1)="A","A",IF(LEFT(AQ57,1)="B","B",AQ57)) ->  | BH25: =IF(LEFT(AR57,1)="A","A",IF(LEFT(AR57,1)="B","B",AR57)) ->  | BI25: =IF(LEFT(AS57,1)="A","A",IF(LEFT(AS57,1)="B","B",AS57)) ->  | BJ25: =IF(LEFT(AU57,1)="A","A",IF(LEFT(AU57,1)="B","B",AU57)) ->  | BK25: =IF(LEFT(AV57,1)="A","A",IF(LEFT(AV57,1)="B","B",AV57)) -> 107 | BL25: =IF(BM25>0,"A"&登録!$I$8,IF(BN25>0,"B"&登録!$I$8,BO25)) -> 107 | BM25: 0 | BN25: 0 | BO25: 107 | BP25: 107 | BR25: =★個人成績表★!B24 -> 大橋 義治 | BS25: 0
A26: 5 | B26: ORC | C26: =VLOOKUP(VALUE(A26&B21),登録!$AE$2:$AH$55,3,FALSE) -> 吉岡 保俊 | D26: =VLOOKUP(VALUE(A26&B21),登録!$AE$2:$AH$55,4,FALSE) -> 120 | E26: =★個人成績表★!E43 -> 67 | F26: =★個人成績表★!D43 -> 106 | G26: =★個人成績表★!F43 -> w | H26: =★個人成績表★!H43 -> w | J26: =★個人成績表★!G43 -> 98 | K26: 2 | L26: 3 | M26: 511 | N26: =M26*登録!$I$8/★対戦リーグ表★!D26 -> 511 | P26: 511 | Q26: =K26*100000+N26 -> 200511 | R26: =IF(COUNTBLANK(E26:J26)=6,"",RANK(Q26,Q22:Q27)) -> 3 | S26: =IF(結果入力表!H39="","",結果入力表!H39) ->  | T26: =IF(結果入力表!H11="","",結果入力表!H11) -> 106 | U26: =IF(結果入力表!E53="","",結果入力表!E53) ->  | V26: =IF(結果入力表!H88="","",結果入力表!H88) ->  | X26: =IF(結果入力表!E67="","",結果入力表!E67) ->  | Y26: 57 | Z26: ORC | AA26: =VLOOKUP(Y26,登録!$AE$2:$AH$55,3,FALSE) -> 山崎真紀子 | AB26: =VLOOKUP(Y26,登録!$AE$2:$AH$55,4,FALSE) -> 100 | AC26: =★個人成績表★!J47 -> 1 | AD26: =★個人成績表★!I47 -> 84 | AE26: =★個人成績表★!K47 -> 61 | AF26: =★個人成績表★!M47 -> w | AH26: =★個人成績表★!L47 -> 52 | AI26: 1 | AJ26: 4 | AK26: 298 | AL26: =AK26*登録!$I$8/★対戦リーグ表★!AB26 -> 357.6 | AM26: * | AN26: 357.6 | AO26: =AI26*100000+AL26 -> 100357.6 | AP26: =IF(COUNTBLANK(AC26:AH26)=6,"",RANK(AO26,AO22:AO27)) -> 5 | AQ26: =IF(結果入力表!H144="","",結果入力表!H144) ->  | AR26: =IF(結果入力表!H116="","",結果入力表!H116) ->  | AS26: =IF(結果入力表!E158="","",結果入力表!E158) ->  | AT26: =IF(結果入力表!H193="","",結果入力表!H193) ->  | AV26: =IF(結果入力表!E172="","",結果入力表!E172) ->  | AX26: 11 | AZ26: 吉岡 保俊 | BA26: ORC | BB26: =IF(LEFT(S26,1)="A","A",IF(LEFT(S26,1)="B","B",S26)) ->  | BC26: =IF(LEFT(T26,1)="A","A",IF(LEFT(T26,1)="B","B",T26)) -> 106 | BD26: =IF(LEFT(U26,1)="A","A",IF(LEFT(U26,1)="B","B",U26)) ->  | BE26: =IF(LEFT(V26,1)="A","A",IF(LEFT(V26,1)="B","B",V26)) ->  | BF26: =IF(LEFT(X26,1)="A","A",IF(LEFT(X26,1)="B","B",X26)) ->  | BG26: =IF(LEFT(AQ50,1)="A","A",IF(LEFT(AQ50,1)="B","B",AQ50)) ->  | BH26: =IF(LEFT(AR50,1)="A","A",IF(LEFT(AR50,1)="B","B",AR50)) ->  | BI26: =IF(LEFT(AS50,1)="A","A",IF(LEFT(AS50,1)="B","B",AS50)) ->  | BJ26: =IF(LEFT(AT50,1)="A","A",IF(LEFT(AT50,1)="B","B",AT50)) ->  | BK26: =IF(LEFT(AV50,1)="A","A",IF(LEFT(AV50,1)="B","B",AV50)) ->  | BL26: =IF(BM26>0,"A"&登録!$I$8,IF(BN26>0,"B"&登録!$I$8,BO26)) -> 106 | BM26: 0 | BN26: 0 | BO26: 106 | BP26: 106 | BR26: =★個人成績表★!B25 -> 山中 康寛 | BS26: 0
A27: 6 | B27: WRC | C27: =IF(B27="","",VLOOKUP(VALUE(A27&B21),登録!$AE$2:$AH$55,3,FALSE)) -> 杉本 博章 | D27: =IF(B27="","",VLOOKUP(VALUE(A27&B21),登録!$AE$2:$AH$55,4,FALSE)) -> 120 | E27: =★個人成績表★!D52 -> 38 | F27: =★個人成績表★!F52 -> w | G27: =★個人成績表★!H52 -> 87 | H27: =★個人成績表★!E52 -> 71 | I27: =★個人成績表★!G52 -> w | K27: 2 | L27: 3 | M27: 436 | N27: =M27*登録!$I$8/★対戦リーグ表★!D27 -> 436 | P27: 436 | Q27: =IF(D27="","",K27*100000+N27) -> 200436 | R27: =IF(COUNTBLANK(E27:J27)=6,"",RANK(Q27,Q22:Q27)) -> 4 | S27: =IF(結果入力表!H18="","",結果入力表!H18) ->  | T27: =IF(結果入力表!E46="","",結果入力表!E46) ->  | U27: =IF(結果入力表!H95="","",結果入力表!H95) ->  | V27: =IF(結果入力表!E32="","",結果入力表!E32) ->  | W27: =IF(結果入力表!H67="","",結果入力表!H67) ->  | Y27: 61 | Z27: WRC | AA27: =IF(Z27="","",VLOOKUP(Y27,登録!$AE$2:$AH$55,3,FALSE)) -> 末岡 修 | AB27: =IF(Z27="","",VLOOKUP(Y27,登録!$AE$2:$AH$55,4,FALSE)) -> 120 | AC27: =★個人成績表★!I50 -> 117 | AD27: =★個人成績表★!K50 -> w | AE27: =★個人成績表★!M50 -> 87 | AF27: =★個人成績表★!J50 -> w | AG27: =★個人成績表★!L50 -> w | AI27: 3 | AJ27: 2 | AK27: 564 | AL27: =AK27*登録!$I$8/★対戦リーグ表★!AB27 -> 564 | AN27: 564 | AO27: =IF(AB27="","",AI27*100000+AL27) -> 300564 | AP27: =IF(COUNTBLANK(AC27:AH27)=6,"",RANK(AO27,AO22:AO27)) -> 2 | AQ27: =IF(結果入力表!H123="","",結果入力表!H123) ->  | AR27: =IF(結果入力表!E151="","",結果入力表!E151) ->  | AS27: =IF(結果入力表!H200="","",結果入力表!H200) ->  | AT27: =IF(結果入力表!E137="","",結果入力表!E137) ->  | AU27: =IF(結果入力表!H172="","",結果入力表!H172) ->  | AX27: 16 | AZ27: 杉本 博章 | BA27: WRC | BB27: =IF(LEFT(S27,1)="A","A",IF(LEFT(S27,1)="B","B",S27)) ->  | BC27: =IF(LEFT(T27,1)="A","A",IF(LEFT(T27,1)="B","B",T27)) ->  | BD27: =IF(LEFT(U27,1)="A","A",IF(LEFT(U27,1)="B","B",U27)) ->  | BE27: =IF(LEFT(V27,1)="A","A",IF(LEFT(V27,1)="B","B",V27)) ->  | BF27: =IF(LEFT(W27,1)="A","A",IF(LEFT(W27,1)="B","B",W27)) ->  | BG27: =IF(LEFT(AQ43,1)="A","A",IF(LEFT(AQ43,1)="B","B",AQ43)) ->  | BH27: =IF(LEFT(AR43,1)="A","A",IF(LEFT(AR43,1)="B","B",AR43)) ->  | BI27: =IF(LEFT(AS43,1)="A","A",IF(LEFT(AS43,1)="B","B",AS43)) ->  | BJ27: =IF(LEFT(AT43,1)="A","A",IF(LEFT(AT43,1)="B","B",AT43)) ->  | BK27: =IF(LEFT(AU43,1)="A","A",IF(LEFT(AU43,1)="B","B",AU43)) ->  | BL27: =IF(BM27>0,"A"&登録!$I$8,IF(BN27>0,"B"&登録!$I$8,BO27)) -> 0 | BM27: 0 | BN27: 0 | BO27: 0 | BP27: 0 | BR27: =★個人成績表★!B26 -> 西峰 久祐 | BS27: 101
BL28: =IF(BM28>0,"A"&登録!$I$8,IF(BN28>0,"B"&登録!$I$8,BO28)) -> 0 | BR28: =★個人成績表★!B27 -> 大橋 正寛 | BS28: A120
B29: 4 | C29: Player | D29: handy | E29: =B30 -> KRC | F29: =B31 -> HRC | G29: =B32 -> SBC | H29: =B33 -> NRC | I29: =B34 -> ORC | J29: =B35 -> WRC | K29: W | L29: L | M29: TP | N29: (TP) | O29: TP | Q29: R_P | R29: R | Z29: 4 | AA29: Player | AB29: handy | AC29: =$B$6 -> KRC | AD29: =$B$7 -> HRC | AE29: =$B$8 -> SBC | AF29: =$B$9 -> NRC | AG29: =$B$10 -> ORC | AH29: =$B$11 -> WRC | AI29: W | AJ29: L | AK29: TP | AL29: (TP) | AM29: TP | AO29: R_P | AP29: R | BL29: =IF(BM29>0,"A"&登録!$I$8,IF(BN29>0,"B"&登録!$I$8,BO29)) -> 0 | BR29: =★個人成績表★!B28 -> 秋田 倫央 | BS29: 0
A30: 1 | B30: =B22 -> KRC | C30: =VLOOKUP(VALUE(A30&B29),登録!$AE$2:$AH$55,3,FALSE) -> 早川 徹 | D30: =VLOOKUP(VALUE(A30&B29),登録!$AE$2:$AH$55,4,FALSE) -> 120 | F30: =★個人成績表★!H8 -> w | G30: =★個人成績表★!G8 -> w | H30: =★個人成績表★!F8 -> w | I30: =★個人成績表★!E8 -> w | J30: =★個人成績表★!D8 -> w | K30: =IF(COUNTBLANK(E30:J30)=6,"",COUNTIF(E30:J30,"w")) -> 5 | L30: =IF(COUNTBLANK(E30:J30)=6,"",6-COUNTBLANK(E30:J30)-K30) -> 0 | M30: =K30*D30+SUM(E30:J30) -> 600 | N30: =M30*登録!$I$8/★対戦リーグ表★!D30 -> 600 | O30: =IF(ISERROR(N30),"",IF(M30=N30,"","*")) ->  | P30: =IF(COUNTBLANK(E30:J30)=6,"",N30) -> 600 | Q30: =K30*100000+N30 -> 500600 | R30: =IF(COUNTBLANK(E30:J30)=6,"",RANK(Q30,Q30:Q35)) -> 1 | T30: =IF(結果入力表!E103="","",結果入力表!E103) ->  | U30: =IF(結果入力表!E82="","",結果入力表!E82) ->  | V30: =IF(結果入力表!E61="","",結果入力表!E61) ->  | W30: =IF(結果入力表!E40="","",結果入力表!E40) ->  | X30: =IF(結果入力表!E19="","",結果入力表!E19) ->  | Y30: 14 | Z30: =Z22 -> KRC | AA30: =VLOOKUP(Y30,登録!$AE$2:$AH$55,3,FALSE) -> 早川 徹 | AB30: =VLOOKUP(Y30,登録!$AE$2:$AH$55,4,FALSE) -> 120 | AD30: =★個人成績表★!M8 -> w | AE30: =★個人成績表★!L8 -> w | AF30: =★個人成績表★!K8 -> w | AG30: =★個人成績表★!J8 -> 38 | AH30: =★個人成績表★!I8 -> w | AI30: =IF(COUNTBLANK(AC30:AH30)=6,"",COUNTIF(AC30:AH30,"w")) -> 4 | AJ30: =IF(COUNTBLANK(AC30:AH30)=6,"",6-COUNTBLANK(AC30:AH30)-AI30) -> 1 | AK30: =AI30*AB30+SUM(AC30:AH30) -> 518 | AL30: =AK30*登録!$I$8/★対戦リーグ表★!AB30 -> 518 | AM30: =IF(ISERROR(AL30),"",IF(AK30=AL30,"","*")) ->  | AN30: =IF(COUNTBLANK(AC30:AH30)=6,"",AL30) -> 518 | AO30: =AI30*100000+AL30 -> 400518 | AP30: =IF(COUNTBLANK(AC30:AH30)=6,"",RANK(AO30,AO30:AO35)) -> 2 | AR30: =IF(結果入力表!E208="","",結果入力表!E208) ->  | AS30: =IF(結果入力表!E187="","",結果入力表!E187) ->  | AT30: =IF(結果入力表!E166="","",結果入力表!E166) ->  | AU30: =IF(結果入力表!E145="","",結果入力表!E145) ->  | AV30: =IF(結果入力表!E124="","",結果入力表!E124) ->  | AX30: =RANK(BP30,$BP$6:$BP$59) -> 16 | AZ30: =C30 -> 早川 徹 | BA30: =B30 -> KRC | BB30: =IF(LEFT(T30,1)="A","A",IF(LEFT(T30,1)="B","B",T30)) ->  | BC30: =IF(LEFT(U30,1)="A","A",IF(LEFT(U30,1)="B","B",U30)) ->  | BD30: =IF(LEFT(V30,1)="A","A",IF(LEFT(V30,1)="B","B",V30)) ->  | BE30: =IF(LEFT(W30,1)="A","A",IF(LEFT(W30,1)="B","B",W30)) ->  | BF30: =IF(LEFT(X30,1)="A","A",IF(LEFT(X30,1)="B","B",X30)) ->  | BG30: =IF(LEFT(AR30,1)="A","A",IF(LEFT(AR30,1)="B","B",AR30)) ->  | BH30: =IF(LEFT(AS30,1)="A","A",IF(LEFT(AS30,1)="B","B",AS30)) ->  | BI30: =IF(LEFT(AT30,1)="A","A",IF(LEFT(AT30,1)="B","B",AT30)) ->  | BJ30: =IF(LEFT(AU30,1)="A","A",IF(LEFT(AU30,1)="B","B",AU30)) ->  | BK30: =IF(LEFT(AV30,1)="A","A",IF(LEFT(AV30,1)="B","B",AV30)) ->  | BL30: =IF(BM30>0,"A"&登録!$I$8,IF(BN30>0,"B"&登録!$I$8,BO30)) -> 0 | BM30: =COUNTIF($BB30:$BK30,BM$5) -> 0 | BN30: 0 | BO30: =MAX(BB30:BK30) -> 0 | BP30: =BM30*10000+BN30*1000+BO30 -> 0 | BR30: =★個人成績表★!B29 -> 大橋 洋子 | BS30: 0
A31: 2 | B31: HRC | C31: =VLOOKUP(VALUE(A31&B29),登録!$AE$2:$AH$55,3,FALSE) -> 伊藤 登 | D31: =VLOOKUP(VALUE(A31&B29),登録!$AE$2:$AH$55,4,FALSE) -> 120 | E31: =★個人成績表★!H17 -> 100 | G31: =★個人成績表★!E17 -> w | H31: =★個人成績表★!G17 -> w | I31: =★個人成績表★!D17 -> 88 | J31: =★個人成績表★!F17 -> 6 | K31: 2 | L31: 3 | M31: 434 | N31: =M31*登録!$I$8/★対戦リーグ表★!D31 -> 434 | P31: 434 | Q31: =K31*100000+N31 -> 200434 | R31: =IF(COUNTBLANK(E31:J31)=6,"",RANK(Q31,Q30:Q35)) -> 4 | S31: =IF(結果入力表!H103="","",結果入力表!H103) ->  | U31: =IF(結果入力表!E26="","",結果入力表!E26) ->  | V31: =IF(結果入力表!H75="","",結果入力表!H75) ->  | W31: =IF(結果入力表!E12="","",結果入力表!E12) ->  | X31: =IF(結果入力表!H47="","",結果入力表!H47) ->  | Y31: 25 | Z31: HRC | AA31: =VLOOKUP(Y31,登録!$AE$2:$AH$55,3,FALSE) -> 宮井健太郎 | AB31: =VLOOKUP(Y31,登録!$AE$2:$AH$55,4,FALSE) -> 120 | AC31: =★個人成績表★!M18 -> 45 | AE31: =★個人成績表★!J18 -> 107 | AF31: =★個人成績表★!L18 -> 92 | AG31: =★個人成績表★!I18 -> 32 | AH31: =★個人成績表★!K18 -> w | AI31: 1 | AJ31: 4 | AK31: 396 | AL31: =AK31*登録!$I$8/★対戦リーグ表★!AB31 -> 396 | AN31: 396 | AO31: =AI31*100000+AL31 -> 100396 | AP31: =IF(COUNTBLANK(AC31:AH31)=6,"",RANK(AO31,AO30:AO35)) -> 4 | AQ31: =IF(結果入力表!H208="","",結果入力表!H208) ->  | AS31: =IF(結果入力表!E131="","",結果入力表!E131) ->  | AT31: =IF(結果入力表!H180="","",結果入力表!H180) ->  | AU31: =IF(結果入力表!E117="","",結果入力表!E117) ->  | AV31: =IF(結果入力表!H152="","",結果入力表!H152) ->  | AX31: 16 | AZ31: 伊藤 登 | BA31: HRC | BB31: =IF(LEFT(S31,1)="A","A",IF(LEFT(S31,1)="B","B",S31)) ->  | BC31: =IF(LEFT(U31,1)="A","A",IF(LEFT(U31,1)="B","B",U31)) ->  | BD31: =IF(LEFT(V31,1)="A","A",IF(LEFT(V31,1)="B","B",V31)) ->  | BE31: =IF(LEFT(W31,1)="A","A",IF(LEFT(W31,1)="B","B",W31)) ->  | BF31: =IF(LEFT(X31,1)="A","A",IF(LEFT(X31,1)="B","B",X31)) ->  | BG31: =IF(LEFT(AQ23,1)="A","A",IF(LEFT(AQ23,1)="B","B",AQ23)) ->  | BH31: =IF(LEFT(AS23,1)="A","A",IF(LEFT(AS23,1)="B","B",AS23)) ->  | BI31: =IF(LEFT(AT23,1)="A","A",IF(LEFT(AT23,1)="B","B",AT23)) ->  | BJ31: =IF(LEFT(AU23,1)="A","A",IF(LEFT(AU23,1)="B","B",AU23)) ->  | BK31: =IF(LEFT(AV23,1)="A","A",IF(LEFT(AV23,1)="B","B",AV23)) ->  | BL31: =IF(BM31>0,"A"&登録!$I$8,IF(BN31>0,"B"&登録!$I$8,BO31)) -> 0 | BM31: 0 | BN31: 0 | BO31: 0 | BP31: 0
A32: 3 | B32: SBC | C32: =VLOOKUP(VALUE(A32&B29),登録!$AE$2:$AH$55,3,FALSE) -> 西峰 久祐 | D32: =VLOOKUP(VALUE(A32&B29),登録!$AE$2:$AH$55,4,FALSE) -> 120 | E32: =★個人成績表★!G26 -> 57 | F32: =★個人成績表★!E26 -> 61 | H32: =★個人成績表★!D26 -> w | I32: =★個人成績表★!F26 -> 3 | J32: =★個人成績表★!H26 -> 28 | K32: 1 | L32: 4 | M32: 269 | N32: =M32*登録!$I$8/★対戦リーグ表★!D32 -> 269 | P32: 269 | Q32: =K32*100000+N32 -> 100269 | R32: =IF(COUNTBLANK(E32:J32)=6,"",RANK(Q32,Q30:Q35)) -> 5 | S32: =IF(結果入力表!H82="","",結果入力表!H82) ->  | T32: =IF(結果入力表!H26="","",結果入力表!H26) ->  | V32: =IF(結果入力表!E5="","",結果入力表!E5) ->  | W32: =IF(結果入力表!H54="","",結果入力表!H54) ->  | X32: =IF(結果入力表!E96="","",結果入力表!E96) ->  | Y32: 36 | Z32: SBC | AA32: =VLOOKUP(Y32,登録!$AE$2:$AH$55,3,FALSE) -> 秋田 倫央 | AB32: =VLOOKUP(Y32,登録!$AE$2:$AH$55,4,FALSE) -> 120 | AC32: =★個人成績表★!L28 -> 11 | AD32: =★個人成績表★!J28 -> w | AF32: =★個人成績表★!I28 -> 46 | AG32: =★個人成績表★!K28 -> 109 | AH32: =★個人成績表★!M28 -> 31 | AI32: 1 | AJ32: 4 | AK32: 317 | AL32: =AK32*登録!$I$8/★対戦リーグ表★!AB32 -> 317 | AN32: 317 | AO32: =AI32*100000+AL32 -> 100317 | AP32: =IF(COUNTBLANK(AC32:AH32)=6,"",RANK(AO32,AO30:AO35)) -> 5 | AQ32: =IF(結果入力表!H187="","",結果入力表!H187) ->  | AR32: =IF(結果入力表!H131="","",結果入力表!H131) ->  | AT32: =IF(結果入力表!E110="","",結果入力表!E110) ->  | AU32: =IF(結果入力表!H159="","",結果入力表!H159) ->  | AV32: =IF(結果入力表!E201="","",結果入力表!E201) ->  | AX32: 15 | AZ32: 西峰 久祐 | BA32: SBC | BB32: =IF(LEFT(S32,1)="A","A",IF(LEFT(S32,1)="B","B",S32)) ->  | BC32: =IF(LEFT(T32,1)="A","A",IF(LEFT(T32,1)="B","B",T32)) ->  | BD32: =IF(LEFT(V32,1)="A","A",IF(LEFT(V32,1)="B","B",V32)) ->  | BE32: =IF(LEFT(W32,1)="A","A",IF(LEFT(W32,1)="B","B",W32)) ->  | BF32: =IF(LEFT(X32,1)="A","A",IF(LEFT(X32,1)="B","B",X32)) ->  | BG32: =IF(LEFT(AQ16,1)="A","A",IF(LEFT(AQ16,1)="B","B",AQ16)) ->  | BH32: =IF(LEFT(AR16,1)="A","A",IF(LEFT(AR16,1)="B","B",AR16)) ->  | BI32: =IF(LEFT(AT16,1)="A","A",IF(LEFT(AT16,1)="B","B",AT16)) ->  | BJ32: =IF(LEFT(AU16,1)="A","A",IF(LEFT(AU16,1)="B","B",AU16)) -> 101 | BK32: =IF(LEFT(AV16,1)="A","A",IF(LEFT(AV16,1)="B","B",AV16)) ->  | BL32: =IF(BM32>0,"A"&登録!$I$8,IF(BN32>0,"B"&登録!$I$8,BO32)) -> 101 | BM32: 0 | BN32: 0 | BO32: 101 | BP32: 101
A33: 4 | B33: NRC | C33: =VLOOKUP(VALUE(A33&B29),登録!$AE$2:$AH$55,3,FALSE) -> 植田 慎也 | D33: =VLOOKUP(VALUE(A33&B29),登録!$AE$2:$AH$55,4,FALSE) -> 120 | E33: =★個人成績表★!F35 -> 86 | F33: =★個人成績表★!G35 -> 34 | G33: =★個人成績表★!D35 -> 72 | I33: =★個人成績表★!H35 -> 106 | J33: =★個人成績表★!E35 -> 76 | K33: 0 | L33: 5 | M33: 374 | N33: =M33*登録!$I$8/★対戦リーグ表★!D33 -> 374 | P33: 374 | Q33: =K33*100000+N33 -> 374 | R33: =IF(COUNTBLANK(E33:J33)=6,"",RANK(Q33,Q30:Q35)) -> 6 | S33: =IF(結果入力表!H61="","",結果入力表!H61) ->  | T33: =IF(結果入力表!E75="","",結果入力表!E75) ->  | U33: =IF(結果入力表!H5="","",結果入力表!H5) ->  | W33: =IF(結果入力表!E89="","",結果入力表!E89) ->  | X33: =IF(結果入力表!H33="","",結果入力表!H33) ->  | Y33: 47 | Z33: NRC | AA33: =VLOOKUP(Y33,登録!$AE$2:$AH$55,3,FALSE) -> 白戸 恭子 | AB33: =VLOOKUP(Y33,登録!$AE$2:$AH$55,4,FALSE) -> 100 | AC33: =★個人成績表★!K38 -> 66 | AD33: =★個人成績表★!L38 -> w | AE33: =★個人成績表★!I38 -> w | AG33: =★個人成績表★!M38 -> 25 | AH33: =★個人成績表★!J38 -> w | AI33: 3 | AJ33: 2 | AK33: 391 | AL33: =AK33*登録!$I$8/★対戦リーグ表★!AB33 -> 469.2 | AM33: * | AN33: 469.2 | AO33: =AI33*100000+AL33 -> 300469.2 | AP33: =IF(COUNTBLANK(AC33:AH33)=6,"",RANK(AO33,AO30:AO35)) -> 3 | AQ33: =IF(結果入力表!H166="","",結果入力表!H166) ->  | AR33: =IF(結果入力表!E180="","",結果入力表!E180) ->  | AS33: =IF(結果入力表!H110="","",結果入力表!H110) ->  | AU33: =IF(結果入力表!E194="","",結果入力表!E194) ->  | AV33: =IF(結果入力表!H138="","",結果入力表!H138) -> A105 | AX33: 11 | AZ33: 植田 慎也 | BA33: NRC | BB33: =IF(LEFT(S33,1)="A","A",IF(LEFT(S33,1)="B","B",S33)) ->  | BC33: =IF(LEFT(T33,1)="A","A",IF(LEFT(T33,1)="B","B",T33)) ->  | BD33: =IF(LEFT(U33,1)="A","A",IF(LEFT(U33,1)="B","B",U33)) ->  | BE33: =IF(LEFT(W33,1)="A","A",IF(LEFT(W33,1)="B","B",W33)) ->  | BF33: =IF(LEFT(X33,1)="A","A",IF(LEFT(X33,1)="B","B",X33)) ->  | BG33: =IF(LEFT(AQ9,1)="A","A",IF(LEFT(AQ9,1)="B","B",AQ9)) ->  | BH33: =IF(LEFT(AR9,1)="A","A",IF(LEFT(AR9,1)="B","B",AR9)) ->  | BI33: =IF(LEFT(AS9,1)="A","A",IF(LEFT(AS9,1)="B","B",AS9)) ->  | BJ33: =IF(LEFT(AU9,1)="A","A",IF(LEFT(AU9,1)="B","B",AU9)) ->  | BK33: =IF(LEFT(AV9,1)="A","A",IF(LEFT(AV9,1)="B","B",AV9)) -> 106 | BL33: =IF(BM33>0,"A"&登録!$I$8,IF(BN33>0,"B"&登録!$I$8,BO33)) -> 106 | BM33: 0 | BN33: 0 | BO33: 106 | BP33: 106 | BR33: =★個人成績表★!B32 -> 吉向 翔平 | BS33: =VLOOKUP(BR33,$AZ$6:$BL$59,13,FALSE) -> 0
A34: 5 | B34: ORC | C34: =VLOOKUP(VALUE(A34&B29),登録!$AE$2:$AH$55,3,FALSE) -> 村上 泰辰 | D34: =VLOOKUP(VALUE(A34&B29),登録!$AE$2:$AH$55,4,FALSE) -> 120 | E34: =★個人成績表★!E44 -> 34 | F34: =★個人成績表★!D44 -> w | G34: =★個人成績表★!F44 -> w | H34: =★個人成績表★!H44 -> w | J34: =★個人成績表★!G44 -> w | K34: 4 | L34: 1 | M34: 514 | N34: =M34*登録!$I$8/★対戦リーグ表★!D34 -> 514 | P34: 514 | Q34: =K34*100000+N34 -> 400514 | R34: =IF(COUNTBLANK(E34:J34)=6,"",RANK(Q34,Q30:Q35)) -> 2 | S34: =IF(結果入力表!H40="","",結果入力表!H40) ->  | T34: =IF(結果入力表!H12="","",結果入力表!H12) ->  | U34: =IF(結果入力表!E54="","",結果入力表!E54) ->  | V34: =IF(結果入力表!H89="","",結果入力表!H89) ->  | X34: =IF(結果入力表!E68="","",結果入力表!E68) ->  | Y34: 51 | Z34: ORC | AA34: =VLOOKUP(Y34,登録!$AE$2:$AH$55,3,FALSE) -> 松居 勝巳 | AB34: =VLOOKUP(Y34,登録!$AE$2:$AH$55,4,FALSE) -> 120 | AC34: =★個人成績表★!J41 -> w | AD34: =★個人成績表★!I41 -> w | AE34: =★個人成績表★!K41 -> w | AF34: =★個人成績表★!M41 -> w | AH34: =★個人成績表★!L41 -> w | AI34: 5 | AJ34: 0 | AK34: 600 | AL34: =AK34*登録!$I$8/★対戦リーグ表★!AB34 -> 600 | AN34: 600 | AO34: =AI34*100000+AL34 -> 500600 | AP34: =IF(COUNTBLANK(AC34:AH34)=6,"",RANK(AO34,AO30:AO35)) -> 1 | AQ34: =IF(結果入力表!H145="","",結果入力表!H145) ->  | AR34: =IF(結果入力表!H117="","",結果入力表!H117) ->  | AS34: =IF(結果入力表!E159="","",結果入力表!E159) ->  | AT34: =IF(結果入力表!H194="","",結果入力表!H194) ->  | AV34: =IF(結果入力表!E173="","",結果入力表!E173) ->  | AX34: 16 | AZ34: 村上 泰辰 | BA34: ORC | BB34: =IF(LEFT(S34,1)="A","A",IF(LEFT(S34,1)="B","B",S34)) ->  | BC34: =IF(LEFT(T34,1)="A","A",IF(LEFT(T34,1)="B","B",T34)) ->  | BD34: =IF(LEFT(U34,1)="A","A",IF(LEFT(U34,1)="B","B",U34)) ->  | BE34: =IF(LEFT(V34,1)="A","A",IF(LEFT(V34,1)="B","B",V34)) ->  | BF34: =IF(LEFT(X34,1)="A","A",IF(LEFT(X34,1)="B","B",X34)) ->  | BG34: =IF(LEFT(AQ58,1)="A","A",IF(LEFT(AQ58,1)="B","B",AQ58)) ->  | BH34: =IF(LEFT(AR58,1)="A","A",IF(LEFT(AR58,1)="B","B",AR58)) ->  | BI34: =IF(LEFT(AS58,1)="A","A",IF(LEFT(AS58,1)="B","B",AS58)) ->  | BJ34: =IF(LEFT(AT58,1)="A","A",IF(LEFT(AT58,1)="B","B",AT58)) ->  | BK34: =IF(LEFT(AV58,1)="A","A",IF(LEFT(AV58,1)="B","B",AV58)) ->  | BL34: =IF(BM34>0,"A"&登録!$I$8,IF(BN34>0,"B"&登録!$I$8,BO34)) -> 0 | BM34: 0 | BN34: 0 | BO34: 0 | BP34: 0 | BR34: =★個人成績表★!B33 -> 岩本 剛 | BS34: 0
A35: 6 | B35: WRC | C35: =IF(B35="","",VLOOKUP(VALUE(A35&B29),登録!$AE$2:$AH$55,3,FALSE)) -> 中本 雅大 | D35: =IF(B35="","",VLOOKUP(VALUE(A35&B29),登録!$AE$2:$AH$55,4,FALSE)) -> 120 | E35: =★個人成績表★!D53 -> 64 | F35: =★個人成績表★!F53 -> w | G35: =★個人成績表★!H53 -> w | H35: =★個人成績表★!E53 -> w | I35: =★個人成績表★!G53 -> 119 | K35: 3 | L35: 2 | M35: 543 | N35: =M35*登録!$I$8/★対戦リーグ表★!D35 -> 543 | P35: 543 | Q35: =IF(D35="","",K35*100000+N35) -> 300543 | R35: =IF(COUNTBLANK(E35:J35)=6,"",RANK(Q35,Q30:Q35)) -> 3 | S35: =IF(結果入力表!H19="","",結果入力表!H19) ->  | T35: =IF(結果入力表!E47="","",結果入力表!E47) ->  | U35: =IF(結果入力表!H96="","",結果入力表!H96) ->  | V35: =IF(結果入力表!E33="","",結果入力表!E33) ->  | W35: =IF(結果入力表!H68="","",結果入力表!H68) ->  | Y35: 62 | Z35: WRC | AA35: =IF(Z35="","",VLOOKUP(Y35,登録!$AE$2:$AH$55,3,FALSE)) -> 和田宗一郎 | AB35: =IF(Z35="","",VLOOKUP(Y35,登録!$AE$2:$AH$55,4,FALSE)) -> 120 | AC35: =★個人成績表★!I51 -> 61 | AD35: =★個人成績表★!K51 -> 37 | AE35: =★個人成績表★!M51 -> w | AF35: =★個人成績表★!J51 -> 0 | AG35: =★個人成績表★!L51 -> 83 | AI35: 1 | AJ35: 4 | AK35: 301 | AL35: =AK35*登録!$I$8/★対戦リーグ表★!AB35 -> 301 | AN35: 301 | AO35: =IF(AB35="","",AI35*100000+AL35) -> 100301 | AP35: =IF(COUNTBLANK(AC35:AH35)=6,"",RANK(AO35,AO30:AO35)) -> 6 | AQ35: =IF(結果入力表!H124="","",結果入力表!H124) ->  | AR35: =IF(結果入力表!E152="","",結果入力表!E152) ->  | AS35: =IF(結果入力表!H201="","",結果入力表!H201) ->  | AT35: =IF(結果入力表!E138="","",結果入力表!E138) ->  | AU35: =IF(結果入力表!H173="","",結果入力表!H173) ->  | AX35: 16 | AZ35: 中本 雅大 | BA35: WRC | BB35: =IF(LEFT(S35,1)="A","A",IF(LEFT(S35,1)="B","B",S35)) ->  | BC35: =IF(LEFT(T35,1)="A","A",IF(LEFT(T35,1)="B","B",T35)) ->  | BD35: =IF(LEFT(U35,1)="A","A",IF(LEFT(U35,1)="B","B",U35)) ->  | BE35: =IF(LEFT(V35,1)="A","A",IF(LEFT(V35,1)="B","B",V35)) ->  | BF35: =IF(LEFT(W35,1)="A","A",IF(LEFT(W35,1)="B","B",W35)) ->  | BG35: =IF(LEFT(AQ51,1)="A","A",IF(LEFT(AQ51,1)="B","B",AQ51)) ->  | BH35: =IF(LEFT(AR51,1)="A","A",IF(LEFT(AR51,1)="B","B",AR51)) ->  | BI35: =IF(LEFT(AS51,1)="A","A",IF(LEFT(AS51,1)="B","B",AS51)) ->  | BJ35: =IF(LEFT(AT51,1)="A","A",IF(LEFT(AT51,1)="B","B",AT51)) ->  | BK35: =IF(LEFT(AU51,1)="A","A",IF(LEFT(AU51,1)="B","B",AU51)) ->  | BL35: =IF(BM35>0,"A"&登録!$I$8,IF(BN35>0,"B"&登録!$I$8,BO35)) -> 0 | BM35: 0 | BN35: 0 | BO35: 0 | BP35: 0 | BR35: =★個人成績表★!B34 -> 白戸 玲人 | BS35: 107
BL36: =IF(BM36>0,"A"&登録!$I$8,IF(BN36>0,"B"&登録!$I$8,BO36)) -> 0 | BR36: =★個人成績表★!B35 -> 植田 慎也 | BS36: 106
B37: 5 | C37: Player | D37: handy | E37: =B38 -> KRC | F37: =B39 -> HRC | G37: =B40 -> SBC | H37: =B41 -> NRC | I37: =B42 -> ORC | J37: =B43 -> WRC | K37: W | L37: L | M37: TP | N37: (TP) | O37: TP | Q37: R_P | R37: R | Z37: 5 | AA37: Player | AB37: handy | AC37: =$B$6 -> KRC | AD37: =$B$7 -> HRC | AE37: =$B$8 -> SBC | AF37: =$B$9 -> NRC | AG37: =$B$10 -> ORC | AH37: =$B$11 -> WRC | AI37: W | AJ37: L | AK37: TP | AL37: (TP) | AM37: TP | AO37: R_P | AP37: R | BL37: =IF(BM37>0,"A"&登録!$I$8,IF(BN37>0,"B"&登録!$I$8,BO37)) -> 0 | BR37: =★個人成績表★!B36 -> 近藤 拓馬 | BS37: 0
A38: 1 | B38: =B30 -> KRC | C38: =VLOOKUP(VALUE(A38&B37),登録!$AE$2:$AH$55,3,FALSE) -> 井関 一成 | D38: =VLOOKUP(VALUE(A38&B37),登録!$AE$2:$AH$55,4,FALSE) -> 120 | F38: =★個人成績表★!H9 -> w | G38: =★個人成績表★!G9 -> 50 | H38: =★個人成績表★!F9 -> 102 | I38: =★個人成績表★!E9 -> w | J38: =★個人成績表★!D9 -> 96 | K38: =IF(COUNTBLANK(E38:J38)=6,"",COUNTIF(E38:J38,"w")) -> 2 | L38: =IF(COUNTBLANK(E38:J38)=6,"",6-COUNTBLANK(E38:J38)-K38) -> 3 | M38: =K38*D38+SUM(E38:J38) -> 488 | N38: =M38*登録!$I$8/★対戦リーグ表★!D38 -> 488 | O38: =IF(ISERROR(N38),"",IF(M38=N38,"","*")) ->  | P38: =IF(COUNTBLANK(E38:J38)=6,"",N38) -> 488 | Q38: =K38*100000+N38 -> 200488 | R38: =IF(COUNTBLANK(E38:J38)=6,"",RANK(Q38,Q38:Q43)) -> 4 | T38: =IF(結果入力表!E104="","",結果入力表!E104) ->  | U38: =IF(結果入力表!E83="","",結果入力表!E83) ->  | V38: =IF(結果入力表!E62="","",結果入力表!E62) ->  | W38: =IF(結果入力表!E41="","",結果入力表!E41) ->  | X38: =IF(結果入力表!E20="","",結果入力表!E20) ->  | Y38: 15 | Z38: =Z30 -> KRC | AA38: =VLOOKUP(Y38,登録!$AE$2:$AH$55,3,FALSE) -> 井関 一成 | AB38: =VLOOKUP(Y38,登録!$AE$2:$AH$55,4,FALSE) -> 120 | AD38: =★個人成績表★!M9 -> 99 | AE38: =★個人成績表★!L9 -> w | AF38: =★個人成績表★!K9 -> 76 | AG38: =★個人成績表★!J9 -> 63 | AH38: =★個人成績表★!I9 -> 119 | AI38: =IF(COUNTBLANK(AC38:AH38)=6,"",COUNTIF(AC38:AH38,"w")) -> 1 | AJ38: =IF(COUNTBLANK(AC38:AH38)=6,"",6-COUNTBLANK(AC38:AH38)-AI38) -> 4 | AK38: =AI38*AB38+SUM(AC38:AH38) -> 477 | AL38: =AK38*登録!$I$8/★対戦リーグ表★!AB38 -> 477 | AM38: =IF(ISERROR(AL38),"",IF(AK38=AL38,"","*")) ->  | AN38: =IF(COUNTBLANK(AC38:AH38)=6,"",AL38) -> 477 | AO38: =AI38*100000+AL38 -> 100477 | AP38: =IF(COUNTBLANK(AC38:AH38)=6,"",RANK(AO38,AO38:AO43)) -> 5 | AR38: =IF(結果入力表!E209="","",結果入力表!E209) ->  | AS38: =IF(結果入力表!E188="","",結果入力表!E188) ->  | AT38: =IF(結果入力表!E167="","",結果入力表!E167) ->  | AU38: =IF(結果入力表!E146="","",結果入力表!E146) ->  | AV38: =IF(結果入力表!E125="","",結果入力表!E125) ->  | AX38: =RANK(BP38,$BP$6:$BP$59) -> 16 | AZ38: =C38 -> 井関 一成 | BA38: =B38 -> KRC | BB38: =IF(LEFT(T38,1)="A","A",IF(LEFT(T38,1)="B","B",T38)) ->  | BC38: =IF(LEFT(U38,1)="A","A",IF(LEFT(U38,1)="B","B",U38)) ->  | BD38: =IF(LEFT(V38,1)="A","A",IF(LEFT(V38,1)="B","B",V38)) ->  | BE38: =IF(LEFT(W38,1)="A","A",IF(LEFT(W38,1)="B","B",W38)) ->  | BF38: =IF(LEFT(X38,1)="A","A",IF(LEFT(X38,1)="B","B",X38)) ->  | BG38: =IF(LEFT(AR38,1)="A","A",IF(LEFT(AR38,1)="B","B",AR38)) ->  | BH38: =IF(LEFT(AS38,1)="A","A",IF(LEFT(AS38,1)="B","B",AS38)) ->  | BI38: =IF(LEFT(AT38,1)="A","A",IF(LEFT(AT38,1)="B","B",AT38)) ->  | BJ38: =IF(LEFT(AU38,1)="A","A",IF(LEFT(AU38,1)="B","B",AU38)) ->  | BK38: =IF(LEFT(AV38,1)="A","A",IF(LEFT(AV38,1)="B","B",AV38)) ->  | BL38: =IF(BM38>0,"A"&登録!$I$8,IF(BN38>0,"B"&登録!$I$8,BO38)) -> 0 | BM38: =COUNTIF($BB38:$BK38,BM$5) -> 0 | BN38: 0 | BO38: =MAX(BB38:BK38) -> 0 | BP38: =BM38*10000+BN38*1000+BO38 -> 0 | BR38: =★個人成績表★!B37 -> 長谷川 進 | BS38: 0
A39: 2 | B39: HRC | C39: =VLOOKUP(VALUE(A39&B37),登録!$AE$2:$AH$55,3,FALSE) -> 宮井健太郎 | D39: =VLOOKUP(VALUE(A39&B37),登録!$AE$2:$AH$55,4,FALSE) -> 120 | E39: =★個人成績表★!H18 -> 25 | G39: =★個人成績表★!E18 -> 48 | H39: =★個人成績表★!G18 -> w | I39: =★個人成績表★!D18 -> 7 | J39: =★個人成績表★!F18 -> 26 | K39: 1 | L39: 4 | M39: 226 | N39: =M39*登録!$I$8/★対戦リーグ表★!D39 -> 226 | P39: 226 | Q39: =K39*100000+N39 -> 100226 | R39: =IF(COUNTBLANK(E39:J39)=6,"",RANK(Q39,Q38:Q43)) -> 5 | S39: =IF(結果入力表!H104="","",結果入力表!H104) ->  | U39: =IF(結果入力表!E27="","",結果入力表!E27) ->  | V39: =IF(結果入力表!H76="","",結果入力表!H76) ->  | W39: =IF(結果入力表!E13="","",結果入力表!E13) ->  | X39: =IF(結果入力表!H48="","",結果入力表!H48) ->  | Y39: 26 | Z39: HRC | AA39: =VLOOKUP(Y39,登録!$AE$2:$AH$55,3,FALSE) -> 白澤雄一郎 | AB39: =VLOOKUP(Y39,登録!$AE$2:$AH$55,4,FALSE) -> 120 | AC39: =★個人成績表★!M19 -> w | AE39: =★個人成績表★!J19 -> w | AF39: =★個人成績表★!L19 -> w | AG39: =★個人成績表★!I19 -> 72 | AH39: =★個人成績表★!K19 -> 0 | AI39: 3 | AJ39: 2 | AK39: 432 | AL39: =AK39*登録!$I$8/★対戦リーグ表★!AB39 -> 432 | AN39: 432 | AO39: =AI39*100000+AL39 -> 300432 | AP39: =IF(COUNTBLANK(AC39:AH39)=6,"",RANK(AO39,AO38:AO43)) -> 4 | AQ39: =IF(結果入力表!H209="","",結果入力表!H209) ->  | AS39: =IF(結果入力表!E132="","",結果入力表!E132) ->  | AT39: =IF(結果入力表!H181="","",結果入力表!H181) ->  | AU39: =IF(結果入力表!E118="","",結果入力表!E118) ->  | AV39: =IF(結果入力表!H153="","",結果入力表!H153) ->  | AX39: 16 | AZ39: 宮井健太郎 | BA39: HRC | BB39: =IF(LEFT(S39,1)="A","A",IF(LEFT(S39,1)="B","B",S39)) ->  | BC39: =IF(LEFT(U39,1)="A","A",IF(LEFT(U39,1)="B","B",U39)) ->  | BD39: =IF(LEFT(V39,1)="A","A",IF(LEFT(V39,1)="B","B",V39)) ->  | BE39: =IF(LEFT(W39,1)="A","A",IF(LEFT(W39,1)="B","B",W39)) ->  | BF39: =IF(LEFT(X39,1)="A","A",IF(LEFT(X39,1)="B","B",X39)) ->  | BG39: =IF(LEFT(AQ31,1)="A","A",IF(LEFT(AQ31,1)="B","B",AQ31)) ->  | BH39: =IF(LEFT(AS31,1)="A","A",IF(LEFT(AS31,1)="B","B",AS31)) ->  | BI39: =IF(LEFT(AT31,1)="A","A",IF(LEFT(AT31,1)="B","B",AT31)) ->  | BJ39: =IF(LEFT(AU31,1)="A","A",IF(LEFT(AU31,1)="B","B",AU31)) ->  | BK39: =IF(LEFT(AV31,1)="A","A",IF(LEFT(AV31,1)="B","B",AV31)) ->  | BL39: =IF(BM39>0,"A"&登録!$I$8,IF(BN39>0,"B"&登録!$I$8,BO39)) -> 0 | BM39: 0 | BN39: 0 | BO39: 0 | BP39: 0 | BR39: =★個人成績表★!B38 -> 白戸 恭子 | BS39: A120
A40: 3 | B40: SBC | C40: =VLOOKUP(VALUE(A40&B37),登録!$AE$2:$AH$55,3,FALSE) -> 大橋 正寛 | D40: =VLOOKUP(VALUE(A40&B37),登録!$AE$2:$AH$55,4,FALSE) -> 120 | E40: =★個人成績表★!G27 -> w | F40: =★個人成績表★!E27 -> w | H40: =★個人成績表★!D27 -> w | I40: =★個人成績表★!F27 -> 20 | J40: =★個人成績表★!H27 -> 39 | K40: 3 | L40: 2 | M40: 419 | N40: =M40*登録!$I$8/★対戦リーグ表★!D40 -> 419 | P40: 419 | Q40: =K40*100000+N40 -> 300419 | R40: =IF(COUNTBLANK(E40:J40)=6,"",RANK(Q40,Q38:Q43)) -> 3 | S40: =IF(結果入力表!H83="","",結果入力表!H83) ->  | T40: =IF(結果入力表!H27="","",結果入力表!H27) ->  | V40: =IF(結果入力表!E6="","",結果入力表!E6) ->  | W40: =IF(結果入力表!H55="","",結果入力表!H55) ->  | X40: =IF(結果入力表!E97="","",結果入力表!E97) ->  | Y40: 37 | Z40: SBC | AA40: =VLOOKUP(Y40,登録!$AE$2:$AH$55,3,FALSE) -> 大橋 洋子 | AB40: =VLOOKUP(Y40,登録!$AE$2:$AH$55,4,FALSE) -> 100 | AC40: =★個人成績表★!L29 -> 23 | AD40: =★個人成績表★!J29 -> 3 | AF40: =★個人成績表★!I29 -> 32 | AG40: =★個人成績表★!K29 -> 16 | AH40: =★個人成績表★!M29 -> 70 | AI40: 0 | AJ40: 5 | AK40: 144 | AL40: =AK40*登録!$I$8/★対戦リーグ表★!AB40 -> 172.8 | AM40: * | AN40: 172.8 | AO40: =AI40*100000+AL40 -> 172.8 | AP40: =IF(COUNTBLANK(AC40:AH40)=6,"",RANK(AO40,AO38:AO43)) -> 6 | AQ40: =IF(結果入力表!H188="","",結果入力表!H188) ->  | AR40: =IF(結果入力表!H132="","",結果入力表!H132) ->  | AT40: =IF(結果入力表!E111="","",結果入力表!E111) ->  | AU40: =IF(結果入力表!H160="","",結果入力表!H160) ->  | AV40: =IF(結果入力表!E202="","",結果入力表!E202) ->  | AX40: 2 | AZ40: 大橋 正寛 | BA40: SBC | BB40: =IF(LEFT(S40,1)="A","A",IF(LEFT(S40,1)="B","B",S40)) ->  | BC40: =IF(LEFT(T40,1)="A","A",IF(LEFT(T40,1)="B","B",T40)) ->  | BD40: =IF(LEFT(V40,1)="A","A",IF(LEFT(V40,1)="B","B",V40)) ->  | BE40: =IF(LEFT(W40,1)="A","A",IF(LEFT(W40,1)="B","B",W40)) ->  | BF40: =IF(LEFT(X40,1)="A","A",IF(LEFT(X40,1)="B","B",X40)) ->  | BG40: =IF(LEFT(AQ24,1)="A","A",IF(LEFT(AQ24,1)="B","B",AQ24)) ->  | BH40: =IF(LEFT(AR24,1)="A","A",IF(LEFT(AR24,1)="B","B",AR24)) ->  | BI40: =IF(LEFT(AT24,1)="A","A",IF(LEFT(AT24,1)="B","B",AT24)) -> A | BJ40: =IF(LEFT(AU24,1)="A","A",IF(LEFT(AU24,1)="B","B",AU24)) ->  | BK40: =IF(LEFT(AV24,1)="A","A",IF(LEFT(AV24,1)="B","B",AV24)) ->  | BL40: =IF(BM40>0,"A"&登録!$I$8,IF(BN40>0,"B"&登録!$I$8,BO40)) -> A120 | BM40: 1 | BN40: 0 | BO40: 0 | BP40: 10000
A41: 4 | B41: NRC | C41: =VLOOKUP(VALUE(A41&B37),登録!$AE$2:$AH$55,3,FALSE) -> 近藤 拓馬 | D41: =VLOOKUP(VALUE(A41&B37),登録!$AE$2:$AH$55,4,FALSE) -> 120 | E41: =★個人成績表★!F36 -> w | F41: =★個人成績表★!G36 -> 21 | G41: =★個人成績表★!D36 -> 19 | I41: =★個人成績表★!H36 -> 1 | J41: =★個人成績表★!E36 -> 57 | K41: 1 | L41: 4 | M41: 218 | N41: =M41*登録!$I$8/★対戦リーグ表★!D41 -> 218 | P41: 218 | Q41: =K41*100000+N41 -> 100218 | R41: =IF(COUNTBLANK(E41:J41)=6,"",RANK(Q41,Q38:Q43)) -> 6 | S41: =IF(結果入力表!H62="","",結果入力表!H62) ->  | T41: =IF(結果入力表!E76="","",結果入力表!E76) ->  | U41: =IF(結果入力表!H6="","",結果入力表!H6) ->  | W41: =IF(結果入力表!E90="","",結果入力表!E90) ->  | X41: =IF(結果入力表!H34="","",結果入力表!H34) ->  | Y41: 41 | Z41: NRC | AA41: =VLOOKUP(Y41,登録!$AE$2:$AH$55,3,FALSE) -> 吉向 翔平 | AB41: =VLOOKUP(Y41,登録!$AE$2:$AH$55,4,FALSE) -> 120 | AC41: =★個人成績表★!K32 -> w | AD41: =★個人成績表★!L32 -> 26 | AE41: =★個人成績表★!I32 -> w | AG41: =★個人成績表★!M32 -> w | AH41: =★個人成績表★!J32 -> w | AI41: 4 | AJ41: 1 | AK41: 506 | AL41: =AK41*登録!$I$8/★対戦リーグ表★!AB41 -> 506 | AN41: 506 | AO41: =AI41*100000+AL41 -> 400506 | AP41: =IF(COUNTBLANK(AC41:AH41)=6,"",RANK(AO41,AO38:AO43)) -> 2 | AQ41: =IF(結果入力表!H167="","",結果入力表!H167) ->  | AR41: =IF(結果入力表!E181="","",結果入力表!E181) ->  | AS41: =IF(結果入力表!H111="","",結果入力表!H111) ->  | AU41: =IF(結果入力表!E195="","",結果入力表!E195) ->  | AV41: =IF(結果入力表!H139="","",結果入力表!H139) ->  | AX41: 16 | AZ41: 近藤 拓馬 | BA41: NRC | BB41: =IF(LEFT(S41,1)="A","A",IF(LEFT(S41,1)="B","B",S41)) ->  | BC41: =IF(LEFT(T41,1)="A","A",IF(LEFT(T41,1)="B","B",T41)) ->  | BD41: =IF(LEFT(U41,1)="A","A",IF(LEFT(U41,1)="B","B",U41)) ->  | BE41: =IF(LEFT(W41,1)="A","A",IF(LEFT(W41,1)="B","B",W41)) ->  | BF41: =IF(LEFT(X41,1)="A","A",IF(LEFT(X41,1)="B","B",X41)) ->  | BG41: =IF(LEFT(AQ17,1)="A","A",IF(LEFT(AQ17,1)="B","B",AQ17)) ->  | BH41: =IF(LEFT(AR17,1)="A","A",IF(LEFT(AR17,1)="B","B",AR17)) ->  | BI41: =IF(LEFT(AS17,1)="A","A",IF(LEFT(AS17,1)="B","B",AS17)) ->  | BJ41: =IF(LEFT(AU17,1)="A","A",IF(LEFT(AU17,1)="B","B",AU17)) ->  | BK41: =IF(LEFT(AV17,1)="A","A",IF(LEFT(AV17,1)="B","B",AV17)) ->  | BL41: =IF(BM41>0,"A"&登録!$I$8,IF(BN41>0,"B"&登録!$I$8,BO41)) -> 0 | BM41: 0 | BN41: 0 | BO41: 0 | BP41: 0
A42: 5 | B42: ORC | C42: =VLOOKUP(VALUE(A42&B37),登録!$AE$2:$AH$55,3,FALSE) -> 小原 嘉丈 | D42: =VLOOKUP(VALUE(A42&B37),登録!$AE$2:$AH$55,4,FALSE) -> 120 | E42: =★個人成績表★!E45 -> 0 | F42: =★個人成績表★!D45 -> w | G42: =★個人成績表★!F45 -> w | H42: =★個人成績表★!H45 -> w | J42: =★個人成績表★!G45 -> 73 | K42: 3 | L42: 2 | M42: 433 | N42: =M42*登録!$I$8/★対戦リーグ表★!D42 -> 433 | P42: 433 | Q42: =K42*100000+N42 -> 300433 | R42: =IF(COUNTBLANK(E42:J42)=6,"",RANK(Q42,Q38:Q43)) -> 2 | S42: =IF(結果入力表!H41="","",結果入力表!H41) ->  | T42: =IF(結果入力表!H13="","",結果入力表!H13) ->  | U42: =IF(結果入力表!E55="","",結果入力表!E55) ->  | V42: =IF(結果入力表!H90="","",結果入力表!H90) -> 116 | X42: =IF(結果入力表!E69="","",結果入力表!E69) ->  | Y42: 52 | Z42: ORC | AA42: =VLOOKUP(Y42,登録!$AE$2:$AH$55,3,FALSE) -> 藤明 宏樹 | AB42: =VLOOKUP(Y42,登録!$AE$2:$AH$55,4,FALSE) -> 120 | AC42: =★個人成績表★!J42 -> w | AD42: =★個人成績表★!I42 -> w | AE42: =★個人成績表★!K42 -> w | AF42: =★個人成績表★!M42 -> 60 | AH42: =★個人成績表★!L42 -> 92 | AI42: 3 | AJ42: 2 | AK42: 512 | AL42: =AK42*登録!$I$8/★対戦リーグ表★!AB42 -> 512 | AN42: 512 | AO42: =AI42*100000+AL42 -> 300512 | AP42: =IF(COUNTBLANK(AC42:AH42)=6,"",RANK(AO42,AO38:AO43)) -> 3 | AQ42: =IF(結果入力表!H146="","",結果入力表!H146) ->  | AR42: =IF(結果入力表!H118="","",結果入力表!H118) ->  | AS42: =IF(結果入力表!E160="","",結果入力表!E160) ->  | AT42: =IF(結果入力表!H195="","",結果入力表!H195) ->  | AV42: =IF(結果入力表!E174="","",結果入力表!E174) ->  | AX42: 7 | AZ42: 小原 嘉丈 | BA42: ORC | BB42: =IF(LEFT(S42,1)="A","A",IF(LEFT(S42,1)="B","B",S42)) ->  | BC42: =IF(LEFT(T42,1)="A","A",IF(LEFT(T42,1)="B","B",T42)) ->  | BD42: =IF(LEFT(U42,1)="A","A",IF(LEFT(U42,1)="B","B",U42)) ->  | BE42: =IF(LEFT(V42,1)="A","A",IF(LEFT(V42,1)="B","B",V42)) -> 116 | BF42: =IF(LEFT(X42,1)="A","A",IF(LEFT(X42,1)="B","B",X42)) ->  | BG42: =IF(LEFT(AQ10,1)="A","A",IF(LEFT(AQ10,1)="B","B",AQ10)) ->  | BH42: =IF(LEFT(AR10,1)="A","A",IF(LEFT(AR10,1)="B","B",AR10)) ->  | BI42: =IF(LEFT(AS10,1)="A","A",IF(LEFT(AS10,1)="B","B",AS10)) ->  | BJ42: =IF(LEFT(AT10,1)="A","A",IF(LEFT(AT10,1)="B","B",AT10)) ->  | BK42: =IF(LEFT(AV10,1)="A","A",IF(LEFT(AV10,1)="B","B",AV10)) ->  | BL42: =IF(BM42>0,"A"&登録!$I$8,IF(BN42>0,"B"&登録!$I$8,BO42)) -> 116 | BM42: 0 | BN42: 0 | BO42: 116 | BP42: 116 | BR42: =★個人成績表★!B41 -> 松居 勝巳 | BS42: =VLOOKUP(BR42,$AZ$6:$BL$59,13,FALSE) -> 0
A43: 6 | B43: WRC | C43: =IF(B43="","",VLOOKUP(VALUE(A43&B37),登録!$AE$2:$AH$55,3,FALSE)) -> 山中 康介 | D43: =IF(B43="","",VLOOKUP(VALUE(A43&B37),登録!$AE$2:$AH$55,4,FALSE)) -> 120 | E43: =★個人成績表★!D54 -> w | F43: =★個人成績表★!F54 -> w | G43: =★個人成績表★!H54 -> w | H43: =★個人成績表★!E54 -> w | I43: =★個人成績表★!G54 -> w | K43: 5 | L43: 0 | M43: 600 | N43: =M43*登録!$I$8/★対戦リーグ表★!D43 -> 600 | P43: 600 | Q43: =IF(D43="","",K43*100000+N43) -> 500600 | R43: =IF(COUNTBLANK(E43:J43)=6,"",RANK(Q43,Q38:Q43)) -> 1 | S43: =IF(結果入力表!H20="","",結果入力表!H20) ->  | T43: =IF(結果入力表!E48="","",結果入力表!E48) -> 105 | U43: =IF(結果入力表!H97="","",結果入力表!H97) ->  | V43: =IF(結果入力表!E34="","",結果入力表!E34) ->  | W43: =IF(結果入力表!H69="","",結果入力表!H69) ->  | Y43: 63 | Z43: WRC | AA43: =IF(Z43="","",VLOOKUP(Y43,登録!$AE$2:$AH$55,3,FALSE)) -> 杉本 博章 | AB43: =IF(Z43="","",VLOOKUP(Y43,登録!$AE$2:$AH$55,4,FALSE)) -> 120 | AC43: =★個人成績表★!I52 -> w | AD43: =★個人成績表★!K52 -> w | AE43: =★個人成績表★!M52 -> w | AF43: =★個人成績表★!J52 -> 80 | AG43: =★個人成績表★!L52 -> w | AI43: 4 | AJ43: 1 | AK43: 560 | AL43: =AK43*登録!$I$8/★対戦リーグ表★!AB43 -> 560 | AN43: 560 | AO43: =IF(AB43="","",AI43*100000+AL43) -> 400560 | AP43: =IF(COUNTBLANK(AC43:AH43)=6,"",RANK(AO43,AO38:AO43)) -> 1 | AQ43: =IF(結果入力表!H125="","",結果入力表!H125) ->  | AR43: =IF(結果入力表!E153="","",結果入力表!E153) ->  | AS43: =IF(結果入力表!H202="","",結果入力表!H202) ->  | AT43: =IF(結果入力表!E139="","",結果入力表!E139) ->  | AU43: =IF(結果入力表!H174="","",結果入力表!H174) ->  | AX43: 13 | AZ43: 山中 康介 | BA43: WRC | BB43: =IF(LEFT(S43,1)="A","A",IF(LEFT(S43,1)="B","B",S43)) ->  | BC43: =IF(LEFT(T43,1)="A","A",IF(LEFT(T43,1)="B","B",T43)) -> 105 | BD43: =IF(LEFT(U43,1)="A","A",IF(LEFT(U43,1)="B","B",U43)) ->  | BE43: =IF(LEFT(V43,1)="A","A",IF(LEFT(V43,1)="B","B",V43)) ->  | BF43: =IF(LEFT(W43,1)="A","A",IF(LEFT(W43,1)="B","B",W43)) ->  | BG43: =IF(LEFT(AQ59,1)="A","A",IF(LEFT(AQ59,1)="B","B",AQ59)) ->  | BH43: =IF(LEFT(AR59,1)="A","A",IF(LEFT(AR59,1)="B","B",AR59)) ->  | BI43: =IF(LEFT(AS59,1)="A","A",IF(LEFT(AS59,1)="B","B",AS59)) ->  | BJ43: =IF(LEFT(AT59,1)="A","A",IF(LEFT(AT59,1)="B","B",AT59)) ->  | BK43: =IF(LEFT(AU59,1)="A","A",IF(LEFT(AU59,1)="B","B",AU59)) ->  | BL43: =IF(BM43>0,"A"&登録!$I$8,IF(BN43>0,"B"&登録!$I$8,BO43)) -> 105 | BM43: 0 | BN43: 0 | BO43: 105 | BP43: 105 | BR43: =★個人成績表★!B42 -> 藤明 宏樹 | BS43: 0
BL44: =IF(BM44>0,"A"&登録!$I$8,IF(BN44>0,"B"&登録!$I$8,BO44)) -> 0 | BR44: =★個人成績表★!B43 -> 吉岡 保俊 | BS44: 106
B45: 6 | C45: Player | D45: handy | E45: =B46 -> KRC | F45: =B47 -> HRC | G45: =B48 -> SBC | H45: =B49 -> NRC | I45: =B50 -> ORC | J45: =B51 -> WRC | K45: W | L45: L | M45: TP | N45: (TP) | O45: TP | Q45: R_P | R45: R | Z45: 6 | AA45: Player | AB45: handy | AC45: =$B$6 -> KRC | AD45: =$B$7 -> HRC | AE45: =$B$8 -> SBC | AF45: =$B$9 -> NRC | AG45: =$B$10 -> ORC | AH45: =$B$11 -> WRC | AI45: W | AJ45: L | AK45: TP | AL45: (TP) | AM45: TP | AO45: R_P | AP45: R | BL45: =IF(BM45>0,"A"&登録!$I$8,IF(BN45>0,"B"&登録!$I$8,BO45)) -> 0 | BR45: =★個人成績表★!B44 -> 村上 泰辰 | BS45: 0
A46: 1 | B46: =B38 -> KRC | C46: =VLOOKUP(VALUE(A46&B45),登録!$AE$2:$AH$55,3,FALSE) -> 今村 哲也 | D46: =VLOOKUP(VALUE(A46&B45),登録!$AE$2:$AH$55,4,FALSE) -> 120 | F46: =★個人成績表★!H10 -> w | G46: =★個人成績表★!G10 -> w | H46: =★個人成績表★!F10 -> 4 | I46: =★個人成績表★!E10 -> 75 | J46: =★個人成績表★!D10 -> 20 | K46: =IF(COUNTBLANK(E46:J46)=6,"",COUNTIF(E46:J46,"w")) -> 2 | L46: =IF(COUNTBLANK(E46:J46)=6,"",6-COUNTBLANK(E46:J46)-K46) -> 3 | M46: =K46*D46+SUM(E46:J46) -> 339 | N46: =M46*登録!$I$8/★対戦リーグ表★!D46 -> 339 | O46: =IF(ISERROR(N46),"",IF(M46=N46,"","*")) ->  | P46: =IF(COUNTBLANK(E46:J46)=6,"",N46) -> 339 | Q46: =K46*100000+N46 -> 200339 | R46: =IF(COUNTBLANK(E46:J46)=6,"",RANK(Q46,Q46:Q51)) -> 4 | T46: =IF(結果入力表!E105="","",結果入力表!E105) ->  | U46: =IF(結果入力表!E84="","",結果入力表!E84) ->  | V46: =IF(結果入力表!E63="","",結果入力表!E63) ->  | W46: =IF(結果入力表!E42="","",結果入力表!E42) ->  | X46: =IF(結果入力表!E21="","",結果入力表!E21) ->  | Y46: 16 | Z46: =Z38 -> KRC | AA46: =VLOOKUP(Y46,登録!$AE$2:$AH$55,3,FALSE) -> 今村 哲也 | AB46: =VLOOKUP(Y46,登録!$AE$2:$AH$55,4,FALSE) -> 120 | AD46: =★個人成績表★!M10 -> 87 | AE46: =★個人成績表★!L10 -> w | AF46: =★個人成績表★!K10 -> w | AG46: =★個人成績表★!J10 -> 44 | AH46: =★個人成績表★!I10 -> 91 | AI46: =IF(COUNTBLANK(AC46:AH46)=6,"",COUNTIF(AC46:AH46,"w")) -> 2 | AJ46: =IF(COUNTBLANK(AC46:AH46)=6,"",6-COUNTBLANK(AC46:AH46)-AI46) -> 3 | AK46: =AI46*AB46+SUM(AC46:AH46) -> 462 | AL46: =AK46*登録!$I$8/★対戦リーグ表★!AB46 -> 462 | AM46: =IF(ISERROR(AL46),"",IF(AK46=AL46,"","*")) ->  | AN46: =IF(COUNTBLANK(AC46:AH46)=6,"",AL46) -> 462 | AO46: =AI46*100000+AL46 -> 200462 | AP46: =IF(COUNTBLANK(AC46:AH46)=6,"",RANK(AO46,AO46:AO51)) -> 5 | AR46: =IF(結果入力表!E210="","",結果入力表!E210) ->  | AS46: =IF(結果入力表!E189="","",結果入力表!E189) ->  | AT46: =IF(結果入力表!E168="","",結果入力表!E168) ->  | AU46: =IF(結果入力表!E147="","",結果入力表!E147) ->  | AV46: =IF(結果入力表!E126="","",結果入力表!E126) ->  | AX46: =RANK(BP46,$BP$6:$BP$59) -> 16 | AZ46: =C46 -> 今村 哲也 | BA46: =B46 -> KRC | BB46: =IF(LEFT(T46,1)="A","A",IF(LEFT(T46,1)="B","B",T46)) ->  | BC46: =IF(LEFT(U46,1)="A","A",IF(LEFT(U46,1)="B","B",U46)) ->  | BD46: =IF(LEFT(V46,1)="A","A",IF(LEFT(V46,1)="B","B",V46)) ->  | BE46: =IF(LEFT(W46,1)="A","A",IF(LEFT(W46,1)="B","B",W46)) ->  | BF46: =IF(LEFT(X46,1)="A","A",IF(LEFT(X46,1)="B","B",X46)) ->  | BG46: =IF(LEFT(AR46,1)="A","A",IF(LEFT(AR46,1)="B","B",AR46)) ->  | BH46: =IF(LEFT(AS46,1)="A","A",IF(LEFT(AS46,1)="B","B",AS46)) ->  | BI46: =IF(LEFT(AT46,1)="A","A",IF(LEFT(AT46,1)="B","B",AT46)) ->  | BJ46: =IF(LEFT(AU46,1)="A","A",IF(LEFT(AU46,1)="B","B",AU46)) ->  | BK46: =IF(LEFT(AV46,1)="A","A",IF(LEFT(AV46,1)="B","B",AV46)) ->  | BL46: =IF(BM46>0,"A"&登録!$I$8,IF(BN46>0,"B"&登録!$I$8,BO46)) -> 0 | BM46: =COUNTIF($BB46:$BK46,BM$5) -> 0 | BN46: 0 | BO46: =MAX(BB46:BK46) -> 0 | BP46: =BM46*10000+BN46*1000+BO46 -> 0 | BR46: =★個人成績表★!B45 -> 小原 嘉丈 | BS46: 116
A47: 2 | B47: HRC | C47: =VLOOKUP(VALUE(A47&B45),登録!$AE$2:$AH$55,3,FALSE) -> 白澤雄一郎 | D47: =VLOOKUP(VALUE(A47&B45),登録!$AE$2:$AH$55,4,FALSE) -> 120 | E47: =★個人成績表★!H19 -> 20 | G47: =★個人成績表★!E19 -> 13 | H47: =★個人成績表★!G19 -> w | I47: =★個人成績表★!D19 -> 18 | J47: =★個人成績表★!F18 -> 26 | K47: 1 | L47: 4 | M47: 197 | N47: =M47*登録!$I$8/★対戦リーグ表★!D47 -> 197 | P47: 197 | Q47: =K47*100000+N47 -> 100197 | R47: =IF(COUNTBLANK(E47:J47)=6,"",RANK(Q47,Q46:Q51)) -> 6 | S47: =IF(結果入力表!H105="","",結果入力表!H105) ->  | U47: =IF(結果入力表!E28="","",結果入力表!E28) ->  | V47: =IF(結果入力表!H77="","",結果入力表!H77) -> 107 | W47: =IF(結果入力表!E14="","",結果入力表!E14) ->  | X47: =IF(結果入力表!H49="","",結果入力表!H49) ->  | Y47: 27 | Z47: HRC | AA47: =VLOOKUP(Y47,登録!$AE$2:$AH$55,3,FALSE) -> 河地 恵里 | AB47: =VLOOKUP(Y47,登録!$AE$2:$AH$55,4,FALSE) -> 100 | AC47: =★個人成績表★!M20 -> w | AE47: =★個人成績表★!J20 -> 30 | AF47: =★個人成績表★!L20 -> w | AG47: =★個人成績表★!I20 -> 22 | AH47: =★個人成績表★!K20 -> w | AI47: 3 | AJ47: 2 | AK47: 352 | AL47: =AK47*登録!$I$8/★対戦リーグ表★!AB47 -> 422.4 | AM47: * | AN47: 422.4 | AO47: =AI47*100000+AL47 -> 300422.4 | AP47: =IF(COUNTBLANK(AC47:AH47)=6,"",RANK(AO47,AO46:AO51)) -> 3 | AQ47: =IF(結果入力表!H210="","",結果入力表!H210) ->  | AS47: =IF(結果入力表!E133="","",結果入力表!E133) ->  | AT47: =IF(結果入力表!H182="","",結果入力表!H182) ->  | AU47: =IF(結果入力表!E119="","",結果入力表!E119) ->  | AV47: =IF(結果入力表!H154="","",結果入力表!H154) ->  | AX47: 8 | AZ47: 白澤雄一郎 | BA47: HRC | BB47: =IF(LEFT(S47,1)="A","A",IF(LEFT(S47,1)="B","B",S47)) ->  | BC47: =IF(LEFT(U47,1)="A","A",IF(LEFT(U47,1)="B","B",U47)) ->  | BD47: =IF(LEFT(V47,1)="A","A",IF(LEFT(V47,1)="B","B",V47)) -> 107 | BE47: =IF(LEFT(W47,1)="A","A",IF(LEFT(W47,1)="B","B",W47)) ->  | BF47: =IF(LEFT(X47,1)="A","A",IF(LEFT(X47,1)="B","B",X47)) ->  | BG47: =IF(LEFT(AQ39,1)="A","A",IF(LEFT(AQ39,1)="B","B",AQ39)) ->  | BH47: =IF(LEFT(AS39,1)="A","A",IF(LEFT(AS39,1)="B","B",AS39)) ->  | BI47: =IF(LEFT(AT39,1)="A","A",IF(LEFT(AT39,1)="B","B",AT39)) ->  | BJ47: =IF(LEFT(AU39,1)="A","A",IF(LEFT(AU39,1)="B","B",AU39)) ->  | BK47: =IF(LEFT(AV39,1)="A","A",IF(LEFT(AV39,1)="B","B",AV39)) ->  | BL47: =IF(BM47>0,"A"&登録!$I$8,IF(BN47>0,"B"&登録!$I$8,BO47)) -> 107 | BM47: 0 | BN47: 0 | BO47: 107 | BP47: 107 | BR47: =★個人成績表★!B46 -> 乾 伸綱 | BS47: 0
A48: 3 | B48: SBC | C48: =VLOOKUP(VALUE(A48&B45),登録!$AE$2:$AH$55,3,FALSE) -> 秋田 倫央 | D48: =VLOOKUP(VALUE(A48&B45),登録!$AE$2:$AH$55,4,FALSE) -> 120 | E48: =★個人成績表★!G28 -> 24 | F48: =★個人成績表★!E28 -> w | H48: =★個人成績表★!D28 -> 98 | I48: =★個人成績表★!F28 -> 28 | J48: =★個人成績表★!H28 -> w | K48: 2 | L48: 3 | M48: 390 | N48: =M48*登録!$I$8/★対戦リーグ表★!D48 -> 390 | P48: 390 | Q48: =K48*100000+N48 -> 200390 | R48: =IF(COUNTBLANK(E48:J48)=6,"",RANK(Q48,Q46:Q51)) -> 2 | S48: =IF(結果入力表!H84="","",結果入力表!H84) ->  | T48: =IF(結果入力表!H28="","",結果入力表!H28) ->  | V48: =IF(結果入力表!E7="","",結果入力表!E7) ->  | W48: =IF(結果入力表!H56="","",結果入力表!H56) ->  | X48: =IF(結果入力表!E98="","",結果入力表!E98) ->  | Y48: 31 | Z48: SBC | AA48: =VLOOKUP(Y48,登録!$AE$2:$AH$55,3,FALSE) -> 林 秀忠 | AB48: =VLOOKUP(Y48,登録!$AE$2:$AH$55,4,FALSE) -> 120 | AC48: =★個人成績表★!L23 -> 85 | AD48: =★個人成績表★!J23 -> w | AF48: =★個人成績表★!I23 -> w | AG48: =★個人成績表★!K23 -> 55 | AH48: =★個人成績表★!M23 -> w | AI48: 3 | AJ48: 2 | AK48: 500 | AL48: =AK48*登録!$I$8/★対戦リーグ表★!AB48 -> 500 | AN48: 500 | AO48: =AI48*100000+AL48 -> 300500 | AP48: =IF(COUNTBLANK(AC48:AH48)=6,"",RANK(AO48,AO46:AO51)) -> 1 | AQ48: =IF(結果入力表!H189="","",結果入力表!H189) ->  | AR48: =IF(結果入力表!H133="","",結果入力表!H133) ->  | AT48: =IF(結果入力表!E112="","",結果入力表!E112) ->  | AU48: =IF(結果入力表!H161="","",結果入力表!H161) ->  | AV48: =IF(結果入力表!E203="","",結果入力表!E203) ->  | AX48: 16 | AZ48: 秋田 倫央 | BA48: SBC | BB48: =IF(LEFT(S48,1)="A","A",IF(LEFT(S48,1)="B","B",S48)) ->  | BC48: =IF(LEFT(T48,1)="A","A",IF(LEFT(T48,1)="B","B",T48)) ->  | BD48: =IF(LEFT(V48,1)="A","A",IF(LEFT(V48,1)="B","B",V48)) ->  | BE48: =IF(LEFT(W48,1)="A","A",IF(LEFT(W48,1)="B","B",W48)) ->  | BF48: =IF(LEFT(X48,1)="A","A",IF(LEFT(X48,1)="B","B",X48)) ->  | BG48: =IF(LEFT(AQ32,1)="A","A",IF(LEFT(AQ32,1)="B","B",AQ32)) ->  | BH48: =IF(LEFT(AR32,1)="A","A",IF(LEFT(AR32,1)="B","B",AR32)) ->  | BI48: =IF(LEFT(AT32,1)="A","A",IF(LEFT(AT32,1)="B","B",AT32)) ->  | BJ48: =IF(LEFT(AU32,1)="A","A",IF(LEFT(AU32,1)="B","B",AU32)) ->  | BK48: =IF(LEFT(AV32,1)="A","A",IF(LEFT(AV32,1)="B","B",AV32)) ->  | BL48: =IF(BM48>0,"A"&登録!$I$8,IF(BN48>0,"B"&登録!$I$8,BO48)) -> 0 | BM48: 0 | BN48: 0 | BO48: 0 | BP48: 0 | BR48: =★個人成績表★!B47 -> 山崎真紀子 | BS48: 0
A49: 4 | B49: NRC | C49: =VLOOKUP(VALUE(A49&B45),登録!$AE$2:$AH$55,3,FALSE) -> 長谷川 進 | D49: =VLOOKUP(VALUE(A49&B45),登録!$AE$2:$AH$55,4,FALSE) -> 120 | E49: =★個人成績表★!F37 -> w | F49: =★個人成績表★!G37 -> 21 | G49: =★個人成績表★!D37 -> w | I49: =★個人成績表★!H37 -> 23 | J49: =★個人成績表★!E37 -> 0 | K49: 2 | L49: 3 | M49: 284 | N49: =M49*登録!$I$8/★対戦リーグ表★!D49 -> 284 | P49: 284 | Q49: =K49*100000+N49 -> 200284 | R49: =IF(COUNTBLANK(E49:J49)=6,"",RANK(Q49,Q46:Q51)) -> 5 | S49: =IF(結果入力表!H63="","",結果入力表!H63) ->  | T49: =IF(結果入力表!E77="","",結果入力表!E77) ->  | U49: =IF(結果入力表!H7="","",結果入力表!H7) ->  | W49: =IF(結果入力表!E91="","",結果入力表!E91) ->  | X49: =IF(結果入力表!H35="","",結果入力表!H35) ->  | Y49: 42 | Z49: NRC | AA49: =VLOOKUP(Y49,登録!$AE$2:$AH$55,3,FALSE) -> 岩本 剛 | AB49: =VLOOKUP(Y49,登録!$AE$2:$AH$55,4,FALSE) -> 120 | AC49: =★個人成績表★!K33 -> 53 | AD49: =★個人成績表★!L33 -> 79 | AE49: =★個人成績表★!I33 -> 47 | AG49: =★個人成績表★!M33 -> w | AH49: =★個人成績表★!J33 -> w | AI49: 2 | AJ49: 3 | AK49: 419 | AL49: =AK49*登録!$I$8/★対戦リーグ表★!AB49 -> 419 | AN49: 419 | AO49: =AI49*100000+AL49 -> 200419 | AP49: =IF(COUNTBLANK(AC49:AH49)=6,"",RANK(AO49,AO46:AO51)) -> 6 | AQ49: =IF(結果入力表!H168="","",結果入力表!H168) ->  | AR49: =IF(結果入力表!E182="","",結果入力表!E182) ->  | AS49: =IF(結果入力表!H112="","",結果入力表!H112) ->  | AU49: =IF(結果入力表!E196="","",結果入力表!E196) ->  | AV49: =IF(結果入力表!H140="","",結果入力表!H140) ->  | AX49: 16 | AZ49: 長谷川 進 | BA49: NRC | BB49: =IF(LEFT(S49,1)="A","A",IF(LEFT(S49,1)="B","B",S49)) ->  | BC49: =IF(LEFT(T49,1)="A","A",IF(LEFT(T49,1)="B","B",T49)) ->  | BD49: =IF(LEFT(U49,1)="A","A",IF(LEFT(U49,1)="B","B",U49)) ->  | BE49: =IF(LEFT(W49,1)="A","A",IF(LEFT(W49,1)="B","B",W49)) ->  | BF49: =IF(LEFT(X49,1)="A","A",IF(LEFT(X49,1)="B","B",X49)) ->  | BG49: =IF(LEFT(AQ25,1)="A","A",IF(LEFT(AQ25,1)="B","B",AQ25)) ->  | BH49: =IF(LEFT(AR25,1)="A","A",IF(LEFT(AR25,1)="B","B",AR25)) ->  | BI49: =IF(LEFT(AS25,1)="A","A",IF(LEFT(AS25,1)="B","B",AS25)) ->  | BJ49: =IF(LEFT(AU25,1)="A","A",IF(LEFT(AU25,1)="B","B",AU25)) ->  | BK49: =IF(LEFT(AV25,1)="A","A",IF(LEFT(AV25,1)="B","B",AV25)) ->  | BL49: =IF(BM49>0,"A"&登録!$I$8,IF(BN49>0,"B"&登録!$I$8,BO49)) -> 0 | BM49: 0 | BN49: 0 | BO49: 0 | BP49: 0
A50: 5 | B50: ORC | C50: =VLOOKUP(VALUE(A50&B45),登録!$AE$2:$AH$55,3,FALSE) -> 乾 伸綱 | D50: =VLOOKUP(VALUE(A50&B45),登録!$AE$2:$AH$55,4,FALSE) -> 120 | E50: =★個人成績表★!E46 -> w | F50: =★個人成績表★!D46 -> w | G50: =★個人成績表★!F46 -> w | H50: =★個人成績表★!H46 -> w | J50: =★個人成績表★!G46 -> w | K50: 5 | L50: 0 | M50: 600 | N50: =M50*登録!$I$8/★対戦リーグ表★!D50 -> 600 | P50: 600 | Q50: =K50*100000+N50 -> 500600 | R50: =IF(COUNTBLANK(E50:J50)=6,"",RANK(Q50,Q46:Q51)) -> 1 | S50: =IF(結果入力表!H42="","",結果入力表!H42) ->  | T50: =IF(結果入力表!H14="","",結果入力表!H14) ->  | U50: =IF(結果入力表!E56="","",結果入力表!E56) ->  | V50: =IF(結果入力表!H91="","",結果入力表!H91) ->  | X50: =IF(結果入力表!E70="","",結果入力表!E70) ->  | Y50: 53 | Z50: ORC | AA50: =VLOOKUP(Y50,登録!$AE$2:$AH$55,3,FALSE) -> 吉岡 保俊 | AB50: =VLOOKUP(Y50,登録!$AE$2:$AH$55,4,FALSE) -> 120 | AC50: =★個人成績表★!J43 -> w | AD50: =★個人成績表★!I43 -> w | AE50: =★個人成績表★!K43 -> w | AF50: =★個人成績表★!M43 -> 18 | AH50: =★個人成績表★!L43 -> 83 | AI50: 3 | AJ50: 2 | AK50: 461 | AL50: =AK50*登録!$I$8/★対戦リーグ表★!AB50 -> 461 | AN50: 461 | AO50: =AI50*100000+AL50 -> 300461 | AP50: =IF(COUNTBLANK(AC50:AH50)=6,"",RANK(AO50,AO46:AO51)) -> 2 | AQ50: =IF(結果入力表!H147="","",結果入力表!H147) ->  | AR50: =IF(結果入力表!H119="","",結果入力表!H119) ->  | AS50: =IF(結果入力表!E161="","",結果入力表!E161) ->  | AT50: =IF(結果入力表!H196="","",結果入力表!H196) ->  | AV50: =IF(結果入力表!E175="","",結果入力表!E175) ->  | AX50: 16 | AZ50: 乾 伸綱 | BA50: ORC | BB50: =IF(LEFT(S50,1)="A","A",IF(LEFT(S50,1)="B","B",S50)) ->  | BC50: =IF(LEFT(T50,1)="A","A",IF(LEFT(T50,1)="B","B",T50)) ->  | BD50: =IF(LEFT(U50,1)="A","A",IF(LEFT(U50,1)="B","B",U50)) ->  | BE50: =IF(LEFT(V50,1)="A","A",IF(LEFT(V50,1)="B","B",V50)) ->  | BF50: =IF(LEFT(X50,1)="A","A",IF(LEFT(X50,1)="B","B",X50)) ->  | BG50: =IF(LEFT(AQ18,1)="A","A",IF(LEFT(AQ18,1)="B","B",AQ18)) ->  | BH50: =IF(LEFT(AR18,1)="A","A",IF(LEFT(AR18,1)="B","B",AR18)) ->  | BI50: =IF(LEFT(AS18,1)="A","A",IF(LEFT(AS18,1)="B","B",AS18)) ->  | BJ50: =IF(LEFT(AT18,1)="A","A",IF(LEFT(AT18,1)="B","B",AT18)) ->  | BK50: =IF(LEFT(AV18,1)="A","A",IF(LEFT(AV18,1)="B","B",AV18)) ->  | BL50: =IF(BM50>0,"A"&登録!$I$8,IF(BN50>0,"B"&登録!$I$8,BO50)) -> 0 | BM50: 0 | BN50: 0 | BO50: 0 | BP50: 0
A51: 6 | B51: WRC | C51: =IF(B51="","",VLOOKUP(VALUE(A51&B45),登録!$AE$2:$AH$55,3,FALSE)) -> 芝先 泰生 | D51: =IF(B51="","",VLOOKUP(VALUE(A51&B45),登録!$AE$2:$AH$55,4,FALSE)) -> 120 | E51: =★個人成績表★!D55 -> w | F51: =★個人成績表★!F55 -> 65 | G51: =★個人成績表★!H55 -> 29 | H51: =★個人成績表★!E55 -> w | I51: =★個人成績表★!G55 -> 48 | K51: 2 | L51: 3 | M51: 382 | N51: =M51*登録!$I$8/★対戦リーグ表★!D51 -> 382 | P51: 382 | Q51: =IF(D51="","",K51*100000+N51) -> 200382 | R51: =IF(COUNTBLANK(E51:J51)=6,"",RANK(Q51,Q46:Q51)) -> 3 | S51: =IF(結果入力表!H21="","",結果入力表!H21) -> 110 | T51: =IF(結果入力表!E49="","",結果入力表!E49) ->  | U51: =IF(結果入力表!H98="","",結果入力表!H98) ->  | V51: =IF(結果入力表!E35="","",結果入力表!E35) -> A120 | W51: =IF(結果入力表!H70="","",結果入力表!H70) ->  | Y51: 64 | Z51: WRC | AA51: =IF(Z51="","",VLOOKUP(Y51,登録!$AE$2:$AH$55,3,FALSE)) -> 中本 雅大 | AB51: =IF(Z51="","",VLOOKUP(Y51,登録!$AE$2:$AH$55,4,FALSE)) -> 120 | AC51: =★個人成績表★!I53 -> w | AD51: =★個人成績表★!K53 -> 51 | AE51: =★個人成績表★!M53 -> 105 | AF51: =★個人成績表★!J53 -> 68 | AG51: =★個人成績表★!L53 -> w | AI51: 2 | AJ51: 3 | AK51: 464 | AL51: =AK51*登録!$I$8/★対戦リーグ表★!AB51 -> 464 | AN51: 464 | AO51: =IF(AB51="","",AI51*100000+AL51) -> 200464 | AP51: =IF(COUNTBLANK(AC51:AH51)=6,"",RANK(AO51,AO46:AO51)) -> 4 | AQ51: =IF(結果入力表!H126="","",結果入力表!H126) ->  | AR51: =IF(結果入力表!E154="","",結果入力表!E154) ->  | AS51: =IF(結果入力表!H203="","",結果入力表!H203) ->  | AT51: =IF(結果入力表!E140="","",結果入力表!E140) ->  | AU51: =IF(結果入力表!H175="","",結果入力表!H175) ->  | AX51: 1 | AZ51: 芝先 泰生 | BA51: WRC | BB51: =IF(LEFT(S51,1)="A","A",IF(LEFT(S51,1)="B","B",S51)) -> 110 | BC51: =IF(LEFT(T51,1)="A","A",IF(LEFT(T51,1)="B","B",T51)) ->  | BD51: =IF(LEFT(U51,1)="A","A",IF(LEFT(U51,1)="B","B",U51)) ->  | BE51: =IF(LEFT(V51,1)="A","A",IF(LEFT(V51,1)="B","B",V51)) -> A | BF51: =IF(LEFT(W51,1)="A","A",IF(LEFT(W51,1)="B","B",W51)) ->  | BG51: =IF(LEFT(AQ11,1)="A","A",IF(LEFT(AQ11,1)="B","B",AQ11)) ->  | BH51: =IF(LEFT(AR11,1)="A","A",IF(LEFT(AR11,1)="B","B",AR11)) ->  | BI51: =IF(LEFT(AS11,1)="A","A",IF(LEFT(AS11,1)="B","B",AS11)) ->  | BJ51: =IF(LEFT(AT11,1)="A","A",IF(LEFT(AT11,1)="B","B",AT11)) ->  | BK51: =IF(LEFT(AU11,1)="A","A",IF(LEFT(AU11,1)="B","B",AU11)) ->  | BL51: =IF(BM51>0,"A"&登録!$I$8,IF(BN51>0,"B"&登録!$I$8,BO51)) -> A120 | BM51: 1 | BN51: 0 | BO51: 110 | BP51: 10110 | BR51: =★個人成績表★!B50 -> 末岡 修 | BS51: =VLOOKUP(BR51,$AZ$6:$BL$59,13,FALSE) -> 0
BL52: =IF(BM52>0,"A"&登録!$I$8,IF(BN52>0,"B"&登録!$I$8,BO52)) -> 0 | BR52: =★個人成績表★!B51 -> 和田宗一郎 | BS52: 0
B53: 7 | C53: Player | D53: handy | E53: =B54 -> KRC | F53: =B55 -> HRC | G53: =B56 -> SBC | H53: =B57 -> NRC | I53: =B58 -> ORC | J53: =B59 -> WRC | K53: W | L53: L | M53: TP | N53: (TP) | O53: TP | Q53: R_P | R53: R | Z53: 7 | AA53: Player | AB53: handy | AC53: =$B$6 -> KRC | AD53: =$B$7 -> HRC | AE53: =$B$8 -> SBC | AF53: =$B$9 -> NRC | AG53: =$B$10 -> ORC | AH53: =$B$11 -> WRC | AI53: W | AJ53: L | AK53: TP | AL53: (TP) | AM53: TP | AO53: R_P | AP53: R | BL53: =IF(BM53>0,"A"&登録!$I$8,IF(BN53>0,"B"&登録!$I$8,BO53)) -> 0 | BR53: =★個人成績表★!B52 -> 杉本 博章 | BS53: 0
A54: 1 | B54: =B46 -> KRC | C54: =VLOOKUP(VALUE(A54&B53),登録!$AE$2:$AH$55,3,FALSE) -> 森田由佳里 | D54: =VLOOKUP(VALUE(A54&B53),登録!$AE$2:$AH$55,4,FALSE) -> 100 | F54: =★個人成績表★!H11 -> w | G54: =★個人成績表★!G11 -> w | H54: =★個人成績表★!F11 -> 36 | I54: =★個人成績表★!E11 -> 92 | J54: =★個人成績表★!D11 -> 2 | K54: =IF(COUNTBLANK(E54:J54)=6,"",COUNTIF(E54:J54,"w")) -> 2 | L54: =IF(COUNTBLANK(E54:J54)=6,"",6-COUNTBLANK(E54:J54)-K54) -> 3 | M54: =K54*D54+SUM(E54:J54) -> 330 | N54: =M54*登録!$I$8/★対戦リーグ表★!D54 -> 396 | O54: =IF(ISERROR(N54),"",IF(M54=N54,"","*")) -> * | P54: =IF(COUNTBLANK(E54:J54)=6,"",N54) -> 396 | Q54: =K54*100000+N54 -> 200396 | R54: =IF(COUNTBLANK(E54:J54)=6,"",RANK(Q54,Q54:Q59)) -> 5 | T54: =IF(結果入力表!E106="","",結果入力表!E106) ->  | U54: =IF(結果入力表!E85="","",結果入力表!E85) ->  | V54: =IF(結果入力表!E64="","",結果入力表!E64) ->  | W54: =IF(結果入力表!E43="","",結果入力表!E43) ->  | X54: =IF(結果入力表!E22="","",結果入力表!E22) ->  | Y54: 17 | Z54: =Z46 -> KRC | AA54: =VLOOKUP(Y54,登録!$AE$2:$AH$55,3,FALSE) -> 森田由佳里 | AB54: =VLOOKUP(Y54,登録!$AE$2:$AH$55,4,FALSE) -> 100 | AD54: =★個人成績表★!M11 -> 19 | AE54: =★個人成績表★!L11 -> w | AF54: =★個人成績表★!K11 -> 31 | AG54: =★個人成績表★!J11 -> 35 | AH54: =★個人成績表★!I11 -> w | AI54: =IF(COUNTBLANK(AC54:AH54)=6,"",COUNTIF(AC54:AH54,"w")) -> 2 | AJ54: =IF(COUNTBLANK(AC54:AH54)=6,"",6-COUNTBLANK(AC54:AH54)-AI54) -> 3 | AK54: =AI54*AB54+SUM(AC54:AH54) -> 285 | AL54: =AK54*登録!$I$8/★対戦リーグ表★!AB54 -> 342 | AM54: =IF(ISERROR(AL54),"",IF(AK54=AL54,"","*")) -> * | AN54: =IF(COUNTBLANK(AC54:AH54)=6,"",AL54) -> 342 | AO54: =AI54*100000+AL54 -> 200342 | AP54: =IF(COUNTBLANK(AC54:AH54)=6,"",RANK(AO54,AO54:AO59)) -> 6 | AR54: =IF(結果入力表!E211="","",結果入力表!E211) ->  | AS54: =IF(結果入力表!E190="","",結果入力表!E190) ->  | AT54: =IF(結果入力表!E169="","",結果入力表!E169) ->  | AU54: =IF(結果入力表!E148="","",結果入力表!E148) ->  | AV54: =IF(結果入力表!E127="","",結果入力表!E127) ->  | AX54: =RANK(BP54,$BP$6:$BP$59) -> 16 | AZ54: =C54 -> 森田由佳里 | BA54: =B54 -> KRC | BB54: =IF(LEFT(T54,1)="A","A",IF(LEFT(T54,1)="B","B",T54)) ->  | BC54: =IF(LEFT(U54,1)="A","A",IF(LEFT(U54,1)="B","B",U54)) ->  | BD54: =IF(LEFT(V54,1)="A","A",IF(LEFT(V54,1)="B","B",V54)) ->  | BE54: =IF(LEFT(W54,1)="A","A",IF(LEFT(W54,1)="B","B",W54)) ->  | BF54: =IF(LEFT(X54,1)="A","A",IF(LEFT(X54,1)="B","B",X54)) ->  | BG54: =IF(LEFT(AR54,1)="A","A",IF(LEFT(AR54,1)="B","B",AR54)) ->  | BH54: =IF(LEFT(AS54,1)="A","A",IF(LEFT(AS54,1)="B","B",AS54)) ->  | BI54: =IF(LEFT(AT54,1)="A","A",IF(LEFT(AT54,1)="B","B",AT54)) ->  | BJ54: =IF(LEFT(AU54,1)="A","A",IF(LEFT(AU54,1)="B","B",AU54)) ->  | BK54: =IF(LEFT(AV54,1)="A","A",IF(LEFT(AV54,1)="B","B",AV54)) ->  | BL54: =IF(BM54>0,"A"&登録!$I$8,IF(BN54>0,"B"&登録!$I$8,BO54)) -> 0 | BM54: =COUNTIF($BB54:$BK54,BM$5) -> 0 | BN54: 0 | BO54: =MAX(BB54:BK54) -> 0 | BP54: =BM54*10000+BN54*1000+BO54 -> 0 | BR54: =★個人成績表★!B53 -> 中本 雅大 | BS54: 0
A55: 2 | B55: HRC | C55: =VLOOKUP(VALUE(A55&B53),登録!$AE$2:$AH$55,3,FALSE) -> 河地 恵里 | D55: =VLOOKUP(VALUE(A55&B53),登録!$AE$2:$AH$55,4,FALSE) -> 100 | E55: =★個人成績表★!H20 -> 15 | G55: =★個人成績表★!E20 -> w | H55: =★個人成績表★!G20 -> w | I55: =★個人成績表★!D20 -> 26 | J55: =★個人成績表★!F20 -> w | K55: 3 | L55: 2 | M55: 341 | N55: =M55*登録!$I$8/★対戦リーグ表★!D55 -> 409.2 | O55: * | P55: 409.2 | Q55: =K55*100000+N55 -> 300409.2 | R55: =IF(COUNTBLANK(E55:J55)=6,"",RANK(Q55,Q54:Q59)) -> 3 | S55: =IF(結果入力表!H106="","",結果入力表!H106) ->  | U55: =IF(結果入力表!E29="","",結果入力表!E29) ->  | V55: =IF(結果入力表!H78="","",結果入力表!H78) ->  | W55: =IF(結果入力表!E915="","",結果入力表!E15) ->  | X55: =IF(結果入力表!H50="","",結果入力表!H50) ->  | Y55: 21 | Z55: HRC | AA55: =VLOOKUP(Y55,登録!$AE$2:$AH$55,3,FALSE) -> 鐵山 泰三 | AB55: =VLOOKUP(Y55,登録!$AE$2:$AH$55,4,FALSE) -> 120 | AC55: =★個人成績表★!M14 -> w | AE55: =★個人成績表★!J14 -> 33 | AF55: =★個人成績表★!L14 -> w | AG55: =★個人成績表★!I14 -> 75 | AH55: =★個人成績表★!K14 -> 114 | AI55: 2 | AJ55: 3 | AK55: 462 | AL55: =AK55*登録!$I$8/★対戦リーグ表★!AB55 -> 462 | AN55: 462 | AO55: =AI55*100000+AL55 -> 200462 | AP55: =IF(COUNTBLANK(AC55:AH55)=6,"",RANK(AO55,AO54:AO59)) -> 4 | AQ55: =IF(結果入力表!H211="","",結果入力表!H211) -> 128 | AS55: =IF(結果入力表!E134="","",結果入力表!E134) ->  | AT55: =IF(結果入力表!H183="","",結果入力表!H183) ->  | AU55: =IF(結果入力表!E120="","",結果入力表!E120) ->  | AV55: =IF(結果入力表!H155="","",結果入力表!H155) ->  | AX55: 16 | AZ55: 河地 恵里 | BA55: HRC | BB55: =IF(LEFT(S55,1)="A","A",IF(LEFT(S55,1)="B","B",S55)) ->  | BC55: =IF(LEFT(U55,1)="A","A",IF(LEFT(U55,1)="B","B",U55)) ->  | BD55: =IF(LEFT(V55,1)="A","A",IF(LEFT(V55,1)="B","B",V55)) ->  | BE55: =IF(LEFT(W55,1)="A","A",IF(LEFT(W55,1)="B","B",W55)) ->  | BF55: =IF(LEFT(X55,1)="A","A",IF(LEFT(X55,1)="B","B",X55)) ->  | BG55: =IF(LEFT(AQ47,1)="A","A",IF(LEFT(AQ47,1)="B","B",AQ47)) ->  | BH55: =IF(LEFT(AS47,1)="A","A",IF(LEFT(AS47,1)="B","B",AS47)) ->  | BI55: =IF(LEFT(AT47,1)="A","A",IF(LEFT(AT47,1)="B","B",AT47)) ->  | BJ55: =IF(LEFT(AU47,1)="A","A",IF(LEFT(AU47,1)="B","B",AU47)) ->  | BK55: =IF(LEFT(AV47,1)="A","A",IF(LEFT(AV47,1)="B","B",AV47)) ->  | BL55: =IF(BM55>0,"A"&登録!$I$8,IF(BN55>0,"B"&登録!$I$8,BO55)) -> 0 | BM55: 0 | BN55: 0 | BO55: 0 | BP55: 0 | BR55: =★個人成績表★!B54 -> 山中 康介 | BS55: 105
A56: 3 | B56: SBC | C56: =VLOOKUP(VALUE(A56&B53),登録!$AE$2:$AH$55,3,FALSE) -> 大橋 洋子 | D56: =VLOOKUP(VALUE(A56&B53),登録!$AE$2:$AH$55,4,FALSE) -> 100 | E56: =★個人成績表★!G29 -> 1 | F56: =★個人成績表★!E29 -> 6 | H56: =★個人成績表★!D29 -> 64 | I56: =★個人成績表★!F29 -> w | J56: =★個人成績表★!H29 -> 27 | K56: 1 | L56: 4 | M56: 198 | N56: =M56*登録!$I$8/★対戦リーグ表★!D56 -> 237.6 | O56: * | P56: 237.6 | Q56: =K56*100000+N56 -> 100237.6 | R56: =IF(COUNTBLANK(E56:J56)=6,"",RANK(Q56,Q54:Q59)) -> 6 | S56: =IF(結果入力表!H85="","",結果入力表!H85) ->  | T56: =IF(結果入力表!H29="","",結果入力表!H29) ->  | V56: =IF(結果入力表!E8="","",結果入力表!E8) ->  | W56: =IF(結果入力表!H57="","",結果入力表!H57) ->  | X56: =IF(結果入力表!E99="","",結果入力表!E99) ->  | Y56: 32 | Z56: SBC | AA56: =VLOOKUP(Y56,登録!$AE$2:$AH$55,3,FALSE) -> 大橋 義治 | AB56: =VLOOKUP(Y56,登録!$AE$2:$AH$55,4,FALSE) -> 120 | AC56: =★個人成績表★!L24 -> 84 | AD56: =★個人成績表★!J24 -> w | AF56: =★個人成績表★!I24 -> 101 | AG56: =★個人成績表★!K24 -> 82 | AH56: =★個人成績表★!M24 -> w | AI56: 2 | AJ56: 3 | AK56: 507 | AL56: =AK56*登録!$I$8/★対戦リーグ表★!AB56 -> 507 | AN56: 507 | AO56: =AI56*100000+AL56 -> 200507 | AP56: =IF(COUNTBLANK(AC56:AH56)=6,"",RANK(AO56,AO54:AO59)) -> 3 | AQ56: =IF(結果入力表!H190="","",結果入力表!H190) ->  | AR56: =IF(結果入力表!H134="","",結果入力表!H134) ->  | AT56: =IF(結果入力表!E113="","",結果入力表!E113) ->  | AU56: =IF(結果入力表!H162="","",結果入力表!H162) ->  | AV56: =IF(結果入力表!E204="","",結果入力表!E204) ->  | AX56: 16 | AZ56: 大橋 洋子 | BA56: SBC | BB56: =IF(LEFT(S56,1)="A","A",IF(LEFT(S56,1)="B","B",S56)) ->  | BC56: =IF(LEFT(T56,1)="A","A",IF(LEFT(T56,1)="B","B",T56)) ->  | BD56: =IF(LEFT(V56,1)="A","A",IF(LEFT(V56,1)="B","B",V56)) ->  | BE56: =IF(LEFT(W56,1)="A","A",IF(LEFT(W56,1)="B","B",W56)) ->  | BF56: =IF(LEFT(X56,1)="A","A",IF(LEFT(X56,1)="B","B",X56)) ->  | BG56: =IF(LEFT(AQ40,1)="A","A",IF(LEFT(AQ40,1)="B","B",AQ40)) ->  | BH56: =IF(LEFT(AR40,1)="A","A",IF(LEFT(AR40,1)="B","B",AR40)) ->  | BI56: =IF(LEFT(AT40,1)="A","A",IF(LEFT(AT40,1)="B","B",AT40)) ->  | BJ56: =IF(LEFT(AU40,1)="A","A",IF(LEFT(AU40,1)="B","B",AU40)) ->  | BK56: =IF(LEFT(AV40,1)="A","A",IF(LEFT(AV40,1)="B","B",AV40)) ->  | BL56: =IF(BM56>0,"A"&登録!$I$8,IF(BN56>0,"B"&登録!$I$8,BO56)) -> 0 | BM56: 0 | BN56: 0 | BO56: 0 | BP56: 0 | BR56: =★個人成績表★!B55 -> 芝先 泰生 | BS56: A120
A57: 4 | B57: NRC | C57: =VLOOKUP(VALUE(A57&B53),登録!$AE$2:$AH$55,3,FALSE) -> 白戸 恭子 | D57: =VLOOKUP(VALUE(A57&B53),登録!$AE$2:$AH$55,4,FALSE) -> 100 | E57: =★個人成績表★!F38 -> w | F57: =★個人成績表★!G38 -> 41 | G57: =★個人成績表★!D38 -> w | I57: =★個人成績表★!H38 -> w | J57: =★個人成績表★!E38 -> 39 | K57: 3 | L57: 2 | M57: 380 | N57: =M57*登録!$I$8/★対戦リーグ表★!D57 -> 456 | O57: * | P57: 456 | Q57: =K57*100000+N57 -> 300456 | R57: =IF(COUNTBLANK(E57:J57)=6,"",RANK(Q57,Q54:Q59)) -> 2 | S57: =IF(結果入力表!H64="","",結果入力表!H64) ->  | T57: =IF(結果入力表!E78="","",結果入力表!E78) ->  | U57: =IF(結果入力表!H8="","",結果入力表!H8) ->  | W57: =IF(結果入力表!E92="","",結果入力表!E92) ->  | X57: =IF(結果入力表!H36="","",結果入力表!H36) ->  | Y57: 43 | Z57: NRC | AA57: =VLOOKUP(Y57,登録!$AE$2:$AH$55,3,FALSE) -> 白戸 玲人 | AB57: =VLOOKUP(Y57,登録!$AE$2:$AH$55,4,FALSE) -> 120 | AC57: =★個人成績表★!K34 -> w | AD57: =★個人成績表★!L34 -> 0 | AE57: =★個人成績表★!I34 -> w | AG57: =★個人成績表★!M34 -> w | AH57: =★個人成績表★!J34 -> w | AI57: 4 | AJ57: 1 | AK57: 480 | AL57: =AK57*登録!$I$8/★対戦リーグ表★!AB57 -> 480 | AN57: 480 | AO57: =AI57*100000+AL57 -> 400480 | AP57: =IF(COUNTBLANK(AC57:AH57)=6,"",RANK(AO57,AO54:AO59)) -> 1 | AQ57: =IF(結果入力表!H169="","",結果入力表!H169) ->  | AR57: =IF(結果入力表!E183="","",結果入力表!E183) ->  | AS57: =IF(結果入力表!H113="","",結果入力表!H113) ->  | AU57: =IF(結果入力表!E197="","",結果入力表!E197) ->  | AV57: =IF(結果入力表!H141="","",結果入力表!H141) -> 107 | AX57: 2 | AZ57: 白戸 恭子 | BA57: NRC | BB57: =IF(LEFT(S57,1)="A","A",IF(LEFT(S57,1)="B","B",S57)) ->  | BC57: =IF(LEFT(T57,1)="A","A",IF(LEFT(T57,1)="B","B",T57)) ->  | BD57: =IF(LEFT(U57,1)="A","A",IF(LEFT(U57,1)="B","B",U57)) ->  | BE57: =IF(LEFT(W57,1)="A","A",IF(LEFT(W57,1)="B","B",W57)) ->  | BF57: =IF(LEFT(X57,1)="A","A",IF(LEFT(X57,1)="B","B",X57)) ->  | BG57: =IF(LEFT(AQ33,1)="A","A",IF(LEFT(AQ33,1)="B","B",AQ33)) ->  | BH57: =IF(LEFT(AR33,1)="A","A",IF(LEFT(AR33,1)="B","B",AR33)) ->  | BI57: =IF(LEFT(AS33,1)="A","A",IF(LEFT(AS33,1)="B","B",AS33)) ->  | BJ57: =IF(LEFT(AU33,1)="A","A",IF(LEFT(AU33,1)="B","B",AU33)) ->  | BK57: =IF(LEFT(AV33,1)="A","A",IF(LEFT(AV33,1)="B","B",AV33)) -> A | BL57: =IF(BM57>0,"A"&登録!$I$8,IF(BN57>0,"B"&登録!$I$8,BO57)) -> A120 | BM57: 1 | BN57: 0 | BO57: 0 | BP57: 10000 | BR57: =★個人成績表★!B56 -> 松房ゆかり | BS57: 0
A58: 5 | B58: ORC | C58: =VLOOKUP(VALUE(A58&B53),登録!$AE$2:$AH$55,3,FALSE) -> 山崎真紀子 | D58: =VLOOKUP(VALUE(A58&B53),登録!$AE$2:$AH$55,4,FALSE) -> 100 | E58: =★個人成績表★!E47 -> w | F58: =★個人成績表★!D47 -> w | G58: =★個人成績表★!F47 -> 27 | H58: =★個人成績表★!H47 -> 88 | J58: =★個人成績表★!G47 -> 91 | K58: 2 | L58: 3 | M58: 406 | N58: =M58*登録!$I$8/★対戦リーグ表★!D58 -> 487.2 | O58: * | P58: 487.2 | Q58: =K58*100000+N58 -> 200487.2 | R58: =IF(COUNTBLANK(E58:J58)=6,"",RANK(Q58,Q54:Q59)) -> 4 | S58: =IF(結果入力表!H43="","",結果入力表!H43) ->  | T58: =IF(結果入力表!H15="","",結果入力表!H15) ->  | U58: =IF(結果入力表!E57="","",結果入力表!E57) ->  | V58: =IF(結果入力表!H92="","",結果入力表!H92) ->  | X58: =IF(結果入力表!E71="","",結果入力表!E71) ->  | Y58: 54 | Z58: ORC | AA58: =VLOOKUP(Y58,登録!$AE$2:$AH$55,3,FALSE) -> 村上 泰辰 | AB58: =VLOOKUP(Y58,登録!$AE$2:$AH$55,4,FALSE) -> 120 | AC58: =★個人成績表★!J44 -> w | AD58: =★個人成績表★!I44 -> w | AE58: =★個人成績表★!K44 -> w | AF58: =★個人成績表★!M44 -> 11 | AH58: =★個人成績表★!L44 -> 38 | AI58: 3 | AJ58: 2 | AK58: 409 | AL58: =AK58*登録!$I$8/★対戦リーグ表★!AB58 -> 409 | AN58: 409 | AO58: =AI58*100000+AL58 -> 300409 | AP58: =IF(COUNTBLANK(AC58:AH58)=6,"",RANK(AO58,AO54:AO59)) -> 2 | AQ58: =IF(結果入力表!H148="","",結果入力表!H148) ->  | AR58: =IF(結果入力表!H120="","",結果入力表!H120) ->  | AS58: =IF(結果入力表!E162="","",結果入力表!E162) ->  | AT58: =IF(結果入力表!H197="","",結果入力表!H197) ->  | AV58: =IF(結果入力表!E176="","",結果入力表!E176) ->  | AX58: 16 | AZ58: 山崎真紀子 | BA58: ORC | BB58: =IF(LEFT(S58,1)="A","A",IF(LEFT(S58,1)="B","B",S58)) ->  | BC58: =IF(LEFT(T58,1)="A","A",IF(LEFT(T58,1)="B","B",T58)) ->  | BD58: =IF(LEFT(U58,1)="A","A",IF(LEFT(U58,1)="B","B",U58)) ->  | BE58: =IF(LEFT(V58,1)="A","A",IF(LEFT(V58,1)="B","B",V58)) ->  | BF58: =IF(LEFT(X58,1)="A","A",IF(LEFT(X58,1)="B","B",X58)) ->  | BG58: =IF(LEFT(AQ26,1)="A","A",IF(LEFT(AQ26,1)="B","B",AQ26)) ->  | BH58: =IF(LEFT(AR26,1)="A","A",IF(LEFT(AR26,1)="B","B",AR26)) ->  | BI58: =IF(LEFT(AS26,1)="A","A",IF(LEFT(AS26,1)="B","B",AS26)) ->  | BJ58: =IF(LEFT(AT26,1)="A","A",IF(LEFT(AT26,1)="B","B",AT26)) ->  | BK58: =IF(LEFT(AV26,1)="A","A",IF(LEFT(AV26,1)="B","B",AV26)) ->  | BL58: =IF(BM58>0,"A"&登録!$I$8,IF(BN58>0,"B"&登録!$I$8,BO58)) -> 0 | BM58: 0 | BN58: 0 | BO58: 0 | BP58: 0
A59: 6 | B59: WRC | C59: =IF(B59="","",VLOOKUP(VALUE(A59&B53),登録!$AE$2:$AH$55,3,FALSE)) -> 松房ゆかり | D59: =IF(B59="","",VLOOKUP(VALUE(A59&B53),登録!$AE$2:$AH$55,4,FALSE)) -> 100 | E59: =★個人成績表★!D56 -> w | F59: =★個人成績表★!F56 -> 46 | G59: =★個人成績表★!H56 -> w | H59: =★個人成績表★!E56 -> w | I59: =★個人成績表★!G56 -> w | K59: 4 | L59: 1 | M59: 446 | N59: =M59*登録!$I$8/★対戦リーグ表★!D59 -> 535.2 | O59: * | P59: 535.2 | Q59: =IF(D59="","",K59*100000+N59) -> 400535.2 | R59: =IF(COUNTBLANK(E59:J59)=6,"",RANK(Q59,Q54:Q59)) -> 1 | S59: =IF(結果入力表!H22="","",結果入力表!H22) ->  | T59: =IF(結果入力表!E50="","",結果入力表!E50) ->  | U59: =IF(結果入力表!H99="","",結果入力表!H99) ->  | V59: =IF(結果入力表!E36="","",結果入力表!E36) ->  | W59: =IF(結果入力表!H71="","",結果入力表!H71) ->  | Y59: 65 | Z59: WRC | AA59: =IF(Z59="","",VLOOKUP(Y59,登録!$AE$2:$AH$55,3,FALSE)) -> 山中 康介 | AB59: =IF(Z59="","",VLOOKUP(Y59,登録!$AE$2:$AH$55,4,FALSE)) -> 120 | AC59: =★個人成績表★!I54 -> 81 | AD59: =★個人成績表★!K54 -> w | AE59: =★個人成績表★!M54 -> 53 | AF59: =★個人成績表★!J54 -> 0 | AG59: =★個人成績表★!L54 -> w | AI59: 2 | AJ59: 3 | AK59: 374 | AL59: =AK59*登録!$I$8/★対戦リーグ表★!AB59 -> 374 | AN59: 374 | AO59: =IF(AB59="","",AI59*100000+AL59) -> 200374 | AP59: =IF(COUNTBLANK(AC59:AH59)=6,"",RANK(AO59,AO54:AO59)) -> 5 | AQ59: =IF(結果入力表!H127="","",結果入力表!H127) ->  | AR59: =IF(結果入力表!E155="","",結果入力表!E155) ->  | AS59: =IF(結果入力表!H204="","",結果入力表!H204) ->  | AT59: =IF(結果入力表!E141="","",結果入力表!E141) ->  | AU59: =IF(結果入力表!H176="","",結果入力表!H176) ->  | AX59: 16 | AZ59: 松房ゆかり | BA59: WRC | BB59: =IF(LEFT(S59,1)="A","A",IF(LEFT(S59,1)="B","B",S59)) ->  | BC59: =IF(LEFT(T59,1)="A","A",IF(LEFT(T59,1)="B","B",T59)) ->  | BD59: =IF(LEFT(U59,1)="A","A",IF(LEFT(U59,1)="B","B",U59)) ->  | BE59: =IF(LEFT(V59,1)="A","A",IF(LEFT(V59,1)="B","B",V59)) ->  | BF59: =IF(LEFT(W59,1)="A","A",IF(LEFT(W59,1)="B","B",W59)) ->  | BG59: =IF(LEFT(AQ19,1)="A","A",IF(LEFT(AQ19,1)="B","B",AQ19)) ->  | BH59: =IF(LEFT(AR19,1)="A","A",IF(LEFT(AR19,1)="B","B",AR19)) ->  | BI59: =IF(LEFT(AS19,1)="A","A",IF(LEFT(AS19,1)="B","B",AS19)) ->  | BJ59: =IF(LEFT(AT19,1)="A","A",IF(LEFT(AT19,1)="B","B",AT19)) ->  | BK59: =IF(LEFT(AU19,1)="A","A",IF(LEFT(AU19,1)="B","B",AU19)) ->  | BL59: =IF(BM59>0,"A"&登録!$I$8,IF(BN59>0,"B"&登録!$I$8,BO59)) -> 0 | BM59: 0 | BN59: 0 | BO59: 0 | BP59: 0

Sheet 結果入力表
A1: 節 | B1: G-No | C1: 所属A | D1: 選手名A | E1: HR | F1: 得点 | G1: 得点 | H1: HR | I1: 選手名B | J1: 所属B
A2: 第1節 | B2: =登録!AN2 -> 1 | C2: =登録!AQ2 -> SBC | D2: =登録!AR2 -> 林 秀忠 | F2: w | G2: 55 | I2: =登録!AS2 -> 吉向 翔平 | J2: =登録!AT2 -> NRC | L2: s
B3: =登録!AN3 -> 2 | C3: =登録!AQ3 -> SBC | D3: =登録!AR3 -> 大橋 義治 | F3: w | G3: 112 | I3: =登録!AS3 -> 岩本 剛 | J3: =登録!AT3 -> NRC | L3: s
B4: =登録!AN4 -> 3 | C4: =登録!AQ4 -> SBC | D4: =登録!AR4 -> 山中 康寛 | F4: 0 | G4: w | I4: =登録!AS4 -> 白戸 玲人 | J4: =登録!AT4 -> NRC | L4: s
B5: =登録!AN5 -> 4 | C5: =登録!AQ5 -> SBC | D5: =登録!AR5 -> 西峰 久祐 | F5: w | G5: 72 | I5: =登録!AS5 -> 植田 慎也 | J5: =登録!AT5 -> NRC | L5: s
B6: =登録!AN6 -> 5 | C6: =登録!AQ6 -> SBC | D6: =登録!AR6 -> 大橋 正寛 | F6: w | G6: 19 | I6: =登録!AS6 -> 近藤 拓馬 | J6: =登録!AT6 -> NRC | L6: s
B7: =登録!AN7 -> 6 | C7: =登録!AQ7 -> SBC | D7: =登録!AR7 -> 秋田 倫央 | F7: 98 | G7: w | I7: =登録!AS7 -> 長谷川 進 | J7: =登録!AT7 -> NRC | L7: s
B8: =登録!AN8 -> 7 | C8: =登録!AQ8 -> SBC | D8: =登録!AR8 -> 大橋 洋子 | F8: 64 | G8: w | I8: =登録!AS8 -> 白戸 恭子 | J8: =登録!AT8 -> NRC | L8: s
B9: =登録!AN9 -> 8 | C9: =登録!AQ9 -> HRC | D9: =登録!AR9 -> 鐵山 泰三 | F9: w | G9: 104 | I9: =登録!AS9 -> 松居 勝巳 | J9: =登録!AT9 -> ORC | L9: s
B10: =登録!AN10 -> 9 | C10: =登録!AQ10 -> HRC | D10: =登録!AR10 -> 堂園 雅也 | F10: w | G10: 86 | I10: =登録!AS10 -> 藤明 宏樹 | J10: =登録!AT10 -> ORC | L10: s
B11: =登録!AN11 -> 10 | C11: =登録!AQ11 -> HRC | D11: =登録!AR11 -> 宮本 一 | F11: w | G11: 106 | H11: 106 | I11: =登録!AS11 -> 吉岡 保俊 | J11: =登録!AT11 -> ORC | L11: s
B12: =登録!AN12 -> 11 | C12: =登録!AQ12 -> HRC | D12: =登録!AR12 -> 伊藤 登 | F12: 88 | G12: w | I12: =登録!AS12 -> 村上 泰辰 | J12: =登録!AT12 -> ORC | L12: s
B13: =登録!AN13 -> 12 | C13: =登録!AQ13 -> HRC | D13: =登録!AR13 -> 宮井健太郎 | F13: 7 | G13: w | I13: =登録!AS13 -> 小原 嘉丈 | J13: =登録!AT13 -> ORC | L13: s
B14: =登録!AN14 -> 13 | C14: =登録!AQ14 -> HRC | D14: =登録!AR14 -> 白澤雄一郎 | F14: 18 | G14: w | I14: =登録!AS14 -> 乾 伸綱 | J14: =登録!AT14 -> ORC | L14: s
B15: =登録!AN15 -> 14 | C15: =登録!AQ15 -> HRC | D15: =登録!AR15 -> 河地 恵里 | F15: 26 | G15: w | I15: =登録!AS15 -> 山崎真紀子 | J15: =登録!AT15 -> ORC | L15: s
B16: =登録!AN16 -> 15 | C16: =登録!AQ16 -> KRC | D16: =登録!AR16 -> 松好 太一 | F16: w | G16: 48 | I16: =登録!AS16 -> 末岡 修 | J16: =登録!AT16 -> WRC | L16: s
B17: =登録!AN17 -> 16 | C17: =登録!AQ17 -> KRC | D17: =登録!AR17 -> 清水 義晴 | F17: w | G17: 33 | I17: =登録!AS17 -> 和田宗一郎 | J17: =登録!AT17 -> WRC | L17: s
B18: =登録!AN18 -> 17 | C18: =登録!AQ18 -> KRC | D18: =登録!AR18 -> 鈴木 康文 | F18: w | G18: 38 | I18: =登録!AS18 -> 杉本 博章 | J18: =登録!AT18 -> WRC | L18: s
B19: =登録!AN19 -> 18 | C19: =登録!AQ19 -> KRC | D19: =登録!AR19 -> 早川 徹 | F19: w | G19: 64 | I19: =登録!AS19 -> 中本 雅大 | J19: =登録!AT19 -> WRC | L19: s
B20: =登録!AN20 -> 19 | C20: =登録!AQ20 -> KRC | D20: =登録!AR20 -> 井関 一成 | F20: 96 | G20: w | I20: =登録!AS20 -> 山中 康介 | J20: =登録!AT20 -> WRC | L20: s
B21: =登録!AN21 -> 20 | C21: =登録!AQ21 -> KRC | D21: =登録!AR21 -> 今村 哲也 | F21: 20 | G21: w | H21: 110 | I21: =登録!AS21 -> 芝先 泰生 | J21: =登録!AT21 -> WRC | L21: s
B22: =登録!AN22 -> 21 | C22: =登録!AQ22 -> KRC | D22: =登録!AR22 -> 森田由佳里 | F22: 2 | G22: w | I22: =登録!AS22 -> 松房ゆかり | J22: =登録!AT22 -> WRC | L22: s
B23: =登録!AN23 -> 22 | C23: =登録!AQ23 -> HRC | D23: =登録!AR23 -> 鐵山 泰三 | F23: w | G23: 31 | I23: =登録!AS23 -> 林 秀忠 | J23: =登録!AT23 -> SBC | L23: s
B24: =登録!AN24 -> 23 | C24: =登録!AQ24 -> HRC | D24: =登録!AR24 -> 堂園 雅也 | F24: w | G24: 61 | I24: =登録!AS24 -> 大橋 義治 | J24: =登録!AT24 -> SBC | L24: s
B25: =登録!AN25 -> 24 | C25: =登録!AQ25 -> HRC | D25: =登録!AR25 -> 宮本 一 | F25: 91 | G25: w | I25: =登録!AS25 -> 山中 康寛 | J25: =登録!AT25 -> SBC | L25: s
B26: =登録!AN26 -> 25 | C26: =登録!AQ26 -> HRC | D26: =登録!AR26 -> 伊藤 登 | F26: w | G26: 61 | I26: =登録!AS26 -> 西峰 久祐 | J26: =登録!AT26 -> SBC | L26: s
B27: =登録!AN27 -> 26 | C27: =登録!AQ27 -> HRC | D27: =登録!AR27 -> 宮井健太郎 | F27: 48 | G27: w | I27: =登録!AS27 -> 大橋 正寛 | J27: =登録!AT27 -> SBC | L27: s
B28: =登録!AN28 -> 27 | C28: =登録!AQ28 -> HRC | D28: =登録!AR28 -> 白澤雄一郎 | F28: 13 | G28: w | I28: =登録!AS28 -> 秋田 倫央 | J28: =登録!AT28 -> SBC | L28: s
B29: =登録!AN29 -> 28 | C29: =登録!AQ29 -> HRC | D29: =登録!AR29 -> 河地 恵里 | F29: w | G29: 6 | I29: =登録!AS29 -> 大橋 洋子 | J29: =登録!AT29 -> SBC | L29: s
B30: =登録!AN30 -> 29 | C30: =登録!AQ30 -> WRC | D30: =登録!AR30 -> 末岡 修 | F30: w | G30: 25 | I30: =登録!AS30 -> 吉向 翔平 | J30: =登録!AT30 -> NRC | L30: s
B31: =登録!AN31 -> 30 | C31: =登録!AQ31 -> WRC | D31: =登録!AR31 -> 和田宗一郎 | F31: 22 | G31: w | I31: =登録!AS31 -> 岩本 剛 | J31: =登録!AT31 -> NRC | L31: s
B32: =登録!AN32 -> 31 | C32: =登録!AQ32 -> WRC | D32: =登録!AR32 -> 杉本 博章 | F32: 71 | G32: w | I32: =登録!AS32 -> 白戸 玲人 | J32: =登録!AT32 -> NRC | L32: s
B33: =登録!AN33 -> 32 | C33: =登録!AQ33 -> WRC | D33: =登録!AR33 -> 中本 雅大 | F33: w | G33: 76 | I33: =登録!AS33 -> 植田 慎也 | J33: =登録!AT33 -> NRC | L33: s
B34: =登録!AN34 -> 33 | C34: =登録!AQ34 -> WRC | D34: =登録!AR34 -> 山中 康介 | F34: w | G34: 57 | I34: =登録!AS34 -> 近藤 拓馬 | J34: =登録!AT34 -> NRC | L34: s
B35: =登録!AN35 -> 34 | C35: =登録!AQ35 -> WRC | D35: =登録!AR35 -> 芝先 泰生 | E35: A120 | F35: w | G35: 0 | I35: =登録!AS35 -> 長谷川 進 | J35: =登録!AT35 -> NRC | L35: s
B36: =登録!AN36 -> 35 | C36: =登録!AQ36 -> WRC | D36: =登録!AR36 -> 松房ゆかり | F36: w | G36: 39 | I36: =登録!AS36 -> 白戸 恭子 | J36: =登録!AT36 -> NRC | L36: s
B37: =登録!AN37 -> 36 | C37: =登録!AQ37 -> KRC | D37: =登録!AR37 -> 松好 太一 | F37: 105 | G37: w | I37: =登録!AS37 -> 松居 勝巳 | J37: =登録!AT37 -> ORC | L37: s
B38: =登録!AN38 -> 37 | C38: =登録!AQ38 -> KRC | D38: =登録!AR38 -> 清水 義晴 | F38: w | G38: 83 | I38: =登録!AS38 -> 藤明 宏樹 | J38: =登録!AT38 -> ORC | L38: s
B39: =登録!AN39 -> 38 | C39: =登録!AQ39 -> KRC | D39: =登録!AR39 -> 鈴木 康文 | F39: w | G39: 67 | I39: =登録!AS39 -> 吉岡 保俊 | J39: =登録!AT39 -> ORC | L39: s
B40: =登録!AN40 -> 39 | C40: =登録!AQ40 -> KRC | D40: =登録!AR40 -> 早川 徹 | F40: w | G40: 34 | I40: =登録!AS40 -> 村上 泰辰 | J40: =登録!AT40 -> ORC | L40: s
B41: =登録!AN41 -> 40 | C41: =登録!AQ41 -> KRC | D41: =登録!AR41 -> 井関 一成 | F41: w | G41: 0 | I41: =登録!AS41 -> 小原 嘉丈 | J41: =登録!AT41 -> ORC | L41: s
B42: =登録!AN42 -> 41 | C42: =登録!AQ42 -> KRC | D42: =登録!AR42 -> 今村 哲也 | F42: 75 | G42: w | I42: =登録!AS42 -> 乾 伸綱 | J42: =登録!AT42 -> ORC | L42: s
B43: =登録!AN43 -> 42 | C43: =登録!AQ43 -> KRC | D43: =登録!AR43 -> 森田由佳里 | F43: 92 | G43: w | I43: =登録!AS43 -> 山崎真紀子 | J43: =登録!AT43 -> ORC | L43: s
B44: =登録!AN44 -> 43 | C44: =登録!AQ44 -> WRC | D44: =登録!AR44 -> 末岡 修 | F44: w | G44: 13 | I44: =登録!AS44 -> 鐵山 泰三 | J44: =登録!AT44 -> HRC | L44: s
B45: =登録!AN45 -> 44 | C45: =登録!AQ45 -> WRC | D45: =登録!AR45 -> 和田宗一郎 | F45: w | G45: 8 | I45: =登録!AS45 -> 堂園 雅也 | J45: =登録!AT45 -> HRC | L45: s
B46: =登録!AN46 -> 45 | C46: =登録!AQ46 -> WRC | D46: =登録!AR46 -> 杉本 博章 | F46: w | G46: 115 | I46: =登録!AS46 -> 宮本 一 | J46: =登録!AT46 -> HRC | L46: s
B47: =登録!AN47 -> 46 | C47: =登録!AQ47 -> WRC | D47: =登録!AR47 -> 中本 雅大 | F47: w | G47: 6 | I47: =登録!AS47 -> 伊藤 登 | J47: =登録!AT47 -> HRC | L47: s
B48: =登録!AN48 -> 47 | C48: =登録!AQ48 -> WRC | D48: =登録!AR48 -> 山中 康介 | E48: 105 | F48: w | G48: 26 | I48: =登録!AS48 -> 宮井健太郎 | J48: =登録!AT48 -> HRC | L48: s
B49: =登録!AN49 -> 48 | C49: =登録!AQ49 -> WRC | D49: =登録!AR49 -> 芝先 泰生 | F49: 65 | G49: w | I49: =登録!AS49 -> 白澤雄一郎 | J49: =登録!AT49 -> HRC | L49: s
B50: =登録!AN50 -> 49 | C50: =登録!AQ50 -> WRC | D50: =登録!AR50 -> 松房ゆかり | F50: 46 | G50: w | I50: =登録!AS50 -> 河地 恵里 | J50: =登録!AT50 -> HRC | L50: s
B51: =登録!AN51 -> 50 | C51: =登録!AQ51 -> ORC | D51: =登録!AR51 -> 松居 勝巳 | F51: 0 | G51: w | H51: A120 | I51: =登録!AS51 -> 林 秀忠 | J51: =登録!AT51 -> SBC | L51: s
B52: =登録!AN52 -> 51 | C52: =登録!AQ52 -> ORC | D52: =登録!AR52 -> 藤明 宏樹 | F52: 67 | G52: w | I52: =登録!AS52 -> 大橋 義治 | J52: =登録!AT52 -> SBC | L52: s
B53: =登録!AN53 -> 52 | C53: =登録!AQ53 -> ORC | D53: =登録!AR53 -> 吉岡 保俊 | F53: w | G53: 63 | I53: =登録!AS53 -> 山中 康寛 | J53: =登録!AT53 -> SBC | L53: s
B54: =登録!AN54 -> 53 | C54: =登録!AQ54 -> ORC | D54: =登録!AR54 -> 村上 泰辰 | F54: w | G54: 3 | I54: =登録!AS54 -> 西峰 久祐 | J54: =登録!AT54 -> SBC | L54: s
B55: =登録!AN55 -> 54 | C55: =登録!AQ55 -> ORC | D55: =登録!AR55 -> 小原 嘉丈 | F55: w | G55: 20 | I55: =登録!AS55 -> 大橋 正寛 | J55: =登録!AT55 -> SBC | L55: s
B56: =登録!AN56 -> 55 | C56: =登録!AQ56 -> ORC | D56: =登録!AR56 -> 乾 伸綱 | F56: w | G56: 28 | I56: =登録!AS56 -> 秋田 倫央 | J56: =登録!AT56 -> SBC | L56: s
B57: =登録!AN57 -> 56 | C57: =登録!AQ57 -> ORC | D57: =登録!AR57 -> 山崎真紀子 | F57: 27 | G57: w | I57: =登録!AS57 -> 大橋 洋子 | J57: =登録!AT57 -> SBC | L57: s
B58: =登録!AN58 -> 57 | C58: =登録!AQ58 -> KRC | D58: =登録!AR58 -> 松好 太一 | F58: 83 | G58: w | I58: =登録!AS58 -> 吉向 翔平 | J58: =登録!AT58 -> NRC | L58: s
B59: =登録!AN59 -> 58 | C59: =登録!AQ59 -> KRC | D59: =登録!AR59 -> 清水 義晴 | F59: 58 | G59: w | I59: =登録!AS59 -> 岩本 剛 | J59: =登録!AT59 -> NRC | L59: s
B60: =登録!AN60 -> 59 | C60: =登録!AQ60 -> KRC | D60: =登録!AR60 -> 鈴木 康文 | F60: w | G60: 113 | I60: =登録!AS60 -> 白戸 玲人 | J60: =登録!AT60 -> NRC | L60: s
B61: =登録!AN61 -> 60 | C61: =登録!AQ61 -> KRC | D61: =登録!AR61 -> 早川 徹 | F61: w | G61: 86 | I61: =登録!AS61 -> 植田 慎也 | J61: =登録!AT61 -> NRC | L61: s
B62: =登録!AN62 -> 61 | C62: =登録!AQ62 -> KRC | D62: =登録!AR62 -> 井関 一成 | F62: 102 | G62: w | I62: =登録!AS62 -> 近藤 拓馬 | J62: =登録!AT62 -> NRC | L62: s
B63: =登録!AN63 -> 62 | C63: =登録!AQ63 -> KRC | D63: =登録!AR63 -> 今村 哲也 | F63: 4 | G63: w | I63: =登録!AS63 -> 長谷川 進 | J63: =登録!AT63 -> NRC | L63: s
B64: =登録!AN64 -> 63 | C64: =登録!AQ64 -> KRC | D64: =登録!AR64 -> 森田由佳里 | F64: 36 | G64: w | I64: =登録!AS64 -> 白戸 恭子 | J64: =登録!AT64 -> NRC | L64: s
B65: =登録!AN65 -> 64 | C65: =登録!AQ65 -> ORC | D65: =登録!AR65 -> 松居 勝巳 | F65: 58 | G65: w | I65: =登録!AS65 -> 末岡 修 | J65: =登録!AT65 -> WRC | L65: s
B66: =登録!AN66 -> 65 | C66: =登録!AQ66 -> ORC | D66: =登録!AR66 -> 藤明 宏樹 | F66: 48 | G66: w | I66: =登録!AS66 -> 和田宗一郎 | J66: =登録!AT66 -> WRC | L66: s
B67: =登録!AN67 -> 66 | C67: =登録!AQ67 -> ORC | D67: =登録!AR67 -> 吉岡 保俊 | F67: 98 | G67: w | I67: =登録!AS67 -> 杉本 博章 | J67: =登録!AT67 -> WRC | L67: s
B68: =登録!AN68 -> 67 | C68: =登録!AQ68 -> ORC | D68: =登録!AR68 -> 村上 泰辰 | F68: w | G68: 119 | I68: =登録!AS68 -> 中本 雅大 | J68: =登録!AT68 -> WRC | L68: s
B69: =登録!AN69 -> 68 | C69: =登録!AQ69 -> ORC | D69: =登録!AR69 -> 小原 嘉丈 | F69: 73 | G69: w | I69: =登録!AS69 -> 山中 康介 | J69: =登録!AT69 -> WRC | L69: s
B70: =登録!AN70 -> 69 | C70: =登録!AQ70 -> ORC | D70: =登録!AR70 -> 乾 伸綱 | F70: w | G70: 48 | I70: =登録!AS70 -> 芝先 泰生 | J70: =登録!AT70 -> WRC | L70: s
B71: =登録!AN71 -> 70 | C71: =登録!AQ71 -> ORC | D71: =登録!AR71 -> 山崎真紀子 | F71: 91 | G71: w | I71: =登録!AS71 -> 松房ゆかり | J71: =登録!AT71 -> WRC | L71: s
B72: =登録!AN72 -> 71 | C72: =登録!AQ72 -> NRC | D72: =登録!AR72 -> 吉向 翔平 | F72: 56 | G72: w | I72: =登録!AS72 -> 鐵山 泰三 | J72: =登録!AT72 -> HRC | L72: s
B73: =登録!AN73 -> 72 | C73: =登録!AQ73 -> NRC | D73: =登録!AR73 -> 岩本 剛 | F73: 45 | G73: w | I73: =登録!AS73 -> 堂園 雅也 | J73: =登録!AT73 -> HRC | L73: s
B74: =登録!AN74 -> 73 | C74: =登録!AQ74 -> NRC | D74: =登録!AR74 -> 白戸 玲人 | F74: 0 | G74: w | H74: B120 | I74: =登録!AS74 -> 宮本 一 | J74: =登録!AT74 -> HRC | L74: s
B75: =登録!AN75 -> 74 | C75: =登録!AQ75 -> NRC | D75: =登録!AR75 -> 植田 慎也 | F75: 34 | G75: w | I75: =登録!AS75 -> 伊藤 登 | J75: =登録!AT75 -> HRC | L75: s
B76: =登録!AN76 -> 75 | C76: =登録!AQ76 -> NRC | D76: =登録!AR76 -> 近藤 拓馬 | F76: 21 | G76: w | I76: =登録!AS76 -> 宮井健太郎 | J76: =登録!AT76 -> HRC | L76: s
B77: =登録!AN77 -> 76 | C77: =登録!AQ77 -> NRC | D77: =登録!AR77 -> 長谷川 進 | F77: 21 | G77: w | H77: 107 | I77: =登録!AS77 -> 白澤雄一郎 | J77: =登録!AT77 -> HRC | L77: s
B78: =登録!AN78 -> 77 | C78: =登録!AQ78 -> NRC | D78: =登録!AR78 -> 白戸 恭子 | F78: 41 | G78: w | I78: =登録!AS78 -> 河地 恵里 | J78: =登録!AT78 -> HRC | L78: s
B79: =登録!AN79 -> 78 | C79: =登録!AQ79 -> KRC | D79: =登録!AR79 -> 松好 太一 | F79: 83 | G79: w | I79: =登録!AS79 -> 林 秀忠 | J79: =登録!AT79 -> SBC | L79: s
B80: =登録!AN80 -> 79 | C80: =登録!AQ80 -> KRC | D80: =登録!AR80 -> 清水 義晴 | F80: 22 | G80: w | I80: =登録!AS80 -> 大橋 義治 | J80: =登録!AT80 -> SBC | L80: s
B81: =登録!AN81 -> 80 | C81: =登録!AQ81 -> KRC | D81: =登録!AR81 -> 鈴木 康文 | F81: w | G81: 51 | I81: =登録!AS81 -> 山中 康寛 | J81: =登録!AT81 -> SBC | L81: s
B82: =登録!AN82 -> 81 | C82: =登録!AQ82 -> KRC | D82: =登録!AR82 -> 早川 徹 | F82: w | G82: 57 | I82: =登録!AS82 -> 西峰 久祐 | J82: =登録!AT82 -> SBC | L82: s
B83: =登録!AN83 -> 82 | C83: =登録!AQ83 -> KRC | D83: =登録!AR83 -> 井関 一成 | F83: 50 | G83: w | I83: =登録!AS83 -> 大橋 正寛 | J83: =登録!AT83 -> SBC | L83: s
B84: =登録!AN84 -> 83 | C84: =登録!AQ84 -> KRC | D84: =登録!AR84 -> 今村 哲也 | F84: w | G84: 24 | I84: =登録!AS84 -> 秋田 倫央 | J84: =登録!AT84 -> SBC | L84: s
B85: =登録!AN85 -> 84 | C85: =登録!AQ85 -> KRC | D85: =登録!AR85 -> 森田由佳里 | F85: w | G85: 1 | I85: =登録!AS85 -> 大橋 洋子 | J85: =登録!AT85 -> SBC | L85: s
B86: =登録!AN86 -> 85 | C86: =登録!AQ86 -> NRC | D86: =登録!AR86 -> 吉向 翔平 | F86: 63 | G86: w | I86: =登録!AS86 -> 松居 勝巳 | J86: =登録!AT86 -> ORC | L86: s
B87: =登録!AN87 -> 86 | C87: =登録!AQ87 -> NRC | D87: =登録!AR87 -> 岩本 剛 | F87: w | G87: 5 | I87: =登録!AS87 -> 藤明 宏樹 | J87: =登録!AT87 -> ORC | L87: s
B88: =登録!AN88 -> 87 | C88: =登録!AQ88 -> NRC | D88: =登録!AR88 -> 白戸 玲人 | F88: 79 | G88: w | I88: =登録!AS88 -> 吉岡 保俊 | J88: =登録!AT88 -> ORC | L88: s
B89: =登録!AN89 -> 88 | C89: =登録!AQ89 -> NRC | D89: =登録!AR89 -> 植田 慎也 | F89: 106 | G89: w | I89: =登録!AS89 -> 村上 泰辰 | J89: =登録!AT89 -> ORC | L89: s
B90: =登録!AN90 -> 89 | C90: =登録!AQ90 -> NRC | D90: =登録!AR90 -> 近藤 拓馬 | F90: 1 | G90: w | H90: 116 | I90: =登録!AS90 -> 小原 嘉丈 | J90: =登録!AT90 -> ORC | L90: s
B91: =登録!AN91 -> 90 | C91: =登録!AQ91 -> NRC | D91: =登録!AR91 -> 長谷川 進 | F91: 23 | G91: w | I91: =登録!AS91 -> 乾 伸綱 | J91: =登録!AT91 -> ORC | L91: s
B92: =登録!AN92 -> 91 | C92: =登録!AQ92 -> NRC | D92: =登録!AR92 -> 白戸 恭子 | F92: w | G92: 88 | I92: =登録!AS92 -> 山崎真紀子 | J92: =登録!AT92 -> ORC | L92: s
B93: =登録!AN93 -> 92 | C93: =登録!AQ93 -> SBC | D93: =登録!AR93 -> 林 秀忠 | F93: w | G93: 79 | I93: =登録!AS93 -> 末岡 修 | J93: =登録!AT93 -> WRC | L93: s
B94: =登録!AN94 -> 93 | C94: =登録!AQ94 -> SBC | D94: =登録!AR94 -> 大橋 義治 | F94: w | G94: 51 | I94: =登録!AS94 -> 和田宗一郎 | J94: =登録!AT94 -> WRC | L94: s
B95: =登録!AN95 -> 94 | C95: =登録!AQ95 -> SBC | D95: =登録!AR95 -> 山中 康寛 | F95: w | G95: 87 | I95: =登録!AS95 -> 杉本 博章 | J95: =登録!AT95 -> WRC | L95: s
B96: =登録!AN96 -> 95 | C96: =登録!AQ96 -> SBC | D96: =登録!AR96 -> 西峰 久祐 | F96: 28 | G96: w | I96: =登録!AS96 -> 中本 雅大 | J96: =登録!AT96 -> WRC | L96: s
B97: =登録!AN97 -> 96 | C97: =登録!AQ97 -> SBC | D97: =登録!AR97 -> 大橋 正寛 | F97: 39 | G97: w | I97: =登録!AS97 -> 山中 康介 | J97: =登録!AT97 -> WRC | L97: s
B98: =登録!AN98 -> 97 | C98: =登録!AQ98 -> SBC | D98: =登録!AR98 -> 秋田 倫央 | F98: w | G98: 29 | I98: =登録!AS98 -> 芝先 泰生 | J98: =登録!AT98 -> WRC | L98: s
B99: =登録!AN99 -> 98 | C99: =登録!AQ99 -> SBC | D99: =登録!AR99 -> 大橋 洋子 | F99: 27 | G99: w | I99: =登録!AS99 -> 松房ゆかり | J99: =登録!AT99 -> WRC | L99: s
B100: =登録!AN100 -> 99 | C100: =登録!AQ100 -> KRC | D100: =登録!AR100 -> 松好 太一 | F100: w | G100: 100 | I100: =登録!AS100 -> 鐵山 泰三 | J100: =登録!AT100 -> HRC | L100: s
B101: =登録!AN101 -> 100 | C101: =登録!AQ101 -> KRC | D101: =登録!AR101 -> 清水 義晴 | F101: w | G101: 114 | I101: =登録!AS101 -> 堂園 雅也 | J101: =登録!AT101 -> HRC | L101: s
B102: =登録!AN102 -> 101 | C102: =登録!AQ102 -> KRC | D102: =登録!AR102 -> 鈴木 康文 | F102: 2 | G102: w | H102: 105 | I102: =登録!AS102 -> 宮本 一 | J102: =登録!AT102 -> HRC | L102: s
B103: =登録!AN103 -> 102 | C103: =登録!AQ103 -> KRC | D103: =登録!AR103 -> 早川 徹 | F103: w | G103: 100 | I103: =登録!AS103 -> 伊藤 登 | J103: =登録!AT103 -> HRC | L103: s
B104: =登録!AN104 -> 103 | C104: =登録!AQ104 -> KRC | D104: =登録!AR104 -> 井関 一成 | F104: w | G104: 25 | I104: =登録!AS104 -> 宮井健太郎 | J104: =登録!AT104 -> HRC | L104: s
B105: =登録!AN105 -> 104 | C105: =登録!AQ105 -> KRC | D105: =登録!AR105 -> 今村 哲也 | F105: w | G105: 20 | I105: =登録!AS105 -> 白澤雄一郎 | J105: =登録!AT105 -> HRC | L105: s
B106: =登録!AN106 -> 105 | C106: =登録!AQ106 -> KRC | D106: =登録!AR106 -> 森田由佳里 | F106: w | G106: 15 | I106: =登録!AS106 -> 河地 恵里 | J106: =登録!AT106 -> HRC | L106: s
B107: =登録!AN107 -> 106 | C107: =登録!AQ107 -> SBC | D107: =登録!AR107 -> 山中 康寛 | F107: w | G107: 17 | I107: =登録!AS107 -> 植田 慎也 | J107: =登録!AT107 -> NRC | L107: s
B108: =登録!AN108 -> 107 | C108: =登録!AQ108 -> SBC | D108: =登録!AR108 -> 西峰 久祐 | F108: w | G108: 17 | I108: =登録!AS108 -> 近藤 拓馬 | J108: =登録!AT108 -> NRC | L108: s
B109: =登録!AN109 -> 108 | C109: =登録!AQ109 -> SBC | D109: =登録!AR109 -> 大橋 正寛 | E109: A120 | F109: w | G109: 0 | I109: =登録!AS109 -> 長谷川 進 | J109: =登録!AT109 -> NRC | L109: s
B110: =登録!AN110 -> 109 | C110: =登録!AQ110 -> SBC | D110: =登録!AR110 -> 秋田 倫央 | F110: 46 | G110: w | I110: =登録!AS110 -> 白戸 恭子 | J110: =登録!AT110 -> NRC | L110: s
B111: =登録!AN111 -> 110 | C111: =登録!AQ111 -> SBC | D111: =登録!AR111 -> 大橋 洋子 | F111: 32 | G111: w | I111: =登録!AS111 -> 吉向 翔平 | J111: =登録!AT111 -> NRC | L111: s
B112: =登録!AN112 -> 111 | C112: =登録!AQ112 -> SBC | D112: =登録!AR112 -> 林 秀忠 | F112: w | G112: 47 | I112: =登録!AS112 -> 岩本 剛 | J112: =登録!AT112 -> NRC | L112: s
B113: =登録!AN113 -> 112 | C113: =登録!AQ113 -> SBC | D113: =登録!AR113 -> 大橋 義治 | F113: 101 | G113: w | I113: =登録!AS113 -> 白戸 玲人 | J113: =登録!AT113 -> NRC | L113: s
B114: =登録!AN114 -> 113 | C114: =登録!AQ114 -> HRC | D114: =登録!AR114 -> 堂園 雅也 | F114: 114 | G114: w | I114: =登録!AS114 -> 小原 嘉丈 | J114: =登録!AT114 -> ORC | L114: s
B115: =登録!AN115 -> 114 | C115: =登録!AQ115 -> HRC | D115: =登録!AR115 -> 宮本 一 | F115: w | G115: 115 | I115: =登録!AS115 -> 乾 伸綱 | J115: =登録!AT115 -> ORC | L115: s
B116: =登録!AN116 -> 115 | C116: =登録!AQ116 -> HRC | D116: =登録!AR116 -> 伊藤 登 | F116: w | G116: 84 | I116: =登録!AS116 -> 山崎真紀子 | J116: =登録!AT116 -> ORC | L116: s
B117: =登録!AN117 -> 116 | C117: =登録!AQ117 -> HRC | D117: =登録!AR117 -> 宮井健太郎 | F117: 32 | G117: w | I117: =登録!AS117 -> 松居 勝巳 | J117: =登録!AT117 -> ORC | L117: s
B118: =登録!AN118 -> 117 | C118: =登録!AQ118 -> HRC | D118: =登録!AR118 -> 白澤雄一郎 | F118: 72 | G118: w | I118: =登録!AS118 -> 藤明 宏樹 | J118: =登録!AT118 -> ORC | L118: s
B119: =登録!AN119 -> 118 | C119: =登録!AQ119 -> HRC | D119: =登録!AR119 -> 河地 恵里 | F119: 22 | G119: w | I119: =登録!AS119 -> 吉岡 保俊 | J119: =登録!AT119 -> ORC | L119: s
B120: =登録!AN120 -> 119 | C120: =登録!AQ120 -> HRC | D120: =登録!AR120 -> 鐵山 泰三 | F120: 75 | G120: w | I120: =登録!AS120 -> 村上 泰辰 | J120: =登録!AT120 -> ORC | L120: s
B121: =登録!AN121 -> 120 | C121: =登録!AQ121 -> KRC | D121: =登録!AR121 -> 松好 太一 | F121: 97 | G121: w | I121: =登録!AS121 -> 芝先 泰生 | J121: =登録!AT121 -> WRC | L121: s
B122: =登録!AN122 -> 121 | C122: =登録!AQ122 -> KRC | D122: =登録!AR122 -> 清水 義晴 | F122: 5 | G122: w | I122: =登録!AS122 -> 松房ゆかり | J122: =登録!AT122 -> WRC | L122: s
B123: =登録!AN123 -> 122 | C123: =登録!AQ123 -> KRC | D123: =登録!AR123 -> 鈴木 康文 | F123: w | G123: 117 | I123: =登録!AS123 -> 末岡 修 | J123: =登録!AT123 -> WRC | L123: s
B124: =登録!AN124 -> 123 | C124: =登録!AQ124 -> KRC | D124: =登録!AR124 -> 早川 徹 | F124: w | G124: 61 | I124: =登録!AS124 -> 和田宗一郎 | J124: =登録!AT124 -> WRC | L124: s
B125: =登録!AN125 -> 124 | C125: =登録!AQ125 -> KRC | D125: =登録!AR125 -> 井関 一成 | F125: 119 | G125: w | I125: =登録!AS125 -> 杉本 博章 | J125: =登録!AT125 -> WRC | L125: s
B126: =登録!AN126 -> 125 | C126: =登録!AQ126 -> KRC | D126: =登録!AR126 -> 今村 哲也 | F126: 91 | G126: w | I126: =登録!AS126 -> 中本 雅大 | J126: =登録!AT126 -> WRC | L126: s
B127: =登録!AN127 -> 126 | C127: =登録!AQ127 -> KRC | D127: =登録!AR127 -> 森田由佳里 | F127: w | G127: 81 | I127: =登録!AS127 -> 山中 康介 | J127: =登録!AT127 -> WRC | L127: s
B128: =登録!AN128 -> 127 | C128: =登録!AQ128 -> HRC | D128: =登録!AR128 -> 堂園 雅也 | E128: 104 | F128: w | G128: 0 | I128: =登録!AS128 -> 山中 康寛 | J128: =登録!AT128 -> SBC | L128: s
B129: =登録!AN129 -> 128 | C129: =登録!AQ129 -> HRC | D129: =登録!AR129 -> 宮本 一 | F129: 76 | G129: w | I129: =登録!AS129 -> 西峰 久祐 | J129: =登録!AT129 -> SBC | L129: s
B130: =登録!AN130 -> 129 | C130: =登録!AQ130 -> HRC | D130: =登録!AR130 -> 伊藤 登 | F130: 72 | G130: w | I130: =登録!AS130 -> 大橋 正寛 | J130: =登録!AT130 -> SBC | L130: s
B131: =登録!AN131 -> 130 | C131: =登録!AQ131 -> HRC | D131: =登録!AR131 -> 宮井健太郎 | F131: 107 | G131: w | I131: =登録!AS131 -> 秋田 倫央 | J131: =登録!AT131 -> SBC | L131: s
B132: =登録!AN132 -> 131 | C132: =登録!AQ132 -> HRC | D132: =登録!AR132 -> 白澤雄一郎 | F132: w | G132: 3 | I132: =登録!AS132 -> 大橋 洋子 | J132: =登録!AT132 -> SBC | L132: s
B133: =登録!AN133 -> 132 | C133: =登録!AQ133 -> HRC | D133: =登録!AR133 -> 河地 恵里 | F133: 30 | G133: w | I133: =登録!AS133 -> 林 秀忠 | J133: =登録!AT133 -> SBC | L133: s
B134: =登録!AN134 -> 133 | C134: =登録!AQ134 -> HRC | D134: =登録!AR134 -> 鐵山 泰三 | F134: 33 | G134: w | I134: =登録!AS134 -> 大橋 義治 | J134: =登録!AT134 -> SBC | L134: s
B135: =登録!AN135 -> 134 | C135: =登録!AQ135 -> WRC | D135: =登録!AR135 -> 芝先 泰生 | F135: 25 | G135: w | H135: 106 | I135: =登録!AS135 -> 植田 慎也 | J135: =登録!AT135 -> NRC | L135: s
B136: =登録!AN136 -> 135 | C136: =登録!AQ136 -> WRC | D136: =登録!AR136 -> 松房ゆかり | F136: w | G136: 81 | I136: =登録!AS136 -> 近藤 拓馬 | J136: =登録!AT136 -> NRC | L136: s
B137: =登録!AN137 -> 136 | C137: =登録!AQ137 -> WRC | D137: =登録!AR137 -> 末岡 修 | F137: w | G137: 13 | I137: =登録!AS137 -> 長谷川 進 | J137: =登録!AT137 -> NRC | L137: s
B138: =登録!AN138 -> 137 | C138: =登録!AQ138 -> WRC | D138: =登録!AR138 -> 和田宗一郎 | F138: 0 | G138: w | H138: A105 | I138: =登録!AS138 -> 白戸 恭子 | J138: =登録!AT138 -> NRC | L138: s
B139: =登録!AN139 -> 138 | C139: =登録!AQ139 -> WRC | D139: =登録!AR139 -> 杉本 博章 | F139: 80 | G139: w | I139: =登録!AS139 -> 吉向 翔平 | J139: =登録!AT139 -> NRC | L139: s
B140: =登録!AN140 -> 139 | C140: =登録!AQ140 -> WRC | D140: =登録!AR140 -> 中本 雅大 | F140: 68 | G140: w | I140: =登録!AS140 -> 岩本 剛 | J140: =登録!AT140 -> NRC | L140: s
B141: =登録!AN141 -> 140 | C141: =登録!AQ141 -> WRC | D141: =登録!AR141 -> 山中 康介 | F141: 0 | G141: w | H141: 107 | I141: =登録!AS141 -> 白戸 玲人 | J141: =登録!AT141 -> NRC | L141: s
B142: =登録!AN142 -> 141 | C142: =登録!AQ142 -> KRC | D142: =登録!AR142 -> 松好 太一 | F142: 57 | G142: w | I142: =登録!AS142 -> 小原 嘉丈 | J142: =登録!AT142 -> ORC | L142: s
B143: =登録!AN143 -> 142 | C143: =登録!AQ143 -> KRC | D143: =登録!AR143 -> 清水 義晴 | F143: 108 | G143: w | I143: =登録!AS143 -> 乾 伸綱 | J143: =登録!AT143 -> ORC | L143: s
B144: =登録!AN144 -> 143 | C144: =登録!AQ144 -> KRC | D144: =登録!AR144 -> 鈴木 康文 | E144: 107 | F144: w | G144: 1 | I144: =登録!AS144 -> 山崎真紀子 | J144: =登録!AT144 -> ORC | L144: s
B145: =登録!AN145 -> 144 | C145: =登録!AQ145 -> KRC | D145: =登録!AR145 -> 早川 徹 | F145: 38 | G145: w | I145: =登録!AS145 -> 松居 勝巳 | J145: =登録!AT145 -> ORC | L145: s
B146: =登録!AN146 -> 145 | C146: =登録!AQ146 -> KRC | D146: =登録!AR146 -> 井関 一成 | F146: 63 | G146: w | I146: =登録!AS146 -> 藤明 宏樹 | J146: =登録!AT146 -> ORC | L146: s
B147: =登録!AN147 -> 146 | C147: =登録!AQ147 -> KRC | D147: =登録!AR147 -> 今村 哲也 | F147: 44 | G147: w | I147: =登録!AS147 -> 吉岡 保俊 | J147: =登録!AT147 -> ORC | L147: s
B148: =登録!AN148 -> 147 | C148: =登録!AQ148 -> KRC | D148: =登録!AR148 -> 森田由佳里 | F148: 35 | G148: w | I148: =登録!AS148 -> 村上 泰辰 | J148: =登録!AT148 -> ORC | L148: s
B149: =登録!AN149 -> 148 | C149: =登録!AQ149 -> WRC | D149: =登録!AR149 -> 芝先 泰生 | F149: 30 | G149: w | I149: =登録!AS149 -> 堂園 雅也 | J149: =登録!AT149 -> HRC | L149: s
B150: =登録!AN150 -> 149 | C150: =登録!AQ150 -> WRC | D150: =登録!AR150 -> 松房ゆかり | F150: 58 | G150: w | I150: =登録!AS150 -> 宮本 一 | J150: =登録!AT150 -> HRC | L150: s
B151: =登録!AN151 -> 150 | C151: =登録!AQ151 -> WRC | D151: =登録!AR151 -> 末岡 修 | F151: w | G151: 42 | I151: =登録!AS151 -> 伊藤 登 | J151: =登録!AT151 -> HRC | L151: s
B152: =登録!AN152 -> 151 | C152: =登録!AQ152 -> WRC | D152: =登録!AR152 -> 和田宗一郎 | F152: 37 | G152: w | I152: =登録!AS152 -> 宮井健太郎 | J152: =登録!AT152 -> HRC | L152: s
B153: =登録!AN153 -> 152 | C153: =登録!AQ153 -> WRC | D153: =登録!AR153 -> 杉本 博章 | F153: w | G153: 0 | I153: =登録!AS153 -> 白澤雄一郎 | J153: =登録!AT153 -> HRC | L153: s
B154: =登録!AN154 -> 153 | C154: =登録!AQ154 -> WRC | D154: =登録!AR154 -> 中本 雅大 | F154: 51 | G154: w | I154: =登録!AS154 -> 河地 恵里 | J154: =登録!AT154 -> HRC | L154: s
B155: =登録!AN155 -> 154 | C155: =登録!AQ155 -> WRC | D155: =登録!AR155 -> 山中 康介 | F155: w | G155: 114 | I155: =登録!AS155 -> 鐵山 泰三 | J155: =登録!AT155 -> HRC | L155: s
B156: =登録!AN156 -> 155 | C156: =登録!AQ156 -> ORC | D156: =登録!AR156 -> 小原 嘉丈 | F156: w | G156: 90 | I156: =登録!AS156 -> 山中 康寛 | J156: =登録!AT156 -> SBC | L156: s
B157: =登録!AN157 -> 156 | C157: =登録!AQ157 -> ORC | D157: =登録!AR157 -> 乾 伸綱 | F157: 85 | G157: w | H157: 101 | I157: =登録!AS157 -> 西峰 久祐 | J157: =登録!AT157 -> SBC | L157: s
B158: =登録!AN158 -> 157 | C158: =登録!AQ158 -> ORC | D158: =登録!AR158 -> 山崎真紀子 | F158: 61 | G158: w | I158: =登録!AS158 -> 大橋 正寛 | J158: =登録!AT158 -> SBC | L158: s
B159: =登録!AN159 -> 158 | C159: =登録!AQ159 -> ORC | D159: =登録!AR159 -> 松居 勝巳 | F159: w | G159: 109 | I159: =登録!AS159 -> 秋田 倫央 | J159: =登録!AT159 -> SBC | L159: s
B160: =登録!AN160 -> 159 | C160: =登録!AQ160 -> ORC | D160: =登録!AR160 -> 藤明 宏樹 | F160: w | G160: 16 | I160: =登録!AS160 -> 大橋 洋子 | J160: =登録!AT160 -> SBC | L160: s
B161: =登録!AN161 -> 160 | C161: =登録!AQ161 -> ORC | D161: =登録!AR161 -> 吉岡 保俊 | F161: w | G161: 55 | I161: =登録!AS161 -> 林 秀忠 | J161: =登録!AT161 -> SBC | L161: s
B162: =登録!AN162 -> 161 | C162: =登録!AQ162 -> ORC | D162: =登録!AR162 -> 村上 泰辰 | F162: w | G162: 82 | I162: =登録!AS162 -> 大橋 義治 | J162: =登録!AT162 -> SBC | L162: s
B163: =登録!AN163 -> 162 | C163: =登録!AQ163 -> KRC | D163: =登録!AR163 -> 松好 太一 | F163: w | G163: 24 | I163: =登録!AS163 -> 植田 慎也 | J163: =登録!AT163 -> NRC | L163: s
B164: =登録!AN164 -> 163 | C164: =登録!AQ164 -> KRC | D164: =登録!AR164 -> 清水 義晴 | F164: w | G164: 8 | I164: =登録!AS164 -> 近藤 拓馬 | J164: =登録!AT164 -> NRC | L164: s
B165: =登録!AN165 -> 164 | C165: =登録!AQ165 -> KRC | D165: =登録!AR165 -> 鈴木 康文 | F165: 119 | G165: w | I165: =登録!AS165 -> 長谷川 進 | J165: =登録!AT165 -> NRC | L165: s
B166: =登録!AN166 -> 165 | C166: =登録!AQ166 -> KRC | D166: =登録!AR166 -> 早川 徹 | F166: w | G166: 66 | I166: =登録!AS166 -> 白戸 恭子 | J166: =登録!AT166 -> NRC | L166: s
B167: =登録!AN167 -> 166 | C167: =登録!AQ167 -> KRC | D167: =登録!AR167 -> 井関 一成 | F167: 76 | G167: w | I167: =登録!AS167 -> 吉向 翔平 | J167: =登録!AT167 -> NRC | L167: s
B168: =登録!AN168 -> 167 | C168: =登録!AQ168 -> KRC | D168: =登録!AR168 -> 今村 哲也 | F168: w | G168: 53 | I168: =登録!AS168 -> 岩本 剛 | J168: =登録!AT168 -> NRC | L168: s
B169: =登録!AN169 -> 168 | C169: =登録!AQ169 -> KRC | D169: =登録!AR169 -> 森田由佳里 | F169: 31 | G169: w | I169: =登録!AS169 -> 白戸 玲人 | J169: =登録!AT169 -> NRC | L169: s
B170: =登録!AN170 -> 169 | C170: =登録!AQ170 -> ORC | D170: =登録!AR170 -> 小原 嘉丈 | F170: w | G170: 20 | I170: =登録!AS170 -> 芝先 泰生 | J170: =登録!AT170 -> WRC | L170: s
B171: =登録!AN171 -> 170 | C171: =登録!AQ171 -> ORC | D171: =登録!AR171 -> 乾 伸綱 | F171: w | G171: 0 | I171: =登録!AS171 -> 松房ゆかり | J171: =登録!AT171 -> WRC | L171: s
B172: =登録!AN172 -> 171 | C172: =登録!AQ172 -> ORC | D172: =登録!AR172 -> 山崎真紀子 | F172: 52 | G172: w | I172: =登録!AS172 -> 末岡 修 | J172: =登録!AT172 -> WRC | L172: s
B173: =登録!AN173 -> 172 | C173: =登録!AQ173 -> ORC | D173: =登録!AR173 -> 松居 勝巳 | F173: w | G173: 83 | I173: =登録!AS173 -> 和田宗一郎 | J173: =登録!AT173 -> WRC | L173: s
B174: =登録!AN174 -> 173 | C174: =登録!AQ174 -> ORC | D174: =登録!AR174 -> 藤明 宏樹 | F174: 92 | G174: w | I174: =登録!AS174 -> 杉本 博章 | J174: =登録!AT174 -> WRC | L174: s
B175: =登録!AN175 -> 174 | C175: =登録!AQ175 -> ORC | D175: =登録!AR175 -> 吉岡 保俊 | F175: 83 | G175: w | I175: =登録!AS175 -> 中本 雅大 | J175: =登録!AT175 -> WRC | L175: s
B176: =登録!AN176 -> 175 | C176: =登録!AQ176 -> ORC | D176: =登録!AR176 -> 村上 泰辰 | F176: 38 | G176: w | I176: =登録!AS176 -> 山中 康介 | J176: =登録!AT176 -> WRC | L176: s
B177: =登録!AN177 -> 176 | C177: =登録!AQ177 -> NRC | D177: =登録!AR177 -> 植田 慎也 | F177: 29 | G177: w | I177: =登録!AS177 -> 堂園 雅也 | J177: =登録!AT177 -> HRC | L177: s
B178: =登録!AN178 -> 177 | C178: =登録!AQ178 -> NRC | D178: =登録!AR178 -> 近藤 拓馬 | F178: 0 | G178: w | H178: 112 | I178: =登録!AS178 -> 宮本 一 | J178: =登録!AT178 -> HRC | L178: s
B179: =登録!AN179 -> 178 | C179: =登録!AQ179 -> NRC | D179: =登録!AR179 -> 長谷川 進 | F179: 32 | G179: w | I179: =登録!AS179 -> 伊藤 登 | J179: =登録!AT179 -> HRC | L179: s
B180: =登録!AN180 -> 179 | C180: =登録!AQ180 -> NRC | D180: =登録!AR180 -> 白戸 恭子 | F180: w | G180: 92 | I180: =登録!AS180 -> 宮井健太郎 | J180: =登録!AT180 -> HRC | L180: s
B181: =登録!AN181 -> 180 | C181: =登録!AQ181 -> NRC | D181: =登録!AR181 -> 吉向 翔平 | F181: 26 | G181: w | I181: =登録!AS181 -> 白澤雄一郎 | J181: =登録!AT181 -> HRC | L181: s
B182: =登録!AN182 -> 181 | C182: =登録!AQ182 -> NRC | D182: =登録!AR182 -> 岩本 剛 | F182: 79 | G182: w | I182: =登録!AS182 -> 河地 恵里 | J182: =登録!AT182 -> HRC | L182: s
B183: =登録!AN183 -> 182 | C183: =登録!AQ183 -> NRC | D183: =登録!AR183 -> 白戸 玲人 | F183: 0 | G183: w | I183: =登録!AS183 -> 鐵山 泰三 | J183: =登録!AT183 -> HRC | L183: s
B184: =登録!AN184 -> 183 | C184: =登録!AQ184 -> KRC | D184: =登録!AR184 -> 松好 太一 | F184: w | G184: 71 | I184: =登録!AS184 -> 山中 康寛 | J184: =登録!AT184 -> SBC | L184: s
B185: =登録!AN185 -> 184 | C185: =登録!AQ185 -> KRC | D185: =登録!AR185 -> 清水 義晴 | F185: w | G185: 116 | I185: =登録!AS185 -> 西峰 久祐 | J185: =登録!AT185 -> SBC | L185: s
B186: =登録!AN186 -> 185 | C186: =登録!AQ186 -> KRC | D186: =登録!AR186 -> 鈴木 康文 | F186: w | G186: 44 | I186: =登録!AS186 -> 大橋 正寛 | J186: =登録!AT186 -> SBC | L186: s
B187: =登録!AN187 -> 186 | C187: =登録!AQ187 -> KRC | D187: =登録!AR187 -> 早川 徹 | F187: w | G187: 11 | I187: =登録!AS187 -> 秋田 倫央 | J187: =登録!AT187 -> SBC | L187: s
B188: =登録!AN188 -> 187 | C188: =登録!AQ188 -> KRC | D188: =登録!AR188 -> 井関 一成 | F188: w | G188: 23 | I188: =登録!AS188 -> 大橋 洋子 | J188: =登録!AT188 -> SBC | L188: s
B189: =登録!AN189 -> 188 | C189: =登録!AQ189 -> KRC | D189: =登録!AR189 -> 今村 哲也 | F189: w | G189: 85 | I189: =登録!AS189 -> 林 秀忠 | J189: =登録!AT189 -> SBC | L189: s
B190: =登録!AN190 -> 189 | C190: =登録!AQ190 -> KRC | D190: =登録!AR190 -> 森田由佳里 | F190: w | G190: 84 | I190: =登録!AS190 -> 大橋 義治 | J190: =登録!AT190 -> SBC | L190: s
B191: =登録!AN191 -> 190 | C191: =登録!AQ191 -> NRC | D191: =登録!AR191 -> 植田 慎也 | F191: 118 | G191: w | I191: =登録!AS191 -> 小原 嘉丈 | J191: =登録!AT191 -> ORC | L191: s
B192: =登録!AN192 -> 191 | C192: =登録!AQ192 -> NRC | D192: =登録!AR192 -> 近藤 拓馬 | F192: 33 | G192: w | I192: =登録!AS192 -> 乾 伸綱 | J192: =登録!AT192 -> ORC | L192: s
B193: =登録!AN193 -> 192 | C193: =登録!AQ193 -> NRC | D193: =登録!AR193 -> 長谷川 進 | F193: 55 | G193: w | I193: =登録!AS193 -> 山崎真紀子 | J193: =登録!AT193 -> ORC | L193: s
B194: =登録!AN194 -> 193 | C194: =登録!AQ194 -> NRC | D194: =登録!AR194 -> 白戸 恭子 | F194: 25 | G194: w | I194: =登録!AS194 -> 松居 勝巳 | J194: =登録!AT194 -> ORC | L194: s
B195: =登録!AN195 -> 194 | C195: =登録!AQ195 -> NRC | D195: =登録!AR195 -> 吉向 翔平 | F195: w | G195: 60 | I195: =登録!AS195 -> 藤明 宏樹 | J195: =登録!AT195 -> ORC | L195: s
B196: =登録!AN196 -> 195 | C196: =登録!AQ196 -> NRC | D196: =登録!AR196 -> 岩本 剛 | F196: w | G196: 18 | I196: =登録!AS196 -> 吉岡 保俊 | J196: =登録!AT196 -> ORC | L196: s
B197: =登録!AN197 -> 196 | C197: =登録!AQ197 -> NRC | D197: =登録!AR197 -> 白戸 玲人 | F197: w | G197: 11 | I197: =登録!AS197 -> 村上 泰辰 | J197: =登録!AT197 -> ORC | L197: s
B198: =登録!AN198 -> 197 | C198: =登録!AQ198 -> SBC | D198: =登録!AR198 -> 山中 康寛 | F198: w | G198: 4 | I198: =登録!AS198 -> 芝先 泰生 | J198: =登録!AT198 -> WRC | L198: s
B199: =登録!AN199 -> 198 | C199: =登録!AQ199 -> SBC | D199: =登録!AR199 -> 西峰 久祐 | F199: 81 | G199: w | I199: =登録!AS199 -> 松房ゆかり | J199: =登録!AT199 -> WRC | L199: s
B200: =登録!AN200 -> 199 | C200: =登録!AQ200 -> SBC | D200: =登録!AR200 -> 大橋 正寛 | F200: w | G200: 87 | I200: =登録!AS200 -> 末岡 修 | J200: =登録!AT200 -> WRC | L200: s
... 11 more rows

Sheet ★総合結果表★
A1: =★個人成績表★!A1 -> 第31回 京阪神和奈滋対抗戦 (奈良；玉出エース)
A4: MVP | D4: =IF(ISERROR(★個人成績表★!AE12),"",★個人成績表★!AJ12) -> 早川 徹(KRC) 9勝1敗 | I4: VP | J4: =IF(ISERROR(★個人成績表★!$AD$12),"",VLOOKUP(3,★個人成績表★!$AC$15:$AJ$20,8,FALSE)) -> 宮本 一(HRC) 7勝3敗 | O4: VP | P4: =IF(ISERROR(★個人成績表★!$AD$12),"",VLOOKUP(5,★個人成績表★!$AC$15:$AJ$20,8,FALSE)) -> 山中 康介(WRC) 7勝3敗
A5: VP | D5: =IF(ISERROR(★個人成績表★!$AD$12),"",VLOOKUP(2,★個人成績表★!$AC$15:$AJ$20,8,FALSE)) -> 乾 伸綱(ORC) 8勝2敗 | I5: VP | J5: =IF(ISERROR(★個人成績表★!$AD$12),"",VLOOKUP(4,★個人成績表★!$AC$15:$AJ$20,8,FALSE)) -> 林 秀忠(SBC) 7勝3敗 | O5: VP | P5: =IF(ISERROR(VLOOKUP(6,★個人成績表★!$AC$15:$AJ$20,8,FALSE)),"",VLOOKUP(6,★個人成績表★!$AC$15:$AJ$20,8,FALSE)) -> 白戸 恭子(NRC) 6勝4敗
A6: H R | D6: 芝先 泰生(WRC) A120 、 110
D8: =A10 -> KRC | F8: =A12 -> HRC | H8: =A14 -> SBC | J8: =A16 -> NRC | L8: =A18 -> ORC | N8: =A20 -> WRC | P8: W | Q8: L | R8: TP | S8: RK
D9: W | E9: L | F9: W | G9: L | H9: W | I9: L | J9: W | K9: L | L9: W | M9: L | N9: W | O9: L
A10: =IF(登録!B17="","",登録!B17) -> KRC | F10: =IF(COUNTBLANK(★個人成績表★!H5:H11)=7,"",COUNTIF(★個人成績表★!H5:H11,"w")) -> 6 | G10: =IF(COUNTBLANK(★個人成績表★!H5:H11)=7,"",7-COUNTBLANK(★個人成績表★!H5:H11)-COUNTIF(★個人成績表★!H5:H11,"w")) -> 1 | H10: =IF(COUNTBLANK(★個人成績表★!G5:G11)=7,"",COUNTIF(★個人成績表★!G5:G11,"w")) -> 4 | I10: =IF(COUNTBLANK(★個人成績表★!G5:G11)=7,"",7-COUNTBLANK(★個人成績表★!G5:G11)-COUNTIF(★個人成績表★!G5:G11,"w")) -> 3 | J10: =IF(COUNTBLANK(★個人成績表★!F5:F11)=7,"",COUNTIF(★個人成績表★!F5:F11,"w")) -> 2 | K10: =IF(COUNTBLANK(★個人成績表★!F5:F11)=7,"",7-COUNTBLANK(★個人成績表★!F5:F11)-COUNTIF(★個人成績表★!F5:F11,"w")) -> 5 | L10: =IF(COUNTBLANK(★個人成績表★!E5:E11)=7,"",COUNTIF(★個人成績表★!E5:E11,"w")) -> 4 | M10: =IF(COUNTBLANK(★個人成績表★!E5:E11)=7,"",7-COUNTBLANK(★個人成績表★!E5:E11)-COUNTIF(★個人成績表★!E5:E11,"w")) -> 3 | N10: =IF(COUNTBLANK(★個人成績表★!D5:D11)=7,"",COUNTIF(★個人成績表★!D5:D11,"w")) -> 4 | O10: =IF(COUNTBLANK(★個人成績表★!D5:D11)=7,"",7-COUNTBLANK(★個人成績表★!D5:D11)-COUNTIF(★個人成績表★!D5:D11,"w")) -> 3 | P10: =IF(COUNTBLANK($D10:$O11)=24,"",SUM(D10,F10,H10,J10,L10,N10,D11,F11,H11,J11,L11,N11)) -> 37 | Q10: =IF(COUNTBLANK($D10:$O11)=24,"",SUM(E10,G10,I10,K10,M10,O10,E11,G11,I11,K11,M11,O11)) -> 33 | R10: =IF(ISERROR(★個人成績表★!P12),"","("&★個人成績表★!P12&")") -> (6448) | S10: =IF(ISERROR(W11),"",RANK(W11,$W$10:$W$21)) -> 2
F11: =IF(COUNTBLANK(★個人成績表★!M5:M11)=7,"",COUNTIF(★個人成績表★!M5:M11,"w")) -> 2 | G11: =IF(COUNTBLANK(★個人成績表★!M5:M11)=7,"",7-COUNTBLANK(★個人成績表★!M5:M11)-COUNTIF(★個人成績表★!M5:M11,"w")) -> 5 | H11: =IF(COUNTBLANK(★個人成績表★!L5:L11)=7,"",COUNTIF(★個人成績表★!L5:L11,"w")) -> 7 | I11: =IF(COUNTBLANK(★個人成績表★!L5:L11)=7,"",7-COUNTBLANK(★個人成績表★!L5:L11)-COUNTIF(★個人成績表★!L5:L11,"w")) -> 0 | J11: =IF(COUNTBLANK(★個人成績表★!K5:K11)=7,"",COUNTIF(★個人成績表★!K5:K11,"w")) -> 4 | K11: =IF(COUNTBLANK(★個人成績表★!K5:K11)=7,"",7-COUNTBLANK(★個人成績表★!K5:K11)-COUNTIF(★個人成績表★!K5:K11,"w")) -> 3 | L11: =IF(COUNTBLANK(★個人成績表★!J5:J11)=7,"",COUNTIF(★個人成績表★!J5:J11,"w")) -> 1 | M11: =IF(COUNTBLANK(★個人成績表★!J5:J11)=7,"",7-COUNTBLANK(★個人成績表★!J5:J11)-COUNTIF(★個人成績表★!J5:J11,"w")) -> 6 | N11: =IF(COUNTBLANK(★個人成績表★!I5:I11)=7,"",COUNTIF(★個人成績表★!I5:I11,"w")) -> 3 | O11: =IF(COUNTBLANK(★個人成績表★!I5:I11)=7,"",7-COUNTBLANK(★個人成績表★!I5:I11)-COUNTIF(★個人成績表★!I5:I11,"w")) -> 4 | R11: =IF(★個人成績表★!S12=R10,"",★個人成績表★!S12) -> 6571 | W11: =P10*100000+★個人成績表★!Q12 -> 3706571
A12: =IF(登録!B18="","",登録!B18) -> HRC | D12: =IF(COUNTBLANK(★個人成績表★!H14:H20)=7,"",COUNTIF(★個人成績表★!H14:H20,"w")) -> 1 | E12: =IF(COUNTBLANK(★個人成績表★!H14:H20)=7,"",7-COUNTBLANK(★個人成績表★!H14:H20)-COUNTIF(★個人成績表★!H14:H20,"w")) -> 6 | H12: =IF(COUNTBLANK(★個人成績表★!E14:E20)=7,"",COUNTIF(★個人成績表★!E14:E20,"w")) -> 4 | I12: =IF(COUNTBLANK(★個人成績表★!E14:E20)=7,"",7-COUNTBLANK(★個人成績表★!E14:E20)-COUNTIF(★個人成績表★!E14:E20,"w")) -> 3 | J12: =IF(COUNTBLANK(★個人成績表★!G14:G20)=7,"",COUNTIF(★個人成績表★!G14:G20,"w")) -> 7 | K12: =IF(COUNTBLANK(★個人成績表★!G14:G20)=7,"",7-COUNTBLANK(★個人成績表★!G14:G20)-COUNTIF(★個人成績表★!G14:G20,"w")) -> 0 | L12: =IF(COUNTBLANK(★個人成績表★!D14:D20)=7,"",COUNTIF(★個人成績表★!D14:D20,"w")) -> 3 | M12: =IF(COUNTBLANK(★個人成績表★!D14:D20)=7,"",7-COUNTBLANK(★個人成績表★!D14:D20)-COUNTIF(★個人成績表★!D14:D20,"w")) -> 4 | N12: =IF(COUNTBLANK(★個人成績表★!F14:F20)=7,"",COUNTIF(★個人成績表★!F14:F20,"w")) -> 2 | O12: =IF(COUNTBLANK(★個人成績表★!F14:F20)=7,"",7-COUNTBLANK(★個人成績表★!F14:F20)-COUNTIF(★個人成績表★!F14:F20,"w")) -> 5 | P12: =IF(COUNTBLANK($D12:$O13)=24,"",SUM(D12,F12,H12,J12,L12,N12,D13,F13,H13,J13,L13,N13)) -> 36 | Q12: =IF(COUNTBLANK($D12:$O13)=24,"",SUM(E12,G12,I12,K12,M12,O12,E13,G13,I13,K13,M13,O13)) -> 34 | R12: =IF(ISERROR(★個人成績表★!P21),"","("&★個人成績表★!P21&")") -> (6000) | S12: =IF(ISERROR(W13),"",RANK(W13,$W$10:$W$21)) -> 4
D13: =IF(COUNTBLANK(★個人成績表★!M14:M20)=7,"",COUNTIF(★個人成績表★!M14:M20,"w")) -> 5 | E13: =IF(COUNTBLANK(★個人成績表★!M14:M20)=7,"",7-COUNTBLANK(★個人成績表★!M14:M20)-COUNTIF(★個人成績表★!M14:M20,"w")) -> 2 | H13: =IF(COUNTBLANK(★個人成績表★!J14:J20)=7,"",COUNTIF(★個人成績表★!J14:J20,"w")) -> 2 | I13: =IF(COUNTBLANK(★個人成績表★!J14:J20)=7,"",7-COUNTBLANK(★個人成績表★!J14:J20)-COUNTIF(★個人成績表★!J14:J20,"w")) -> 5 | J13: =IF(COUNTBLANK(★個人成績表★!L14:L20)=7,"",COUNTIF(★個人成績表★!L14:L20,"w")) -> 6 | K13: =IF(COUNTBLANK(★個人成績表★!L14:L20)=7,"",7-COUNTBLANK(★個人成績表★!L14:L20)-COUNTIF(★個人成績表★!L14:L20,"w")) -> 1 | L13: =IF(COUNTBLANK(★個人成績表★!I14:I20)=7,"",COUNTIF(★個人成績表★!I14:I20,"w")) -> 2 | M13: =IF(COUNTBLANK(★個人成績表★!I14:I20)=7,"",7-COUNTBLANK(★個人成績表★!I14:I20)-COUNTIF(★個人成績表★!I14:I20,"w")) -> 5 | N13: =IF(COUNTBLANK(★個人成績表★!K14:K20)=7,"",COUNTIF(★個人成績表★!K14:K20,"w")) -> 4 | O13: =IF(COUNTBLANK(★個人成績表★!K14:K20)=7,"",7-COUNTBLANK(★個人成績表★!K14:K20)-COUNTIF(★個人成績表★!K14:K20,"w")) -> 3 | R13: =IF(★個人成績表★!S21=R19,"",★個人成績表★!S21) -> 6138.6 | W13: =P12*100000+★個人成績表★!Q21 -> 3606138.6
A14: =IF(登録!B19="","",登録!B19) -> SBC | D14: =IF(COUNTBLANK(★個人成績表★!G23:G29)=7,"",COUNTIF(★個人成績表★!G23:G29,"w")) -> 3 | E14: =IF(COUNTBLANK(★個人成績表★!G23:G29)=7,"",7-COUNTBLANK(★個人成績表★!G23:G29)-COUNTIF(★個人成績表★!G23:G29,"w")) -> 4 | F14: =IF(COUNTBLANK(★個人成績表★!E23:E29)=7,"",COUNTIF(★個人成績表★!E23:E29,"w")) -> 3 | G14: =IF(COUNTBLANK(★個人成績表★!E23:E29)=7,"",7-COUNTBLANK(★個人成績表★!E23:E29)-COUNTIF(★個人成績表★!E23:E29,"w")) -> 4 | J14: =IF(COUNTBLANK(★個人成績表★!D23:D29)=7,"",COUNTIF(★個人成績表★!D23:D29,"w")) -> 4 | K14: =IF(COUNTBLANK(★個人成績表★!D23:D29)=7,"",7-COUNTBLANK(★個人成績表★!D23:D29)-COUNTIF(★個人成績表★!D23:D29,"w")) -> 3 | L14: =IF(COUNTBLANK(★個人成績表★!F23:F29)=7,"",COUNTIF(★個人成績表★!F23:F29,"w")) -> 3 | M14: =IF(COUNTBLANK(★個人成績表★!F23:F29)=7,"",7-COUNTBLANK(★個人成績表★!F23:F29)-COUNTIF(★個人成績表★!F23:F29,"w")) -> 4 | N14: =IF(COUNTBLANK(★個人成績表★!H23:H29)=7,"",COUNTIF(★個人成績表★!H23:H29,"w")) -> 4 | O14: =IF(COUNTBLANK(★個人成績表★!H23:H29)=7,"",7-COUNTBLANK(★個人成績表★!H23:H29)-COUNTIF(★個人成績表★!H23:H29,"w")) -> 3 | P14: =IF(COUNTBLANK($D14:$O15)=24,"",SUM(D14,F14,H14,J14,L14,N14,D15,F15,H15,J15,L15,N15)) -> 32 | Q14: =IF(COUNTBLANK($D14:$O15)=24,"",SUM(E14,G14,I14,K14,M14,O14,E15,G15,I15,K15,M15,O15)) -> 38 | R14: =IF(ISERROR(★個人成績表★!P30),"","("&★個人成績表★!P30&")") -> (5632) | S14: =IF(ISERROR(W15),"",RANK(W15,$W$10:$W$21)) -> 5
D15: =IF(COUNTBLANK(★個人成績表★!L23:L29)=7,"",COUNTIF(★個人成績表★!L23:L29,"w")) -> 0 | E15: =IF(COUNTBLANK(★個人成績表★!L23:L29)=7,"",7-COUNTBLANK(★個人成績表★!L23:L29)-COUNTIF(★個人成績表★!L23:L29,"w")) -> 7 | F15: =IF(COUNTBLANK(★個人成績表★!J23:J29)=7,"",COUNTIF(★個人成績表★!J23:J29,"w")) -> 5 | G15: =IF(COUNTBLANK(★個人成績表★!J23:J29)=7,"",7-COUNTBLANK(★個人成績表★!J23:J29)-COUNTIF(★個人成績表★!J23:J29,"w")) -> 2 | J15: =IF(COUNTBLANK(★個人成績表★!I23:I29)=7,"",COUNTIF(★個人成績表★!I23:I29,"w")) -> 4 | K15: =IF(COUNTBLANK(★個人成績表★!I23:I29)=7,"",7-COUNTBLANK(★個人成績表★!I23:I29)-COUNTIF(★個人成績表★!I23:I29,"w")) -> 3 | L15: =IF(COUNTBLANK(★個人成績表★!K23:K29)=7,"",COUNTIF(★個人成績表★!K23:K29,"w")) -> 2 | M15: =IF(COUNTBLANK(★個人成績表★!K23:K29)=7,"",7-COUNTBLANK(★個人成績表★!K23:K29)-COUNTIF(★個人成績表★!K23:K29,"w")) -> 5 | N15: =IF(COUNTBLANK(★個人成績表★!M23:M29)=7,"",COUNTIF(★個人成績表★!M23:M29,"w")) -> 4 | O15: =IF(COUNTBLANK(★個人成績表★!M23:M29)=7,"",7-COUNTBLANK(★個人成績表★!M23:M29)-COUNTIF(★個人成績表★!M23:M29,"w")) -> 3 | R15: =IF(★個人成績表★!S30=R28,"",★個人成績表★!S30) -> 5700.4 | W15: =P14*100000+★個人成績表★!Q30 -> 3205700.4
A16: =IF(登録!B20="","",登録!B20) -> NRC | D16: =IF(COUNTBLANK(★個人成績表★!F32:F38)=7,"",COUNTIF(★個人成績表★!F32:F38,"w")) -> 5 | E16: =IF(COUNTBLANK(★個人成績表★!F32:F38)=7,"",7-COUNTBLANK(★個人成績表★!F32:F38)-COUNTIF(★個人成績表★!F32:F38,"w")) -> 2 | F16: =IF(COUNTBLANK(★個人成績表★!G32:G38)=7,"",COUNTIF(★個人成績表★!G32:G38,"w")) -> 0 | G16: =IF(COUNTBLANK(★個人成績表★!G32:G38)=7,"",7-COUNTBLANK(★個人成績表★!G32:G38)-COUNTIF(★個人成績表★!G32:G38,"w")) -> 7 | H16: =IF(COUNTBLANK(★個人成績表★!D32:D38)=7,"",COUNTIF(★個人成績表★!D32:D38,"w")) -> 3 | I16: =IF(COUNTBLANK(★個人成績表★!D32:D38)=7,"",7-COUNTBLANK(★個人成績表★!D32:D38)-COUNTIF(★個人成績表★!D32:D38,"w")) -> 4 | L16: =IF(COUNTBLANK(★個人成績表★!H32:H38)=7,"",COUNTIF(★個人成績表★!H32:H38,"w")) -> 2 | M16: =IF(COUNTBLANK(★個人成績表★!H32:H38)=7,"",7-COUNTBLANK(★個人成績表★!H32:H38)-COUNTIF(★個人成績表★!H32:H38,"w")) -> 5 | N16: =IF(COUNTBLANK(★個人成績表★!E32:E38)=7,"",COUNTIF(★個人成績表★!E32:E38,"w")) -> 2 | O16: =IF(COUNTBLANK(★個人成績表★!E32:E38)=7,"",7-COUNTBLANK(★個人成績表★!E32:E38)-COUNTIF(★個人成績表★!E32:E38,"w")) -> 5 | P16: =IF(COUNTBLANK($D16:$O17)=24,"",SUM(D16,F16,H16,J16,L16,N16,D17,F17,H17,J17,L17,N17)) -> 27 | Q16: =IF(COUNTBLANK($D16:$O17)=24,"",SUM(E16,G16,I16,K16,M16,O16,E17,G17,I17,K17,M17,O17)) -> 43 | R16: =IF(ISERROR(★個人成績表★!P39),"","("&★個人成績表★!P39&")") -> (4987) | S16: =IF(ISERROR(W17),"",RANK(W17,$W$10:$W$21)) -> 6
D17: =IF(COUNTBLANK(★個人成績表★!K32:K38)=7,"",COUNTIF(★個人成績表★!K32:K38,"w")) -> 3 | E17: =IF(COUNTBLANK(★個人成績表★!K32:K38)=7,"",7-COUNTBLANK(★個人成績表★!K32:K38)-COUNTIF(★個人成績表★!K32:K38,"w")) -> 4 | F17: =IF(COUNTBLANK(★個人成績表★!L32:L38)=7,"",COUNTIF(★個人成績表★!L32:L38,"w")) -> 1 | G17: =IF(COUNTBLANK(★個人成績表★!L32:L38)=7,"",7-COUNTBLANK(★個人成績表★!L32:L38)-COUNTIF(★個人成績表★!L32:L38,"w")) -> 6 | H17: =IF(COUNTBLANK(★個人成績表★!I32:I38)=7,"",COUNTIF(★個人成績表★!I32:I38,"w")) -> 3 | I17: =IF(COUNTBLANK(★個人成績表★!I32:I38)=7,"",7-COUNTBLANK(★個人成績表★!I32:I38)-COUNTIF(★個人成績表★!I32:I38,"w")) -> 4 | L17: =IF(COUNTBLANK(★個人成績表★!M32:M38)=7,"",COUNTIF(★個人成績表★!M32:M38,"w")) -> 3 | M17: =IF(COUNTBLANK(★個人成績表★!M32:M38)=7,"",7-COUNTBLANK(★個人成績表★!M32:M38)-COUNTIF(★個人成績表★!M32:M38,"w")) -> 4 | N17: =IF(COUNTBLANK(★個人成績表★!J32:J38)=7,"",COUNTIF(★個人成績表★!J32:J38,"w")) -> 5 | O17: =IF(COUNTBLANK(★個人成績表★!J32:J38)=7,"",7-COUNTBLANK(★個人成績表★!J32:J38)-COUNTIF(★個人成績表★!J32:J38,"w")) -> 2 | R17: =IF(★個人成績表★!S39=R37,"",★個人成績表★!S39) -> 5141.2 | W17: =P16*100000+★個人成績表★!Q39 -> 2705141.2
A18: =IF(登録!B21="","",登録!B21) -> ORC | D18: =IF(COUNTBLANK(★個人成績表★!E41:E47)=7,"",COUNTIF(★個人成績表★!E41:E47,"w")) -> 3 | E18: =IF(COUNTBLANK(★個人成績表★!E41:E47)=7,"",7-COUNTBLANK(★個人成績表★!E41:E47)-COUNTIF(★個人成績表★!E41:E47,"w")) -> 4 | F18: =IF(COUNTBLANK(★個人成績表★!D41:D47)=7,"",COUNTIF(★個人成績表★!D41:D47,"w")) -> 4 | G18: =IF(COUNTBLANK(★個人成績表★!D41:D47)=7,"",7-COUNTBLANK(★個人成績表★!D41:D47)-COUNTIF(★個人成績表★!D41:D47,"w")) -> 3 | H18: =IF(COUNTBLANK(★個人成績表★!F41:F47)=7,"",COUNTIF(★個人成績表★!F41:F47,"w")) -> 4 | I18: =IF(COUNTBLANK(★個人成績表★!F41:F47)=7,"",7-COUNTBLANK(★個人成績表★!F41:F47)-COUNTIF(★個人成績表★!F41:F47,"w")) -> 3 | J18: =IF(COUNTBLANK(★個人成績表★!H41:H47)=7,"",COUNTIF(★個人成績表★!H41:H47,"w")) -> 5 | K18: =IF(COUNTBLANK(★個人成績表★!H41:H47)=7,"",7-COUNTBLANK(★個人成績表★!H41:H47)-COUNTIF(★個人成績表★!H41:H47,"w")) -> 2 | N18: =IF(COUNTBLANK(★個人成績表★!G41:G47)=7,"",COUNTIF(★個人成績表★!G41:G47,"w")) -> 2 | O18: =IF(COUNTBLANK(★個人成績表★!G41:G47)=7,"",7-COUNTBLANK(★個人成績表★!G41:G47)-COUNTIF(★個人成績表★!G41:G47,"w")) -> 5 | P18: =IF(COUNTBLANK($D18:$O19)=24,"",SUM(D18,F18,H18,J18,L18,N18,D19,F19,H19,J19,L19,N19)) -> 41 | Q18: =IF(COUNTBLANK($D18:$O19)=24,"",SUM(E18,G18,I18,K18,M18,O18,E19,G19,I19,K19,M19,O19)) -> 29 | R18: =IF(ISERROR(★個人成績表★!P48),"","("&★個人成績表★!P48&")") -> (6595) | S18: =IF(ISERROR(W19),"",RANK(W19,$W$10:$W$21)) -> 1
D19: =IF(COUNTBLANK(★個人成績表★!J41:J47)=7,"",COUNTIF(★個人成績表★!J41:J47,"w")) -> 6 | E19: =IF(COUNTBLANK(★個人成績表★!J41:J47)=7,"",7-COUNTBLANK(★個人成績表★!J41:J47)-COUNTIF(★個人成績表★!J41:J47,"w")) -> 1 | F19: =IF(COUNTBLANK(★個人成績表★!I41:I47)=7,"",COUNTIF(★個人成績表★!I41:I47,"w")) -> 5 | G19: =IF(COUNTBLANK(★個人成績表★!I41:I47)=7,"",7-COUNTBLANK(★個人成績表★!I41:I47)-COUNTIF(★個人成績表★!I41:I47,"w")) -> 2 | H19: =IF(COUNTBLANK(★個人成績表★!K41:K47)=7,"",COUNTIF(★個人成績表★!K41:K47,"w")) -> 5 | I19: =IF(COUNTBLANK(★個人成績表★!K41:K47)=7,"",7-COUNTBLANK(★個人成績表★!K41:K47)-COUNTIF(★個人成績表★!K41:K47,"w")) -> 2 | J19: =IF(COUNTBLANK(★個人成績表★!M41:M47)=7,"",COUNTIF(★個人成績表★!M41:M47,"w")) -> 4 | K19: =IF(COUNTBLANK(★個人成績表★!M41:M47)=7,"",7-COUNTBLANK(★個人成績表★!M41:M47)-COUNTIF(★個人成績表★!M41:M47,"w")) -> 3 | N19: =IF(COUNTBLANK(★個人成績表★!L41:L47)=7,"",COUNTIF(★個人成績表★!L41:L47,"w")) -> 3 | O19: =IF(COUNTBLANK(★個人成績表★!L41:L47)=7,"",7-COUNTBLANK(★個人成績表★!L41:L47)-COUNTIF(★個人成績表★!L41:L47,"w")) -> 4 | R19: =IF(★個人成績表★!S48=R46,"",★個人成績表★!S48) -> 6735.8 | W19: =P18*100000+★個人成績表★!Q48 -> 4106735.8
A20: =IF(登録!B22="","",登録!B22) -> WRC | D20: =IF(COUNTBLANK(★個人成績表★!D50:D56)=7,"",COUNTIF(★個人成績表★!D50:D56,"w")) -> 3 | E20: =IF(COUNTBLANK(★個人成績表★!D50:D56)=7,"",7-COUNTBLANK(★個人成績表★!D50:D56)-COUNTIF(★個人成績表★!D50:D56,"w")) -> 4 | F20: =IF(COUNTBLANK(★個人成績表★!F50:F56)=7,"",COUNTIF(★個人成績表★!F50:F56,"w")) -> 5 | G20: =IF(COUNTBLANK(★個人成績表★!F50:F56)=7,"",7-COUNTBLANK(★個人成績表★!F50:F56)-COUNTIF(★個人成績表★!F50:F56,"w")) -> 2 | H20: =IF(COUNTBLANK(★個人成績表★!H50:H56)=7,"",COUNTIF(★個人成績表★!H50:H56,"w")) -> 3 | I20: =IF(COUNTBLANK(★個人成績表★!H50:H56)=7,"",7-COUNTBLANK(★個人成績表★!H50:H56)-COUNTIF(★個人成績表★!H50:H56,"w")) -> 4 | J20: =IF(COUNTBLANK(★個人成績表★!E50:E56)=7,"",COUNTIF(★個人成績表★!E50:E56,"w")) -> 5 | K20: =IF(COUNTBLANK(★個人成績表★!E50:E56)=7,"",7-COUNTBLANK(★個人成績表★!E50:E56)-COUNTIF(★個人成績表★!E50:E56,"w")) -> 2 | L20: =IF(COUNTBLANK(★個人成績表★!G50:G56)=7,"",COUNTIF(★個人成績表★!G50:G56,"w")) -> 5 | M20: =IF(COUNTBLANK(★個人成績表★!G50:G56)=7,"",7-COUNTBLANK(★個人成績表★!G50:G56)-COUNTIF(★個人成績表★!G50:G56,"w")) -> 2 | P20: =IF(COUNTBLANK($D20:$O21)=24,"",SUM(D20,F20,H20,J20,L20,N20,D21,F21,H21,J21,L21,N21)) -> 37 | Q20: =IF(COUNTBLANK($D20:$O21)=24,"",SUM(E20,G20,I20,K20,M20,O20,E21,G21,I21,K21,M21,O21)) -> 33 | R20: =IF(ISERROR(★個人成績表★!P57),"","("&★個人成績表★!P57&")") -> (6060) | S20: =IF(W21="","",RANK(W21,$W$10:$W$21)) -> 3
D21: =IF(COUNTBLANK(★個人成績表★!I50:I56)=7,"",COUNTIF(★個人成績表★!I50:I56,"w")) -> 4 | E21: =IF(COUNTBLANK(★個人成績表★!I50:I56)=7,"",7-COUNTBLANK(★個人成績表★!I50:I56)-COUNTIF(★個人成績表★!I50:I56,"w")) -> 3 | F21: =IF(COUNTBLANK(★個人成績表★!K50:K56)=7,"",COUNTIF(★個人成績表★!K50:K56,"w")) -> 3 | G21: =IF(COUNTBLANK(★個人成績表★!K50:K56)=7,"",7-COUNTBLANK(★個人成績表★!K50:K56)-COUNTIF(★個人成績表★!K50:K56,"w")) -> 4 | H21: =IF(COUNTBLANK(★個人成績表★!M50:M56)=7,"",COUNTIF(★個人成績表★!M50:M56,"w")) -> 3 | I21: =IF(COUNTBLANK(★個人成績表★!M50:M56)=7,"",7-COUNTBLANK(★個人成績表★!M50:M56)-COUNTIF(★個人成績表★!M50:M56,"w")) -> 4 | J21: =IF(COUNTBLANK(★個人成績表★!J50:J56)=7,"",COUNTIF(★個人成績表★!J50:J56,"w")) -> 2 | K21: =IF(COUNTBLANK(★個人成績表★!J50:J56)=7,"",7-COUNTBLANK(★個人成績表★!J50:J56)-COUNTIF(★個人成績表★!J50:J56,"w")) -> 5 | L21: =IF(COUNTBLANK(★個人成績表★!L50:L56)=7,"",COUNTIF(★個人成績表★!L50:L56,"w")) -> 4 | M21: =IF(COUNTBLANK(★個人成績表★!L50:L56)=7,"",7-COUNTBLANK(★個人成績表★!L50:L56)-COUNTIF(★個人成績表★!L50:L56,"w")) -> 3 | R21: =IF(★個人成績表★!S57=R55,"",★個人成績表★!S57) -> 6220.8 | W21: =IF(ISERROR(P20*100000+★個人成績表★!Q57),"",P20*100000+★個人成績表★!Q57) -> 3706220.8
